Workbook

Sheet R7.4.30
D1: ※行政区「ひめさゆり」「ひまわり荘」「やすらぎの家」の人口および世帯数は非表示となっています。 | BU1: （令和7年4月30日 現在）
C2: 男 | AA2: 女
A3: 地区 | B3: 行政区 | C3: ０～４歳 | D3: ５～９歳 | E3: １０～１４歳 | F3: １５～１９歳 | G3: ２０～２４歳 | H3: ２５～２９歳 | I3: ３０～３４歳 | J3: ３５～３９歳 | K3: ４０～４４歳 | L3: ４５～４９歳 | M3: ５０～５４歳 | N3: ５５～５９歳 | O3: ６０～６４歳 | P3: ６５～６９歳 | Q3: ７０～７４歳 | R3: ７５～７９歳 | S3: ８０～８４歳 | T3: ８５～８９歳 | U3: ９０～９４歳 | V3: ９５～１００歳 | W3: １０１～１０４歳 | X3: １０５～１０９歳 | Y3: １１０～ | Z3: 合計 | AA3: ０～４歳 | AB3: ５～９歳 | AC3: １０～１４歳 | AD3: １５～１９歳 | AE3: ２０～２４歳 | AF3: ２５～２９歳 | AG3: ３０～３４歳 | AH3: ３５～３９歳 | AI3: ４０～４４歳 | AJ3: ４５～４９歳 | AK3: ５０～５４歳 | AL3: ５５～５９歳 | AM3: ６０～６４歳 | AN3: ６５～６９歳 | AO3: ７０～７４歳 | AP3: ７５～７９歳 | AQ3: ８０～８４歳 | AR3: ８５～８９歳 | AS3: ９０～９４歳 | AT3: ９５～１００歳 | AU3: １０１～１０４歳 | AV3: １０５～１０９歳 | AW3: １１０～ | AX3: 合計 | AY3: ０～４歳 | AZ3: ５～９歳 | BA3: １０～１４歳 | BB3: １５～１９歳 | BC3: ２０～２４歳 | BD3: ２５～２９歳 | BE3: ３０～３４歳 | BF3: ３５～３９歳 | BG3: ４０～４４歳 | BH3: ４５～４９歳 | BI3: ５０～５４歳 | BJ3: ５５～５９歳 | BK3: ６０～６４歳 | BL3: ６５～６９歳 | BM3: ７０～７４歳 | BN3: ７５～７９歳 | BO3: ８０～８４歳 | BP3: ８５～８９歳 | BQ3: ９０～９４歳 | BR3: ９５～１００歳 | BS3: １０１～１０４歳 | BT3: １０５～１０９歳 | BU3: １１０～ | BV3: 合計 | BW3: 世帯数 | BX3: 高齢化率 （総人口に占める65歳以上人口の割合）
A4: 中 条 地 区 | B4: 表町 | C4: 2 | D4: 3 | E4: 1 | F4: 5 | G4: 1 | H4: 1 | I4: 4 | J4: 9 | K4: 0 | L4: 2 | M4: 5 | N4: 7 | O4: 4 | P4: 9 | Q4: 14 | R4: 7 | S4: 8 | T4: 3 | U4: 1 | V4: 0 | W4: 0 | X4: 0 | Y4: 0 | Z4: 86 | AA4: 3 | AB4: 2 | AC4: 3 | AD4: 5 | AE4: 5 | AF4: 1 | AG4: 4 | AH4: 3 | AI4: 1 | AJ4: 3 | AK4: 4 | AL4: 6 | AM4: 6 | AN4: 7 | AO4: 8 | AP4: 9 | AQ4: 6 | AR4: 6 | AS4: 6 | AT4: 2 | AU4: 0 | AV4: 0 | AW4: 0 | AX4: 90 | AY4: 5 | AZ4: 5 | BA4: 4 | BB4: 10 | BC4: 6 | BD4: 2 | BE4: 8 | BF4: 12 | BG4: 1 | BH4: 5 | BI4: 9 | BJ4: 13 | BK4: 10 | BL4: 16 | BM4: 22 | BN4: 16 | BO4: 14 | BP4: 9 | BQ4: 7 | BR4: 2 | BS4: 0 | BT4: 0 | BU4: 0 | BV4: 176 | BW4: 77 | BX4: =SUM(BL4:BU4)/BV4 -> 0.4886363636
B5: 水沢町 | C5: 0 | D5: 0 | E5: 0 | F5: 0 | G5: 0 | H5: 0 | I5: 0 | J5: 0 | K5: 0 | L5: 0 | M5: 0 | N5: 0 | O5: 0 | P5: 1 | Q5: 1 | R5: 0 | S5: 0 | T5: 0 | U5: 0 | V5: 0 | W5: 0 | X5: 0 | Y5: 0 | Z5: 2 | AA5: 0 | AB5: 0 | AC5: 0 | AD5: 0 | AE5: 0 | AF5: 0 | AG5: 0 | AH5: 0 | AI5: 0 | AJ5: 0 | AK5: 0 | AL5: 0 | AM5: 0 | AN5: 1 | AO5: 1 | AP5: 0 | AQ5: 0 | AR5: 0 | AS5: 0 | AT5: 0 | AU5: 0 | AV5: 0 | AW5: 0 | AX5: 2 | AY5: 0 | AZ5: 0 | BA5: 0 | BB5: 0 | BC5: 0 | BD5: 0 | BE5: 0 | BF5: 0 | BG5: 0 | BH5: 0 | BI5: 0 | BJ5: 0 | BK5: 0 | BL5: 2 | BM5: 2 | BN5: 0 | BO5: 0 | BP5: 0 | BQ5: 0 | BR5: 0 | BS5: 0 | BT5: 0 | BU5: 0 | BV5: 4 | BW5: 2 | BX5: =SUM(BL5:BU5)/BV5 -> 1
B6: 新栄町 | C6: 5 | D6: 2 | E6: 3 | F6: 7 | G6: 1 | H6: 6 | I6: 5 | J6: 4 | K6: 6 | L6: 7 | M6: 12 | N6: 8 | O6: 15 | P6: 10 | Q6: 13 | R6: 18 | S6: 13 | T6: 5 | U6: 4 | V6: 1 | W6: 0 | X6: 0 | Y6: 0 | Z6: 145 | AA6: 1 | AB6: 2 | AC6: 7 | AD6: 5 | AE6: 5 | AF6: 3 | AG6: 1 | AH6: 3 | AI6: 4 | AJ6: 11 | AK6: 11 | AL6: 12 | AM6: 12 | AN6: 11 | AO6: 18 | AP6: 13 | AQ6: 13 | AR6: 8 | AS6: 9 | AT6: 2 | AU6: 0 | AV6: 0 | AW6: 0 | AX6: 151 | AY6: 6 | AZ6: 4 | BA6: 10 | BB6: 12 | BC6: 6 | BD6: 9 | BE6: 6 | BF6: 7 | BG6: 10 | BH6: 18 | BI6: 23 | BJ6: 20 | BK6: 27 | BL6: 21 | BM6: 31 | BN6: 31 | BO6: 26 | BP6: 13 | BQ6: 13 | BR6: 3 | BS6: 0 | BT6: 0 | BU6: 0 | BV6: 296 | BW6: 130 | BX6: =SUM(BL6:BU6)/BV6 -> 0.4662162162
B7: 大川町１ | C7: 1 | D7: 1 | E7: 2 | F7: 0 | G7: 1 | H7: 2 | I7: 0 | J7: 2 | K7: 0 | L7: 3 | M7: 3 | N7: 4 | O7: 0 | P7: 5 | Q7: 0 | R7: 1 | S7: 1 | T7: 2 | U7: 0 | V7: 0 | W7: 0 | X7: 0 | Y7: 0 | Z7: 28 | AA7: 0 | AB7: 0 | AC7: 0 | AD7: 1 | AE7: 2 | AF7: 0 | AG7: 3 | AH7: 0 | AI7: 0 | AJ7: 5 | AK7: 2 | AL7: 1 | AM7: 0 | AN7: 2 | AO7: 3 | AP7: 1 | AQ7: 1 | AR7: 2 | AS7: 0 | AT7: 2 | AU7: 0 | AV7: 0 | AW7: 0 | AX7: 25 | AY7: 1 | AZ7: 1 | BA7: 2 | BB7: 1 | BC7: 3 | BD7: 2 | BE7: 3 | BF7: 2 | BG7: 0 | BH7: 8 | BI7: 5 | BJ7: 5 | BK7: 0 | BL7: 7 | BM7: 3 | BN7: 2 | BO7: 2 | BP7: 4 | BQ7: 0 | BR7: 2 | BS7: 0 | BT7: 0 | BU7: 0 | BV7: 53 | BW7: 22 | BX7: =SUM(BL7:BU7)/BV7 -> 0.3773584906
B8: 大川町２ | C8: 0 | D8: 0 | E8: 0 | F8: 0 | G8: 0 | H8: 0 | I8: 0 | J8: 1 | K8: 1 | L8: 1 | M8: 2 | N8: 1 | O8: 2 | P8: 4 | Q8: 1 | R8: 1 | S8: 0 | T8: 1 | U8: 0 | V8: 0 | W8: 0 | X8: 0 | Y8: 0 | Z8: 15 | AA8: 0 | AB8: 0 | AC8: 1 | AD8: 1 | AE8: 1 | AF8: 0 | AG8: 0 | AH8: 0 | AI8: 0 | AJ8: 3 | AK8: 1 | AL8: 1 | AM8: 2 | AN8: 4 | AO8: 0 | AP8: 3 | AQ8: 1 | AR8: 1 | AS8: 1 | AT8: 0 | AU8: 1 | AV8: 0 | AW8: 0 | AX8: 21 | AY8: 0 | AZ8: 0 | BA8: 1 | BB8: 1 | BC8: 1 | BD8: 0 | BE8: 0 | BF8: 1 | BG8: 1 | BH8: 4 | BI8: 3 | BJ8: 2 | BK8: 4 | BL8: 8 | BM8: 1 | BN8: 4 | BO8: 1 | BP8: 2 | BQ8: 1 | BR8: 0 | BS8: 1 | BT8: 0 | BU8: 0 | BV8: 36 | BW8: 15 | BX8: =SUM(BL8:BU8)/BV8 -> 0.5
B9: 大川町３ | C9: 2 | D9: 2 | E9: 0 | F9: 1 | G9: 7 | H9: 8 | I9: 7 | J9: 2 | K9: 5 | L9: 4 | M9: 5 | N9: 2 | O9: 5 | P9: 5 | Q9: 3 | R9: 3 | S9: 2 | T9: 2 | U9: 1 | V9: 0 | W9: 0 | X9: 0 | Y9: 0 | Z9: 66 | AA9: 4 | AB9: 3 | AC9: 3 | AD9: 1 | AE9: 7 | AF9: 4 | AG9: 3 | AH9: 3 | AI9: 1 | AJ9: 4 | AK9: 4 | AL9: 5 | AM9: 4 | AN9: 4 | AO9: 4 | AP9: 3 | AQ9: 4 | AR9: 3 | AS9: 1 | AT9: 1 | AU9: 0 | AV9: 0 | AW9: 0 | AX9: 66 | AY9: 6 | AZ9: 5 | BA9: 3 | BB9: 2 | BC9: 14 | BD9: 12 | BE9: 10 | BF9: 5 | BG9: 6 | BH9: 8 | BI9: 9 | BJ9: 7 | BK9: 9 | BL9: 9 | BM9: 7 | BN9: 6 | BO9: 6 | BP9: 5 | BQ9: 2 | BR9: 1 | BS9: 0 | BT9: 0 | BU9: 0 | BV9: 132 | BW9: 70 | BX9: =SUM(BL9:BU9)/BV9 -> 0.2727272727
B10: 大川町４ | C10: 9 | D10: 4 | E10: 8 | F10: 7 | G10: 6 | H10: 13 | I10: 15 | J10: 13 | K10: 12 | L10: 12 | M10: 11 | N10: 7 | O10: 8 | P10: 4 | Q10: 13 | R10: 7 | S10: 7 | T10: 1 | U10: 3 | V10: 0 | W10: 0 | X10: 0 | Y10: 0 | Z10: 160 | AA10: 10 | AB10: 5 | AC10: 4 | AD10: 7 | AE10: 8 | AF10: 13 | AG10: 9 | AH10: 17 | AI10: 8 | AJ10: 7 | AK10: 8 | AL10: 4 | AM10: 8 | AN10: 9 | AO10: 12 | AP10: 11 | AQ10: 7 | AR10: 3 | AS10: 2 | AT10: 2 | AU10: 0 | AV10: 0 | AW10: 0 | AX10: 154 | AY10: 19 | AZ10: 9 | BA10: 12 | BB10: 14 | BC10: 14 | BD10: 26 | BE10: 24 | BF10: 30 | BG10: 20 | BH10: 19 | BI10: 19 | BJ10: 11 | BK10: 16 | BL10: 13 | BM10: 25 | BN10: 18 | BO10: 14 | BP10: 4 | BQ10: 5 | BR10: 2 | BS10: 0 | BT10: 0 | BU10: 0 | BV10: 314 | BW10: 141 | BX10: =SUM(BL10:BU10)/BV10 -> 0.2579617834
B11: 本町１ | C11: 0 | D11: 2 | E11: 0 | F11: 1 | G11: 0 | H11: 1 | I11: 2 | J11: 0 | K11: 2 | L11: 1 | M11: 1 | N11: 2 | O11: 3 | P11: 2 | Q11: 3 | R11: 4 | S11: 1 | T11: 1 | U11: 0 | V11: 0 | W11: 0 | X11: 0 | Y11: 0 | Z11: 26 | AA11: 1 | AB11: 0 | AC11: 0 | AD11: 0 | AE11: 1 | AF11: 0 | AG11: 0 | AH11: 0 | AI11: 0 | AJ11: 2 | AK11: 0 | AL11: 1 | AM11: 4 | AN11: 1 | AO11: 4 | AP11: 2 | AQ11: 2 | AR11: 1 | AS11: 1 | AT11: 2 | AU11: 0 | AV11: 0 | AW11: 0 | AX11: 22 | AY11: 1 | AZ11: 2 | BA11: 0 | BB11: 1 | BC11: 1 | BD11: 1 | BE11: 2 | BF11: 0 | BG11: 2 | BH11: 3 | BI11: 1 | BJ11: 3 | BK11: 7 | BL11: 3 | BM11: 7 | BN11: 6 | BO11: 3 | BP11: 2 | BQ11: 1 | BR11: 2 | BS11: 0 | BT11: 0 | BU11: 0 | BV11: 48 | BW11: 24 | BX11: =SUM(BL11:BU11)/BV11 -> 0.5
B12: 本町２ | C12: 0 | D12: 1 | E12: 1 | F12: 0 | G12: 4 | H12: 2 | I12: 1 | J12: 0 | K12: 1 | L12: 1 | M12: 0 | N12: 3 | O12: 1 | P12: 0 | Q12: 4 | R12: 3 | S12: 1 | T12: 0 | U12: 0 | V12: 0 | W12: 0 | X12: 0 | Y12: 0 | Z12: 23 | AA12: 0 | AB12: 0 | AC12: 1 | AD12: 0 | AE12: 1 | AF12: 1 | AG12: 2 | AH12: 0 | AI12: 0 | AJ12: 1 | AK12: 1 | AL12: 3 | AM12: 0 | AN12: 3 | AO12: 3 | AP12: 2 | AQ12: 2 | AR12: 3 | AS12: 2 | AT12: 0 | AU12: 0 | AV12: 0 | AW12: 0 | AX12: 25 | AY12: 0 | AZ12: 1 | BA12: 2 | BB12: 0 | BC12: 5 | BD12: 3 | BE12: 3 | BF12: 0 | BG12: 1 | BH12: 2 | BI12: 1 | BJ12: 6 | BK12: 1 | BL12: 3 | BM12: 7 | BN12: 5 | BO12: 3 | BP12: 3 | BQ12: 2 | BR12: 0 | BS12: 0 | BT12: 0 | BU12: 0 | BV12: 48 | BW12: 19 | BX12: =SUM(BL12:BU12)/BV12 -> 0.4791666667
B13: 本町３ | C13: 0 | D13: 1 | E13: 2 | F13: 5 | G13: 3 | H13: 3 | I13: 1 | J13: 3 | K13: 0 | L13: 2 | M13: 3 | N13: 2 | O13: 2 | P13: 5 | Q13: 3 | R13: 4 | S13: 3 | T13: 1 | U13: 0 | V13: 1 | W13: 0 | X13: 0 | Y13: 0 | Z13: 44 | AA13: 1 | AB13: 0 | AC13: 1 | AD13: 1 | AE13: 1 | AF13: 0 | AG13: 1 | AH13: 2 | AI13: 3 | AJ13: 3 | AK13: 2 | AL13: 0 | AM13: 4 | AN13: 2 | AO13: 4 | AP13: 6 | AQ13: 3 | AR13: 4 | AS13: 5 | AT13: 0 | AU13: 0 | AV13: 0 | AW13: 0 | AX13: 43 | AY13: 1 | AZ13: 1 | BA13: 3 | BB13: 6 | BC13: 4 | BD13: 3 | BE13: 2 | BF13: 5 | BG13: 3 | BH13: 5 | BI13: 5 | BJ13: 2 | BK13: 6 | BL13: 7 | BM13: 7 | BN13: 10 | BO13: 6 | BP13: 5 | BQ13: 5 | BR13: 1 | BS13: 0 | BT13: 0 | BU13: 0 | BV13: 87 | BW13: 42 | BX13: =SUM(BL13:BU13)/BV13 -> 0.4712643678
B14: 本町４ | C14: 1 | D14: 1 | E14: 2 | F14: 3 | G14: 0 | H14: 1 | I14: 1 | J14: 1 | K14: 3 | L14: 0 | M14: 4 | N14: 4 | O14: 1 | P14: 0 | Q14: 4 | R14: 2 | S14: 2 | T14: 4 | U14: 1 | V14: 0 | W14: 0 | X14: 0 | Y14: 0 | Z14: 35 | AA14: 0 | AB14: 1 | AC14: 1 | AD14: 1 | AE14: 0 | AF14: 1 | AG14: 1 | AH14: 0 | AI14: 2 | AJ14: 0 | AK14: 5 | AL14: 3 | AM14: 0 | AN14: 4 | AO14: 2 | AP14: 5 | AQ14: 3 | AR14: 1 | AS14: 5 | AT14: 0 | AU14: 0 | AV14: 0 | AW14: 0 | AX14: 35 | AY14: 1 | AZ14: 2 | BA14: 3 | BB14: 4 | BC14: 0 | BD14: 2 | BE14: 2 | BF14: 1 | BG14: 5 | BH14: 0 | BI14: 9 | BJ14: 7 | BK14: 1 | BL14: 4 | BM14: 6 | BN14: 7 | BO14: 5 | BP14: 5 | BQ14: 6 | BR14: 0 | BS14: 0 | BT14: 0 | BU14: 0 | BV14: 70 | BW14: 31 | BX14: =SUM(BL14:BU14)/BV14 -> 0.4714285714
B15: 西栄町１ | C15: 1 | D15: 2 | E15: 0 | F15: 0 | G15: 1 | H15: 0 | I15: 0 | J15: 1 | K15: 5 | L15: 1 | M15: 3 | N15: 5 | O15: 3 | P15: 1 | Q15: 3 | R15: 4 | S15: 5 | T15: 0 | U15: 1 | V15: 0 | W15: 0 | X15: 0 | Y15: 0 | Z15: 36 | AA15: 0 | AB15: 1 | AC15: 2 | AD15: 1 | AE15: 1 | AF15: 0 | AG15: 3 | AH15: 1 | AI15: 1 | AJ15: 1 | AK15: 3 | AL15: 4 | AM15: 2 | AN15: 2 | AO15: 2 | AP15: 5 | AQ15: 5 | AR15: 4 | AS15: 2 | AT15: 3 | AU15: 1 | AV15: 0 | AW15: 0 | AX15: 44 | AY15: 1 | AZ15: 3 | BA15: 2 | BB15: 1 | BC15: 2 | BD15: 0 | BE15: 3 | BF15: 2 | BG15: 6 | BH15: 2 | BI15: 6 | BJ15: 9 | BK15: 5 | BL15: 3 | BM15: 5 | BN15: 9 | BO15: 10 | BP15: 4 | BQ15: 3 | BR15: 3 | BS15: 1 | BT15: 0 | BU15: 0 | BV15: 80 | BW15: 39 | BX15: =SUM(BL15:BU15)/BV15 -> 0.475
B16: 西栄町２ | C16: 0 | D16: 1 | E16: 1 | F16: 1 | G16: 0 | H16: 1 | I16: 0 | J16: 0 | K16: 2 | L16: 0 | M16: 0 | N16: 1 | O16: 2 | P16: 3 | Q16: 2 | R16: 4 | S16: 1 | T16: 0 | U16: 0 | V16: 0 | W16: 0 | X16: 0 | Y16: 0 | Z16: 19 | AA16: 0 | AB16: 0 | AC16: 0 | AD16: 0 | AE16: 0 | AF16: 0 | AG16: 0 | AH16: 0 | AI16: 3 | AJ16: 2 | AK16: 1 | AL16: 0 | AM16: 2 | AN16: 3 | AO16: 5 | AP16: 3 | AQ16: 0 | AR16: 2 | AS16: 1 | AT16: 0 | AU16: 0 | AV16: 0 | AW16: 0 | AX16: 22 | AY16: 0 | AZ16: 1 | BA16: 1 | BB16: 1 | BC16: 0 | BD16: 1 | BE16: 0 | BF16: 0 | BG16: 5 | BH16: 2 | BI16: 1 | BJ16: 1 | BK16: 4 | BL16: 6 | BM16: 7 | BN16: 7 | BO16: 1 | BP16: 2 | BQ16: 1 | BR16: 0 | BS16: 0 | BT16: 0 | BU16: 0 | BV16: 41 | BW16: 20 | BX16: =SUM(BL16:BU16)/BV16 -> 0.5853658537
B17: 西栄町３ | C17: 1 | D17: 3 | E17: 0 | F17: 2 | G17: 0 | H17: 1 | I17: 2 | J17: 0 | K17: 2 | L17: 3 | M17: 3 | N17: 2 | O17: 3 | P17: 4 | Q17: 2 | R17: 4 | S17: 1 | T17: 0 | U17: 1 | V17: 0 | W17: 0 | X17: 0 | Y17: 0 | Z17: 34 | AA17: 2 | AB17: 0 | AC17: 0 | AD17: 3 | AE17: 1 | AF17: 3 | AG17: 0 | AH17: 0 | AI17: 2 | AJ17: 3 | AK17: 2 | AL17: 3 | AM17: 5 | AN17: 5 | AO17: 4 | AP17: 0 | AQ17: 3 | AR17: 0 | AS17: 6 | AT17: 0 | AU17: 0 | AV17: 0 | AW17: 0 | AX17: 42 | AY17: 3 | AZ17: 3 | BA17: 0 | BB17: 5 | BC17: 1 | BD17: 4 | BE17: 2 | BF17: 0 | BG17: 4 | BH17: 6 | BI17: 5 | BJ17: 5 | BK17: 8 | BL17: 9 | BM17: 6 | BN17: 4 | BO17: 4 | BP17: 0 | BQ17: 7 | BR17: 0 | BS17: 0 | BT17: 0 | BU17: 0 | BV17: 76 | BW17: 30 | BX17: =SUM(BL17:BU17)/BV17 -> 0.3947368421
B18: 西栄町４ | C18: 1 | D18: 2 | E18: 0 | F18: 3 | G18: 1 | H18: 1 | I18: 0 | J18: 1 | K18: 1 | L18: 0 | M18: 3 | N18: 0 | O18: 2 | P18: 3 | Q18: 3 | R18: 2 | S18: 1 | T18: 1 | U18: 3 | V18: 0 | W18: 0 | X18: 0 | Y18: 0 | Z18: 28 | AA18: 0 | AB18: 0 | AC18: 1 | AD18: 0 | AE18: 1 | AF18: 0 | AG18: 0 | AH18: 1 | AI18: 1 | AJ18: 2 | AK18: 2 | AL18: 1 | AM18: 1 | AN18: 3 | AO18: 4 | AP18: 2 | AQ18: 3 | AR18: 1 | AS18: 2 | AT18: 0 | AU18: 1 | AV18: 0 | AW18: 0 | AX18: 26 | AY18: 1 | AZ18: 2 | BA18: 1 | BB18: 3 | BC18: 2 | BD18: 1 | BE18: 0 | BF18: 2 | BG18: 2 | BH18: 2 | BI18: 5 | BJ18: 1 | BK18: 3 | BL18: 6 | BM18: 7 | BN18: 4 | BO18: 4 | BP18: 2 | BQ18: 5 | BR18: 0 | BS18: 1 | BT18: 0 | BU18: 0 | BV18: 54 | BW18: 22 | BX18: =SUM(BL18:BU18)/BV18 -> 0.537037037
B19: 西本町１ | C19: 7 | D19: 5 | E19: 10 | F19: 9 | G19: 4 | H19: 5 | I19: 5 | J19: 6 | K19: 10 | L19: 6 | M19: 8 | N19: 4 | O19: 2 | P19: 2 | Q19: 2 | R19: 1 | S19: 1 | T19: 2 | U19: 2 | V19: 0 | W19: 0 | X19: 0 | Y19: 0 | Z19: 91 | AA19: 1 | AB19: 4 | AC19: 7 | AD19: 5 | AE19: 3 | AF19: 4 | AG19: 6 | AH19: 6 | AI19: 8 | AJ19: 8 | AK19: 5 | AL19: 3 | AM19: 3 | AN19: 3 | AO19: 2 | AP19: 3 | AQ19: 7 | AR19: 2 | AS19: 0 | AT19: 0 | AU19: 0 | AV19: 0 | AW19: 0 | AX19: 80 | AY19: 8 | AZ19: 9 | BA19: 17 | BB19: 14 | BC19: 7 | BD19: 9 | BE19: 11 | BF19: 12 | BG19: 18 | BH19: 14 | BI19: 13 | BJ19: 7 | BK19: 5 | BL19: 5 | BM19: 4 | BN19: 4 | BO19: 8 | BP19: 4 | BQ19: 2 | BR19: 0 | BS19: 0 | BT19: 0 | BU19: 0 | BV19: 171 | BW19: 76 | BX19: =SUM(BL19:BU19)/BV19 -> 0.1578947368
B20: 西本町２ | C20: 4 | D20: 6 | E20: 1 | F20: 6 | G20: 8 | H20: 5 | I20: 9 | J20: 13 | K20: 11 | L20: 11 | M20: 12 | N20: 7 | O20: 11 | P20: 6 | Q20: 5 | R20: 4 | S20: 6 | T20: 3 | U20: 0 | V20: 0 | W20: 0 | X20: 0 | Y20: 0 | Z20: 128 | AA20: 7 | AB20: 12 | AC20: 2 | AD20: 5 | AE20: 10 | AF20: 7 | AG20: 4 | AH20: 12 | AI20: 3 | AJ20: 8 | AK20: 9 | AL20: 11 | AM20: 5 | AN20: 6 | AO20: 6 | AP20: 9 | AQ20: 9 | AR20: 4 | AS20: 5 | AT20: 0 | AU20: 1 | AV20: 0 | AW20: 0 | AX20: 135 | AY20: 11 | AZ20: 18 | BA20: 3 | BB20: 11 | BC20: 18 | BD20: 12 | BE20: 13 | BF20: 25 | BG20: 14 | BH20: 19 | BI20: 21 | BJ20: 18 | BK20: 16 | BL20: 12 | BM20: 11 | BN20: 13 | BO20: 15 | BP20: 7 | BQ20: 5 | BR20: 0 | BS20: 1 | BT20: 0 | BU20: 0 | BV20: 263 | BW20: 112 | BX20: =SUM(BL20:BU20)/BV20 -> 0.2433460076
B21: 西本町３ | C21: 5 | D21: 11 | E21: 3 | F21: 10 | G21: 12 | H21: 13 | I21: 16 | J21: 18 | K21: 10 | L21: 15 | M21: 18 | N21: 10 | O21: 14 | P21: 10 | Q21: 10 | R21: 10 | S21: 9 | T21: 3 | U21: 3 | V21: 0 | W21: 0 | X21: 0 | Y21: 0 | Z21: 200 | AA21: 6 | AB21: 11 | AC21: 5 | AD21: 10 | AE21: 13 | AF21: 12 | AG21: 9 | AH21: 20 | AI21: 12 | AJ21: 8 | AK21: 20 | AL21: 9 | AM21: 13 | AN21: 13 | AO21: 16 | AP21: 9 | AQ21: 14 | AR21: 6 | AS21: 11 | AT21: 0 | AU21: 1 | AV21: 0 | AW21: 0 | AX21: 218 | AY21: 11 | AZ21: 22 | BA21: 8 | BB21: 20 | BC21: 25 | BD21: 25 | BE21: 25 | BF21: 38 | BG21: 22 | BH21: 23 | BI21: 38 | BJ21: 19 | BK21: 27 | BL21: 23 | BM21: 26 | BN21: 19 | BO21: 23 | BP21: 9 | BQ21: 14 | BR21: 0 | BS21: 1 | BT21: 0 | BU21: 0 | BV21: 418 | BW21: 193 | BX21: =SUM(BL21:BU21)/BV21 -> 0.2751196172
B22: 西本町４ | C22: 2 | D22: 3 | E22: 3 | F22: 7 | G22: 4 | H22: 5 | I22: 5 | J22: 5 | K22: 7 | L22: 4 | M22: 5 | N22: 2 | O22: 3 | P22: 3 | Q22: 6 | R22: 10 | S22: 9 | T22: 1 | U22: 4 | V22: 0 | W22: 0 | X22: 0 | Y22: 0 | Z22: 88 | AA22: 5 | AB22: 4 | AC22: 5 | AD22: 3 | AE22: 2 | AF22: 5 | AG22: 6 | AH22: 4 | AI22: 9 | AJ22: 4 | AK22: 8 | AL22: 5 | AM22: 2 | AN22: 4 | AO22: 9 | AP22: 10 | AQ22: 7 | AR22: 15 | AS22: 23 | AT22: 16 | AU22: 1 | AV22: 0 | AW22: 0 | AX22: 147 | AY22: 7 | AZ22: 7 | BA22: 8 | BB22: 10 | BC22: 6 | BD22: 10 | BE22: 11 | BF22: 9 | BG22: 16 | BH22: 8 | BI22: 13 | BJ22: 7 | BK22: 5 | BL22: 7 | BM22: 15 | BN22: 20 | BO22: 16 | BP22: 16 | BQ22: 27 | BR22: 16 | BS22: 1 | BT22: 0 | BU22: 0 | BV22: 235 | BW22: 140 | BX22: =SUM(BL22:BU22)/BV22 -> 0.5021276596
B23: 北本町１ | C23: 0 | D23: 3 | E23: 6 | F23: 4 | G23: 2 | H23: 2 | I23: 2 | J23: 3 | K23: 1 | L23: 3 | M23: 3 | N23: 8 | O23: 9 | P23: 6 | Q23: 6 | R23: 6 | S23: 4 | T23: 1 | U23: 4 | V23: 0 | W23: 0 | X23: 0 | Y23: 0 | Z23: 73 | AA23: 1 | AB23: 1 | AC23: 2 | AD23: 2 | AE23: 3 | AF23: 2 | AG23: 2 | AH23: 6 | AI23: 5 | AJ23: 4 | AK23: 6 | AL23: 8 | AM23: 3 | AN23: 6 | AO23: 11 | AP23: 6 | AQ23: 9 | AR23: 8 | AS23: 9 | AT23: 4 | AU23: 0 | AV23: 0 | AW23: 0 | AX23: 98 | AY23: 1 | AZ23: 4 | BA23: 8 | BB23: 6 | BC23: 5 | BD23: 4 | BE23: 4 | BF23: 9 | BG23: 6 | BH23: 7 | BI23: 9 | BJ23: 16 | BK23: 12 | BL23: 12 | BM23: 17 | BN23: 12 | BO23: 13 | BP23: 9 | BQ23: 13 | BR23: 4 | BS23: 0 | BT23: 0 | BU23: 0 | BV23: 171 | BW23: 77 | BX23: =SUM(BL23:BU23)/BV23 -> 0.4678362573
B24: 北本町２ | C24: 0 | D24: 0 | E24: 0 | F24: 0 | G24: 3 | H24: 3 | I24: 0 | J24: 1 | K24: 0 | L24: 0 | M24: 2 | N24: 0 | O24: 4 | P24: 5 | Q24: 2 | R24: 2 | S24: 0 | T24: 2 | U24: 2 | V24: 0 | W24: 0 | X24: 0 | Y24: 0 | Z24: 26 | AA24: 0 | AB24: 0 | AC24: 0 | AD24: 0 | AE24: 1 | AF24: 0 | AG24: 0 | AH24: 1 | AI24: 1 | AJ24: 1 | AK24: 1 | AL24: 3 | AM24: 2 | AN24: 2 | AO24: 1 | AP24: 3 | AQ24: 3 | AR24: 4 | AS24: 4 | AT24: 1 | AU24: 0 | AV24: 0 | AW24: 0 | AX24: 28 | AY24: 0 | AZ24: 0 | BA24: 0 | BB24: 0 | BC24: 4 | BD24: 3 | BE24: 0 | BF24: 2 | BG24: 1 | BH24: 1 | BI24: 3 | BJ24: 3 | BK24: 6 | BL24: 7 | BM24: 3 | BN24: 5 | BO24: 3 | BP24: 6 | BQ24: 6 | BR24: 1 | BS24: 0 | BT24: 0 | BU24: 0 | BV24: 54 | BW24: 32 | BX24: =SUM(BL24:BU24)/BV24 -> 0.5740740741
B25: 東本町１ | C25: 0 | D25: 1 | E25: 3 | F25: 1 | G25: 1 | H25: 3 | I25: 4 | J25: 0 | K25: 2 | L25: 3 | M25: 2 | N25: 4 | O25: 5 | P25: 6 | Q25: 1 | R25: 0 | S25: 2 | T25: 0 | U25: 1 | V25: 0 | W25: 0 | X25: 0 | Y25: 0 | Z25: 39 | AA25: 0 | AB25: 0 | AC25: 1 | AD25: 2 | AE25: 3 | AF25: 0 | AG25: 3 | AH25: 2 | AI25: 3 | AJ25: 2 | AK25: 3 | AL25: 9 | AM25: 5 | AN25: 5 | AO25: 0 | AP25: 2 | AQ25: 8 | AR25: 2 | AS25: 5 | AT25: 3 | AU25: 0 | AV25: 0 | AW25: 0 | AX25: 58 | AY25: 0 | AZ25: 1 | BA25: 4 | BB25: 3 | BC25: 4 | BD25: 3 | BE25: 7 | BF25: 2 | BG25: 5 | BH25: 5 | BI25: 5 | BJ25: 13 | BK25: 10 | BL25: 11 | BM25: 1 | BN25: 2 | BO25: 10 | BP25: 2 | BQ25: 6 | BR25: 3 | BS25: 0 | BT25: 0 | BU25: 0 | BV25: 97 | BW25: 49 | BX25: =SUM(BL25:BU25)/BV25 -> 0.3608247423
B26: 東本町２ | C26: 0 | D26: 1 | E26: 4 | F26: 4 | G26: 3 | H26: 2 | I26: 5 | J26: 3 | K26: 2 | L26: 4 | M26: 6 | N26: 7 | O26: 8 | P26: 4 | Q26: 4 | R26: 9 | S26: 6 | T26: 1 | U26: 1 | V26: 0 | W26: 0 | X26: 0 | Y26: 0 | Z26: 74 | AA26: 2 | AB26: 1 | AC26: 2 | AD26: 2 | AE26: 4 | AF26: 4 | AG26: 1 | AH26: 3 | AI26: 3 | AJ26: 1 | AK26: 9 | AL26: 11 | AM26: 3 | AN26: 2 | AO26: 5 | AP26: 8 | AQ26: 6 | AR26: 7 | AS26: 2 | AT26: 0 | AU26: 0 | AV26: 0 | AW26: 0 | AX26: 76 | AY26: 2 | AZ26: 2 | BA26: 6 | BB26: 6 | BC26: 7 | BD26: 6 | BE26: 6 | BF26: 6 | BG26: 5 | BH26: 5 | BI26: 15 | BJ26: 18 | BK26: 11 | BL26: 6 | BM26: 9 | BN26: 17 | BO26: 12 | BP26: 8 | BQ26: 3 | BR26: 0 | BS26: 0 | BT26: 0 | BU26: 0 | BV26: 150 | BW26: 71 | BX26: =SUM(BL26:BU26)/BV26 -> 0.3666666667
B27: 東本町３ | C27: 0 | D27: 2 | E27: 0 | F27: 2 | G27: 1 | H27: 1 | I27: 1 | J27: 1 | K27: 2 | L27: 4 | M27: 2 | N27: 4 | O27: 2 | P27: 8 | Q27: 5 | R27: 4 | S27: 5 | T27: 2 | U27: 1 | V27: 0 | W27: 0 | X27: 0 | Y27: 0 | Z27: 47 | AA27: 0 | AB27: 1 | AC27: 0 | AD27: 1 | AE27: 5 | AF27: 1 | AG27: 3 | AH27: 1 | AI27: 1 | AJ27: 2 | AK27: 4 | AL27: 5 | AM27: 2 | AN27: 4 | AO27: 4 | AP27: 5 | AQ27: 2 | AR27: 4 | AS27: 3 | AT27: 2 | AU27: 0 | AV27: 0 | AW27: 0 | AX27: 50 | AY27: 0 | AZ27: 3 | BA27: 0 | BB27: 3 | BC27: 6 | BD27: 2 | BE27: 4 | BF27: 2 | BG27: 3 | BH27: 6 | BI27: 6 | BJ27: 9 | BK27: 4 | BL27: 12 | BM27: 9 | BN27: 9 | BO27: 7 | BP27: 6 | BQ27: 4 | BR27: 2 | BS27: 0 | BT27: 0 | BU27: 0 | BV27: 97 | BW27: 54 | BX27: =SUM(BL27:BU27)/BV27 -> 0.5051546392
B28: 東本町４ | C28: 16 | D28: 3 | E28: 5 | F28: 8 | G28: 22 | H28: 19 | I28: 21 | J28: 13 | K28: 16 | L28: 17 | M28: 11 | N28: 12 | O28: 20 | P28: 16 | Q28: 6 | R28: 13 | S28: 6 | T28: 5 | U28: 5 | V28: 1 | W28: 0 | X28: 0 | Y28: 0 | Z28: 235 | AA28: 7 | AB28: 5 | AC28: 4 | AD28: 5 | AE28: 21 | AF28: 12 | AG28: 23 | AH28: 16 | AI28: 11 | AJ28: 15 | AK28: 12 | AL28: 23 | AM28: 15 | AN28: 11 | AO28: 18 | AP28: 11 | AQ28: 19 | AR28: 12 | AS28: 6 | AT28: 1 | AU28: 1 | AV28: 0 | AW28: 0 | AX28: 248 | AY28: 23 | AZ28: 8 | BA28: 9 | BB28: 13 | BC28: 43 | BD28: 31 | BE28: 44 | BF28: 29 | BG28: 27 | BH28: 32 | BI28: 23 | BJ28: 35 | BK28: 35 | BL28: 27 | BM28: 24 | BN28: 24 | BO28: 25 | BP28: 17 | BQ28: 11 | BR28: 2 | BS28: 1 | BT28: 0 | BU28: 0 | BV28: 483 | BW28: 236 | BX28: =SUM(BL28:BU28)/BV28 -> 0.2712215321
B29: 東本町５ | C29: 0 | D29: 0 | E29: 2 | F29: 5 | G29: 1 | H29: 1 | I29: 2 | J29: 3 | K29: 3 | L29: 2 | M29: 8 | N29: 3 | O29: 4 | P29: 11 | Q29: 5 | R29: 6 | S29: 1 | T29: 2 | U29: 2 | V29: 0 | W29: 0 | X29: 0 | Y29: 0 | Z29: 61 | AA29: 1 | AB29: 0 | AC29: 3 | AD29: 4 | AE29: 1 | AF29: 1 | AG29: 1 | AH29: 2 | AI29: 5 | AJ29: 4 | AK29: 1 | AL29: 2 | AM29: 2 | AN29: 9 | AO29: 5 | AP29: 5 | AQ29: 2 | AR29: 5 | AS29: 2 | AT29: 1 | AU29: 0 | AV29: 0 | AW29: 0 | AX29: 56 | AY29: 1 | AZ29: 0 | BA29: 5 | BB29: 9 | BC29: 2 | BD29: 2 | BE29: 3 | BF29: 5 | BG29: 8 | BH29: 6 | BI29: 9 | BJ29: 5 | BK29: 6 | BL29: 20 | BM29: 10 | BN29: 11 | BO29: 3 | BP29: 7 | BQ29: 4 | BR29: 1 | BS29: 0 | BT29: 0 | BU29: 0 | BV29: 117 | BW29: 54 | BX29: =SUM(BL29:BU29)/BV29 -> 0.4786324786
B30: 東本町６ | C30: 2 | D30: 3 | E30: 4 | F30: 4 | G30: 1 | H30: 2 | I30: 4 | J30: 2 | K30: 2 | L30: 6 | M30: 12 | N30: 9 | O30: 7 | P30: 7 | Q30: 8 | R30: 4 | S30: 10 | T30: 6 | U30: 5 | V30: 0 | W30: 0 | X30: 0 | Y30: 0 | Z30: 98 | AA30: 2 | AB30: 2 | AC30: 2 | AD30: 4 | AE30: 5 | AF30: 6 | AG30: 5 | AH30: 3 | AI30: 1 | AJ30: 5 | AK30: 10 | AL30: 11 | AM30: 6 | AN30: 3 | AO30: 9 | AP30: 7 | AQ30: 11 | AR30: 9 | AS30: 5 | AT30: 2 | AU30: 1 | AV30: 0 | AW30: 0 | AX30: 109 | AY30: 4 | AZ30: 5 | BA30: 6 | BB30: 8 | BC30: 6 | BD30: 8 | BE30: 9 | BF30: 5 | BG30: 3 | BH30: 11 | BI30: 22 | BJ30: 20 | BK30: 13 | BL30: 10 | BM30: 17 | BN30: 11 | BO30: 21 | BP30: 15 | BQ30: 10 | BR30: 2 | BS30: 1 | BT30: 0 | BU30: 0 | BV30: 207 | BW30: 86 | BX30: =SUM(BL30:BU30)/BV30 -> 0.4202898551
B31: 東本町７ | C31: 1 | D31: 8 | E31: 4 | F31: 2 | G31: 0 | H31: 2 | I31: 2 | J31: 4 | K31: 5 | L31: 7 | M31: 6 | N31: 3 | O31: 2 | P31: 4 | Q31: 4 | R31: 0 | S31: 6 | T31: 1 | U31: 0 | V31: 0 | W31: 0 | X31: 0 | Y31: 0 | Z31: 61 | AA31: 4 | AB31: 8 | AC31: 5 | AD31: 0 | AE31: 0 | AF31: 2 | AG31: 2 | AH31: 4 | AI31: 5 | AJ31: 4 | AK31: 1 | AL31: 6 | AM31: 1 | AN31: 7 | AO31: 4 | AP31: 7 | AQ31: 1 | AR31: 0 | AS31: 1 | AT31: 0 | AU31: 0 | AV31: 0 | AW31: 0 | AX31: 62 | AY31: 5 | AZ31: 16 | BA31: 9 | BB31: 2 | BC31: 0 | BD31: 4 | BE31: 4 | BF31: 8 | BG31: 10 | BH31: 11 | BI31: 7 | BJ31: 9 | BK31: 3 | BL31: 11 | BM31: 8 | BN31: 7 | BO31: 7 | BP31: 1 | BQ31: 1 | BR31: 0 | BS31: 0 | BT31: 0 | BU31: 0 | BV31: 123 | BW31: 44 | BX31: =SUM(BL31:BU31)/BV31 -> 0.2845528455
B32: 新和町 | C32: 2 | D32: 4 | E32: 3 | F32: 1 | G32: 1 | H32: 3 | I32: 6 | J32: 2 | K32: 1 | L32: 3 | M32: 3 | N32: 2 | O32: 4 | P32: 0 | Q32: 1 | R32: 2 | S32: 1 | T32: 0 | U32: 0 | V32: 0 | W32: 0 | X32: 0 | Y32: 0 | Z32: 39 | AA32: 5 | AB32: 2 | AC32: 3 | AD32: 0 | AE32: 2 | AF32: 2 | AG32: 7 | AH32: 3 | AI32: 2 | AJ32: 2 | AK32: 1 | AL32: 3 | AM32: 5 | AN32: 0 | AO32: 4 | AP32: 1 | AQ32: 0 | AR32: 3 | AS32: 0 | AT32: 1 | AU32: 0 | AV32: 0 | AW32: 0 | AX32: 46 | AY32: 7 | AZ32: 6 | BA32: 6 | BB32: 1 | BC32: 3 | BD32: 5 | BE32: 13 | BF32: 5 | BG32: 3 | BH32: 5 | BI32: 4 | BJ32: 5 | BK32: 9 | BL32: 0 | BM32: 5 | BN32: 3 | BO32: 1 | BP32: 3 | BQ32: 0 | BR32: 1 | BS32: 0 | BT32: 0 | BU32: 0 | BV32: 85 | BW32: 28 | BX32: =SUM(BL32:BU32)/BV32 -> 0.1529411765
B33: 住吉町 | C33: 23 | D33: 15 | E33: 16 | F33: 7 | G33: 22 | H33: 11 | I33: 19 | J33: 19 | K33: 26 | L33: 22 | M33: 31 | N33: 21 | O33: 9 | P33: 19 | Q33: 12 | R33: 14 | S33: 15 | T33: 5 | U33: 2 | V33: 0 | W33: 0 | X33: 0 | Y33: 0 | Z33: 308 | AA33: 13 | AB33: 17 | AC33: 18 | AD33: 16 | AE33: 8 | AF33: 10 | AG33: 19 | AH33: 23 | AI33: 20 | AJ33: 20 | AK33: 25 | AL33: 15 | AM33: 18 | AN33: 19 | AO33: 10 | AP33: 31 | AQ33: 18 | AR33: 5 | AS33: 3 | AT33: 0 | AU33: 1 | AV33: 0 | AW33: 0 | AX33: 309 | AY33: 36 | AZ33: 32 | BA33: 34 | BB33: 23 | BC33: 30 | BD33: 21 | BE33: 38 | BF33: 42 | BG33: 46 | BH33: 42 | BI33: 56 | BJ33: 36 | BK33: 27 | BL33: 38 | BM33: 22 | BN33: 45 | BO33: 33 | BP33: 10 | BQ33: 5 | BR33: 0 | BS33: 1 | BT33: 0 | BU33: 0 | BV33: 617 | BW33: 239 | BX33: =SUM(BL33:BU33)/BV33 -> 0.2495948136
B34: 若松町１ | C34: 4 | D34: 5 | E34: 12 | F34: 6 | G34: 10 | H34: 12 | I34: 7 | J34: 8 | K34: 12 | L34: 17 | M34: 22 | N34: 20 | O34: 14 | P34: 12 | Q34: 27 | R34: 28 | S34: 29 | T34: 4 | U34: 3 | V34: 1 | W34: 1 | X34: 0 | Y34: 0 | Z34: 254 | AA34: 3 | AB34: 7 | AC34: 10 | AD34: 7 | AE34: 7 | AF34: 4 | AG34: 7 | AH34: 9 | AI34: 11 | AJ34: 17 | AK34: 19 | AL34: 17 | AM34: 10 | AN34: 17 | AO34: 26 | AP34: 37 | AQ34: 33 | AR34: 5 | AS34: 7 | AT34: 0 | AU34: 0 | AV34: 0 | AW34: 0 | AX34: 253 | AY34: 7 | AZ34: 12 | BA34: 22 | BB34: 13 | BC34: 17 | BD34: 16 | BE34: 14 | BF34: 17 | BG34: 23 | BH34: 34 | BI34: 41 | BJ34: 37 | BK34: 24 | BL34: 29 | BM34: 53 | BN34: 65 | BO34: 62 | BP34: 9 | BQ34: 10 | BR34: 1 | BS34: 1 | BT34: 0 | BU34: 0 | BV34: 507 | BW34: 212 | BX34: =SUM(BL34:BU34)/BV34 -> 0.4536489152
B35: 若松町２ | C35: 0 | D35: 1 | E35: 3 | F35: 0 | G35: 2 | H35: 2 | I35: 4 | J35: 0 | K35: 2 | L35: 1 | M35: 6 | N35: 9 | O35: 7 | P35: 14 | Q35: 9 | R35: 12 | S35: 17 | T35: 4 | U35: 0 | V35: 0 | W35: 0 | X35: 0 | Y35: 0 | Z35: 93 | AA35: 0 | AB35: 2 | AC35: 2 | AD35: 3 | AE35: 1 | AF35: 1 | AG35: 0 | AH35: 1 | AI35: 6 | AJ35: 6 | AK35: 8 | AL35: 7 | AM35: 6 | AN35: 9 | AO35: 11 | AP35: 17 | AQ35: 11 | AR35: 5 | AS35: 4 | AT35: 0 | AU35: 0 | AV35: 0 | AW35: 0 | AX35: 100 | AY35: 0 | AZ35: 3 | BA35: 5 | BB35: 3 | BC35: 3 | BD35: 3 | BE35: 4 | BF35: 1 | BG35: 8 | BH35: 7 | BI35: 14 | BJ35: 16 | BK35: 13 | BL35: 23 | BM35: 20 | BN35: 29 | BO35: 28 | BP35: 9 | BQ35: 4 | BR35: 0 | BS35: 0 | BT35: 0 | BU35: 0 | BV35: 193 | BW35: 87 | BX35: =SUM(BL35:BU35)/BV35 -> 0.585492228
B36: 若松町３ | C36: 0 | D36: 1 | E36: 0 | F36: 0 | G36: 1 | H36: 3 | I36: 0 | J36: 1 | K36: 1 | L36: 3 | M36: 3 | N36: 1 | O36: 2 | P36: 0 | Q36: 1 | R36: 4 | S36: 2 | T36: 5 | U36: 2 | V36: 0 | W36: 0 | X36: 0 | Y36: 0 | Z36: 30 | AA36: 2 | AB36: 0 | AC36: 1 | AD36: 1 | AE36: 2 | AF36: 1 | AG36: 0 | AH36: 0 | AI36: 1 | AJ36: 3 | AK36: 4 | AL36: 2 | AM36: 0 | AN36: 1 | AO36: 2 | AP36: 2 | AQ36: 3 | AR36: 4 | AS36: 2 | AT36: 0 | AU36: 0 | AV36: 0 | AW36: 0 | AX36: 31 | AY36: 2 | AZ36: 1 | BA36: 1 | BB36: 1 | BC36: 3 | BD36: 4 | BE36: 0 | BF36: 1 | BG36: 2 | BH36: 6 | BI36: 7 | BJ36: 3 | BK36: 2 | BL36: 1 | BM36: 3 | BN36: 6 | BO36: 5 | BP36: 9 | BQ36: 4 | BR36: 0 | BS36: 0 | BT36: 0 | BU36: 0 | BV36: 61 | BW36: 24 | BX36: =SUM(BL36:BU36)/BV36 -> 0.4590163934
B37: 二葉町１ | C37: 7 | D37: 6 | E37: 14 | F37: 11 | G37: 13 | H37: 10 | I37: 7 | J37: 8 | K37: 10 | L37: 9 | M37: 16 | N37: 7 | O37: 8 | P37: 12 | Q37: 19 | R37: 6 | S37: 6 | T37: 3 | U37: 3 | V37: 0 | W37: 0 | X37: 0 | Y37: 0 | Z37: 175 | AA37: 4 | AB37: 5 | AC37: 15 | AD37: 11 | AE37: 12 | AF37: 15 | AG37: 11 | AH37: 21 | AI37: 16 | AJ37: 19 | AK37: 25 | AL37: 17 | AM37: 15 | AN37: 17 | AO37: 27 | AP37: 28 | AQ37: 11 | AR37: 10 | AS37: 3 | AT37: 0 | AU37: 0 | AV37: 0 | AW37: 0 | AX37: 282 | AY37: 11 | AZ37: 11 | BA37: 29 | BB37: 22 | BC37: 25 | BD37: 25 | BE37: 18 | BF37: 29 | BG37: 26 | BH37: 28 | BI37: 41 | BJ37: 24 | BK37: 23 | BL37: 29 | BM37: 46 | BN37: 34 | BO37: 17 | BP37: 13 | BQ37: 6 | BR37: 0 | BS37: 0 | BT37: 0 | BU37: 0 | BV37: 457 | BW37: 234 | BX37: =SUM(BL37:BU37)/BV37 -> 0.3172866521
B38: 二葉町２ | C38: 0 | D38: 0 | E38: 1 | F38: 1 | G38: 1 | H38: 2 | I38: 1 | J38: 1 | K38: 1 | L38: 4 | M38: 2 | N38: 1 | O38: 2 | P38: 2 | Q38: 5 | R38: 5 | S38: 9 | T38: 1 | U38: 1 | V38: 1 | W38: 0 | X38: 0 | Y38: 0 | Z38: 41 | AA38: 3 | AB38: 0 | AC38: 0 | AD38: 1 | AE38: 0 | AF38: 1 | AG38: 1 | AH38: 1 | AI38: 0 | AJ38: 4 | AK38: 2 | AL38: 2 | AM38: 3 | AN38: 5 | AO38: 6 | AP38: 13 | AQ38: 8 | AR38: 1 | AS38: 0 | AT38: 2 | AU38: 0 | AV38: 0 | AW38: 0 | AX38: 53 | AY38: 3 | AZ38: 0 | BA38: 1 | BB38: 2 | BC38: 1 | BD38: 3 | BE38: 2 | BF38: 2 | BG38: 1 | BH38: 8 | BI38: 4 | BJ38: 3 | BK38: 5 | BL38: 7 | BM38: 11 | BN38: 18 | BO38: 17 | BP38: 2 | BQ38: 1 | BR38: 3 | BS38: 0 | BT38: 0 | BU38: 0 | BV38: 94 | BW38: 45 | BX38: =SUM(BL38:BU38)/BV38 -> 0.6276595745
B39: 本郷町 | C39: 8 | D39: 13 | E39: 12 | F39: 9 | G39: 7 | H39: 13 | I39: 15 | J39: 8 | K39: 14 | L39: 20 | M39: 16 | N39: 18 | O39: 17 | P39: 34 | Q39: 18 | R39: 24 | S39: 12 | T39: 12 | U39: 3 | V39: 0 | W39: 0 | X39: 0 | Y39: 0 | Z39: 273 | AA39: 6 | AB39: 6 | AC39: 8 | AD39: 12 | AE39: 7 | AF39: 12 | AG39: 10 | AH39: 8 | AI39: 5 | AJ39: 18 | AK39: 23 | AL39: 14 | AM39: 22 | AN39: 25 | AO39: 24 | AP39: 20 | AQ39: 23 | AR39: 8 | AS39: 13 | AT39: 5 | AU39: 0 | AV39: 0 | AW39: 0 | AX39: 269 | AY39: 14 | AZ39: 19 | BA39: 20 | BB39: 21 | BC39: 14 | BD39: 25 | BE39: 25 | BF39: 16 | BG39: 19 | BH39: 38 | BI39: 39 | BJ39: 32 | BK39: 39 | BL39: 59 | BM39: 42 | BN39: 44 | BO39: 35 | BP39: 20 | BQ39: 16 | BR39: 5 | BS39: 0 | BT39: 0 | BU39: 0 | BV39: 542 | BW39: 203 | BX39: =SUM(BL39:BU39)/BV39 -> 0.4077490775
B40: 西条町１ | C40: 7 | D40: 10 | E40: 9 | F40: 21 | G40: 20 | H40: 7 | I40: 7 | J40: 14 | K40: 18 | L40: 21 | M40: 21 | N40: 29 | O40: 24 | P40: 21 | Q40: 24 | R40: 23 | S40: 22 | T40: 15 | U40: 4 | V40: 2 | W40: 0 | X40: 0 | Y40: 0 | Z40: 319 | AA40: 6 | AB40: 15 | AC40: 12 | AD40: 12 | AE40: 12 | AF40: 6 | AG40: 10 | AH40: 16 | AI40: 14 | AJ40: 17 | AK40: 18 | AL40: 22 | AM40: 23 | AN40: 23 | AO40: 19 | AP40: 39 | AQ40: 34 | AR40: 11 | AS40: 11 | AT40: 4 | AU40: 0 | AV40: 0 | AW40: 0 | AX40: 324 | AY40: 13 | AZ40: 25 | BA40: 21 | BB40: 33 | BC40: 32 | BD40: 13 | BE40: 17 | BF40: 30 | BG40: 32 | BH40: 38 | BI40: 39 | BJ40: 51 | BK40: 47 | BL40: 44 | BM40: 43 | BN40: 62 | BO40: 56 | BP40: 26 | BQ40: 15 | BR40: 6 | BS40: 0 | BT40: 0 | BU40: 0 | BV40: 643 | BW40: 259 | BX40: =SUM(BL40:BU40)/BV40 -> 0.3919129082
B41: 西条町２ | C41: 0 | D41: 4 | E41: 5 | F41: 3 | G41: 14 | H41: 14 | I41: 7 | J41: 9 | K41: 10 | L41: 10 | M41: 12 | N41: 10 | O41: 12 | P41: 7 | Q41: 9 | R41: 19 | S41: 14 | T41: 3 | U41: 0 | V41: 0 | W41: 0 | X41: 0 | Y41: 0 | Z41: 162 | AA41: 1 | AB41: 5 | AC41: 3 | AD41: 3 | AE41: 9 | AF41: 13 | AG41: 7 | AH41: 9 | AI41: 5 | AJ41: 8 | AK41: 6 | AL41: 13 | AM41: 11 | AN41: 10 | AO41: 13 | AP41: 16 | AQ41: 12 | AR41: 1 | AS41: 3 | AT41: 1 | AU41: 0 | AV41: 0 | AW41: 0 | AX41: 149 | AY41: 1 | AZ41: 9 | BA41: 8 | BB41: 6 | BC41: 23 | BD41: 27 | BE41: 14 | BF41: 18 | BG41: 15 | BH41: 18 | BI41: 18 | BJ41: 23 | BK41: 23 | BL41: 17 | BM41: 22 | BN41: 35 | BO41: 26 | BP41: 4 | BQ41: 3 | BR41: 1 | BS41: 0 | BT41: 0 | BU41: 0 | BV41: 311 | BW41: 151 | BX41: =SUM(BL41:BU41)/BV41 -> 0.347266881
B42: 協和町 | C42: 4 | D42: 7 | E42: 4 | F42: 7 | G42: 15 | H42: 23 | I42: 26 | J42: 7 | K42: 8 | L42: 5 | M42: 1 | N42: 1 | O42: 2 | P42: 0 | Q42: 0 | R42: 0 | S42: 0 | T42: 0 | U42: 0 | V42: 0 | W42: 0 | X42: 0 | Y42: 0 | Z42: 110 | AA42: 7 | AB42: 4 | AC42: 2 | AD42: 5 | AE42: 3 | AF42: 8 | AG42: 9 | AH42: 2 | AI42: 7 | AJ42: 5 | AK42: 0 | AL42: 1 | AM42: 1 | AN42: 0 | AO42: 0 | AP42: 0 | AQ42: 0 | AR42: 0 | AS42: 0 | AT42: 0 | AU42: 0 | AV42: 0 | AW42: 0 | AX42: 54 | AY42: 11 | AZ42: 11 | BA42: 6 | BB42: 12 | BC42: 18 | BD42: 31 | BE42: 35 | BF42: 9 | BG42: 15 | BH42: 10 | BI42: 1 | BJ42: 2 | BK42: 3 | BL42: 0 | BM42: 0 | BN42: 0 | BO42: 0 | BP42: 0 | BQ42: 0 | BR42: 0 | BS42: 0 | BT42: 0 | BU42: 0 | BV42: 164 | BW42: 107 | BX42: =SUM(BL42:BU42)/BV42 -> 0
B43: 倉敷町 | C43: 0 | D43: 0 | E43: 0 | F43: 3 | G43: 0 | H43: 0 | I43: 0 | J43: 0 | K43: 0 | L43: 0 | M43: 1 | N43: 1 | O43: 0 | P43: 0 | Q43: 0 | R43: 0 | S43: 0 | T43: 0 | U43: 0 | V43: 0 | W43: 0 | X43: 0 | Y43: 0 | Z43: 5 | AA43: 0 | AB43: 1 | AC43: 0 | AD43: 0 | AE43: 1 | AF43: 0 | AG43: 0 | AH43: 0 | AI43: 0 | AJ43: 1 | AK43: 1 | AL43: 0 | AM43: 0 | AN43: 0 | AO43: 0 | AP43: 0 | AQ43: 0 | AR43: 0 | AS43: 0 | AT43: 0 | AU43: 0 | AV43: 0 | AW43: 0 | AX43: 4 | AY43: 0 | AZ43: 1 | BA43: 0 | BB43: 3 | BC43: 1 | BD43: 0 | BE43: 0 | BF43: 0 | BG43: 0 | BH43: 1 | BI43: 2 | BJ43: 1 | BK43: 0 | BL43: 0 | BM43: 0 | BN43: 0 | BO43: 0 | BP43: 0 | BQ43: 0 | BR43: 0 | BS43: 0 | BT43: 0 | BU43: 0 | BV43: 9 | BW43: 2 | BX43: =SUM(BL43:BU43)/BV43 -> 0
B44: 関沢 | C44: 2 | D44: 5 | E44: 2 | F44: 1 | G44: 1 | H44: 1 | I44: 3 | J44: 8 | K44: 5 | L44: 4 | M44: 3 | N44: 1 | O44: 3 | P44: 14 | Q44: 8 | R44: 5 | S44: 2 | T44: 0 | U44: 1 | V44: 0 | W44: 0 | X44: 0 | Y44: 0 | Z44: 69 | AA44: 0 | AB44: 2 | AC44: 2 | AD44: 0 | AE44: 5 | AF44: 0 | AG44: 1 | AH44: 6 | AI44: 5 | AJ44: 5 | AK44: 6 | AL44: 2 | AM44: 3 | AN44: 13 | AO44: 9 | AP44: 5 | AQ44: 2 | AR44: 4 | AS44: 2 | AT44: 1 | AU44: 0 | AV44: 0 | AW44: 0 | AX44: 73 | AY44: 2 | AZ44: 7 | BA44: 4 | BB44: 1 | BC44: 6 | BD44: 1 | BE44: 4 | BF44: 14 | BG44: 10 | BH44: 9 | BI44: 9 | BJ44: 3 | BK44: 6 | BL44: 27 | BM44: 17 | BN44: 10 | BO44: 4 | BP44: 4 | BQ44: 3 | BR44: 1 | BS44: 0 | BT44: 0 | BU44: 0 | BV44: 142 | BW44: 51 | BX44: =SUM(BL44:BU44)/BV44 -> 0.4647887324
B45: 星の宮町１ | C45: 4 | D45: 9 | E45: 8 | F45: 10 | G45: 12 | H45: 8 | I45: 6 | J45: 10 | K45: 6 | L45: 9 | M45: 17 | N45: 18 | O45: 10 | P45: 11 | Q45: 12 | R45: 27 | S45: 24 | T45: 10 | U45: 2 | V45: 0 | W45: 0 | X45: 0 | Y45: 0 | Z45: 213 | AA45: 2 | AB45: 9 | AC45: 5 | AD45: 6 | AE45: 8 | AF45: 8 | AG45: 9 | AH45: 7 | AI45: 5 | AJ45: 20 | AK45: 15 | AL45: 24 | AM45: 14 | AN45: 17 | AO45: 23 | AP45: 38 | AQ45: 36 | AR45: 14 | AS45: 4 | AT45: 3 | AU45: 0 | AV45: 1 | AW45: 0 | AX45: 268 | AY45: 6 | AZ45: 18 | BA45: 13 | BB45: 16 | BC45: 20 | BD45: 16 | BE45: 15 | BF45: 17 | BG45: 11 | BH45: 29 | BI45: 32 | BJ45: 42 | BK45: 24 | BL45: 28 | BM45: 35 | BN45: 65 | BO45: 60 | BP45: 24 | BQ45: 6 | BR45: 3 | BS45: 0 | BT45: 1 | BU45: 0 | BV45: 481 | BW45: 207 | BX45: =SUM(BL45:BU45)/BV45 -> 0.4615384615
B46: 星の宮町２ | C46: 1 | D46: 3 | E46: 6 | F46: 4 | G46: 0 | H46: 1 | I46: 4 | J46: 5 | K46: 9 | L46: 10 | M46: 5 | N46: 3 | O46: 2 | P46: 10 | Q46: 10 | R46: 10 | S46: 2 | T46: 0 | U46: 0 | V46: 0 | W46: 0 | X46: 0 | Y46: 0 | Z46: 85 | AA46: 1 | AB46: 7 | AC46: 5 | AD46: 3 | AE46: 2 | AF46: 1 | AG46: 1 | AH46: 4 | AI46: 11 | AJ46: 4 | AK46: 3 | AL46: 5 | AM46: 8 | AN46: 9 | AO46: 11 | AP46: 10 | AQ46: 5 | AR46: 2 | AS46: 0 | AT46: 0 | AU46: 0 | AV46: 0 | AW46: 0 | AX46: 92 | AY46: 2 | AZ46: 10 | BA46: 11 | BB46: 7 | BC46: 2 | BD46: 2 | BE46: 5 | BF46: 9 | BG46: 20 | BH46: 14 | BI46: 8 | BJ46: 8 | BK46: 10 | BL46: 19 | BM46: 21 | BN46: 20 | BO46: 7 | BP46: 2 | BQ46: 0 | BR46: 0 | BS46: 0 | BT46: 0 | BU46: 0 | BV46: 177 | BW46: 66 | BX46: =SUM(BL46:BU46)/BV46 -> 0.3898305085
B47: 長橋 | C47: 4 | D47: 3 | E47: 5 | F47: 5 | G47: 7 | H47: 6 | I47: 3 | J47: 9 | K47: 5 | L47: 10 | M47: 4 | N47: 8 | O47: 9 | P47: 8 | Q47: 10 | R47: 9 | S47: 7 | T47: 2 | U47: 2 | V47: 2 | W47: 0 | X47: 0 | Y47: 0 | Z47: 118 | AA47: 5 | AB47: 6 | AC47: 6 | AD47: 7 | AE47: 7 | AF47: 6 | AG47: 3 | AH47: 8 | AI47: 3 | AJ47: 6 | AK47: 7 | AL47: 11 | AM47: 4 | AN47: 10 | AO47: 15 | AP47: 5 | AQ47: 6 | AR47: 8 | AS47: 1 | AT47: 0 | AU47: 0 | AV47: 0 | AW47: 0 | AX47: 124 | AY47: 9 | AZ47: 9 | BA47: 11 | BB47: 12 | BC47: 14 | BD47: 12 | BE47: 6 | BF47: 17 | BG47: 8 | BH47: 16 | BI47: 11 | BJ47: 19 | BK47: 13 | BL47: 18 | BM47: 25 | BN47: 14 | BO47: 13 | BP47: 10 | BQ47: 3 | BR47: 2 | BS47: 0 | BT47: 0 | BU47: 0 | BV47: 242 | BW47: 88 | BX47: =SUM(BL47:BU47)/BV47 -> 0.3512396694
B48: 柴橋 | C48: 28 | D48: 17 | E48: 18 | F48: 26 | G48: 16 | H48: 24 | I48: 29 | J48: 27 | K48: 29 | L48: 34 | M48: 26 | N48: 31 | O48: 16 | P48: 21 | Q48: 25 | R48: 17 | S48: 16 | T48: 6 | U48: 2 | V48: 1 | W48: 0 | X48: 0 | Y48: 0 | Z48: 409 | AA48: 23 | AB48: 27 | AC48: 18 | AD48: 29 | AE48: 19 | AF48: 17 | AG48: 30 | AH48: 31 | AI48: 25 | AJ48: 36 | AK48: 25 | AL48: 17 | AM48: 18 | AN48: 20 | AO48: 28 | AP48: 20 | AQ48: 20 | AR48: 15 | AS48: 9 | AT48: 7 | AU48: 0 | AV48: 0 | AW48: 0 | AX48: 434 | AY48: 51 | AZ48: 44 | BA48: 36 | BB48: 55 | BC48: 35 | BD48: 41 | BE48: 59 | BF48: 58 | BG48: 54 | BH48: 70 | BI48: 51 | BJ48: 48 | BK48: 34 | BL48: 41 | BM48: 53 | BN48: 37 | BO48: 36 | BP48: 21 | BQ48: 11 | BR48: 8 | BS48: 0 | BT48: 0 | BU48: 0 | BV48: 843 | BW48: 313 | BX48: =SUM(BL48:BU48)/BV48 -> 0.2455516014
B49: 草野 | C49: 0 | D49: 1 | E49: 2 | F49: 1 | G49: 3 | H49: 0 | I49: 1 | J49: 2 | K49: 3 | L49: 2 | M49: 2 | N49: 0 | O49: 2 | P49: 1 | Q49: 4 | R49: 8 | S49: 4 | T49: 1 | U49: 1 | V49: 1 | W49: 0 | X49: 0 | Y49: 0 | Z49: 39 | AA49: 1 | AB49: 2 | AC49: 1 | AD49: 1 | AE49: 1 | AF49: 1 | AG49: 1 | AH49: 1 | AI49: 0 | AJ49: 2 | AK49: 4 | AL49: 2 | AM49: 0 | AN49: 4 | AO49: 8 | AP49: 6 | AQ49: 1 | AR49: 6 | AS49: 1 | AT49: 2 | AU49: 1 | AV49: 0 | AW49: 0 | AX49: 46 | AY49: 1 | AZ49: 3 | BA49: 3 | BB49: 2 | BC49: 4 | BD49: 1 | BE49: 2 | BF49: 3 | BG49: 3 | BH49: 4 | BI49: 6 | BJ49: 2 | BK49: 2 | BL49: 5 | BM49: 12 | BN49: 14 | BO49: 5 | BP49: 7 | BQ49: 2 | BR49: 3 | BS49: 1 | BT49: 0 | BU49: 0 | BV49: 85 | BW49: 32 | BX49: =SUM(BL49:BU49)/BV49 -> 0.5764705882
B50: 新舘 | C50: 1 | D50: 3 | E50: 4 | F50: 1 | G50: 3 | H50: 0 | I50: 5 | J50: 2 | K50: 2 | L50: 3 | M50: 5 | N50: 2 | O50: 2 | P50: 8 | Q50: 4 | R50: 6 | S50: 4 | T50: 2 | U50: 0 | V50: 1 | W50: 0 | X50: 0 | Y50: 0 | Z50: 58 | AA50: 1 | AB50: 1 | AC50: 1 | AD50: 1 | AE50: 2 | AF50: 0 | AG50: 3 | AH50: 2 | AI50: 2 | AJ50: 2 | AK50: 4 | AL50: 4 | AM50: 3 | AN50: 9 | AO50: 2 | AP50: 7 | AQ50: 4 | AR50: 6 | AS50: 3 | AT50: 0 | AU50: 0 | AV50: 0 | AW50: 0 | AX50: 57 | AY50: 2 | AZ50: 4 | BA50: 5 | BB50: 2 | BC50: 5 | BD50: 0 | BE50: 8 | BF50: 4 | BG50: 4 | BH50: 5 | BI50: 9 | BJ50: 6 | BK50: 5 | BL50: 17 | BM50: 6 | BN50: 13 | BO50: 8 | BP50: 8 | BQ50: 3 | BR50: 1 | BS50: 0 | BT50: 0 | BU50: 0 | BV50: 115 | BW50: 40 | BX50: =SUM(BL50:BU50)/BV50 -> 0.4869565217
B51: 鷹の巣 | C51: 0 | D51: 0 | E51: 0 | F51: 0 | G51: 1 | H51: 3 | I51: 1 | J51: 0 | K51: 1 | L51: 0 | M51: 0 | N51: 2 | O51: 4 | P51: 1 | Q51: 1 | R51: 1 | S51: 0 | T51: 0 | U51: 0 | V51: 0 | W51: 0 | X51: 0 | Y51: 0 | Z51: 15 | AA51: 0 | AB51: 0 | AC51: 0 | AD51: 1 | AE51: 0 | AF51: 1 | AG51: 0 | AH51: 0 | AI51: 0 | AJ51: 1 | AK51: 1 | AL51: 4 | AM51: 2 | AN51: 1 | AO51: 1 | AP51: 0 | AQ51: 1 | AR51: 1 | AS51: 1 | AT51: 0 | AU51: 0 | AV51: 0 | AW51: 0 | AX51: 15 | AY51: 0 | AZ51: 0 | BA51: 0 | BB51: 1 | BC51: 1 | BD51: 4 | BE51: 1 | BF51: 0 | BG51: 1 | BH51: 1 | BI51: 1 | BJ51: 6 | BK51: 6 | BL51: 2 | BM51: 2 | BN51: 1 | BO51: 1 | BP51: 1 | BQ51: 1 | BR51: 0 | BS51: 0 | BT51: 0 | BU51: 0 | BV51: 30 | BW51: 10 | BX51: =SUM(BL51:BU51)/BV51 -> 0.2666666667
B52: 西川内 | C52: 0 | D52: 0 | E52: 1 | F52: 0 | G52: 2 | H52: 0 | I52: 0 | J52: 0 | K52: 1 | L52: 1 | M52: 0 | N52: 0 | O52: 3 | P52: 0 | Q52: 2 | R52: 3 | S52: 0 | T52: 2 | U52: 0 | V52: 0 | W52: 0 | X52: 0 | Y52: 0 | Z52: 15 | AA52: 0 | AB52: 0 | AC52: 0 | AD52: 1 | AE52: 0 | AF52: 0 | AG52: 1 | AH52: 0 | AI52: 0 | AJ52: 1 | AK52: 0 | AL52: 1 | AM52: 0 | AN52: 1 | AO52: 1 | AP52: 1 | AQ52: 1 | AR52: 1 | AS52: 0 | AT52: 0 | AU52: 0 | AV52: 0 | AW52: 0 | AX52: 9 | AY52: 0 | AZ52: 0 | BA52: 1 | BB52: 1 | BC52: 2 | BD52: 0 | BE52: 1 | BF52: 0 | BG52: 1 | BH52: 2 | BI52: 0 | BJ52: 1 | BK52: 3 | BL52: 1 | BM52: 3 | BN52: 4 | BO52: 1 | BP52: 3 | BQ52: 0 | BR52: 0 | BS52: 0 | BT52: 0 | BU52: 0 | BV52: 24 | BW52: 9 | BX52: =SUM(BL52:BU52)/BV52 -> 0.5
B53: 東川内 | C53: 0 | D53: 2 | E53: 2 | F53: 0 | G53: 1 | H53: 0 | I53: 1 | J53: 2 | K53: 1 | L53: 4 | M53: 0 | N53: 0 | O53: 0 | P53: 0 | Q53: 2 | R53: 5 | S53: 0 | T53: 0 | U53: 0 | V53: 1 | W53: 0 | X53: 0 | Y53: 0 | Z53: 21 | AA53: 0 | AB53: 0 | AC53: 2 | AD53: 2 | AE53: 1 | AF53: 1 | AG53: 0 | AH53: 4 | AI53: 1 | AJ53: 2 | AK53: 0 | AL53: 0 | AM53: 1 | AN53: 1 | AO53: 7 | AP53: 0 | AQ53: 1 | AR53: 1 | AS53: 1 | AT53: 2 | AU53: 0 | AV53: 0 | AW53: 0 | AX53: 27 | AY53: 0 | AZ53: 2 | BA53: 4 | BB53: 2 | BC53: 2 | BD53: 1 | BE53: 1 | BF53: 6 | BG53: 2 | BH53: 6 | BI53: 0 | BJ53: 0 | BK53: 1 | BL53: 1 | BM53: 9 | BN53: 5 | BO53: 1 | BP53: 1 | BQ53: 1 | BR53: 3 | BS53: 0 | BT53: 0 | BU53: 0 | BV53: 48 | BW53: 16 | BX53: =SUM(BL53:BU53)/BV53 -> 0.4375
B54: 八田 | C54: 1 | D54: 4 | E54: 1 | F54: 4 | G54: 4 | H54: 0 | I54: 0 | J54: 1 | K54: 4 | L54: 4 | M54: 0 | N54: 1 | O54: 1 | P54: 5 | Q54: 2 | R54: 4 | S54: 0 | T54: 1 | U54: 1 | V54: 0 | W54: 0 | X54: 0 | Y54: 0 | Z54: 38 | AA54: 1 | AB54: 2 | AC54: 3 | AD54: 2 | AE54: 0 | AF54: 2 | AG54: 1 | AH54: 4 | AI54: 4 | AJ54: 3 | AK54: 1 | AL54: 1 | AM54: 0 | AN54: 6 | AO54: 3 | AP54: 4 | AQ54: 0 | AR54: 1 | AS54: 0 | AT54: 1 | AU54: 0 | AV54: 0 | AW54: 0 | AX54: 39 | AY54: 2 | AZ54: 6 | BA54: 4 | BB54: 6 | BC54: 4 | BD54: 2 | BE54: 1 | BF54: 5 | BG54: 8 | BH54: 7 | BI54: 1 | BJ54: 2 | BK54: 1 | BL54: 11 | BM54: 5 | BN54: 8 | BO54: 0 | BP54: 2 | BQ54: 1 | BR54: 1 | BS54: 0 | BT54: 0 | BU54: 0 | BV54: 77 | BW54: 28 | BX54: =SUM(BL54:BU54)/BV54 -> 0.3636363636
B55: 寅田 | C55: 1 | D55: 1 | E55: 2 | F55: 0 | G55: 0 | H55: 0 | I55: 1 | J55: 2 | K55: 1 | L55: 1 | M55: 0 | N55: 0 | O55: 0 | P55: 2 | Q55: 2 | R55: 1 | S55: 4 | T55: 0 | U55: 0 | V55: 0 | W55: 0 | X55: 0 | Y55: 0 | Z55: 18 | AA55: 0 | AB55: 1 | AC55: 0 | AD55: 0 | AE55: 0 | AF55: 0 | AG55: 0 | AH55: 2 | AI55: 1 | AJ55: 0 | AK55: 0 | AL55: 0 | AM55: 0 | AN55: 4 | AO55: 0 | AP55: 3 | AQ55: 1 | AR55: 0 | AS55: 0 | AT55: 0 | AU55: 0 | AV55: 0 | AW55: 0 | AX55: 12 | AY55: 1 | AZ55: 2 | BA55: 2 | BB55: 0 | BC55: 0 | BD55: 0 | BE55: 1 | BF55: 4 | BG55: 2 | BH55: 1 | BI55: 0 | BJ55: 0 | BK55: 0 | BL55: 6 | BM55: 2 | BN55: 4 | BO55: 5 | BP55: 0 | BQ55: 0 | BR55: 0 | BS55: 0 | BT55: 0 | BU55: 0 | BV55: 30 | BW55: 10 | BX55: =SUM(BL55:BU55)/BV55 -> 0.5666666667
B56: 小舟戸 | C56: 0 | D56: 0 | E56: 1 | F56: 0 | G56: 0 | H56: 0 | I56: 1 | J56: 1 | K56: 1 | L56: 1 | M56: 2 | N56: 1 | O56: 1 | P56: 3 | Q56: 1 | R56: 2 | S56: 0 | T56: 1 | U56: 1 | V56: 0 | W56: 0 | X56: 0 | Y56: 0 | Z56: 17 | AA56: 1 | AB56: 1 | AC56: 0 | AD56: 0 | AE56: 0 | AF56: 0 | AG56: 0 | AH56: 1 | AI56: 0 | AJ56: 0 | AK56: 0 | AL56: 1 | AM56: 2 | AN56: 3 | AO56: 1 | AP56: 1 | AQ56: 1 | AR56: 1 | AS56: 0 | AT56: 0 | AU56: 0 | AV56: 0 | AW56: 0 | AX56: 13 | AY56: 1 | AZ56: 1 | BA56: 1 | BB56: 0 | BC56: 0 | BD56: 0 | BE56: 1 | BF56: 2 | BG56: 1 | BH56: 1 | BI56: 2 | BJ56: 2 | BK56: 3 | BL56: 6 | BM56: 2 | BN56: 3 | BO56: 1 | BP56: 2 | BQ56: 1 | BR56: 0 | BS56: 0 | BT56: 0 | BU56: 0 | BV56: 30 | BW56: 13 | BX56: =SUM(BL56:BU56)/BV56 -> 0.5
B57: 船戸 | C57: 0 | D57: 0 | E57: 2 | F57: 1 | G57: 0 | H57: 0 | I57: 1 | J57: 2 | K57: 2 | L57: 1 | M57: 1 | N57: 3 | O57: 1 | P57: 3 | Q57: 8 | R57: 3 | S57: 3 | T57: 0 | U57: 2 | V57: 1 | W57: 0 | X57: 0 | Y57: 0 | Z57: 34 | AA57: 1 | AB57: 2 | AC57: 2 | AD57: 2 | AE57: 0 | AF57: 0 | AG57: 0 | AH57: 3 | AI57: 2 | AJ57: 0 | AK57: 1 | AL57: 1 | AM57: 4 | AN57: 5 | AO57: 5 | AP57: 5 | AQ57: 4 | AR57: 2 | AS57: 1 | AT57: 2 | AU57: 0 | AV57: 0 | AW57: 0 | AX57: 42 | AY57: 1 | AZ57: 2 | BA57: 4 | BB57: 3 | BC57: 0 | BD57: 0 | BE57: 1 | BF57: 5 | BG57: 4 | BH57: 1 | BI57: 2 | BJ57: 4 | BK57: 5 | BL57: 8 | BM57: 13 | BN57: 8 | BO57: 7 | BP57: 2 | BQ57: 3 | BR57: 3 | BS57: 0 | BT57: 0 | BU57: 0 | BV57: 76 | BW57: 32 | BX57: =SUM(BL57:BU57)/BV57 -> 0.5789473684
B58: 飯角 | C58: 5 | D58: 16 | E58: 10 | F58: 7 | G58: 12 | H58: 15 | I58: 14 | J58: 18 | K58: 18 | L58: 19 | M58: 15 | N58: 12 | O58: 7 | P58: 12 | Q58: 12 | R58: 8 | S58: 6 | T58: 3 | U58: 1 | V58: 1 | W58: 0 | X58: 0 | Y58: 0 | Z58: 211 | AA58: 11 | AB58: 18 | AC58: 15 | AD58: 11 | AE58: 11 | AF58: 11 | AG58: 16 | AH58: 11 | AI58: 18 | AJ58: 12 | AK58: 17 | AL58: 14 | AM58: 12 | AN58: 10 | AO58: 12 | AP58: 11 | AQ58: 12 | AR58: 1 | AS58: 5 | AT58: 3 | AU58: 0 | AV58: 0 | AW58: 0 | AX58: 231 | AY58: 16 | AZ58: 34 | BA58: 25 | BB58: 18 | BC58: 23 | BD58: 26 | BE58: 30 | BF58: 29 | BG58: 36 | BH58: 31 | BI58: 32 | BJ58: 26 | BK58: 19 | BL58: 22 | BM58: 24 | BN58: 19 | BO58: 18 | BP58: 4 | BQ58: 6 | BR58: 4 | BS58: 0 | BT58: 0 | BU58: 0 | BV58: 442 | BW58: 165 | BX58: =SUM(BL58:BU58)/BV58 -> 0.2194570136
B59: 半山 | C59: 14 | D59: 9 | E59: 14 | F59: 10 | G59: 13 | H59: 14 | I59: 12 | J59: 21 | K59: 18 | L59: 25 | M59: 19 | N59: 16 | O59: 10 | P59: 16 | Q59: 17 | R59: 21 | S59: 14 | T59: 4 | U59: 3 | V59: 0 | W59: 0 | X59: 0 | Y59: 0 | Z59: 270 | AA59: 8 | AB59: 6 | AC59: 16 | AD59: 11 | AE59: 15 | AF59: 13 | AG59: 11 | AH59: 19 | AI59: 16 | AJ59: 26 | AK59: 19 | AL59: 17 | AM59: 12 | AN59: 15 | AO59: 25 | AP59: 24 | AQ59: 12 | AR59: 8 | AS59: 6 | AT59: 2 | AU59: 1 | AV59: 0 | AW59: 0 | AX59: 282 | AY59: 22 | AZ59: 15 | BA59: 30 | BB59: 21 | BC59: 28 | BD59: 27 | BE59: 23 | BF59: 40 | BG59: 34 | BH59: 51 | BI59: 38 | BJ59: 33 | BK59: 22 | BL59: 31 | BM59: 42 | BN59: 45 | BO59: 26 | BP59: 12 | BQ59: 9 | BR59: 2 | BS59: 1 | BT59: 0 | BU59: 0 | BV59: 552 | BW59: 218 | BX59: =SUM(BL59:BU59)/BV59 -> 0.3043478261
B60: 鴨田 | C60: 2 | D60: 1 | E60: 5 | F60: 4 | G60: 1 | H60: 1 | I60: 1 | J60: 4 | K60: 4 | L60: 7 | M60: 3 | N60: 2 | O60: 1 | P60: 2 | Q60: 0 | R60: 1 | S60: 1 | T60: 2 | U60: 0 | V60: 0 | W60: 0 | X60: 0 | Y60: 0 | Z60: 42 | AA60: 0 | AB60: 7 | AC60: 2 | AD60: 3 | AE60: 1 | AF60: 0 | AG60: 2 | AH60: 5 | AI60: 6 | AJ60: 4 | AK60: 2 | AL60: 3 | AM60: 3 | AN60: 2 | AO60: 2 | AP60: 2 | AQ60: 0 | AR60: 0 | AS60: 0 | AT60: 0 | AU60: 0 | AV60: 0 | AW60: 0 | AX60: 44 | AY60: 2 | AZ60: 8 | BA60: 7 | BB60: 7 | BC60: 2 | BD60: 1 | BE60: 3 | BF60: 9 | BG60: 10 | BH60: 11 | BI60: 5 | BJ60: 5 | BK60: 4 | BL60: 4 | BM60: 2 | BN60: 3 | BO60: 1 | BP60: 2 | BQ60: 0 | BR60: 0 | BS60: 0 | BT60: 0 | BU60: 0 | BV60: 86 | BW60: 31 | BX60: =SUM(BL60:BU60)/BV60 -> 0.1395348837
B61: 赤川 | C61: 3 | D61: 4 | E61: 5 | F61: 5 | G61: 2 | H61: 2 | I61: 4 | J61: 7 | K61: 5 | L61: 7 | M61: 8 | N61: 8 | O61: 5 | P61: 8 | Q61: 10 | R61: 17 | S61: 5 | T61: 4 | U61: 1 | V61: 0 | W61: 0 | X61: 0 | Y61: 0 | Z61: 110 | AA61: 0 | AB61: 1 | AC61: 2 | AD61: 5 | AE61: 3 | AF61: 0 | AG61: 4 | AH61: 5 | AI61: 9 | AJ61: 6 | AK61: 9 | AL61: 4 | AM61: 6 | AN61: 11 | AO61: 13 | AP61: 12 | AQ61: 7 | AR61: 4 | AS61: 6 | AT61: 1 | AU61: 0 | AV61: 0 | AW61: 0 | AX61: 108 | AY61: 3 | AZ61: 5 | BA61: 7 | BB61: 10 | BC61: 5 | BD61: 2 | BE61: 8 | BF61: 12 | BG61: 14 | BH61: 13 | BI61: 17 | BJ61: 12 | BK61: 11 | BL61: 19 | BM61: 23 | BN61: 29 | BO61: 12 | BP61: 8 | BQ61: 7 | BR61: 1 | BS61: 0 | BT61: 0 | BU61: 0 | BV61: 218 | BW61: 68 | BX61: =SUM(BL61:BU61)/BV61 -> 0.4541284404
B62: 上城塚 | C62: 0 | D62: 0 | E62: 1 | F62: 0 | G62: 0 | H62: 0 | I62: 0 | J62: 0 | K62: 0 | L62: 1 | M62: 2 | N62: 0 | O62: 3 | P62: 5 | Q62: 5 | R62: 2 | S62: 3 | T62: 1 | U62: 1 | V62: 1 | W62: 0 | X62: 0 | Y62: 0 | Z62: 25 | AA62: 1 | AB62: 0 | AC62: 0 | AD62: 0 | AE62: 2 | AF62: 0 | AG62: 0 | AH62: 0 | AI62: 1 | AJ62: 1 | AK62: 0 | AL62: 1 | AM62: 2 | AN62: 5 | AO62: 4 | AP62: 4 | AQ62: 3 | AR62: 1 | AS62: 1 | AT62: 1 | AU62: 1 | AV62: 0 | AW62: 0 | AX62: 28 | AY62: 1 | AZ62: 0 | BA62: 1 | BB62: 0 | BC62: 2 | BD62: 0 | BE62: 0 | BF62: 0 | BG62: 1 | BH62: 2 | BI62: 2 | BJ62: 1 | BK62: 5 | BL62: 10 | BM62: 9 | BN62: 6 | BO62: 6 | BP62: 2 | BQ62: 2 | BR62: 2 | BS62: 1 | BT62: 0 | BU62: 0 | BV62: 53 | BW62: 21 | BX62: =SUM(BL62:BU62)/BV62 -> 0.7169811321
B63: 下城塚 | C63: 0 | D63: 0 | E63: 0 | F63: 0 | G63: 0 | H63: 0 | I63: 0 | J63: 0 | K63: 2 | L63: 0 | M63: 0 | N63: 0 | O63: 0 | P63: 1 | Q63: 1 | R63: 2 | S63: 0 | T63: 0 | U63: 0 | V63: 0 | W63: 0 | X63: 0 | Y63: 0 | Z63: 6 | AA63: 0 | AB63: 0 | AC63: 0 | AD63: 0 | AE63: 0 | AF63: 0 | AG63: 0 | AH63: 0 | AI63: 0 | AJ63: 0 | AK63: 0 | AL63: 1 | AM63: 0 | AN63: 0 | AO63: 1 | AP63: 0 | AQ63: 0 | AR63: 0 | AS63: 0 | AT63: 1 | AU63: 0 | AV63: 0 | AW63: 0 | AX63: 3 | AY63: 0 | AZ63: 0 | BA63: 0 | BB63: 0 | BC63: 0 | BD63: 0 | BE63: 0 | BF63: 0 | BG63: 2 | BH63: 0 | BI63: 0 | BJ63: 1 | BK63: 0 | BL63: 1 | BM63: 2 | BN63: 2 | BO63: 0 | BP63: 0 | BQ63: 0 | BR63: 1 | BS63: 0 | BT63: 0 | BU63: 0 | BV63: 9 | BW63: 4 | BX63: =SUM(BL63:BU63)/BV63 -> 0.6666666667
B64: 塩津 | C64: 0 | D64: 0 | E64: 1 | F64: 1 | G64: 2 | H64: 1 | I64: 1 | J64: 0 | K64: 4 | L64: 5 | M64: 2 | N64: 2 | O64: 4 | P64: 2 | Q64: 4 | R64: 2 | S64: 0 | T64: 2 | U64: 0 | V64: 0 | W64: 0 | X64: 0 | Y64: 0 | Z64: 33 | AA64: 1 | AB64: 2 | AC64: 2 | AD64: 1 | AE64: 4 | AF64: 3 | AG64: 0 | AH64: 1 | AI64: 0 | AJ64: 4 | AK64: 2 | AL64: 6 | AM64: 4 | AN64: 1 | AO64: 3 | AP64: 2 | AQ64: 1 | AR64: 2 | AS64: 4 | AT64: 0 | AU64: 0 | AV64: 0 | AW64: 0 | AX64: 43 | AY64: 1 | AZ64: 2 | BA64: 3 | BB64: 2 | BC64: 6 | BD64: 4 | BE64: 1 | BF64: 1 | BG64: 4 | BH64: 9 | BI64: 4 | BJ64: 8 | BK64: 8 | BL64: 3 | BM64: 7 | BN64: 4 | BO64: 1 | BP64: 4 | BQ64: 4 | BR64: 0 | BS64: 0 | BT64: 0 | BU64: 0 | BV64: 76 | BW64: 20 | BX64: =SUM(BL64:BU64)/BV64 -> 0.3026315789
B65: 弥彦岡 | C65: 1 | D65: 0 | E65: 1 | F65: 1 | G65: 2 | H65: 3 | I65: 1 | J65: 1 | K65: 4 | L65: 1 | M65: 2 | N65: 2 | O65: 3 | P65: 3 | Q65: 4 | R65: 3 | S65: 0 | T65: 4 | U65: 0 | V65: 0 | W65: 0 | X65: 0 | Y65: 0 | Z65: 36 | AA65: 0 | AB65: 0 | AC65: 3 | AD65: 1 | AE65: 1 | AF65: 1 | AG65: 0 | AH65: 0 | AI65: 3 | AJ65: 1 | AK65: 2 | AL65: 4 | AM65: 2 | AN65: 4 | AO65: 3 | AP65: 2 | AQ65: 2 | AR65: 2 | AS65: 2 | AT65: 1 | AU65: 0 | AV65: 0 | AW65: 0 | AX65: 34 | AY65: 1 | AZ65: 0 | BA65: 4 | BB65: 2 | BC65: 3 | BD65: 4 | BE65: 1 | BF65: 1 | BG65: 7 | BH65: 2 | BI65: 4 | BJ65: 6 | BK65: 5 | BL65: 7 | BM65: 7 | BN65: 5 | BO65: 2 | BP65: 6 | BQ65: 2 | BR65: 1 | BS65: 0 | BT65: 0 | BU65: 0 | BV65: 70 | BW65: 24 | BX65: =SUM(BL65:BU65)/BV65 -> 0.4285714286
B66: 羽黒 | C66: 7 | D66: 5 | E66: 15 | F66: 22 | G66: 14 | H66: 5 | I66: 6 | J66: 15 | K66: 12 | L66: 15 | M66: 22 | N66: 23 | O66: 27 | P66: 19 | Q66: 19 | R66: 20 | S66: 9 | T66: 6 | U66: 3 | V66: 0 | W66: 0 | X66: 0 | Y66: 0 | Z66: 264 | AA66: 5 | AB66: 8 | AC66: 8 | AD66: 10 | AE66: 8 | AF66: 8 | AG66: 6 | AH66: 9 | AI66: 11 | AJ66: 13 | AK66: 25 | AL66: 20 | AM66: 20 | AN66: 16 | AO66: 19 | AP66: 29 | AQ66: 13 | AR66: 9 | AS66: 4 | AT66: 1 | AU66: 0 | AV66: 0 | AW66: 0 | AX66: 242 | AY66: 12 | AZ66: 13 | BA66: 23 | BB66: 32 | BC66: 22 | BD66: 13 | BE66: 12 | BF66: 24 | BG66: 23 | BH66: 28 | BI66: 47 | BJ66: 43 | BK66: 47 | BL66: 35 | BM66: 38 | BN66: 49 | BO66: 22 | BP66: 15 | BQ66: 7 | BR66: 1 | BS66: 0 | BT66: 0 | BU66: 0 | BV66: 506 | BW66: 209 | BX66: =SUM(BL66:BU66)/BV66 -> 0.3300395257
B67: 野中 | C67: 1 | D67: 3 | E67: 4 | F67: 1 | G67: 2 | H67: 2 | I67: 1 | J67: 1 | K67: 2 | L67: 2 | M67: 1 | N67: 4 | O67: 4 | P67: 3 | Q67: 5 | R67: 6 | S67: 0 | T67: 1 | U67: 1 | V67: 0 | W67: 0 | X67: 0 | Y67: 0 | Z67: 44 | AA67: 0 | AB67: 1 | AC67: 1 | AD67: 1 | AE67: 1 | AF67: 1 | AG67: 2 | AH67: 0 | AI67: 3 | AJ67: 4 | AK67: 2 | AL67: 7 | AM67: 4 | AN67: 4 | AO67: 7 | AP67: 4 | AQ67: 1 | AR67: 2 | AS67: 3 | AT67: 0 | AU67: 0 | AV67: 0 | AW67: 0 | AX67: 48 | AY67: 1 | AZ67: 4 | BA67: 5 | BB67: 2 | BC67: 3 | BD67: 3 | BE67: 3 | BF67: 1 | BG67: 5 | BH67: 6 | BI67: 3 | BJ67: 11 | BK67: 8 | BL67: 7 | BM67: 12 | BN67: 10 | BO67: 1 | BP67: 3 | BQ67: 4 | BR67: 0 | BS67: 0 | BT67: 0 | BU67: 0 | BV67: 92 | BW67: 35 | BX67: =SUM(BL67:BU67)/BV67 -> 0.402173913
B68: 並槻 | C68: 5 | D68: 10 | E68: 10 | F68: 4 | G68: 2 | H68: 4 | I68: 8 | J68: 7 | K68: 12 | L68: 3 | M68: 5 | N68: 10 | O68: 11 | P68: 14 | Q68: 14 | R68: 9 | S68: 5 | T68: 4 | U68: 2 | V68: 0 | W68: 0 | X68: 0 | Y68: 0 | Z68: 139 | AA68: 2 | AB68: 3 | AC68: 3 | AD68: 6 | AE68: 3 | AF68: 3 | AG68: 8 | AH68: 4 | AI68: 8 | AJ68: 8 | AK68: 4 | AL68: 6 | AM68: 14 | AN68: 16 | AO68: 8 | AP68: 9 | AQ68: 7 | AR68: 8 | AS68: 6 | AT68: 3 | AU68: 0 | AV68: 0 | AW68: 0 | AX68: 129 | AY68: 7 | AZ68: 13 | BA68: 13 | BB68: 10 | BC68: 5 | BD68: 7 | BE68: 16 | BF68: 11 | BG68: 20 | BH68: 11 | BI68: 9 | BJ68: 16 | BK68: 25 | BL68: 30 | BM68: 22 | BN68: 18 | BO68: 12 | BP68: 12 | BQ68: 8 | BR68: 3 | BS68: 0 | BT68: 0 | BU68: 0 | BV68: 268 | BW68: 90 | BX68: =SUM(BL68:BU68)/BV68 -> 0.3917910448
B69: 追分 | C69: 3 | D69: 3 | E69: 3 | F69: 4 | G69: 8 | H69: 13 | I69: 3 | J69: 4 | K69: 7 | L69: 9 | M69: 11 | N69: 8 | O69: 12 | P69: 15 | Q69: 4 | R69: 7 | S69: 5 | T69: 4 | U69: 0 | V69: 0 | W69: 0 | X69: 0 | Y69: 0 | Z69: 123 | AA69: 0 | AB69: 2 | AC69: 1 | AD69: 3 | AE69: 4 | AF69: 1 | AG69: 1 | AH69: 3 | AI69: 5 | AJ69: 7 | AK69: 3 | AL69: 9 | AM69: 11 | AN69: 6 | AO69: 7 | AP69: 8 | AQ69: 3 | AR69: 1 | AS69: 4 | AT69: 0 | AU69: 0 | AV69: 0 | AW69: 0 | AX69: 79 | AY69: 3 | AZ69: 5 | BA69: 4 | BB69: 7 | BC69: 12 | BD69: 14 | BE69: 4 | BF69: 7 | BG69: 12 | BH69: 16 | BI69: 14 | BJ69: 17 | BK69: 23 | BL69: 21 | BM69: 11 | BN69: 15 | BO69: 8 | BP69: 5 | BQ69: 4 | BR69: 0 | BS69: 0 | BT69: 0 | BU69: 0 | BV69: 202 | BW69: 97 | BX69: =SUM(BL69:BU69)/BV69 -> 0.3168316832
B70: 仁谷野 | C70: 0 | D70: 1 | E70: 1 | F70: 2 | G70: 1 | H70: 0 | I70: 0 | J70: 1 | K70: 1 | L70: 2 | M70: 1 | N70: 2 | O70: 0 | P70: 1 | Q70: 1 | R70: 3 | S70: 2 | T70: 3 | U70: 0 | V70: 1 | W70: 0 | X70: 0 | Y70: 0 | Z70: 23 | AA70: 0 | AB70: 0 | AC70: 1 | AD70: 0 | AE70: 0 | AF70: 2 | AG70: 0 | AH70: 0 | AI70: 1 | AJ70: 2 | AK70: 1 | AL70: 0 | AM70: 1 | AN70: 0 | AO70: 4 | AP70: 7 | AQ70: 0 | AR70: 1 | AS70: 0 | AT70: 1 | AU70: 0 | AV70: 0 | AW70: 0 | AX70: 21 | AY70: 0 | AZ70: 1 | BA70: 2 | BB70: 2 | BC70: 1 | BD70: 2 | BE70: 0 | BF70: 1 | BG70: 2 | BH70: 4 | BI70: 2 | BJ70: 2 | BK70: 1 | BL70: 1 | BM70: 5 | BN70: 10 | BO70: 2 | BP70: 4 | BQ70: 0 | BR70: 2 | BS70: 0 | BT70: 0 | BU70: 0 | BV70: 44 | BW70: 19 | BX70: =SUM(BL70:BU70)/BV70 -> 0.5454545455
B71: 城塚 | C71: 1 | D71: 1 | E71: 1 | F71: 1 | G71: 0 | H71: 0 | I71: 2 | J71: 0 | K71: 0 | L71: 1 | M71: 2 | N71: 3 | O71: 5 | P71: 2 | Q71: 1 | R71: 0 | S71: 1 | T71: 1 | U71: 0 | V71: 0 | W71: 0 | X71: 0 | Y71: 0 | Z71: 22 | AA71: 1 | AB71: 0 | AC71: 0 | AD71: 0 | AE71: 0 | AF71: 0 | AG71: 1 | AH71: 1 | AI71: 0 | AJ71: 0 | AK71: 1 | AL71: 2 | AM71: 3 | AN71: 0 | AO71: 1 | AP71: 2 | AQ71: 2 | AR71: 3 | AS71: 2 | AT71: 0 | AU71: 0 | AV71: 0 | AW71: 0 | AX71: 19 | AY71: 2 | AZ71: 1 | BA71: 1 | BB71: 1 | BC71: 0 | BD71: 0 | BE71: 3 | BF71: 1 | BG71: 0 | BH71: 1 | BI71: 3 | BJ71: 5 | BK71: 8 | BL71: 2 | BM71: 2 | BN71: 2 | BO71: 3 | BP71: 4 | BQ71: 2 | BR71: 0 | BS71: 0 | BT71: 0 | BU71: 0 | BV71: 41 | BW71: 15 | BX71: =SUM(BL71:BU71)/BV71 -> 0.3658536585
B72: つつじが丘 | C72: 2 | D72: 3 | E72: 5 | F72: 90 | G72: 39 | H72: 8 | I72: 13 | J72: 10 | K72: 14 | L72: 14 | M72: 18 | N72: 13 | O72: 12 | P72: 19 | Q72: 19 | R72: 24 | S72: 5 | T72: 3 | U72: 1 | V72: 0 | W72: 0 | X72: 0 | Y72: 0 | Z72: 312 | AA72: 3 | AB72: 7 | AC72: 4 | AD72: 35 | AE72: 22 | AF72: 4 | AG72: 9 | AH72: 8 | AI72: 8 | AJ72: 10 | AK72: 14 | AL72: 19 | AM72: 8 | AN72: 13 | AO72: 21 | AP72: 14 | AQ72: 14 | AR72: 2 | AS72: 0 | AT72: 2 | AU72: 1 | AV72: 0 | AW72: 0 | AX72: 218 | AY72: 5 | AZ72: 10 | BA72: 9 | BB72: 125 | BC72: 61 | BD72: 12 | BE72: 22 | BF72: 18 | BG72: 22 | BH72: 24 | BI72: 32 | BJ72: 32 | BK72: 20 | BL72: 32 | BM72: 40 | BN72: 38 | BO72: 19 | BP72: 5 | BQ72: 1 | BR72: 2 | BS72: 1 | BT72: 0 | BU72: 0 | BV72: 530 | BW72: 382 | BX72: =SUM(BL72:BU72)/BV72 -> 0.2603773585
B73: つくし町 | C73: 0 | D73: 1 | E73: 5 | F73: 3 | G73: 0 | H73: 0 | I73: 1 | J73: 2 | K73: 0 | L73: 2 | M73: 1 | N73: 1 | O73: 0 | P73: 2 | Q73: 1 | R73: 0 | S73: 0 | T73: 0 | U73: 0 | V73: 0 | W73: 0 | X73: 0 | Y73: 0 | Z73: 19 | AA73: 0 | AB73: 0 | AC73: 0 | AD73: 0 | AE73: 0 | AF73: 0 | AG73: 0 | AH73: 3 | AI73: 1 | AJ73: 1 | AK73: 1 | AL73: 1 | AM73: 2 | AN73: 0 | AO73: 1 | AP73: 0 | AQ73: 0 | AR73: 0 | AS73: 0 | AT73: 0 | AU73: 0 | AV73: 0 | AW73: 0 | AX73: 10 | AY73: 0 | AZ73: 1 | BA73: 5 | BB73: 3 | BC73: 0 | BD73: 0 | BE73: 1 | BF73: 5 | BG73: 1 | BH73: 3 | BI73: 2 | BJ73: 2 | BK73: 2 | BL73: 2 | BM73: 2 | BN73: 0 | BO73: 0 | BP73: 0 | BQ73: 0 | BR73: 0 | BS73: 0 | BT73: 0 | BU73: 0 | BV73: 29 | BW73: 11 | BX73: =SUM(BL73:BU73)/BV73 -> 0.1379310345
B74: あかね町 | C74: 28 | D74: 30 | E74: 52 | F74: 37 | G74: 41 | H74: 25 | I74: 26 | J74: 28 | K74: 37 | L74: 53 | M74: 54 | N74: 41 | O74: 22 | P74: 15 | Q74: 9 | R74: 10 | S74: 3 | T74: 2 | U74: 0 | V74: 0 | W74: 0 | X74: 0 | Y74: 0 | Z74: 513 | AA74: 17 | AB74: 22 | AC74: 49 | AD74: 47 | AE74: 33 | AF74: 16 | AG74: 30 | AH74: 34 | AI74: 41 | AJ74: 64 | AK74: 65 | AL74: 30 | AM74: 24 | AN74: 16 | AO74: 13 | AP74: 12 | AQ74: 9 | AR74: 4 | AS74: 2 | AT74: 1 | AU74: 1 | AV74: 0 | AW74: 0 | AX74: 530 | AY74: 45 | AZ74: 52 | BA74: 101 | BB74: 84 | BC74: 74 | BD74: 41 | BE74: 56 | BF74: 62 | BG74: 78 | BH74: 117 | BI74: 119 | BJ74: 71 | BK74: 46 | BL74: 31 | BM74: 22 | BN74: 22 | BO74: 12 | BP74: 6 | BQ74: 2 | BR74: 1 | BS74: 1 | BT74: 0 | BU74: 0 | BV74: 1043 | BW74: 360 | BX74: =SUM(BL74:BU74)/BV74 -> 0.09300095877
A75: 乙 地 区 | B75: 乙 | C75: 5 | D75: 6 | E75: 15 | F75: 3 | G75: 6 | H75: 13 | I75: 10 | J75: 15 | K75: 21 | L75: 19 | M75: 24 | N75: 20 | O75: 23 | P75: 28 | Q75: 44 | R75: 37 | S75: 25 | T75: 6 | U75: 2 | V75: 1 | W75: 0 | X75: 0 | Y75: 0 | Z75: 323 | AA75: 5 | AB75: 8 | AC75: 11 | AD75: 7 | AE75: 7 | AF75: 5 | AG75: 10 | AH75: 17 | AI75: 11 | AJ75: 21 | AK75: 17 | AL75: 25 | AM75: 23 | AN75: 34 | AO75: 39 | AP75: 24 | AQ75: 21 | AR75: 20 | AS75: 10 | AT75: 6 | AU75: 0 | AV75: 0 | AW75: 0 | AX75: 321 | AY75: 10 | AZ75: 14 | BA75: 26 | BB75: 10 | BC75: 13 | BD75: 18 | BE75: 20 | BF75: 32 | BG75: 32 | BH75: 40 | BI75: 41 | BJ75: 45 | BK75: 46 | BL75: 62 | BM75: 83 | BN75: 61 | BO75: 46 | BP75: 26 | BQ75: 12 | BR75: 7 | BS75: 0 | BT75: 0 | BU75: 0 | BV75: 644 | BW75: 237 | BX75: =SUM(BL75:BU75)/BV75 -> 0.4611801242
B76: 桃崎浜 | C76: 4 | D76: 6 | E76: 5 | F76: 17 | G76: 2 | H76: 3 | I76: 10 | J76: 11 | K76: 14 | L76: 12 | M76: 9 | N76: 14 | O76: 18 | P76: 15 | Q76: 17 | R76: 23 | S76: 12 | T76: 5 | U76: 5 | V76: 1 | W76: 0 | X76: 0 | Y76: 0 | Z76: 203 | AA76: 4 | AB76: 4 | AC76: 7 | AD76: 7 | AE76: 4 | AF76: 5 | AG76: 8 | AH76: 12 | AI76: 10 | AJ76: 9 | AK76: 8 | AL76: 15 | AM76: 17 | AN76: 19 | AO76: 17 | AP76: 20 | AQ76: 16 | AR76: 8 | AS76: 6 | AT76: 3 | AU76: 0 | AV76: 0 | AW76: 0 | AX76: 199 | AY76: 8 | AZ76: 10 | BA76: 12 | BB76: 24 | BC76: 6 | BD76: 8 | BE76: 18 | BF76: 23 | BG76: 24 | BH76: 21 | BI76: 17 | BJ76: 29 | BK76: 35 | BL76: 34 | BM76: 34 | BN76: 43 | BO76: 28 | BP76: 13 | BQ76: 11 | BR76: 4 | BS76: 0 | BT76: 0 | BU76: 0 | BV76: 402 | BW76: 151 | BX76: =SUM(BL76:BU76)/BV76 -> 0.4154228856
B77: 荒井浜 | C77: 1 | D77: 3 | E77: 2 | F77: 3 | G77: 0 | H77: 2 | I77: 6 | J77: 4 | K77: 9 | L77: 5 | M77: 10 | N77: 4 | O77: 10 | P77: 13 | Q77: 14 | R77: 11 | S77: 12 | T77: 2 | U77: 2 | V77: 1 | W77: 0 | X77: 0 | Y77: 0 | Z77: 114 | AA77: 1 | AB77: 3 | AC77: 3 | AD77: 5 | AE77: 3 | AF77: 3 | AG77: 2 | AH77: 8 | AI77: 4 | AJ77: 7 | AK77: 11 | AL77: 8 | AM77: 13 | AN77: 10 | AO77: 14 | AP77: 18 | AQ77: 10 | AR77: 13 | AS77: 6 | AT77: 3 | AU77: 0 | AV77: 0 | AW77: 0 | AX77: 145 | AY77: 2 | AZ77: 6 | BA77: 5 | BB77: 8 | BC77: 3 | BD77: 5 | BE77: 8 | BF77: 12 | BG77: 13 | BH77: 12 | BI77: 21 | BJ77: 12 | BK77: 23 | BL77: 23 | BM77: 28 | BN77: 29 | BO77: 22 | BP77: 15 | BQ77: 8 | BR77: 4 | BS77: 0 | BT77: 0 | BU77: 0 | BV77: 259 | BW77: 110 | BX77: =SUM(BL77:BU77)/BV77 -> 0.4980694981
B78: 大出 | C78: 3 | D78: 8 | E78: 9 | F78: 7 | G78: 0 | H78: 9 | I78: 5 | J78: 8 | K78: 13 | L78: 16 | M78: 12 | N78: 16 | O78: 11 | P78: 16 | Q78: 16 | R78: 17 | S78: 9 | T78: 3 | U78: 2 | V78: 4 | W78: 0 | X78: 0 | Y78: 0 | Z78: 184 | AA78: 3 | AB78: 6 | AC78: 11 | AD78: 8 | AE78: 1 | AF78: 7 | AG78: 4 | AH78: 6 | AI78: 12 | AJ78: 14 | AK78: 10 | AL78: 11 | AM78: 11 | AN78: 20 | AO78: 23 | AP78: 20 | AQ78: 10 | AR78: 20 | AS78: 19 | AT78: 4 | AU78: 0 | AV78: 0 | AW78: 0 | AX78: 220 | AY78: 6 | AZ78: 14 | BA78: 20 | BB78: 15 | BC78: 1 | BD78: 16 | BE78: 9 | BF78: 14 | BG78: 25 | BH78: 30 | BI78: 22 | BJ78: 27 | BK78: 22 | BL78: 36 | BM78: 39 | BN78: 37 | BO78: 19 | BP78: 23 | BQ78: 21 | BR78: 8 | BS78: 0 | BT78: 0 | BU78: 0 | BV78: 404 | BW78: 155 | BX78: =SUM(BL78:BU78)/BV78 -> 0.452970297
B79: 日立 | C79: 0 | D79: 0 | E79: 0 | F79: 6 | G79: 17 | H79: 15 | I79: 4 | J79: 0 | K79: 0 | L79: 0 | M79: 0 | N79: 0 | O79: 0 | P79: 0 | Q79: 0 | R79: 0 | S79: 0 | T79: 0 | U79: 0 | V79: 0 | W79: 0 | X79: 0 | Y79: 0 | Z79: 42 | AA79: 0 | AB79: 0 | AC79: 0 | AD79: 0 | AE79: 0 | AF79: 0 | AG79: 0 | AH79: 0 | AI79: 0 | AJ79: 0 | AK79: 0 | AL79: 0 | AM79: 0 | AN79: 0 | AO79: 0 | AP79: 0 | AQ79: 0 | AR79: 0 | AS79: 0 | AT79: 0 | AU79: 0 | AV79: 0 | AW79: 0 | AX79: 0 | AY79: 0 | AZ79: 0 | BA79: 0 | BB79: 6 | BC79: 17 | BD79: 15 | BE79: 4 | BF79: 0 | BG79: 0 | BH79: 0 | BI79: 0 | BJ79: 0 | BK79: 0 | BL79: 0 | BM79: 0 | BN79: 0 | BO79: 0 | BP79: 0 | BQ79: 0 | BR79: 0 | BS79: 0 | BT79: 0 | BU79: 0 | BV79: 42 | BW79: 42 | BX79: =SUM(BL79:BU79)/BV79 -> 0
B80: 富岡 | C80: 1 | D80: 0 | E80: 0 | F80: 2 | G80: 6 | H80: 4 | I80: 4 | J80: 4 | K80: 6 | L80: 4 | M80: 2 | N80: 6 | O80: 3 | P80: 11 | Q80: 6 | R80: 10 | S80: 4 | T80: 3 | U80: 2 | V80: 0 | W80: 0 | X80: 0 | Y80: 0 | Z80: 78 | AA80: 1 | AB80: 3 | AC80: 1 | AD80: 1 | AE80: 3 | AF80: 3 | AG80: 2 | AH80: 4 | AI80: 4 | AJ80: 2 | AK80: 3 | AL80: 10 | AM80: 6 | AN80: 9 | AO80: 11 | AP80: 8 | AQ80: 4 | AR80: 4 | AS80: 7 | AT80: 1 | AU80: 0 | AV80: 0 | AW80: 0 | AX80: 87 | AY80: 2 | AZ80: 3 | BA80: 1 | BB80: 3 | BC80: 9 | BD80: 7 | BE80: 6 | BF80: 8 | BG80: 10 | BH80: 6 | BI80: 5 | BJ80: 16 | BK80: 9 | BL80: 20 | BM80: 17 | BN80: 18 | BO80: 8 | BP80: 7 | BQ80: 9 | BR80: 1 | BS80: 0 | BT80: 0 | BU80: 0 | BV80: 165 | BW80: 55 | BX80: =SUM(BL80:BU80)/BV80 -> 0.4848484848
B81: 江尻 | C81: 0 | D81: 0 | E81: 0 | F81: 0 | G81: 1 | H81: 1 | I81: 1 | J81: 0 | K81: 1 | L81: 3 | M81: 1 | N81: 1 | O81: 4 | P81: 3 | Q81: 3 | R81: 0 | S81: 3 | T81: 0 | U81: 0 | V81: 0 | W81: 0 | X81: 0 | Y81: 0 | Z81: 22 | AA81: 0 | AB81: 0 | AC81: 0 | AD81: 0 | AE81: 0 | AF81: 0 | AG81: 0 | AH81: 0 | AI81: 0 | AJ81: 0 | AK81: 0 | AL81: 6 | AM81: 1 | AN81: 1 | AO81: 6 | AP81: 1 | AQ81: 1 | AR81: 2 | AS81: 3 | AT81: 1 | AU81: 0 | AV81: 0 | AW81: 0 | AX81: 22 | AY81: 0 | AZ81: 0 | BA81: 0 | BB81: 0 | BC81: 1 | BD81: 1 | BE81: 1 | BF81: 0 | BG81: 1 | BH81: 3 | BI81: 1 | BJ81: 7 | BK81: 5 | BL81: 4 | BM81: 9 | BN81: 1 | BO81: 4 | BP81: 2 | BQ81: 3 | BR81: 1 | BS81: 0 | BT81: 0 | BU81: 0 | BV81: 44 | BW81: 17 | BX81: =SUM(BL81:BU81)/BV81 -> 0.5454545455
B82: 地本 | C82: 0 | D82: 1 | E82: 6 | F82: 0 | G82: 3 | H82: 2 | I82: 0 | J82: 3 | K82: 2 | L82: 3 | M82: 1 | N82: 2 | O82: 1 | P82: 1 | Q82: 7 | R82: 2 | S82: 0 | T82: 0 | U82: 0 | V82: 0 | W82: 0 | X82: 0 | Y82: 0 | Z82: 34 | AA82: 0 | AB82: 2 | AC82: 1 | AD82: 1 | AE82: 0 | AF82: 0 | AG82: 0 | AH82: 1 | AI82: 2 | AJ82: 4 | AK82: 1 | AL82: 0 | AM82: 1 | AN82: 3 | AO82: 5 | AP82: 1 | AQ82: 3 | AR82: 1 | AS82: 0 | AT82: 0 | AU82: 0 | AV82: 0 | AW82: 0 | AX82: 26 | AY82: 0 | AZ82: 3 | BA82: 7 | BB82: 1 | BC82: 3 | BD82: 2 | BE82: 0 | BF82: 4 | BG82: 4 | BH82: 7 | BI82: 2 | BJ82: 2 | BK82: 2 | BL82: 4 | BM82: 12 | BN82: 3 | BO82: 3 | BP82: 1 | BQ82: 0 | BR82: 0 | BS82: 0 | BT82: 0 | BU82: 0 | BV82: 60 | BW82: 18 | BX82: =SUM(BL82:BU82)/BV82 -> 0.3833333333
B83: 八幡 | C83: 0 | D83: 3 | E83: 3 | F83: 4 | G83: 4 | H83: 4 | I83: 1 | J83: 12 | K83: 9 | L83: 6 | M83: 8 | N83: 6 | O83: 13 | P83: 5 | Q83: 12 | R83: 11 | S83: 7 | T83: 1 | U83: 0 | V83: 0 | W83: 0 | X83: 0 | Y83: 0 | Z83: 109 | AA83: 1 | AB83: 3 | AC83: 8 | AD83: 5 | AE83: 6 | AF83: 2 | AG83: 2 | AH83: 9 | AI83: 5 | AJ83: 8 | AK83: 4 | AL83: 3 | AM83: 7 | AN83: 11 | AO83: 14 | AP83: 14 | AQ83: 6 | AR83: 5 | AS83: 1 | AT83: 0 | AU83: 1 | AV83: 0 | AW83: 0 | AX83: 115 | AY83: 1 | AZ83: 6 | BA83: 11 | BB83: 9 | BC83: 10 | BD83: 6 | BE83: 3 | BF83: 21 | BG83: 14 | BH83: 14 | BI83: 12 | BJ83: 9 | BK83: 20 | BL83: 16 | BM83: 26 | BN83: 25 | BO83: 13 | BP83: 6 | BQ83: 1 | BR83: 0 | BS83: 1 | BT83: 0 | BU83: 0 | BV83: 224 | BW83: 80 | BX83: =SUM(BL83:BU83)/BV83 -> 0.3928571429
B84: 高野 | C84: 1 | D84: 0 | E84: 2 | F84: 3 | G84: 5 | H84: 0 | I84: 1 | J84: 4 | K84: 5 | L84: 4 | M84: 10 | N84: 4 | O84: 9 | P84: 8 | Q84: 14 | R84: 9 | S84: 4 | T84: 2 | U84: 0 | V84: 2 | W84: 0 | X84: 0 | Y84: 0 | Z84: 87 | AA84: 0 | AB84: 2 | AC84: 0 | AD84: 2 | AE84: 2 | AF84: 4 | AG84: 3 | AH84: 1 | AI84: 3 | AJ84: 3 | AK84: 9 | AL84: 5 | AM84: 5 | AN84: 10 | AO84: 13 | AP84: 8 | AQ84: 6 | AR84: 7 | AS84: 3 | AT84: 2 | AU84: 1 | AV84: 0 | AW84: 0 | AX84: 89 | AY84: 1 | AZ84: 2 | BA84: 2 | BB84: 5 | BC84: 7 | BD84: 4 | BE84: 4 | BF84: 5 | BG84: 8 | BH84: 7 | BI84: 19 | BJ84: 9 | BK84: 14 | BL84: 18 | BM84: 27 | BN84: 17 | BO84: 10 | BP84: 9 | BQ84: 3 | BR84: 4 | BS84: 1 | BT84: 0 | BU84: 0 | BV84: 176 | BW84: 63 | BX84: =SUM(BL84:BU84)/BV84 -> 0.5056818182
B85: 高野茨島 | C85: 0 | D85: 2 | E85: 1 | F85: 0 | G85: 0 | H85: 1 | I85: 1 | J85: 0 | K85: 1 | L85: 1 | M85: 2 | N85: 1 | O85: 0 | P85: 1 | Q85: 1 | R85: 3 | S85: 1 | T85: 0 | U85: 0 | V85: 0 | W85: 0 | X85: 0 | Y85: 0 | Z85: 16 | AA85: 1 | AB85: 2 | AC85: 2 | AD85: 0 | AE85: 0 | AF85: 0 | AG85: 1 | AH85: 0 | AI85: 1 | AJ85: 2 | AK85: 0 | AL85: 2 | AM85: 0 | AN85: 0 | AO85: 3 | AP85: 2 | AQ85: 1 | AR85: 2 | AS85: 0 | AT85: 0 | AU85: 0 | AV85: 0 | AW85: 0 | AX85: 19 | AY85: 1 | AZ85: 4 | BA85: 3 | BB85: 0 | BC85: 0 | BD85: 1 | BE85: 2 | BF85: 0 | BG85: 2 | BH85: 3 | BI85: 2 | BJ85: 3 | BK85: 0 | BL85: 1 | BM85: 4 | BN85: 5 | BO85: 2 | BP85: 2 | BQ85: 0 | BR85: 0 | BS85: 0 | BT85: 0 | BU85: 0 | BV85: 35 | BW85: 11 | BX85: =SUM(BL85:BU85)/BV85 -> 0.4
B86: 土作 | C86: 0 | D86: 1 | E86: 0 | F86: 2 | G86: 2 | H86: 1 | I86: 1 | J86: 4 | K86: 1 | L86: 2 | M86: 1 | N86: 0 | O86: 4 | P86: 5 | Q86: 1 | R86: 5 | S86: 1 | T86: 5 | U86: 0 | V86: 0 | W86: 0 | X86: 0 | Y86: 0 | Z86: 36 | AA86: 1 | AB86: 0 | AC86: 3 | AD86: 2 | AE86: 1 | AF86: 0 | AG86: 0 | AH86: 3 | AI86: 3 | AJ86: 0 | AK86: 2 | AL86: 1 | AM86: 5 | AN86: 4 | AO86: 2 | AP86: 3 | AQ86: 2 | AR86: 4 | AS86: 0 | AT86: 1 | AU86: 0 | AV86: 0 | AW86: 0 | AX86: 37 | AY86: 1 | AZ86: 1 | BA86: 3 | BB86: 4 | BC86: 3 | BD86: 1 | BE86: 1 | BF86: 7 | BG86: 4 | BH86: 2 | BI86: 3 | BJ86: 1 | BK86: 9 | BL86: 9 | BM86: 3 | BN86: 8 | BO86: 3 | BP86: 9 | BQ86: 0 | BR86: 1 | BS86: 0 | BT86: 0 | BU86: 0 | BV86: 73 | BW86: 28 | BX86: =SUM(BL86:BU86)/BV86 -> 0.4520547945
B87: 横道 | C87: 0 | D87: 2 | E87: 4 | F87: 7 | G87: 1 | H87: 0 | I87: 3 | J87: 8 | K87: 7 | L87: 5 | M87: 7 | N87: 2 | O87: 6 | P87: 14 | Q87: 15 | R87: 7 | S87: 2 | T87: 2 | U87: 1 | V87: 0 | W87: 0 | X87: 0 | Y87: 0 | Z87: 93 | AA87: 3 | AB87: 2 | AC87: 4 | AD87: 4 | AE87: 6 | AF87: 2 | AG87: 1 | AH87: 6 | AI87: 4 | AJ87: 5 | AK87: 3 | AL87: 1 | AM87: 10 | AN87: 8 | AO87: 11 | AP87: 10 | AQ87: 4 | AR87: 3 | AS87: 6 | AT87: 2 | AU87: 0 | AV87: 0 | AW87: 0 | AX87: 95 | AY87: 3 | AZ87: 4 | BA87: 8 | BB87: 11 | BC87: 7 | BD87: 2 | BE87: 4 | BF87: 14 | BG87: 11 | BH87: 10 | BI87: 10 | BJ87: 3 | BK87: 16 | BL87: 22 | BM87: 26 | BN87: 17 | BO87: 6 | BP87: 5 | BQ87: 7 | BR87: 2 | BS87: 0 | BT87: 0 | BU87: 0 | BV87: 188 | BW87: 61 | BX87: =SUM(BL87:BU87)/BV87 -> 0.4521276596
B88: 平木田 | C88: 1 | D88: 2 | E88: 4 | F88: 2 | G88: 1 | H88: 3 | I88: 6 | J88: 5 | K88: 4 | L88: 5 | M88: 2 | N88: 3 | O88: 6 | P88: 8 | Q88: 10 | R88: 10 | S88: 0 | T88: 1 | U88: 3 | V88: 0 | W88: 0 | X88: 0 | Y88: 0 | Z88: 76 | AA88: 2 | AB88: 3 | AC88: 5 | AD88: 0 | AE88: 0 | AF88: 3 | AG88: 0 | AH88: 1 | AI88: 6 | AJ88: 4 | AK88: 5 | AL88: 2 | AM88: 5 | AN88: 8 | AO88: 14 | AP88: 6 | AQ88: 3 | AR88: 3 | AS88: 2 | AT88: 1 | AU88: 0 | AV88: 0 | AW88: 0 | AX88: 73 | AY88: 3 | AZ88: 5 | BA88: 9 | BB88: 2 | BC88: 1 | BD88: 6 | BE88: 6 | BF88: 6 | BG88: 10 | BH88: 9 | BI88: 7 | BJ88: 5 | BK88: 11 | BL88: 16 | BM88: 24 | BN88: 16 | BO88: 3 | BP88: 4 | BQ88: 5 | BR88: 1 | BS88: 0 | BT88: 0 | BU88: 0 | BV88: 149 | BW88: 53 | BX88: =SUM(BL88:BU88)/BV88 -> 0.4630872483
B89: 平木田駅前 | C89: 6 | D89: 4 | E89: 8 | F89: 15 | G89: 9 | H89: 7 | I89: 17 | J89: 12 | K89: 18 | L89: 19 | M89: 18 | N89: 19 | O89: 15 | P89: 18 | Q89: 22 | R89: 24 | S89: 14 | T89: 10 | U89: 2 | V89: 0 | W89: 0 | X89: 0 | Y89: 0 | Z89: 257 | AA89: 2 | AB89: 6 | AC89: 8 | AD89: 8 | AE89: 10 | AF89: 1 | AG89: 9 | AH89: 10 | AI89: 14 | AJ89: 16 | AK89: 17 | AL89: 17 | AM89: 20 | AN89: 17 | AO89: 22 | AP89: 21 | AQ89: 24 | AR89: 12 | AS89: 11 | AT89: 3 | AU89: 0 | AV89: 1 | AW89: 0 | AX89: 249 | AY89: 8 | AZ89: 10 | BA89: 16 | BB89: 23 | BC89: 19 | BD89: 8 | BE89: 26 | BF89: 22 | BG89: 32 | BH89: 35 | BI89: 35 | BJ89: 36 | BK89: 35 | BL89: 35 | BM89: 44 | BN89: 45 | BO89: 38 | BP89: 22 | BQ89: 13 | BR89: 3 | BS89: 0 | BT89: 1 | BU89: 0 | BV89: 506 | BW89: 220 | BX89: =SUM(BL89:BU89)/BV89 -> 0.3972332016
B90: 十二天 | C90: 1 | D90: 1 | E90: 6 | F90: 5 | G90: 4 | H90: 1 | I90: 2 | J90: 1 | K90: 8 | L90: 8 | M90: 4 | N90: 1 | O90: 4 | P90: 5 | Q90: 5 | R90: 7 | S90: 3 | T90: 2 | U90: 1 | V90: 0 | W90: 0 | X90: 0 | Y90: 0 | Z90: 69 | AA90: 1 | AB90: 3 | AC90: 3 | AD90: 5 | AE90: 3 | AF90: 4 | AG90: 0 | AH90: 3 | AI90: 5 | AJ90: 6 | AK90: 6 | AL90: 3 | AM90: 4 | AN90: 6 | AO90: 3 | AP90: 4 | AQ90: 2 | AR90: 8 | AS90: 2 | AT90: 0 | AU90: 0 | AV90: 0 | AW90: 0 | AX90: 71 | AY90: 2 | AZ90: 4 | BA90: 9 | BB90: 10 | BC90: 7 | BD90: 5 | BE90: 2 | BF90: 4 | BG90: 13 | BH90: 14 | BI90: 10 | BJ90: 4 | BK90: 8 | BL90: 11 | BM90: 8 | BN90: 11 | BO90: 5 | BP90: 10 | BQ90: 3 | BR90: 0 | BS90: 0 | BT90: 0 | BU90: 0 | BV90: 140 | BW90: 47 | BX90: =SUM(BL90:BU90)/BV90 -> 0.3428571429
B91: 小地谷 | C91: 0 | D91: 0 | E91: 0 | F91: 1 | G91: 0 | H91: 2 | I91: 0 | J91: 0 | K91: 0 | L91: 0 | M91: 1 | N91: 2 | O91: 2 | P91: 1 | Q91: 1 | R91: 2 | S91: 0 | T91: 1 | U91: 0 | V91: 0 | W91: 0 | X91: 0 | Y91: 0 | Z91: 13 | AA91: 1 | AB91: 0 | AC91: 0 | AD91: 0 | AE91: 1 | AF91: 1 | AG91: 0 | AH91: 0 | AI91: 1 | AJ91: 0 | AK91: 1 | AL91: 3 | AM91: 1 | AN91: 1 | AO91: 1 | AP91: 4 | AQ91: 0 | AR91: 2 | AS91: 0 | AT91: 0 | AU91: 0 | AV91: 0 | AW91: 0 | AX91: 17 | AY91: 1 | AZ91: 0 | BA91: 0 | BB91: 1 | BC91: 1 | BD91: 3 | BE91: 0 | BF91: 0 | BG91: 1 | BH91: 0 | BI91: 2 | BJ91: 5 | BK91: 3 | BL91: 2 | BM91: 2 | BN91: 6 | BO91: 0 | BP91: 3 | BQ91: 0 | BR91: 0 | BS91: 0 | BT91: 0 | BU91: 0 | BV91: 30 | BW91: 9 | BX91: =SUM(BL91:BU91)/BV91 -> 0.4333333333
B92: 山屋 | C92: 0 | D92: 1 | E92: 1 | F92: 0 | G92: 1 | H92: 0 | I92: 2 | J92: 1 | K92: 1 | L92: 1 | M92: 1 | N92: 1 | O92: 2 | P92: 2 | Q92: 3 | R92: 4 | S92: 1 | T92: 1 | U92: 0 | V92: 0 | W92: 0 | X92: 0 | Y92: 0 | Z92: 23 | AA92: 0 | AB92: 0 | AC92: 2 | AD92: 0 | AE92: 0 | AF92: 0 | AG92: 1 | AH92: 0 | AI92: 1 | AJ92: 0 | AK92: 1 | AL92: 2 | AM92: 1 | AN92: 3 | AO92: 3 | AP92: 0 | AQ92: 1 | AR92: 5 | AS92: 0 | AT92: 0 | AU92: 0 | AV92: 0 | AW92: 0 | AX92: 20 | AY92: 0 | AZ92: 1 | BA92: 3 | BB92: 0 | BC92: 1 | BD92: 0 | BE92: 3 | BF92: 1 | BG92: 2 | BH92: 1 | BI92: 2 | BJ92: 3 | BK92: 3 | BL92: 5 | BM92: 6 | BN92: 4 | BO92: 2 | BP92: 6 | BQ92: 0 | BR92: 0 | BS92: 0 | BT92: 0 | BU92: 0 | BV92: 43 | BW92: 18 | BX92: =SUM(BL92:BU92)/BV92 -> 0.5348837209
B93: 菅田 | C93: 3 | D93: 6 | E93: 3 | F93: 1 | G93: 4 | H93: 6 | I93: 9 | J93: 5 | K93: 4 | L93: 6 | M93: 7 | N93: 7 | O93: 16 | P93: 9 | Q93: 23 | R93: 6 | S93: 7 | T93: 3 | U93: 3 | V93: 3 | W93: 0 | X93: 0 | Y93: 0 | Z93: 131 | AA93: 3 | AB93: 8 | AC93: 3 | AD93: 2 | AE93: 3 | AF93: 2 | AG93: 9 | AH93: 3 | AI93: 7 | AJ93: 3 | AK93: 1 | AL93: 10 | AM93: 14 | AN93: 13 | AO93: 16 | AP93: 7 | AQ93: 10 | AR93: 10 | AS93: 4 | AT93: 3 | AU93: 0 | AV93: 0 | AW93: 0 | AX93: 131 | AY93: 6 | AZ93: 14 | BA93: 6 | BB93: 3 | BC93: 7 | BD93: 8 | BE93: 18 | BF93: 8 | BG93: 11 | BH93: 9 | BI93: 8 | BJ93: 17 | BK93: 30 | BL93: 22 | BM93: 39 | BN93: 13 | BO93: 17 | BP93: 13 | BQ93: 7 | BR93: 6 | BS93: 0 | BT93: 0 | BU93: 0 | BV93: 262 | BW93: 81 | BX93: =SUM(BL93:BU93)/BV93 -> 0.4465648855
A94: 築 地 地 区 | B94: 北成田 | C94: 1 | D94: 0 | E94: 4 | F94: 1 | G94: 4 | H94: 1 | I94: 6 | J94: 9 | K94: 7 | L94: 3 | M94: 7 | N94: 5 | O94: 8 | P94: 5 | Q94: 10 | R94: 8 | S94: 6 | T94: 2 | U94: 1 | V94: 0 | W94: 0 | X94: 0 | Y94: 0 | Z94: 88 | AA94: 1 | AB94: 1 | AC94: 5 | AD94: 2 | AE94: 2 | AF94: 6 | AG94: 3 | AH94: 2 | AI94: 3 | AJ94: 5 | AK94: 4 | AL94: 7 | AM94: 5 | AN94: 7 | AO94: 13 | AP94: 7 | AQ94: 4 | AR94: 6 | AS94: 3 | AT94: 0 | AU94: 1 | AV94: 0 | AW94: 0 | AX94: 87 | AY94: 2 | AZ94: 1 | BA94: 9 | BB94: 3 | BC94: 6 | BD94: 7 | BE94: 9 | BF94: 11 | BG94: 10 | BH94: 8 | BI94: 11 | BJ94: 12 | BK94: 13 | BL94: 12 | BM94: 23 | BN94: 15 | BO94: 10 | BP94: 8 | BQ94: 4 | BR94: 0 | BS94: 1 | BT94: 0 | BU94: 0 | BV94: 175 | BW94: 45 | BX94: =SUM(BL94:BU94)/BV94 -> 0.4171428571
B95: 宮川 | C95: 1 | D95: 4 | E95: 0 | F95: 1 | G95: 1 | H95: 2 | I95: 4 | J95: 3 | K95: 2 | L95: 5 | M95: 3 | N95: 7 | O95: 4 | P95: 4 | Q95: 4 | R95: 5 | S95: 1 | T95: 4 | U95: 1 | V95: 1 | W95: 0 | X95: 0 | Y95: 0 | Z95: 57 | AA95: 2 | AB95: 1 | AC95: 3 | AD95: 0 | AE95: 0 | AF95: 3 | AG95: 3 | AH95: 1 | AI95: 2 | AJ95: 2 | AK95: 1 | AL95: 6 | AM95: 5 | AN95: 2 | AO95: 5 | AP95: 6 | AQ95: 2 | AR95: 3 | AS95: 3 | AT95: 1 | AU95: 0 | AV95: 0 | AW95: 0 | AX95: 51 | AY95: 3 | AZ95: 5 | BA95: 3 | BB95: 1 | BC95: 1 | BD95: 5 | BE95: 7 | BF95: 4 | BG95: 4 | BH95: 7 | BI95: 4 | BJ95: 13 | BK95: 9 | BL95: 6 | BM95: 9 | BN95: 11 | BO95: 3 | BP95: 7 | BQ95: 4 | BR95: 2 | BS95: 0 | BT95: 0 | BU95: 0 | BV95: 108 | BW95: 34 | BX95: =SUM(BL95:BU95)/BV95 -> 0.3888888889
B96: 竹島 | C96: 1 | D96: 1 | E96: 4 | F96: 2 | G96: 1 | H96: 1 | I96: 2 | J96: 2 | K96: 5 | L96: 9 | M96: 4 | N96: 6 | O96: 6 | P96: 8 | Q96: 7 | R96: 7 | S96: 1 | T96: 4 | U96: 0 | V96: 0 | W96: 0 | X96: 0 | Y96: 0 | Z96: 71 | AA96: 1 | AB96: 1 | AC96: 4 | AD96: 2 | AE96: 2 | AF96: 1 | AG96: 3 | AH96: 6 | AI96: 6 | AJ96: 3 | AK96: 4 | AL96: 5 | AM96: 4 | AN96: 10 | AO96: 11 | AP96: 3 | AQ96: 4 | AR96: 5 | AS96: 1 | AT96: 0 | AU96: 0 | AV96: 0 | AW96: 0 | AX96: 76 | AY96: 2 | AZ96: 2 | BA96: 8 | BB96: 4 | BC96: 3 | BD96: 2 | BE96: 5 | BF96: 8 | BG96: 11 | BH96: 12 | BI96: 8 | BJ96: 11 | BK96: 10 | BL96: 18 | BM96: 18 | BN96: 10 | BO96: 5 | BP96: 9 | BQ96: 1 | BR96: 0 | BS96: 0 | BT96: 0 | BU96: 0 | BV96: 147 | BW96: 47 | BX96: =SUM(BL96:BU96)/BV96 -> 0.4149659864
B97: 苔実 | C97: 2 | D97: 6 | E97: 6 | F97: 7 | G97: 4 | H97: 8 | I97: 3 | J97: 7 | K97: 13 | L97: 12 | M97: 12 | N97: 13 | O97: 18 | P97: 23 | Q97: 16 | R97: 17 | S97: 9 | T97: 8 | U97: 1 | V97: 2 | W97: 1 | X97: 0 | Y97: 0 | Z97: 188 | AA97: 2 | AB97: 5 | AC97: 3 | AD97: 6 | AE97: 2 | AF97: 6 | AG97: 7 | AH97: 9 | AI97: 7 | AJ97: 10 | AK97: 13 | AL97: 13 | AM97: 22 | AN97: 14 | AO97: 16 | AP97: 16 | AQ97: 13 | AR97: 11 | AS97: 10 | AT97: 1 | AU97: 1 | AV97: 0 | AW97: 0 | AX97: 187 | AY97: 4 | AZ97: 11 | BA97: 9 | BB97: 13 | BC97: 6 | BD97: 14 | BE97: 10 | BF97: 16 | BG97: 20 | BH97: 22 | BI97: 25 | BJ97: 26 | BK97: 40 | BL97: 37 | BM97: 32 | BN97: 33 | BO97: 22 | BP97: 19 | BQ97: 11 | BR97: 3 | BS97: 2 | BT97: 0 | BU97: 0 | BV97: 375 | BW97: 127 | BX97: =SUM(BL97:BU97)/BV97 -> 0.424
B98: 高橋 | C98: 3 | D98: 3 | E98: 5 | F98: 8 | G98: 10 | H98: 7 | I98: 3 | J98: 4 | K98: 12 | L98: 7 | M98: 18 | N98: 10 | O98: 14 | P98: 6 | Q98: 15 | R98: 10 | S98: 13 | T98: 5 | U98: 1 | V98: 0 | W98: 0 | X98: 0 | Y98: 0 | Z98: 154 | AA98: 2 | AB98: 7 | AC98: 1 | AD98: 6 | AE98: 7 | AF98: 5 | AG98: 3 | AH98: 4 | AI98: 8 | AJ98: 14 | AK98: 13 | AL98: 8 | AM98: 16 | AN98: 11 | AO98: 17 | AP98: 17 | AQ98: 10 | AR98: 6 | AS98: 3 | AT98: 0 | AU98: 0 | AV98: 0 | AW98: 0 | AX98: 158 | AY98: 5 | AZ98: 10 | BA98: 6 | BB98: 14 | BC98: 17 | BD98: 12 | BE98: 6 | BF98: 8 | BG98: 20 | BH98: 21 | BI98: 31 | BJ98: 18 | BK98: 30 | BL98: 17 | BM98: 32 | BN98: 27 | BO98: 23 | BP98: 11 | BQ98: 4 | BR98: 0 | BS98: 0 | BT98: 0 | BU98: 0 | BV98: 312 | BW98: 102 | BX98: =SUM(BL98:BU98)/BV98 -> 0.3653846154
B99: 築地新 | C99: 1 | D99: 0 | E99: 0 | F99: 2 | G99: 0 | H99: 0 | I99: 0 | J99: 2 | K99: 1 | L99: 4 | M99: 3 | N99: 3 | O99: 1 | P99: 4 | Q99: 5 | R99: 7 | S99: 5 | T99: 1 | U99: 2 | V99: 0 | W99: 0 | X99: 0 | Y99: 0 | Z99: 41 | AA99: 1 | AB99: 1 | AC99: 0 | AD99: 2 | AE99: 2 | AF99: 1 | AG99: 0 | AH99: 1 | AI99: 1 | AJ99: 2 | AK99: 2 | AL99: 2 | AM99: 4 | AN99: 3 | AO99: 7 | AP99: 8 | AQ99: 3 | AR99: 2 | AS99: 2 | AT99: 1 | AU99: 0 | AV99: 0 | AW99: 0 | AX99: 45 | AY99: 2 | AZ99: 1 | BA99: 0 | BB99: 4 | BC99: 2 | BD99: 1 | BE99: 0 | BF99: 3 | BG99: 2 | BH99: 6 | BI99: 5 | BJ99: 5 | BK99: 5 | BL99: 7 | BM99: 12 | BN99: 15 | BO99: 8 | BP99: 3 | BQ99: 4 | BR99: 1 | BS99: 0 | BT99: 0 | BU99: 0 | BV99: 86 | BW99: 40 | BX99: =SUM(BL99:BU99)/BV99 -> 0.5813953488
B100: 築地 | C100: 9 | D100: 9 | E100: 13 | F100: 14 | G100: 17 | H100: 15 | I100: 12 | J100: 23 | K100: 19 | L100: 25 | M100: 21 | N100: 32 | O100: 31 | P100: 34 | Q100: 36 | R100: 41 | S100: 22 | T100: 19 | U100: 5 | V100: 3 | W100: 0 | X100: 0 | Y100: 0 | Z100: 400 | AA100: 8 | AB100: 15 | AC100: 16 | AD100: 23 | AE100: 12 | AF100: 12 | AG100: 15 | AH100: 18 | AI100: 20 | AJ100: 23 | AK100: 18 | AL100: 29 | AM100: 33 | AN100: 35 | AO100: 43 | AP100: 43 | AQ100: 34 | AR100: 31 | AS100: 25 | AT100: 6 | AU100: 1 | AV100: 0 | AW100: 0 | AX100: 460 | AY100: 17 | AZ100: 24 | BA100: 29 | BB100: 37 | BC100: 29 | BD100: 27 | BE100: 27 | BF100: 41 | BG100: 39 | BH100: 48 | BI100: 39 | BJ100: 61 | BK100: 64 | BL100: 69 | BM100: 79 | BN100: 84 | BO100: 56 | BP100: 50 | BQ100: 30 | BR100: 9 | BS100: 1 | BT100: 0 | BU100: 0 | BV100: 860 | BW100: 355 | BX100: =SUM(BL100:BU100)/BV100 -> 0.4395348837
B101: 下高田 | C101: 4 | D101: 1 | E101: 6 | F101: 5 | G101: 5 | H101: 3 | I101: 7 | J101: 4 | K101: 3 | L101: 10 | M101: 4 | N101: 8 | O101: 6 | P101: 7 | Q101: 5 | R101: 11 | S101: 4 | T101: 3 | U101: 1 | V101: 0 | W101: 0 | X101: 0 | Y101: 0 | Z101: 97 | AA101: 0 | AB101: 4 | AC101: 6 | AD101: 5 | AE101: 1 | AF101: 3 | AG101: 4 | AH101: 2 | AI101: 6 | AJ101: 11 | AK101: 6 | AL101: 5 | AM101: 6 | AN101: 6 | AO101: 13 | AP101: 9 | AQ101: 5 | AR101: 5 | AS101: 3 | AT101: 0 | AU101: 0 | AV101: 0 | AW101: 0 | AX101: 100 | AY101: 4 | AZ101: 5 | BA101: 12 | BB101: 10 | BC101: 6 | BD101: 6 | BE101: 11 | BF101: 6 | BG101: 9 | BH101: 21 | BI101: 10 | BJ101: 13 | BK101: 12 | BL101: 13 | BM101: 18 | BN101: 20 | BO101: 9 | BP101: 8 | BQ101: 4 | BR101: 0 | BS101: 0 | BT101: 0 | BU101: 0 | BV101: 197 | BW101: 64 | BX101: =SUM(BL101:BU101)/BV101 -> 0.3654822335
B102: 山王 | C102: 0 | D102: 2 | E102: 4 | F102: 8 | G102: 2 | H102: 1 | I102: 2 | J102: 4 | K102: 4 | L102: 1 | M102: 2 | N102: 4 | O102: 9 | P102: 8 | Q102: 8 | R102: 7 | S102: 1 | T102: 4 | U102: 2 | V102: 0 | W102: 0 | X102: 0 | Y102: 0 | Z102: 73 | AA102: 1 | AB102: 1 | AC102: 5 | AD102: 1 | AE102: 3 | AF102: 0 | AG102: 2 | AH102: 5 | AI102: 2 | AJ102: 5 | AK102: 7 | AL102: 2 | AM102: 8 | AN102: 8 | AO102: 7 | AP102: 5 | AQ102: 2 | AR102: 5 | AS102: 4 | AT102: 0 | AU102: 0 | AV102: 0 | AW102: 0 | AX102: 73 | AY102: 1 | AZ102: 3 | BA102: 9 | BB102: 9 | BC102: 5 | BD102: 1 | BE102: 4 | BF102: 9 | BG102: 6 | BH102: 6 | BI102: 9 | BJ102: 6 | BK102: 17 | BL102: 16 | BM102: 15 | BN102: 12 | BO102: 3 | BP102: 9 | BQ102: 6 | BR102: 0 | BS102: 0 | BT102: 0 | BU102: 0 | BV102: 146 | BW102: 45 | BX102: =SUM(BL102:BU102)/BV102 -> 0.4178082192
B103: 高畑 | C103: 3 | D103: 5 | E103: 5 | F103: 2 | G103: 3 | H103: 1 | I103: 8 | J103: 7 | K103: 7 | L103: 6 | M103: 12 | N103: 11 | O103: 11 | P103: 17 | Q103: 18 | R103: 11 | S103: 3 | T103: 5 | U103: 1 | V103: 0 | W103: 0 | X103: 0 | Y103: 0 | Z103: 136 | AA103: 4 | AB103: 3 | AC103: 4 | AD103: 2 | AE103: 6 | AF103: 4 | AG103: 4 | AH103: 7 | AI103: 3 | AJ103: 4 | AK103: 8 | AL103: 11 | AM103: 18 | AN103: 14 | AO103: 11 | AP103: 6 | AQ103: 10 | AR103: 7 | AS103: 5 | AT103: 2 | AU103: 0 | AV103: 0 | AW103: 0 | AX103: 133 | AY103: 7 | AZ103: 8 | BA103: 9 | BB103: 4 | BC103: 9 | BD103: 5 | BE103: 12 | BF103: 14 | BG103: 10 | BH103: 10 | BI103: 20 | BJ103: 22 | BK103: 29 | BL103: 31 | BM103: 29 | BN103: 17 | BO103: 13 | BP103: 12 | BQ103: 6 | BR103: 2 | BS103: 0 | BT103: 0 | BU103: 0 | BV103: 269 | BW103: 105 | BX103: =SUM(BL103:BU103)/BV103 -> 0.4089219331
B104: 宮瀬 | C104: 1 | D104: 0 | E104: 2 | F104: 1 | G104: 2 | H104: 0 | I104: 1 | J104: 1 | K104: 1 | L104: 5 | M104: 2 | N104: 1 | O104: 5 | P104: 4 | Q104: 3 | R104: 6 | S104: 2 | T104: 0 | U104: 0 | V104: 0 | W104: 0 | X104: 0 | Y104: 0 | Z104: 37 | AA104: 0 | AB104: 2 | AC104: 1 | AD104: 0 | AE104: 2 | AF104: 0 | AG104: 0 | AH104: 1 | AI104: 3 | AJ104: 2 | AK104: 0 | AL104: 1 | AM104: 5 | AN104: 3 | AO104: 7 | AP104: 1 | AQ104: 1 | AR104: 6 | AS104: 0 | AT104: 2 | AU104: 0 | AV104: 0 | AW104: 0 | AX104: 37 | AY104: 1 | AZ104: 2 | BA104: 3 | BB104: 1 | BC104: 4 | BD104: 0 | BE104: 1 | BF104: 2 | BG104: 4 | BH104: 7 | BI104: 2 | BJ104: 2 | BK104: 10 | BL104: 7 | BM104: 10 | BN104: 7 | BO104: 3 | BP104: 6 | BQ104: 0 | BR104: 2 | BS104: 0 | BT104: 0 | BU104: 0 | BV104: 74 | BW104: 26 | BX104: =SUM(BL104:BU104)/BV104 -> 0.472972973
B105: 鴻ノ巣 | C105: 1 | D105: 2 | E105: 2 | F105: 3 | G105: 0 | H105: 4 | I105: 4 | J105: 8 | K105: 8 | L105: 4 | M105: 5 | N105: 5 | O105: 5 | P105: 11 | Q105: 8 | R105: 3 | S105: 4 | T105: 3 | U105: 0 | V105: 0 | W105: 0 | X105: 0 | Y105: 0 | Z105: 80 | AA105: 4 | AB105: 5 | AC105: 4 | AD105: 3 | AE105: 3 | AF105: 3 | AG105: 2 | AH105: 8 | AI105: 6 | AJ105: 1 | AK105: 3 | AL105: 7 | AM105: 7 | AN105: 13 | AO105: 4 | AP105: 6 | AQ105: 6 | AR105: 8 | AS105: 2 | AT105: 0 | AU105: 0 | AV105: 0 | AW105: 0 | AX105: 95 | AY105: 5 | AZ105: 7 | BA105: 6 | BB105: 6 | BC105: 3 | BD105: 7 | BE105: 6 | BF105: 16 | BG105: 14 | BH105: 5 | BI105: 8 | BJ105: 12 | BK105: 12 | BL105: 24 | BM105: 12 | BN105: 9 | BO105: 10 | BP105: 11 | BQ105: 2 | BR105: 0 | BS105: 0 | BT105: 0 | BU105: 0 | BV105: 175 | BW105: 53 | BX105: =SUM(BL105:BU105)/BV105 -> 0.3885714286
B106: 笹口浜 | C106: 0 | D106: 4 | E106: 6 | F106: 5 | G106: 3 | H106: 6 | I106: 3 | J106: 4 | K106: 7 | L106: 7 | M106: 15 | N106: 8 | O106: 19 | P106: 16 | Q106: 12 | R106: 11 | S106: 9 | T106: 8 | U106: 2 | V106: 1 | W106: 0 | X106: 0 | Y106: 0 | Z106: 146 | AA106: 0 | AB106: 0 | AC106: 4 | AD106: 2 | AE106: 4 | AF106: 2 | AG106: 2 | AH106: 6 | AI106: 7 | AJ106: 5 | AK106: 11 | AL106: 10 | AM106: 17 | AN106: 13 | AO106: 11 | AP106: 17 | AQ106: 22 | AR106: 13 | AS106: 7 | AT106: 7 | AU106: 0 | AV106: 0 | AW106: 0 | AX106: 160 | AY106: 0 | AZ106: 4 | BA106: 10 | BB106: 7 | BC106: 7 | BD106: 8 | BE106: 5 | BF106: 10 | BG106: 14 | BH106: 12 | BI106: 26 | BJ106: 18 | BK106: 36 | BL106: 29 | BM106: 23 | BN106: 28 | BO106: 31 | BP106: 21 | BQ106: 9 | BR106: 8 | BS106: 0 | BT106: 0 | BU106: 0 | BV106: 306 | BW106: 127 | BX106: =SUM(BL106:BU106)/BV106 -> 0.4869281046
B107: 中村浜 | C107: 0 | D107: 2 | E107: 0 | F107: 0 | G107: 6 | H107: 7 | I107: 6 | J107: 4 | K107: 3 | L107: 2 | M107: 3 | N107: 3 | O107: 5 | P107: 6 | Q107: 7 | R107: 9 | S107: 1 | T107: 2 | U107: 0 | V107: 0 | W107: 0 | X107: 0 | Y107: 0 | Z107: 66 | AA107: 1 | AB107: 1 | AC107: 0 | AD107: 2 | AE107: 0 | AF107: 1 | AG107: 1 | AH107: 1 | AI107: 5 | AJ107: 3 | AK107: 3 | AL107: 3 | AM107: 6 | AN107: 7 | AO107: 5 | AP107: 4 | AQ107: 6 | AR107: 3 | AS107: 2 | AT107: 3 | AU107: 0 | AV107: 0 | AW107: 0 | AX107: 57 | AY107: 1 | AZ107: 3 | BA107: 0 | BB107: 2 | BC107: 6 | BD107: 8 | BE107: 7 | BF107: 5 | BG107: 8 | BH107: 5 | BI107: 6 | BJ107: 6 | BK107: 11 | BL107: 13 | BM107: 12 | BN107: 13 | BO107: 7 | BP107: 5 | BQ107: 2 | BR107: 3 | BS107: 0 | BT107: 0 | BU107: 0 | BV107: 123 | BW107: 58 | BX107: =SUM(BL107:BU107)/BV107 -> 0.4471544715
B108: 村松浜 | C108: 8 | D108: 13 | E108: 16 | F108: 19 | G108: 13 | H108: 13 | I108: 18 | J108: 15 | K108: 19 | L108: 22 | M108: 32 | N108: 31 | O108: 27 | P108: 24 | Q108: 28 | R108: 38 | S108: 19 | T108: 8 | U108: 9 | V108: 1 | W108: 0 | X108: 0 | Y108: 0 | Z108: 373 | AA108: 4 | AB108: 11 | AC108: 12 | AD108: 13 | AE108: 13 | AF108: 7 | AG108: 14 | AH108: 12 | AI108: 19 | AJ108: 24 | AK108: 27 | AL108: 30 | AM108: 25 | AN108: 28 | AO108: 39 | AP108: 35 | AQ108: 27 | AR108: 14 | AS108: 13 | AT108: 2 | AU108: 1 | AV108: 0 | AW108: 0 | AX108: 370 | AY108: 12 | AZ108: 24 | BA108: 28 | BB108: 32 | BC108: 26 | BD108: 20 | BE108: 32 | BF108: 27 | BG108: 38 | BH108: 46 | BI108: 59 | BJ108: 61 | BK108: 52 | BL108: 52 | BM108: 67 | BN108: 73 | BO108: 46 | BP108: 22 | BQ108: 22 | BR108: 3 | BS108: 1 | BT108: 0 | BU108: 0 | BV108: 743 | BW108: 283 | BX108: =SUM(BL108:BU108)/BV108 -> 0.3849259758
B109: 日鉱 | C109: 2 | D109: 3 | E109: 2 | F109: 2 | G109: 1 | H109: 3 | I109: 6 | J109: 2 | K109: 2 | L109: 1 | M109: 1 | N109: 2 | O109: 2 | P109: 1 | Q109: 1 | R109: 0 | S109: 0 | T109: 0 | U109: 0 | V109: 0 | W109: 0 | X109: 0 | Y109: 0 | Z109: 31 | AA109: 1 | AB109: 2 | AC109: 1 | AD109: 0 | AE109: 1 | AF109: 0 | AG109: 4 | AH109: 1 | AI109: 2 | AJ109: 1 | AK109: 0 | AL109: 0 | AM109: 0 | AN109: 1 | AO109: 0 | AP109: 0 | AQ109: 0 | AR109: 0 | AS109: 0 | AT109: 0 | AU109: 0 | AV109: 0 | AW109: 0 | AX109: 14 | AY109: 3 | AZ109: 5 | BA109: 3 | BB109: 2 | BC109: 2 | BD109: 3 | BE109: 10 | BF109: 3 | BG109: 4 | BH109: 2 | BI109: 1 | BJ109: 2 | BK109: 2 | BL109: 2 | BM109: 1 | BN109: 0 | BO109: 0 | BP109: 0 | BQ109: 0 | BR109: 0 | BS109: 0 | BT109: 0 | BU109: 0 | BV109: 45 | BW109: 24 | BX109: =SUM(BL109:BU109)/BV109 -> 0.06666666667
A110: 黒 川 地 区 | B110: 黒川上町 | C110: 2 | D110: 3 | E110: 5 | F110: 6 | G110: 3 | H110: 3 | I110: 1 | J110: 5 | K110: 4 | L110: 3 | M110: 3 | N110: 8 | O110: 5 | P110: 13 | Q110: 9 | R110: 3 | S110: 4 | T110: 4 | U110: 1 | V110: 0 | W110: 0 | X110: 0 | Y110: 0 | Z110: 85 | AA110: 1 | AB110: 3 | AC110: 6 | AD110: 2 | AE110: 4 | AF110: 2 | AG110: 3 | AH110: 7 | AI110: 8 | AJ110: 5 | AK110: 6 | AL110: 9 | AM110: 8 | AN110: 11 | AO110: 10 | AP110: 11 | AQ110: 5 | AR110: 11 | AS110: 3 | AT110: 0 | AU110: 0 | AV110: 0 | AW110: 0 | AX110: 115 | AY110: 3 | AZ110: 6 | BA110: 11 | BB110: 8 | BC110: 7 | BD110: 5 | BE110: 4 | BF110: 12 | BG110: 12 | BH110: 8 | BI110: 9 | BJ110: 17 | BK110: 13 | BL110: 24 | BM110: 19 | BN110: 14 | BO110: 9 | BP110: 15 | BQ110: 4 | BR110: 0 | BS110: 0 | BT110: 0 | BU110: 0 | BV110: 200 | BW110: 68 | BX110: =SUM(BL110:BU110)/BV110 -> 0.425
B111: 黒川中町 | C111: 0 | D111: 2 | E111: 7 | F111: 9 | G111: 2 | H111: 2 | I111: 4 | J111: 5 | K111: 8 | L111: 2 | M111: 8 | N111: 4 | O111: 3 | P111: 4 | Q111: 8 | R111: 5 | S111: 6 | T111: 3 | U111: 2 | V111: 0 | W111: 0 | X111: 0 | Y111: 0 | Z111: 84 | AA111: 4 | AB111: 7 | AC111: 7 | AD111: 2 | AE111: 2 | AF111: 0 | AG111: 3 | AH111: 6 | AI111: 5 | AJ111: 5 | AK111: 4 | AL111: 3 | AM111: 5 | AN111: 7 | AO111: 10 | AP111: 13 | AQ111: 4 | AR111: 2 | AS111: 4 | AT111: 2 | AU111: 0 | AV111: 0 | AW111: 0 | AX111: 95 | AY111: 4 | AZ111: 9 | BA111: 14 | BB111: 11 | BC111: 4 | BD111: 2 | BE111: 7 | BF111: 11 | BG111: 13 | BH111: 7 | BI111: 12 | BJ111: 7 | BK111: 8 | BL111: 11 | BM111: 18 | BN111: 18 | BO111: 10 | BP111: 5 | BQ111: 6 | BR111: 2 | BS111: 0 | BT111: 0 | BU111: 0 | BV111: 179 | BW111: 62 | BX111: =SUM(BL111:BU111)/BV111 -> 0.3910614525
B112: 黒川下町 | C112: 1 | D112: 4 | E112: 12 | F112: 3 | G112: 6 | H112: 2 | I112: 7 | J112: 9 | K112: 4 | L112: 8 | M112: 11 | N112: 9 | O112: 14 | P112: 10 | Q112: 8 | R112: 14 | S112: 1 | T112: 4 | U112: 1 | V112: 1 | W112: 0 | X112: 0 | Y112: 0 | Z112: 129 | AA112: 2 | AB112: 4 | AC112: 9 | AD112: 5 | AE112: 5 | AF112: 1 | AG112: 5 | AH112: 9 | AI112: 6 | AJ112: 9 | AK112: 7 | AL112: 10 | AM112: 16 | AN112: 10 | AO112: 12 | AP112: 10 | AQ112: 11 | AR112: 5 | AS112: 3 | AT112: 2 | AU112: 0 | AV112: 0 | AW112: 0 | AX112: 141 | AY112: 3 | AZ112: 8 | BA112: 21 | BB112: 8 | BC112: 11 | BD112: 3 | BE112: 12 | BF112: 18 | BG112: 10 | BH112: 17 | BI112: 18 | BJ112: 19 | BK112: 30 | BL112: 20 | BM112: 20 | BN112: 24 | BO112: 12 | BP112: 9 | BQ112: 4 | BR112: 3 | BS112: 0 | BT112: 0 | BU112: 0 | BV112: 270 | BW112: 101 | BX112: =SUM(BL112:BU112)/BV112 -> 0.3407407407
B113: 黒川南町 | C113: 2 | D113: 4 | E113: 2 | F113: 6 | G113: 4 | H113: 1 | I113: 7 | J113: 4 | K113: 5 | L113: 4 | M113: 6 | N113: 4 | O113: 10 | P113: 4 | Q113: 10 | R113: 7 | S113: 3 | T113: 3 | U113: 1 | V113: 0 | W113: 0 | X113: 0 | Y113: 0 | Z113: 87 | AA113: 2 | AB113: 4 | AC113: 2 | AD113: 5 | AE113: 6 | AF113: 2 | AG113: 3 | AH113: 4 | AI113: 5 | AJ113: 8 | AK113: 9 | AL113: 3 | AM113: 6 | AN113: 7 | AO113: 9 | AP113: 4 | AQ113: 9 | AR113: 5 | AS113: 3 | AT113: 2 | AU113: 1 | AV113: 0 | AW113: 0 | AX113: 99 | AY113: 4 | AZ113: 8 | BA113: 4 | BB113: 11 | BC113: 10 | BD113: 3 | BE113: 10 | BF113: 8 | BG113: 10 | BH113: 12 | BI113: 15 | BJ113: 7 | BK113: 16 | BL113: 11 | BM113: 19 | BN113: 11 | BO113: 12 | BP113: 8 | BQ113: 4 | BR113: 2 | BS113: 1 | BT113: 0 | BU113: 0 | BV113: 186 | BW113: 67 | BX113: =SUM(BL113:BU113)/BV113 -> 0.3655913978
B114: 黒川西町１区 | C114: 1 | D114: 0 | E114: 0 | F114: 5 | G114: 7 | H114: 1 | I114: 1 | J114: 3 | K114: 4 | L114: 7 | M114: 7 | N114: 6 | O114: 3 | P114: 7 | Q114: 8 | R114: 15 | S114: 8 | T114: 1 | U114: 1 | V114: 0 | W114: 0 | X114: 0 | Y114: 0 | Z114: 85 | AA114: 0 | AB114: 2 | AC114: 4 | AD114: 7 | AE114: 7 | AF114: 2 | AG114: 2 | AH114: 6 | AI114: 4 | AJ114: 11 | AK114: 6 | AL114: 7 | AM114: 5 | AN114: 10 | AO114: 16 | AP114: 12 | AQ114: 5 | AR114: 3 | AS114: 2 | AT114: 0 | AU114: 0 | AV114: 0 | AW114: 0 | AX114: 111 | AY114: 1 | AZ114: 2 | BA114: 4 | BB114: 12 | BC114: 14 | BD114: 3 | BE114: 3 | BF114: 9 | BG114: 8 | BH114: 18 | BI114: 13 | BJ114: 13 | BK114: 8 | BL114: 17 | BM114: 24 | BN114: 27 | BO114: 13 | BP114: 4 | BQ114: 3 | BR114: 0 | BS114: 0 | BT114: 0 | BU114: 0 | BV114: 196 | BW114: 89 | BX114: =SUM(BL114:BU114)/BV114 -> 0.4489795918
B115: 黒川西町２区 | C115: 3 | D115: 6 | E115: 10 | F115: 12 | G115: 8 | H115: 6 | I115: 5 | J115: 6 | K115: 6 | L115: 8 | M115: 9 | N115: 7 | O115: 4 | P115: 12 | Q115: 12 | R115: 12 | S115: 0 | T115: 1 | U115: 0 | V115: 0 | W115: 0 | X115: 0 | Y115: 0 | Z115: 127 | AA115: 0 | AB115: 6 | AC115: 14 | AD115: 13 | AE115: 8 | AF115: 4 | AG115: 2 | AH115: 7 | AI115: 18 | AJ115: 13 | AK115: 15 | AL115: 8 | AM115: 4 | AN115: 11 | AO115: 16 | AP115: 7 | AQ115: 1 | AR115: 2 | AS115: 0 | AT115: 0 | AU115: 0 | AV115: 0 | AW115: 0 | AX115: 149 | AY115: 3 | AZ115: 12 | BA115: 24 | BB115: 25 | BC115: 16 | BD115: 10 | BE115: 7 | BF115: 13 | BG115: 24 | BH115: 21 | BI115: 24 | BJ115: 15 | BK115: 8 | BL115: 23 | BM115: 28 | BN115: 19 | BO115: 1 | BP115: 3 | BQ115: 0 | BR115: 0 | BS115: 0 | BT115: 0 | BU115: 0 | BV115: 276 | BW115: 104 | BX115: =SUM(BL115:BU115)/BV115 -> 0.268115942
B116: 北町 | C116: 0 | D116: 0 | E116: 1 | F116: 3 | G116: 1 | H116: 1 | I116: 2 | J116: 4 | K116: 4 | L116: 4 | M116: 8 | N116: 3 | O116: 4 | P116: 3 | Q116: 10 | R116: 4 | S116: 3 | T116: 3 | U116: 1 | V116: 0 | W116: 0 | X116: 0 | Y116: 0 | Z116: 59 | AA116: 0 | AB116: 0 | AC116: 1 | AD116: 3 | AE116: 1 | AF116: 0 | AG116: 0 | AH116: 1 | AI116: 1 | AJ116: 4 | AK116: 6 | AL116: 3 | AM116: 2 | AN116: 6 | AO116: 9 | AP116: 3 | AQ116: 5 | AR116: 3 | AS116: 3 | AT116: 0 | AU116: 0 | AV116: 0 | AW116: 0 | AX116: 51 | AY116: 0 | AZ116: 0 | BA116: 2 | BB116: 6 | BC116: 2 | BD116: 1 | BE116: 2 | BF116: 5 | BG116: 5 | BH116: 8 | BI116: 14 | BJ116: 6 | BK116: 6 | BL116: 9 | BM116: 19 | BN116: 7 | BO116: 8 | BP116: 6 | BQ116: 4 | BR116: 0 | BS116: 0 | BT116: 0 | BU116: 0 | BV116: 110 | BW116: 55 | BX116: =SUM(BL116:BU116)/BV116 -> 0.4818181818
B117: 下江端 | C117: 0 | D117: 1 | E117: 3 | F117: 3 | G117: 1 | H117: 1 | I117: 2 | J117: 1 | K117: 3 | L117: 3 | M117: 2 | N117: 3 | O117: 3 | P117: 3 | Q117: 7 | R117: 2 | S117: 3 | T117: 0 | U117: 1 | V117: 0 | W117: 0 | X117: 0 | Y117: 0 | Z117: 42 | AA117: 0 | AB117: 0 | AC117: 1 | AD117: 2 | AE117: 0 | AF117: 1 | AG117: 0 | AH117: 0 | AI117: 1 | AJ117: 4 | AK117: 5 | AL117: 0 | AM117: 2 | AN117: 5 | AO117: 3 | AP117: 5 | AQ117: 1 | AR117: 2 | AS117: 1 | AT117: 0 | AU117: 0 | AV117: 0 | AW117: 0 | AX117: 33 | AY117: 0 | AZ117: 1 | BA117: 4 | BB117: 5 | BC117: 1 | BD117: 2 | BE117: 2 | BF117: 1 | BG117: 4 | BH117: 7 | BI117: 7 | BJ117: 3 | BK117: 5 | BL117: 8 | BM117: 10 | BN117: 7 | BO117: 4 | BP117: 2 | BQ117: 2 | BR117: 0 | BS117: 0 | BT117: 0 | BU117: 0 | BV117: 75 | BW117: 25 | BX117: =SUM(BL117:BU117)/BV117 -> 0.44
B118: 東牧 | C118: 3 | D118: 1 | E118: 2 | F118: 3 | G118: 4 | H118: 2 | I118: 4 | J118: 3 | K118: 2 | L118: 7 | M118: 2 | N118: 2 | O118: 5 | P118: 3 | Q118: 7 | R118: 8 | S118: 4 | T118: 1 | U118: 1 | V118: 1 | W118: 0 | X118: 0 | Y118: 0 | Z118: 65 | AA118: 0 | AB118: 2 | AC118: 4 | AD118: 1 | AE118: 2 | AF118: 1 | AG118: 0 | AH118: 3 | AI118: 3 | AJ118: 4 | AK118: 7 | AL118: 2 | AM118: 5 | AN118: 6 | AO118: 9 | AP118: 7 | AQ118: 5 | AR118: 2 | AS118: 1 | AT118: 2 | AU118: 0 | AV118: 0 | AW118: 0 | AX118: 66 | AY118: 3 | AZ118: 3 | BA118: 6 | BB118: 4 | BC118: 6 | BD118: 3 | BE118: 4 | BF118: 6 | BG118: 5 | BH118: 11 | BI118: 9 | BJ118: 4 | BK118: 10 | BL118: 9 | BM118: 16 | BN118: 15 | BO118: 9 | BP118: 3 | BQ118: 2 | BR118: 3 | BS118: 0 | BT118: 0 | BU118: 0 | BV118: 131 | BW118: 46 | BX118: =SUM(BL118:BU118)/BV118 -> 0.4351145038
B119: 近江新 | C119: 3 | D119: 0 | E119: 3 | F119: 6 | G119: 2 | H119: 3 | I119: 2 | J119: 4 | K119: 2 | L119: 7 | M119: 8 | N119: 7 | O119: 3 | P119: 7 | Q119: 10 | R119: 7 | S119: 4 | T119: 1 | U119: 2 | V119: 0 | W119: 0 | X119: 0 | Y119: 0 | Z119: 81 | AA119: 1 | AB119: 1 | AC119: 3 | AD119: 2 | AE119: 4 | AF119: 3 | AG119: 2 | AH119: 2 | AI119: 3 | AJ119: 5 | AK119: 7 | AL119: 4 | AM119: 5 | AN119: 13 | AO119: 7 | AP119: 11 | AQ119: 3 | AR119: 5 | AS119: 2 | AT119: 4 | AU119: 1 | AV119: 0 | AW119: 0 | AX119: 88 | AY119: 4 | AZ119: 1 | BA119: 6 | BB119: 8 | BC119: 6 | BD119: 6 | BE119: 4 | BF119: 6 | BG119: 5 | BH119: 12 | BI119: 15 | BJ119: 11 | BK119: 8 | BL119: 20 | BM119: 17 | BN119: 18 | BO119: 7 | BP119: 6 | BQ119: 4 | BR119: 4 | BS119: 1 | BT119: 0 | BU119: 0 | BV119: 169 | BW119: 59 | BX119: =SUM(BL119:BU119)/BV119 -> 0.4556213018
B120: 蔵王 | C120: 0 | D120: 1 | E120: 1 | F120: 0 | G120: 0 | H120: 1 | I120: 1 | J120: 0 | K120: 2 | L120: 4 | M120: 3 | N120: 3 | O120: 3 | P120: 2 | Q120: 2 | R120: 7 | S120: 0 | T120: 0 | U120: 1 | V120: 0 | W120: 0 | X120: 0 | Y120: 0 | Z120: 31 | AA120: 0 | AB120: 1 | AC120: 0 | AD120: 0 | AE120: 0 | AF120: 1 | AG120: 1 | AH120: 1 | AI120: 0 | AJ120: 2 | AK120: 0 | AL120: 0 | AM120: 4 | AN120: 2 | AO120: 2 | AP120: 8 | AQ120: 0 | AR120: 4 | AS120: 0 | AT120: 0 | AU120: 0 | AV120: 0 | AW120: 0 | AX120: 26 | AY120: 0 | AZ120: 2 | BA120: 1 | BB120: 0 | BC120: 0 | BD120: 2 | BE120: 2 | BF120: 1 | BG120: 2 | BH120: 6 | BI120: 3 | BJ120: 3 | BK120: 7 | BL120: 4 | BM120: 4 | BN120: 15 | BO120: 0 | BP120: 4 | BQ120: 1 | BR120: 0 | BS120: 0 | BT120: 0 | BU120: 0 | BV120: 57 | BW120: 21 | BX120: =SUM(BL120:BU120)/BV120 -> 0.4912280702
B121: 塩沢 | C121: 2 | D121: 2 | E121: 6 | F121: 0 | G121: 0 | H121: 2 | I121: 2 | J121: 3 | K121: 1 | L121: 4 | M121: 7 | N121: 3 | O121: 3 | P121: 5 | Q121: 7 | R121: 4 | S121: 3 | T121: 2 | U121: 1 | V121: 0 | W121: 0 | X121: 0 | Y121: 0 | Z121: 57 | AA121: 0 | AB121: 2 | AC121: 1 | AD121: 3 | AE121: 0 | AF121: 0 | AG121: 1 | AH121: 3 | AI121: 4 | AJ121: 3 | AK121: 1 | AL121: 3 | AM121: 2 | AN121: 4 | AO121: 7 | AP121: 7 | AQ121: 1 | AR121: 1 | AS121: 2 | AT121: 3 | AU121: 1 | AV121: 0 | AW121: 0 | AX121: 49 | AY121: 2 | AZ121: 4 | BA121: 7 | BB121: 3 | BC121: 0 | BD121: 2 | BE121: 3 | BF121: 6 | BG121: 5 | BH121: 7 | BI121: 8 | BJ121: 6 | BK121: 5 | BL121: 9 | BM121: 14 | BN121: 11 | BO121: 4 | BP121: 3 | BQ121: 3 | BR121: 3 | BS121: 1 | BT121: 0 | BU121: 0 | BV121: 106 | BW121: 39 | BX121: =SUM(BL121:BU121)/BV121 -> 0.4528301887
B122: 塩谷 | C122: 0 | D122: 0 | E122: 0 | F122: 1 | G122: 2 | H122: 2 | I122: 3 | J122: 1 | K122: 3 | L122: 1 | M122: 3 | N122: 9 | O122: 1 | P122: 9 | Q122: 4 | R122: 4 | S122: 5 | T122: 2 | U122: 0 | V122: 1 | W122: 0 | X122: 0 | Y122: 0 | Z122: 51 | AA122: 2 | AB122: 0 | AC122: 2 | AD122: 1 | AE122: 4 | AF122: 1 | AG122: 5 | AH122: 3 | AI122: 1 | AJ122: 1 | AK122: 8 | AL122: 6 | AM122: 3 | AN122: 6 | AO122: 4 | AP122: 5 | AQ122: 7 | AR122: 8 | AS122: 5 | AT122: 3 | AU122: 2 | AV122: 0 | AW122: 0 | AX122: 77 | AY122: 2 | AZ122: 0 | BA122: 2 | BB122: 2 | BC122: 6 | BD122: 3 | BE122: 8 | BF122: 4 | BG122: 4 | BH122: 2 | BI122: 11 | BJ122: 15 | BK122: 4 | BL122: 15 | BM122: 8 | BN122: 9 | BO122: 12 | BP122: 10 | BQ122: 5 | BR122: 4 | BS122: 2 | BT122: 0 | BU122: 0 | BV122: 128 | BW122: 55 | BX122: =SUM(BL122:BU122)/BV122 -> 0.5078125
B123: ひめさゆり | C123: 0 | D123: 0 | E123: 0 | F123: 0 | G123: 0 | H123: 0 | I123: 0 | J123: 0 | K123: 0 | L123: 0 | M123: 0 | N123: 0 | O123: 1 | P123: 3 | Q123: 9 | R123: 9 | S123: 7 | T123: 2 | U123: 0 | V123: 1 | W123: 0 | X123: 0 | Y123: 0 | Z123: 32 | AA123: 0 | AB123: 0 | AC123: 0 | AD123: 0 | AE123: 0 | AF123: 0 | AG123: 0 | AH123: 0 | AI123: 0 | AJ123: 0 | AK123: 0 | AL123: 0 | AM123: 0 | AN123: 1 | AO123: 5 | AP123: 6 | AQ123: 3 | AR123: 5 | AS123: 4 | AT123: 1 | AU123: 0 | AV123: 0 | AW123: 0 | AX123: 25 | AY123: 0 | AZ123: 0 | BA123: 0 | BB123: 0 | BC123: 0 | BD123: 0 | BE123: 0 | BF123: 0 | BG123: 0 | BH123: 0 | BI123: 0 | BJ123: 0 | BK123: 1 | BL123: 4 | BM123: 14 | BN123: 15 | BO123: 10 | BP123: 7 | BQ123: 4 | BR123: 2 | BS123: 0 | BT123: 0 | BU123: 0 | BV123: 57 | BW123: 57 | BX123: =SUM(BL123:BU123)/BV123 -> 0.9824561404
B124: 下館 | C124: 1 | D124: 4 | E124: 4 | F124: 3 | G124: 4 | H124: 6 | I124: 1 | J124: 4 | K124: 6 | L124: 8 | M124: 6 | N124: 6 | O124: 9 | P124: 8 | Q124: 8 | R124: 3 | S124: 9 | T124: 1 | U124: 1 | V124: 0 | W124: 0 | X124: 0 | Y124: 0 | Z124: 92 | AA124: 3 | AB124: 0 | AC124: 5 | AD124: 1 | AE124: 3 | AF124: 2 | AG124: 0 | AH124: 6 | AI124: 1 | AJ124: 7 | AK124: 4 | AL124: 9 | AM124: 6 | AN124: 4 | AO124: 10 | AP124: 7 | AQ124: 9 | AR124: 9 | AS124: 2 | AT124: 2 | AU124: 0 | AV124: 0 | AW124: 0 | AX124: 90 | AY124: 4 | AZ124: 4 | BA124: 9 | BB124: 4 | BC124: 7 | BD124: 8 | BE124: 1 | BF124: 10 | BG124: 7 | BH124: 15 | BI124: 10 | BJ124: 15 | BK124: 15 | BL124: 12 | BM124: 18 | BN124: 10 | BO124: 18 | BP124: 10 | BQ124: 3 | BR124: 2 | BS124: 0 | BT124: 0 | BU124: 0 | BV124: 182 | BW124: 61 | BX124: =SUM(BL124:BU124)/BV124 -> 0.4010989011
B125: 下赤谷 | C125: 0 | D125: 0 | E125: 0 | F125: 0 | G125: 0 | H125: 0 | I125: 2 | J125: 0 | K125: 0 | L125: 1 | M125: 1 | N125: 0 | O125: 0 | P125: 2 | Q125: 3 | R125: 1 | S125: 1 | T125: 0 | U125: 0 | V125: 0 | W125: 0 | X125: 0 | Y125: 0 | Z125: 11 | AA125: 0 | AB125: 0 | AC125: 0 | AD125: 1 | AE125: 1 | AF125: 0 | AG125: 0 | AH125: 0 | AI125: 0 | AJ125: 0 | AK125: 2 | AL125: 0 | AM125: 0 | AN125: 1 | AO125: 3 | AP125: 3 | AQ125: 0 | AR125: 0 | AS125: 1 | AT125: 1 | AU125: 0 | AV125: 0 | AW125: 0 | AX125: 13 | AY125: 0 | AZ125: 0 | BA125: 0 | BB125: 1 | BC125: 1 | BD125: 0 | BE125: 2 | BF125: 0 | BG125: 0 | BH125: 1 | BI125: 3 | BJ125: 0 | BK125: 0 | BL125: 3 | BM125: 6 | BN125: 4 | BO125: 1 | BP125: 0 | BQ125: 1 | BR125: 1 | BS125: 0 | BT125: 0 | BU125: 0 | BV125: 24 | BW125: 9 | BX125: =SUM(BL125:BU125)/BV125 -> 0.6666666667
B126: 前山台 | C126: 3 | D126: 10 | E126: 6 | F126: 10 | G126: 9 | H126: 8 | I126: 3 | J126: 8 | K126: 8 | L126: 11 | M126: 19 | N126: 11 | O126: 7 | P126: 3 | Q126: 4 | R126: 3 | S126: 3 | T126: 1 | U126: 0 | V126: 0 | W126: 0 | X126: 0 | Y126: 0 | Z126: 127 | AA126: 2 | AB126: 4 | AC126: 7 | AD126: 12 | AE126: 8 | AF126: 5 | AG126: 5 | AH126: 7 | AI126: 8 | AJ126: 11 | AK126: 19 | AL126: 7 | AM126: 6 | AN126: 1 | AO126: 8 | AP126: 3 | AQ126: 3 | AR126: 1 | AS126: 0 | AT126: 0 | AU126: 0 | AV126: 0 | AW126: 0 | AX126: 117 | AY126: 5 | AZ126: 14 | BA126: 13 | BB126: 22 | BC126: 17 | BD126: 13 | BE126: 8 | BF126: 15 | BG126: 16 | BH126: 22 | BI126: 38 | BJ126: 18 | BK126: 13 | BL126: 4 | BM126: 12 | BN126: 6 | BO126: 6 | BP126: 2 | BQ126: 0 | BR126: 0 | BS126: 0 | BT126: 0 | BU126: 0 | BV126: 244 | BW126: 86 | BX126: =SUM(BL126:BU126)/BV126 -> 0.1229508197
B127: ひまわり荘 | C127: 0 | D127: 0 | E127: 0 | F127: 0 | G127: 0 | H127: 0 | I127: 0 | J127: 1 | K127: 0 | L127: 2 | M127: 4 | N127: 7 | O127: 13 | P127: 7 | Q127: 10 | R127: 4 | S127: 4 | T127: 0 | U127: 0 | V127: 0 | W127: 0 | X127: 0 | Y127: 0 | Z127: 52 | AA127: 0 | AB127: 0 | AC127: 0 | AD127: 0 | AE127: 1 | AF127: 0 | AG127: 2 | AH127: 0 | AI127: 1 | AJ127: 2 | AK127: 1 | AL127: 5 | AM127: 4 | AN127: 3 | AO127: 7 | AP127: 5 | AQ127: 3 | AR127: 1 | AS127: 0 | AT127: 0 | AU127: 0 | AV127: 0 | AW127: 0 | AX127: 35 | AY127: 0 | AZ127: 0 | BA127: 0 | BB127: 0 | BC127: 1 | BD127: 0 | BE127: 2 | BF127: 1 | BG127: 1 | BH127: 4 | BI127: 5 | BJ127: 12 | BK127: 17 | BL127: 10 | BM127: 17 | BN127: 9 | BO127: 7 | BP127: 1 | BQ127: 0 | BR127: 0 | BS127: 0 | BT127: 0 | BU127: 0 | BV127: 87 | BW127: 87 | BX127: =SUM(BL127:BU127)/BV127 -> 0.5057471264
B128: 坪穴 | C128: 2 | D128: 0 | E128: 1 | F128: 4 | G128: 0 | H128: 2 | I128: 2 | J128: 3 | K128: 5 | L128: 3 | M128: 1 | N128: 1 | O128: 4 | P128: 14 | Q128: 8 | R128: 7 | S128: 1 | T128: 1 | U128: 1 | V128: 1 | W128: 0 | X128: 0 | Y128: 0 | Z128: 61 | AA128: 0 | AB128: 2 | AC128: 4 | AD128: 1 | AE128: 4 | AF128: 1 | AG128: 3 | AH128: 6 | AI128: 1 | AJ128: 4 | AK128: 1 | AL128: 2 | AM128: 7 | AN128: 8 | AO128: 12 | AP128: 5 | AQ128: 1 | AR128: 5 | AS128: 4 | AT128: 4 | AU128: 0 | AV128: 0 | AW128: 0 | AX128: 75 | AY128: 2 | AZ128: 2 | BA128: 5 | BB128: 5 | BC128: 4 | BD128: 3 | BE128: 5 | BF128: 9 | BG128: 6 | BH128: 7 | BI128: 2 | BJ128: 3 | BK128: 11 | BL128: 22 | BM128: 20 | BN128: 12 | BO128: 2 | BP128: 6 | BQ128: 5 | BR128: 5 | BS128: 0 | BT128: 0 | BU128: 0 | BV128: 136 | BW128: 49 | BX128: =SUM(BL128:BU128)/BV128 -> 0.5294117647
B129: 栗木野新田 | C129: 2 | D129: 0 | E129: 0 | F129: 0 | G129: 0 | H129: 0 | I129: 0 | J129: 1 | K129: 1 | L129: 1 | M129: 2 | N129: 0 | O129: 1 | P129: 2 | Q129: 2 | R129: 1 | S129: 2 | T129: 2 | U129: 0 | V129: 1 | W129: 0 | X129: 0 | Y129: 0 | Z129: 18 | AA129: 0 | AB129: 0 | AC129: 0 | AD129: 1 | AE129: 0 | AF129: 0 | AG129: 1 | AH129: 1 | AI129: 0 | AJ129: 0 | AK129: 1 | AL129: 0 | AM129: 0 | AN129: 2 | AO129: 2 | AP129: 0 | AQ129: 1 | AR129: 1 | AS129: 1 | AT129: 0 | AU129: 0 | AV129: 0 | AW129: 0 | AX129: 11 | AY129: 2 | AZ129: 0 | BA129: 0 | BB129: 1 | BC129: 0 | BD129: 0 | BE129: 1 | BF129: 2 | BG129: 1 | BH129: 1 | BI129: 3 | BJ129: 0 | BK129: 1 | BL129: 4 | BM129: 4 | BN129: 1 | BO129: 3 | BP129: 3 | BQ129: 1 | BR129: 1 | BS129: 0 | BT129: 0 | BU129: 0 | BV129: 29 | BW129: 14 | BX129: =SUM(BL129:BU129)/BV129 -> 0.5862068966
B130: 夏井 | C130: 0 | D130: 3 | E130: 3 | F130: 3 | G130: 5 | H130: 1 | I130: 0 | J130: 2 | K130: 5 | L130: 8 | M130: 3 | N130: 3 | O130: 5 | P130: 8 | Q130: 6 | R130: 4 | S130: 2 | T130: 0 | U130: 0 | V130: 0 | W130: 0 | X130: 0 | Y130: 0 | Z130: 61 | AA130: 0 | AB130: 0 | AC130: 1 | AD130: 2 | AE130: 2 | AF130: 0 | AG130: 2 | AH130: 2 | AI130: 1 | AJ130: 8 | AK130: 1 | AL130: 3 | AM130: 2 | AN130: 2 | AO130: 11 | AP130: 8 | AQ130: 3 | AR130: 4 | AS130: 3 | AT130: 0 | AU130: 0 | AV130: 0 | AW130: 0 | AX130: 55 | AY130: 0 | AZ130: 3 | BA130: 4 | BB130: 5 | BC130: 7 | BD130: 1 | BE130: 2 | BF130: 4 | BG130: 6 | BH130: 16 | BI130: 4 | BJ130: 6 | BK130: 7 | BL130: 10 | BM130: 17 | BN130: 12 | BO130: 5 | BP130: 4 | BQ130: 3 | BR130: 0 | BS130: 0 | BT130: 0 | BU130: 0 | BV130: 116 | BW130: 43 | BX130: =SUM(BL130:BU130)/BV130 -> 0.4396551724
B131: 鼓岡 | C131: 0 | D131: 0 | E131: 2 | F131: 5 | G131: 3 | H131: 2 | I131: 2 | J131: 2 | K131: 10 | L131: 8 | M131: 4 | N131: 3 | O131: 10 | P131: 12 | Q131: 19 | R131: 13 | S131: 5 | T131: 4 | U131: 2 | V131: 0 | W131: 0 | X131: 0 | Y131: 0 | Z131: 106 | AA131: 0 | AB131: 5 | AC131: 4 | AD131: 7 | AE131: 2 | AF131: 2 | AG131: 1 | AH131: 4 | AI131: 3 | AJ131: 9 | AK131: 7 | AL131: 4 | AM131: 9 | AN131: 19 | AO131: 19 | AP131: 9 | AQ131: 5 | AR131: 10 | AS131: 5 | AT131: 0 | AU131: 0 | AV131: 0 | AW131: 0 | AX131: 124 | AY131: 0 | AZ131: 5 | BA131: 6 | BB131: 12 | BC131: 5 | BD131: 4 | BE131: 3 | BF131: 6 | BG131: 13 | BH131: 17 | BI131: 11 | BJ131: 7 | BK131: 19 | BL131: 31 | BM131: 38 | BN131: 22 | BO131: 10 | BP131: 14 | BQ131: 7 | BR131: 0 | BS131: 0 | BT131: 0 | BU131: 0 | BV131: 230 | BW131: 76 | BX131: =SUM(BL131:BU131)/BV131 -> 0.5304347826
B132: 坂井 | C132: 1 | D132: 4 | E132: 0 | F132: 3 | G132: 2 | H132: 5 | I132: 3 | J132: 3 | K132: 4 | L132: 4 | M132: 7 | N132: 6 | O132: 8 | P132: 12 | Q132: 18 | R132: 8 | S132: 4 | T132: 5 | U132: 1 | V132: 0 | W132: 0 | X132: 0 | Y132: 0 | Z132: 98 | AA132: 2 | AB132: 7 | AC132: 2 | AD132: 0 | AE132: 2 | AF132: 2 | AG132: 2 | AH132: 3 | AI132: 2 | AJ132: 4 | AK132: 3 | AL132: 5 | AM132: 14 | AN132: 16 | AO132: 8 | AP132: 11 | AQ132: 16 | AR132: 3 | AS132: 4 | AT132: 1 | AU132: 0 | AV132: 0 | AW132: 0 | AX132: 107 | AY132: 3 | AZ132: 11 | BA132: 2 | BB132: 3 | BC132: 4 | BD132: 7 | BE132: 5 | BF132: 6 | BG132: 6 | BH132: 8 | BI132: 10 | BJ132: 11 | BK132: 22 | BL132: 28 | BM132: 26 | BN132: 19 | BO132: 20 | BP132: 8 | BQ132: 5 | BR132: 1 | BS132: 0 | BT132: 0 | BU132: 0 | BV132: 205 | BW132: 78 | BX132: =SUM(BL132:BU132)/BV132 -> 0.5219512195
B133: 熱田坂 | C133: 0 | D133: 0 | E133: 0 | F133: 1 | G133: 2 | H133: 1 | I133: 0 | J133: 2 | K133: 2 | L133: 4 | M133: 2 | N133: 4 | O133: 4 | P133: 2 | Q133: 10 | R133: 3 | S133: 2 | T133: 1 | U133: 0 | V133: 0 | W133: 0 | X133: 0 | Y133: 0 | Z133: 40 | AA133: 0 | AB133: 0 | AC133: 1 | AD133: 0 | AE133: 0 | AF133: 1 | AG133: 2 | AH133: 2 | AI133: 3 | AJ133: 3 | AK133: 0 | AL133: 2 | AM133: 6 | AN133: 9 | AO133: 4 | AP133: 2 | AQ133: 3 | AR133: 2 | AS133: 2 | AT133: 0 | AU133: 0 | AV133: 0 | AW133: 0 | AX133: 42 | AY133: 0 | AZ133: 0 | BA133: 1 | BB133: 1 | BC133: 2 | BD133: 2 | BE133: 2 | BF133: 4 | BG133: 5 | BH133: 7 | BI133: 2 | BJ133: 6 | BK133: 10 | BL133: 11 | BM133: 14 | BN133: 5 | BO133: 5 | BP133: 3 | BQ133: 2 | BR133: 0 | BS133: 0 | BT133: 0 | BU133: 0 | BV133: 82 | BW133: 36 | BX133: =SUM(BL133:BU133)/BV133 -> 0.487804878
B134: 宮久 | C134: 0 | D134: 1 | E134: 1 | F134: 1 | G134: 0 | H134: 1 | I134: 0 | J134: 5 | K134: 1 | L134: 2 | M134: 3 | N134: 1 | O134: 6 | P134: 6 | Q134: 4 | R134: 3 | S134: 4 | T134: 2 | U134: 1 | V134: 0 | W134: 0 | X134: 0 | Y134: 0 | Z134: 42 | AA134: 0 | AB134: 0 | AC134: 0 | AD134: 1 | AE134: 1 | AF134: 1 | AG134: 1 | AH134: 3 | AI134: 1 | AJ134: 1 | AK134: 2 | AL134: 1 | AM134: 5 | AN134: 4 | AO134: 6 | AP134: 2 | AQ134: 5 | AR134: 7 | AS134: 6 | AT134: 0 | AU134: 0 | AV134: 0 | AW134: 0 | AX134: 47 | AY134: 0 | AZ134: 1 | BA134: 1 | BB134: 2 | BC134: 1 | BD134: 2 | BE134: 1 | BF134: 8 | BG134: 2 | BH134: 3 | BI134: 5 | BJ134: 2 | BK134: 11 | BL134: 10 | BM134: 10 | BN134: 5 | BO134: 9 | BP134: 9 | BQ134: 7 | BR134: 0 | BS134: 0 | BT134: 0 | BU134: 0 | BV134: 89 | BW134: 42 | BX134: =SUM(BL134:BU134)/BV134 -> 0.5617977528
B135: 川合 | C135: 0 | D135: 0 | E135: 0 | F135: 0 | G135: 1 | H135: 1 | I135: 0 | J135: 0 | K135: 0 | L135: 0 | M135: 0 | N135: 2 | O135: 3 | P135: 0 | Q135: 0 | R135: 0 | S135: 0 | T135: 2 | U135: 0 | V135: 0 | W135: 0 | X135: 0 | Y135: 0 | Z135: 9 | AA135: 0 | AB135: 0 | AC135: 0 | AD135: 0 | AE135: 1 | AF135: 0 | AG135: 0 | AH135: 0 | AI135: 0 | AJ135: 0 | AK135: 2 | AL135: 1 | AM135: 2 | AN135: 0 | AO135: 0 | AP135: 0 | AQ135: 2 | AR135: 3 | AS135: 0 | AT135: 0 | AU135: 0 | AV135: 0 | AW135: 0 | AX135: 11 | AY135: 0 | AZ135: 0 | BA135: 0 | BB135: 0 | BC135: 2 | BD135: 1 | BE135: 0 | BF135: 0 | BG135: 0 | BH135: 0 | BI135: 2 | BJ135: 3 | BK135: 5 | BL135: 0 | BM135: 0 | BN135: 0 | BO135: 2 | BP135: 5 | BQ135: 0 | BR135: 0 | BS135: 0 | BT135: 0 | BU135: 0 | BV135: 20 | BW135: 8 | BX135: =SUM(BL135:BU135)/BV135 -> 0.35
B136: やすらぎの家 | C136: 0 | D136: 0 | E136: 0 | F136: 0 | G136: 0 | H136: 0 | I136: 0 | J136: 0 | K136: 0 | L136: 0 | M136: 0 | N136: 0 | O136: 0 | P136: 3 | Q136: 3 | R136: 8 | S136: 10 | T136: 7 | U136: 4 | V136: 2 | W136: 1 | X136: 0 | Y136: 0 | Z136: 38 | AA136: 0 | AB136: 0 | AC136: 0 | AD136: 0 | AE136: 0 | AF136: 0 | AG136: 0 | AH136: 0 | AI136: 0 | AJ136: 0 | AK136: 0 | AL136: 0 | AM136: 0 | AN136: 2 | AO136: 2 | AP136: 6 | AQ136: 10 | AR136: 19 | AS136: 18 | AT136: 8 | AU136: 1 | AV136: 0 | AW136: 0 | AX136: 66 | AY136: 0 | AZ136: 0 | BA136: 0 | BB136: 0 | BC136: 0 | BD136: 0 | BE136: 0 | BF136: 0 | BG136: 0 | BH136: 0 | BI136: 0 | BJ136: 0 | BK136: 0 | BL136: 5 | BM136: 5 | BN136: 14 | BO136: 20 | BP136: 26 | BQ136: 22 | BR136: 10 | BS136: 2 | BT136: 0 | BU136: 0 | BV136: 104 | BW136: 104 | BX136: =SUM(BL136:BU136)/BV136 -> 1
B137: 須巻 | C137: 0 | D137: 0 | E137: 0 | F137: 0 | G137: 0 | H137: 3 | I137: 0 | J137: 2 | K137: 2 | L137: 2 | M137: 2 | N137: 2 | O137: 1 | P137: 4 | Q137: 4 | R137: 4 | S137: 2 | T137: 1 | U137: 0 | V137: 0 | W137: 0 | X137: 0 | Y137: 0 | Z137: 29 | AA137: 0 | AB137: 0 | AC137: 0 | AD137: 1 | AE137: 0 | AF137: 0 | AG137: 0 | AH137: 1 | AI137: 0 | AJ137: 1 | AK137: 0 | AL137: 3 | AM137: 2 | AN137: 4 | AO137: 3 | AP137: 3 | AQ137: 0 | AR137: 1 | AS137: 1 | AT137: 2 | AU137: 0 | AV137: 0 | AW137: 0 | AX137: 22 | AY137: 0 | AZ137: 0 | BA137: 0 | BB137: 1 | BC137: 0 | BD137: 3 | BE137: 0 | BF137: 3 | BG137: 2 | BH137: 3 | BI137: 2 | BJ137: 5 | BK137: 3 | BL137: 8 | BM137: 7 | BN137: 7 | BO137: 2 | BP137: 2 | BQ137: 1 | BR137: 2 | BS137: 0 | BT137: 0 | BU137: 0 | BV137: 51 | BW137: 22 | BX137: =SUM(BL137:BU137)/BV137 -> 0.568627451
B138: 下荒沢 | C138: 0 | D138: 0 | E138: 0 | F138: 0 | G138: 0 | H138: 0 | I138: 2 | J138: 0 | K138: 0 | L138: 0 | M138: 2 | N138: 1 | O138: 0 | P138: 1 | Q138: 3 | R138: 2 | S138: 1 | T138: 0 | U138: 0 | V138: 0 | W138: 0 | X138: 0 | Y138: 0 | Z138: 12 | AA138: 0 | AB138: 0 | AC138: 0 | AD138: 0 | AE138: 2 | AF138: 0 | AG138: 0 | AH138: 0 | AI138: 0 | AJ138: 0 | AK138: 0 | AL138: 1 | AM138: 1 | AN138: 0 | AO138: 3 | AP138: 0 | AQ138: 2 | AR138: 0 | AS138: 1 | AT138: 1 | AU138: 0 | AV138: 0 | AW138: 0 | AX138: 11 | AY138: 0 | AZ138: 0 | BA138: 0 | BB138: 0 | BC138: 2 | BD138: 0 | BE138: 2 | BF138: 0 | BG138: 0 | BH138: 0 | BI138: 2 | BJ138: 2 | BK138: 1 | BL138: 1 | BM138: 6 | BN138: 2 | BO138: 3 | BP138: 0 | BQ138: 1 | BR138: 1 | BS138: 0 | BT138: 0 | BU138: 0 | BV138: 23 | BW138: 11 | BX138: =SUM(BL138:BU138)/BV138 -> 0.6086956522
B139: 持倉 | C139: 0 | D139: 1 | E139: 1 | F139: 0 | G139: 0 | H139: 1 | I139: 1 | J139: 3 | K139: 4 | L139: 2 | M139: 2 | N139: 3 | O139: 3 | P139: 7 | Q139: 8 | R139: 6 | S139: 3 | T139: 3 | U139: 1 | V139: 2 | W139: 0 | X139: 0 | Y139: 0 | Z139: 51 | AA139: 0 | AB139: 0 | AC139: 0 | AD139: 2 | AE139: 0 | AF139: 1 | AG139: 1 | AH139: 0 | AI139: 2 | AJ139: 1 | AK139: 3 | AL139: 3 | AM139: 7 | AN139: 8 | AO139: 5 | AP139: 5 | AQ139: 4 | AR139: 4 | AS139: 3 | AT139: 2 | AU139: 0 | AV139: 0 | AW139: 0 | AX139: 51 | AY139: 0 | AZ139: 1 | BA139: 1 | BB139: 2 | BC139: 0 | BD139: 2 | BE139: 2 | BF139: 3 | BG139: 6 | BH139: 3 | BI139: 5 | BJ139: 6 | BK139: 10 | BL139: 15 | BM139: 13 | BN139: 11 | BO139: 7 | BP139: 7 | BQ139: 4 | BR139: 4 | BS139: 0 | BT139: 0 | BU139: 0 | BV139: 102 | BW139: 42 | BX139: =SUM(BL139:BU139)/BV139 -> 0.5980392157
B140: 黒俣 | C140: 0 | D140: 0 | E140: 0 | F140: 1 | G140: 0 | H140: 1 | I140: 1 | J140: 0 | K140: 0 | L140: 1 | M140: 0 | N140: 2 | O140: 0 | P140: 1 | Q140: 3 | R140: 2 | S140: 1 | T140: 0 | U140: 0 | V140: 0 | W140: 0 | X140: 0 | Y140: 0 | Z140: 13 | AA140: 0 | AB140: 0 | AC140: 0 | AD140: 0 | AE140: 0 | AF140: 1 | AG140: 0 | AH140: 0 | AI140: 0 | AJ140: 0 | AK140: 1 | AL140: 0 | AM140: 2 | AN140: 0 | AO140: 1 | AP140: 1 | AQ140: 0 | AR140: 1 | AS140: 0 | AT140: 0 | AU140: 0 | AV140: 0 | AW140: 0 | AX140: 7 | AY140: 0 | AZ140: 0 | BA140: 0 | BB140: 1 | BC140: 0 | BD140: 2 | BE140: 1 | BF140: 0 | BG140: 0 | BH140: 1 | BI140: 1 | BJ140: 2 | BK140: 2 | BL140: 1 | BM140: 4 | BN140: 3 | BO140: 1 | BP140: 1 | BQ140: 0 | BR140: 0 | BS140: 0 | BT140: 0 | BU140: 0 | BV140: 20 | BW140: 8 | BX140: =SUM(BL140:BU140)/BV140 -> 0.5
B141: 大長谷 | C141: 0 | D141: 1 | E141: 1 | F141: 0 | G141: 0 | H141: 0 | I141: 0 | J141: 1 | K141: 1 | L141: 0 | M141: 2 | N141: 1 | O141: 2 | P141: 2 | Q141: 5 | R141: 3 | S141: 1 | T141: 3 | U141: 1 | V141: 0 | W141: 0 | X141: 0 | Y141: 0 | Z141: 24 | AA141: 0 | AB141: 0 | AC141: 0 | AD141: 0 | AE141: 0 | AF141: 0 | AG141: 0 | AH141: 0 | AI141: 0 | AJ141: 1 | AK141: 0 | AL141: 2 | AM141: 5 | AN141: 1 | AO141: 1 | AP141: 3 | AQ141: 1 | AR141: 7 | AS141: 2 | AT141: 0 | AU141: 0 | AV141: 0 | AW141: 0 | AX141: 23 | AY141: 0 | AZ141: 1 | BA141: 1 | BB141: 0 | BC141: 0 | BD141: 0 | BE141: 0 | BF141: 1 | BG141: 1 | BH141: 1 | BI141: 2 | BJ141: 3 | BK141: 7 | BL141: 3 | BM141: 6 | BN141: 6 | BO141: 2 | BP141: 10 | BQ141: 3 | BR141: 0 | BS141: 0 | BT141: 0 | BU141: 0 | BV141: 47 | BW141: 22 | BX141: =SUM(BL141:BU141)/BV141 -> 0.6382978723
B142: 小長谷 | C142: 0 | D142: 0 | E142: 0 | F142: 0 | G142: 0 | H142: 0 | I142: 0 | J142: 0 | K142: 1 | L142: 0 | M142: 0 | N142: 1 | O142: 1 | P142: 3 | Q142: 3 | R142: 1 | S142: 0 | T142: 1 | U142: 1 | V142: 0 | W142: 0 | X142: 0 | Y142: 0 | Z142: 12 | AA142: 0 | AB142: 0 | AC142: 0 | AD142: 0 | AE142: 0 | AF142: 0 | AG142: 0 | AH142: 0 | AI142: 0 | AJ142: 1 | AK142: 0 | AL142: 0 | AM142: 1 | AN142: 2 | AO142: 2 | AP142: 2 | AQ142: 2 | AR142: 0 | AS142: 1 | AT142: 0 | AU142: 0 | AV142: 0 | AW142: 0 | AX142: 11 | AY142: 0 | AZ142: 0 | BA142: 0 | BB142: 0 | BC142: 0 | BD142: 0 | BE142: 0 | BF142: 0 | BG142: 1 | BH142: 1 | BI142: 0 | BJ142: 1 | BK142: 2 | BL142: 5 | BM142: 5 | BN142: 3 | BO142: 2 | BP142: 1 | BQ142: 2 | BR142: 0 | BS142: 0 | BT142: 0 | BU142: 0 | BV142: 23 | BW142: 13 | BX142: =SUM(BL142:BU142)/BV142 -> 0.7826086957
B143: 鍬江 | C143: 1 | D143: 1 | E143: 3 | F143: 5 | G143: 2 | H143: 0 | I143: 6 | J143: 4 | K143: 3 | L143: 3 | M143: 3 | N143: 4 | O143: 10 | P143: 6 | Q143: 10 | R143: 10 | S143: 7 | T143: 1 | U143: 2 | V143: 1 | W143: 0 | X143: 0 | Y143: 0 | Z143: 82 | AA143: 1 | AB143: 3 | AC143: 4 | AD143: 6 | AE143: 1 | AF143: 0 | AG143: 4 | AH143: 3 | AI143: 3 | AJ143: 5 | AK143: 3 | AL143: 3 | AM143: 11 | AN143: 8 | AO143: 7 | AP143: 7 | AQ143: 8 | AR143: 3 | AS143: 5 | AT143: 1 | AU143: 0 | AV143: 0 | AW143: 0 | AX143: 86 | AY143: 2 | AZ143: 4 | BA143: 7 | BB143: 11 | BC143: 3 | BD143: 0 | BE143: 10 | BF143: 7 | BG143: 6 | BH143: 8 | BI143: 6 | BJ143: 7 | BK143: 21 | BL143: 14 | BM143: 17 | BN143: 17 | BO143: 15 | BP143: 4 | BQ143: 7 | BR143: 2 | BS143: 0 | BT143: 0 | BU143: 0 | BV143: 168 | BW143: 66 | BX143: =SUM(BL143:BU143)/BV143 -> 0.4523809524
B144: 合計 | C144: 319 | D144: 422 | E144: 549 | F144: 662 | G144: 588 | H144: 544 | I144: 594 | J144: 661 | K144: 762 | L144: 848 | M144: 919 | N144: 842 | O144: 890 | P144: 1020 | Q144: 1114 | R144: 1072 | S144: 681 | T144: 356 | U144: 165 | V144: 48 | W144: 3 | X144: 0 | Y144: 0 | Z144: 13059 | AA144: 274 | AB144: 432 | AC144: 511 | AD144: 536 | AE144: 503 | AF144: 385 | AG144: 483 | AH144: 637 | AI144: 648 | AJ144: 829 | AK144: 851 | AL144: 852 | AM144: 895 | AN144: 1029 | AO144: 1223 | AP144: 1146 | AQ144: 884 | AR144: 673 | AS144: 488 | AT144: 188 | AU144: 26 | AV144: 2 | AW144: 0 | AX144: 13495 | AY144: 593 | AZ144: 854 | BA144: 1060 | BB144: 1198 | BC144: 1091 | BD144: 929 | BE144: 1077 | BF144: 1298 | BG144: 1410 | BH144: 1677 | BI144: 1770 | BJ144: 1694 | BK144: 1785 | BL144: 2049 | BM144: 2337 | BN144: 2218 | BO144: 1565 | BP144: 1029 | BQ144: 653 | BR144: 236 | BS144: 29 | BT144: 2 | BU144: 0 | BV144: 26554 | BW144: 10899 | BX144: =SUM(BL144:BU144)/BV144 -> 0.3810348723

Sheet R7.3.31
D1: ※行政区「ひめさゆり」「ひまわり荘」「やすらぎの家」の人口および世帯数は非表示となっています。 | BU1: （令和7年3月31日 現在）
C2: 男 | AA2: 女
A3: 地区 | B3: 行政区 | C3: ０～４歳 | D3: ５～９歳 | E3: １０～１４歳 | F3: １５～１９歳 | G3: ２０～２４歳 | H3: ２５～２９歳 | I3: ３０～３４歳 | J3: ３５～３９歳 | K3: ４０～４４歳 | L3: ４５～４９歳 | M3: ５０～５４歳 | N3: ５５～５９歳 | O3: ６０～６４歳 | P3: ６５～６９歳 | Q3: ７０～７４歳 | R3: ７５～７９歳 | S3: ８０～８４歳 | T3: ８５～８９歳 | U3: ９０～９４歳 | V3: ９５～１００歳 | W3: １０１～１０４歳 | X3: １０５～１０９歳 | Y3: １１０～ | Z3: 合計 | AA3: ０～４歳 | AB3: ５～９歳 | AC3: １０～１４歳 | AD3: １５～１９歳 | AE3: ２０～２４歳 | AF3: ２５～２９歳 | AG3: ３０～３４歳 | AH3: ３５～３９歳 | AI3: ４０～４４歳 | AJ3: ４５～４９歳 | AK3: ５０～５４歳 | AL3: ５５～５９歳 | AM3: ６０～６４歳 | AN3: ６５～６９歳 | AO3: ７０～７４歳 | AP3: ７５～７９歳 | AQ3: ８０～８４歳 | AR3: ８５～８９歳 | AS3: ９０～９４歳 | AT3: ９５～１００歳 | AU3: １０１～１０４歳 | AV3: １０５～１０９歳 | AW3: １１０～ | AX3: 合計 | AY3: ０～４歳 | AZ3: ５～９歳 | BA3: １０～１４歳 | BB3: １５～１９歳 | BC3: ２０～２４歳 | BD3: ２５～２９歳 | BE3: ３０～３４歳 | BF3: ３５～３９歳 | BG3: ４０～４４歳 | BH3: ４５～４９歳 | BI3: ５０～５４歳 | BJ3: ５５～５９歳 | BK3: ６０～６４歳 | BL3: ６５～６９歳 | BM3: ７０～７４歳 | BN3: ７５～７９歳 | BO3: ８０～８４歳 | BP3: ８５～８９歳 | BQ3: ９０～９４歳 | BR3: ９５～１００歳 | BS3: １０１～１０４歳 | BT3: １０５～１０９歳 | BU3: １１０～ | BV3: 合計 | BW3: 世帯数 | BX3: 高齢化率 （総人口に占める65歳以上人口の割合）
A4: 中 条 地 区 | B4: 表町 | C4: 2 | D4: 3 | E4: 1 | F4: 5 | G4: 1 | H4: 2 | I4: 3 | J4: 9 | K4: 0 | L4: 2 | M4: 5 | N4: 7 | O4: 4 | P4: 9 | Q4: 14 | R4: 7 | S4: 8 | T4: 3 | U4: 1 | V4: 0 | W4: 0 | X4: 0 | Y4: 0 | Z4: 86 | AA4: 3 | AB4: 2 | AC4: 3 | AD4: 5 | AE4: 5 | AF4: 1 | AG4: 4 | AH4: 3 | AI4: 1 | AJ4: 3 | AK4: 4 | AL4: 6 | AM4: 6 | AN4: 8 | AO4: 9 | AP4: 7 | AQ4: 6 | AR4: 6 | AS4: 6 | AT4: 2 | AU4: 0 | AV4: 0 | AW4: 0 | AX4: 90 | AY4: 5 | AZ4: 5 | BA4: 4 | BB4: 10 | BC4: 6 | BD4: 3 | BE4: 7 | BF4: 12 | BG4: 1 | BH4: 5 | BI4: 9 | BJ4: 13 | BK4: 10 | BL4: 17 | BM4: 23 | BN4: 14 | BO4: 14 | BP4: 9 | BQ4: 7 | BR4: 2 | BS4: 0 | BT4: 0 | BU4: 0 | BV4: 176 | BW4: 77 | BX4: =SUM(BL4:BU4)/BV4 -> 0.4886363636
B5: 水沢町 | C5: 0 | D5: 0 | E5: 0 | F5: 0 | G5: 0 | H5: 0 | I5: 0 | J5: 0 | K5: 0 | L5: 0 | M5: 0 | N5: 0 | O5: 0 | P5: 1 | Q5: 1 | R5: 0 | S5: 0 | T5: 0 | U5: 0 | V5: 0 | W5: 0 | X5: 0 | Y5: 0 | Z5: 2 | AA5: 0 | AB5: 0 | AC5: 0 | AD5: 0 | AE5: 0 | AF5: 0 | AG5: 0 | AH5: 0 | AI5: 0 | AJ5: 0 | AK5: 0 | AL5: 0 | AM5: 0 | AN5: 1 | AO5: 1 | AP5: 0 | AQ5: 0 | AR5: 0 | AS5: 0 | AT5: 0 | AU5: 0 | AV5: 0 | AW5: 0 | AX5: 2 | AY5: 0 | AZ5: 0 | BA5: 0 | BB5: 0 | BC5: 0 | BD5: 0 | BE5: 0 | BF5: 0 | BG5: 0 | BH5: 0 | BI5: 0 | BJ5: 0 | BK5: 0 | BL5: 2 | BM5: 2 | BN5: 0 | BO5: 0 | BP5: 0 | BQ5: 0 | BR5: 0 | BS5: 0 | BT5: 0 | BU5: 0 | BV5: 4 | BW5: 2 | BX5: =SUM(BL5:BU5)/BV5 -> 1
B6: 新栄町 | C6: 5 | D6: 2 | E6: 3 | F6: 7 | G6: 2 | H6: 6 | I6: 5 | J6: 4 | K6: 6 | L6: 7 | M6: 12 | N6: 9 | O6: 15 | P6: 10 | Q6: 12 | R6: 18 | S6: 14 | T6: 4 | U6: 5 | V6: 0 | W6: 0 | X6: 0 | Y6: 0 | Z6: 146 | AA6: 1 | AB6: 2 | AC6: 7 | AD6: 6 | AE6: 5 | AF6: 3 | AG6: 1 | AH6: 3 | AI6: 4 | AJ6: 11 | AK6: 11 | AL6: 13 | AM6: 11 | AN6: 11 | AO6: 19 | AP6: 13 | AQ6: 12 | AR6: 8 | AS6: 10 | AT6: 1 | AU6: 0 | AV6: 0 | AW6: 0 | AX6: 152 | AY6: 6 | AZ6: 4 | BA6: 10 | BB6: 13 | BC6: 7 | BD6: 9 | BE6: 6 | BF6: 7 | BG6: 10 | BH6: 18 | BI6: 23 | BJ6: 22 | BK6: 26 | BL6: 21 | BM6: 31 | BN6: 31 | BO6: 26 | BP6: 12 | BQ6: 15 | BR6: 1 | BS6: 0 | BT6: 0 | BU6: 0 | BV6: 298 | BW6: 131 | BX6: =SUM(BL6:BU6)/BV6 -> 0.4597315436
B7: 大川町１ | C7: 1 | D7: 1 | E7: 2 | F7: 0 | G7: 1 | H7: 2 | I7: 0 | J7: 2 | K7: 1 | L7: 2 | M7: 3 | N7: 4 | O7: 0 | P7: 5 | Q7: 0 | R7: 1 | S7: 2 | T7: 2 | U7: 0 | V7: 0 | W7: 0 | X7: 0 | Y7: 0 | Z7: 29 | AA7: 0 | AB7: 0 | AC7: 0 | AD7: 1 | AE7: 2 | AF7: 0 | AG7: 3 | AH7: 0 | AI7: 0 | AJ7: 5 | AK7: 2 | AL7: 1 | AM7: 0 | AN7: 2 | AO7: 3 | AP7: 1 | AQ7: 1 | AR7: 2 | AS7: 0 | AT7: 2 | AU7: 0 | AV7: 0 | AW7: 0 | AX7: 25 | AY7: 1 | AZ7: 1 | BA7: 2 | BB7: 1 | BC7: 3 | BD7: 2 | BE7: 3 | BF7: 2 | BG7: 1 | BH7: 7 | BI7: 5 | BJ7: 5 | BK7: 0 | BL7: 7 | BM7: 3 | BN7: 2 | BO7: 3 | BP7: 4 | BQ7: 0 | BR7: 2 | BS7: 0 | BT7: 0 | BU7: 0 | BV7: 54 | BW7: 22 | BX7: =SUM(BL7:BU7)/BV7 -> 0.3888888889
B8: 大川町２ | C8: 0 | D8: 0 | E8: 0 | F8: 0 | G8: 0 | H8: 0 | I8: 0 | J8: 1 | K8: 1 | L8: 1 | M8: 2 | N8: 1 | O8: 2 | P8: 4 | Q8: 1 | R8: 1 | S8: 0 | T8: 1 | U8: 0 | V8: 0 | W8: 0 | X8: 0 | Y8: 0 | Z8: 15 | AA8: 0 | AB8: 0 | AC8: 1 | AD8: 1 | AE8: 1 | AF8: 0 | AG8: 0 | AH8: 0 | AI8: 1 | AJ8: 2 | AK8: 1 | AL8: 1 | AM8: 2 | AN8: 4 | AO8: 0 | AP8: 3 | AQ8: 1 | AR8: 1 | AS8: 1 | AT8: 0 | AU8: 1 | AV8: 0 | AW8: 0 | AX8: 21 | AY8: 0 | AZ8: 0 | BA8: 1 | BB8: 1 | BC8: 1 | BD8: 0 | BE8: 0 | BF8: 1 | BG8: 2 | BH8: 3 | BI8: 3 | BJ8: 2 | BK8: 4 | BL8: 8 | BM8: 1 | BN8: 4 | BO8: 1 | BP8: 2 | BQ8: 1 | BR8: 0 | BS8: 1 | BT8: 0 | BU8: 0 | BV8: 36 | BW8: 15 | BX8: =SUM(BL8:BU8)/BV8 -> 0.5
B9: 大川町３ | C9: 2 | D9: 2 | E9: 0 | F9: 1 | G9: 6 | H9: 6 | I9: 7 | J9: 2 | K9: 5 | L9: 4 | M9: 5 | N9: 2 | O9: 5 | P9: 5 | Q9: 3 | R9: 3 | S9: 2 | T9: 2 | U9: 1 | V9: 0 | W9: 0 | X9: 0 | Y9: 0 | Z9: 63 | AA9: 4 | AB9: 4 | AC9: 2 | AD9: 1 | AE9: 7 | AF9: 4 | AG9: 3 | AH9: 3 | AI9: 1 | AJ9: 5 | AK9: 3 | AL9: 5 | AM9: 4 | AN9: 4 | AO9: 4 | AP9: 3 | AQ9: 4 | AR9: 3 | AS9: 1 | AT9: 1 | AU9: 0 | AV9: 0 | AW9: 0 | AX9: 66 | AY9: 6 | AZ9: 6 | BA9: 2 | BB9: 2 | BC9: 13 | BD9: 10 | BE9: 10 | BF9: 5 | BG9: 6 | BH9: 9 | BI9: 8 | BJ9: 7 | BK9: 9 | BL9: 9 | BM9: 7 | BN9: 6 | BO9: 6 | BP9: 5 | BQ9: 2 | BR9: 1 | BS9: 0 | BT9: 0 | BU9: 0 | BV9: 129 | BW9: 67 | BX9: =SUM(BL9:BU9)/BV9 -> 0.2790697674
B10: 大川町４ | C10: 10 | D10: 3 | E10: 8 | F10: 7 | G10: 6 | H10: 11 | I10: 16 | J10: 13 | K10: 13 | L10: 10 | M10: 11 | N10: 7 | O10: 8 | P10: 3 | Q10: 13 | R10: 7 | S10: 7 | T10: 1 | U10: 3 | V10: 0 | W10: 0 | X10: 0 | Y10: 0 | Z10: 157 | AA10: 9 | AB10: 5 | AC10: 5 | AD10: 5 | AE10: 7 | AF10: 13 | AG10: 9 | AH10: 17 | AI10: 8 | AJ10: 7 | AK10: 8 | AL10: 4 | AM10: 8 | AN10: 10 | AO10: 12 | AP10: 10 | AQ10: 7 | AR10: 3 | AS10: 2 | AT10: 2 | AU10: 0 | AV10: 0 | AW10: 0 | AX10: 151 | AY10: 19 | AZ10: 8 | BA10: 13 | BB10: 12 | BC10: 13 | BD10: 24 | BE10: 25 | BF10: 30 | BG10: 21 | BH10: 17 | BI10: 19 | BJ10: 11 | BK10: 16 | BL10: 13 | BM10: 25 | BN10: 17 | BO10: 14 | BP10: 4 | BQ10: 5 | BR10: 2 | BS10: 0 | BT10: 0 | BU10: 0 | BV10: 308 | BW10: 139 | BX10: =SUM(BL10:BU10)/BV10 -> 0.2597402597
B11: 本町１ | C11: 0 | D11: 2 | E11: 0 | F11: 1 | G11: 0 | H11: 1 | I11: 2 | J11: 0 | K11: 2 | L11: 1 | M11: 1 | N11: 2 | O11: 3 | P11: 2 | Q11: 4 | R11: 3 | S11: 1 | T11: 1 | U11: 0 | V11: 0 | W11: 0 | X11: 0 | Y11: 0 | Z11: 26 | AA11: 1 | AB11: 0 | AC11: 0 | AD11: 0 | AE11: 1 | AF11: 0 | AG11: 0 | AH11: 0 | AI11: 0 | AJ11: 2 | AK11: 0 | AL11: 1 | AM11: 4 | AN11: 1 | AO11: 4 | AP11: 2 | AQ11: 2 | AR11: 1 | AS11: 1 | AT11: 2 | AU11: 0 | AV11: 0 | AW11: 0 | AX11: 22 | AY11: 1 | AZ11: 2 | BA11: 0 | BB11: 1 | BC11: 1 | BD11: 1 | BE11: 2 | BF11: 0 | BG11: 2 | BH11: 3 | BI11: 1 | BJ11: 3 | BK11: 7 | BL11: 3 | BM11: 8 | BN11: 5 | BO11: 3 | BP11: 2 | BQ11: 1 | BR11: 2 | BS11: 0 | BT11: 0 | BU11: 0 | BV11: 48 | BW11: 24 | BX11: =SUM(BL11:BU11)/BV11 -> 0.5
B12: 本町２ | C12: 0 | D12: 1 | E12: 1 | F12: 1 | G12: 3 | H12: 2 | I12: 1 | J12: 0 | K12: 1 | L12: 1 | M12: 0 | N12: 3 | O12: 1 | P12: 0 | Q12: 4 | R12: 3 | S12: 1 | T12: 0 | U12: 0 | V12: 0 | W12: 0 | X12: 0 | Y12: 0 | Z12: 23 | AA12: 0 | AB12: 0 | AC12: 1 | AD12: 0 | AE12: 1 | AF12: 1 | AG12: 2 | AH12: 0 | AI12: 0 | AJ12: 1 | AK12: 1 | AL12: 3 | AM12: 1 | AN12: 2 | AO12: 3 | AP12: 2 | AQ12: 2 | AR12: 3 | AS12: 2 | AT12: 0 | AU12: 0 | AV12: 0 | AW12: 0 | AX12: 25 | AY12: 0 | AZ12: 1 | BA12: 2 | BB12: 1 | BC12: 4 | BD12: 3 | BE12: 3 | BF12: 0 | BG12: 1 | BH12: 2 | BI12: 1 | BJ12: 6 | BK12: 2 | BL12: 2 | BM12: 7 | BN12: 5 | BO12: 3 | BP12: 3 | BQ12: 2 | BR12: 0 | BS12: 0 | BT12: 0 | BU12: 0 | BV12: 48 | BW12: 19 | BX12: =SUM(BL12:BU12)/BV12 -> 0.4583333333
B13: 本町３ | C13: 0 | D13: 1 | E13: 2 | F13: 5 | G13: 3 | H13: 3 | I13: 1 | J13: 3 | K13: 0 | L13: 2 | M13: 3 | N13: 2 | O13: 3 | P13: 4 | Q13: 3 | R13: 4 | S13: 3 | T13: 1 | U13: 0 | V13: 1 | W13: 0 | X13: 0 | Y13: 0 | Z13: 44 | AA13: 1 | AB13: 0 | AC13: 1 | AD13: 1 | AE13: 1 | AF13: 0 | AG13: 1 | AH13: 2 | AI13: 3 | AJ13: 3 | AK13: 2 | AL13: 0 | AM13: 4 | AN13: 2 | AO13: 4 | AP13: 6 | AQ13: 3 | AR13: 4 | AS13: 5 | AT13: 0 | AU13: 0 | AV13: 0 | AW13: 0 | AX13: 43 | AY13: 1 | AZ13: 1 | BA13: 3 | BB13: 6 | BC13: 4 | BD13: 3 | BE13: 2 | BF13: 5 | BG13: 3 | BH13: 5 | BI13: 5 | BJ13: 2 | BK13: 7 | BL13: 6 | BM13: 7 | BN13: 10 | BO13: 6 | BP13: 5 | BQ13: 5 | BR13: 1 | BS13: 0 | BT13: 0 | BU13: 0 | BV13: 87 | BW13: 42 | BX13: =SUM(BL13:BU13)/BV13 -> 0.4597701149
B14: 本町４ | C14: 1 | D14: 1 | E14: 2 | F14: 3 | G14: 0 | H14: 1 | I14: 1 | J14: 1 | K14: 3 | L14: 1 | M14: 3 | N14: 4 | O14: 1 | P14: 0 | Q14: 4 | R14: 2 | S14: 2 | T14: 4 | U14: 1 | V14: 0 | W14: 0 | X14: 0 | Y14: 0 | Z14: 35 | AA14: 0 | AB14: 1 | AC14: 1 | AD14: 1 | AE14: 1 | AF14: 0 | AG14: 1 | AH14: 0 | AI14: 2 | AJ14: 0 | AK14: 5 | AL14: 3 | AM14: 0 | AN14: 4 | AO14: 2 | AP14: 5 | AQ14: 3 | AR14: 1 | AS14: 5 | AT14: 0 | AU14: 0 | AV14: 0 | AW14: 0 | AX14: 35 | AY14: 1 | AZ14: 2 | BA14: 3 | BB14: 4 | BC14: 1 | BD14: 1 | BE14: 2 | BF14: 1 | BG14: 5 | BH14: 1 | BI14: 8 | BJ14: 7 | BK14: 1 | BL14: 4 | BM14: 6 | BN14: 7 | BO14: 5 | BP14: 5 | BQ14: 6 | BR14: 0 | BS14: 0 | BT14: 0 | BU14: 0 | BV14: 70 | BW14: 31 | BX14: =SUM(BL14:BU14)/BV14 -> 0.4714285714
B15: 西栄町１ | C15: 2 | D15: 1 | E15: 0 | F15: 0 | G15: 1 | H15: 0 | I15: 0 | J15: 1 | K15: 5 | L15: 1 | M15: 3 | N15: 5 | O15: 3 | P15: 1 | Q15: 3 | R15: 4 | S15: 5 | T15: 0 | U15: 1 | V15: 0 | W15: 0 | X15: 0 | Y15: 0 | Z15: 36 | AA15: 0 | AB15: 1 | AC15: 2 | AD15: 1 | AE15: 1 | AF15: 0 | AG15: 3 | AH15: 1 | AI15: 1 | AJ15: 1 | AK15: 3 | AL15: 4 | AM15: 2 | AN15: 2 | AO15: 2 | AP15: 5 | AQ15: 5 | AR15: 4 | AS15: 2 | AT15: 3 | AU15: 1 | AV15: 0 | AW15: 0 | AX15: 44 | AY15: 2 | AZ15: 2 | BA15: 2 | BB15: 1 | BC15: 2 | BD15: 0 | BE15: 3 | BF15: 2 | BG15: 6 | BH15: 2 | BI15: 6 | BJ15: 9 | BK15: 5 | BL15: 3 | BM15: 5 | BN15: 9 | BO15: 10 | BP15: 4 | BQ15: 3 | BR15: 3 | BS15: 1 | BT15: 0 | BU15: 0 | BV15: 80 | BW15: 39 | BX15: =SUM(BL15:BU15)/BV15 -> 0.475
B16: 西栄町２ | C16: 0 | D16: 1 | E16: 1 | F16: 1 | G16: 0 | H16: 1 | I16: 0 | J16: 0 | K16: 2 | L16: 0 | M16: 0 | N16: 1 | O16: 2 | P16: 3 | Q16: 2 | R16: 4 | S16: 1 | T16: 0 | U16: 0 | V16: 0 | W16: 0 | X16: 0 | Y16: 0 | Z16: 19 | AA16: 0 | AB16: 0 | AC16: 0 | AD16: 0 | AE16: 0 | AF16: 0 | AG16: 0 | AH16: 0 | AI16: 3 | AJ16: 2 | AK16: 1 | AL16: 0 | AM16: 2 | AN16: 3 | AO16: 5 | AP16: 3 | AQ16: 0 | AR16: 2 | AS16: 1 | AT16: 0 | AU16: 0 | AV16: 0 | AW16: 0 | AX16: 22 | AY16: 0 | AZ16: 1 | BA16: 1 | BB16: 1 | BC16: 0 | BD16: 1 | BE16: 0 | BF16: 0 | BG16: 5 | BH16: 2 | BI16: 1 | BJ16: 1 | BK16: 4 | BL16: 6 | BM16: 7 | BN16: 7 | BO16: 1 | BP16: 2 | BQ16: 1 | BR16: 0 | BS16: 0 | BT16: 0 | BU16: 0 | BV16: 41 | BW16: 20 | BX16: =SUM(BL16:BU16)/BV16 -> 0.5853658537
B17: 西栄町３ | C17: 1 | D17: 3 | E17: 0 | F17: 1 | G17: 0 | H17: 1 | I17: 2 | J17: 0 | K17: 2 | L17: 3 | M17: 3 | N17: 2 | O17: 4 | P17: 3 | Q17: 2 | R17: 4 | S17: 1 | T17: 0 | U17: 1 | V17: 0 | W17: 0 | X17: 0 | Y17: 0 | Z17: 33 | AA17: 1 | AB17: 0 | AC17: 0 | AD17: 3 | AE17: 1 | AF17: 2 | AG17: 0 | AH17: 0 | AI17: 2 | AJ17: 3 | AK17: 2 | AL17: 4 | AM17: 4 | AN17: 5 | AO17: 4 | AP17: 0 | AQ17: 3 | AR17: 0 | AS17: 6 | AT17: 0 | AU17: 0 | AV17: 0 | AW17: 0 | AX17: 40 | AY17: 2 | AZ17: 3 | BA17: 0 | BB17: 4 | BC17: 1 | BD17: 3 | BE17: 2 | BF17: 0 | BG17: 4 | BH17: 6 | BI17: 5 | BJ17: 6 | BK17: 8 | BL17: 8 | BM17: 6 | BN17: 4 | BO17: 4 | BP17: 0 | BQ17: 7 | BR17: 0 | BS17: 0 | BT17: 0 | BU17: 0 | BV17: 73 | BW17: 29 | BX17: =SUM(BL17:BU17)/BV17 -> 0.397260274
B18: 西栄町４ | C18: 1 | D18: 2 | E18: 0 | F18: 3 | G18: 1 | H18: 1 | I18: 0 | J18: 1 | K18: 1 | L18: 0 | M18: 3 | N18: 0 | O18: 2 | P18: 3 | Q18: 3 | R18: 2 | S18: 1 | T18: 1 | U18: 3 | V18: 0 | W18: 0 | X18: 0 | Y18: 0 | Z18: 28 | AA18: 0 | AB18: 0 | AC18: 1 | AD18: 0 | AE18: 1 | AF18: 0 | AG18: 0 | AH18: 1 | AI18: 1 | AJ18: 3 | AK18: 1 | AL18: 1 | AM18: 1 | AN18: 3 | AO18: 4 | AP18: 2 | AQ18: 3 | AR18: 1 | AS18: 2 | AT18: 0 | AU18: 1 | AV18: 0 | AW18: 0 | AX18: 26 | AY18: 1 | AZ18: 2 | BA18: 1 | BB18: 3 | BC18: 2 | BD18: 1 | BE18: 0 | BF18: 2 | BG18: 2 | BH18: 3 | BI18: 4 | BJ18: 1 | BK18: 3 | BL18: 6 | BM18: 7 | BN18: 4 | BO18: 4 | BP18: 2 | BQ18: 5 | BR18: 0 | BS18: 1 | BT18: 0 | BU18: 0 | BV18: 54 | BW18: 22 | BX18: =SUM(BL18:BU18)/BV18 -> 0.537037037
B19: 西本町１ | C19: 7 | D19: 5 | E19: 10 | F19: 10 | G19: 3 | H19: 5 | I19: 5 | J19: 5 | K19: 10 | L19: 6 | M19: 8 | N19: 4 | O19: 2 | P19: 2 | Q19: 2 | R19: 1 | S19: 1 | T19: 3 | U19: 1 | V19: 0 | W19: 0 | X19: 0 | Y19: 0 | Z19: 90 | AA19: 1 | AB19: 4 | AC19: 7 | AD19: 5 | AE19: 3 | AF19: 4 | AG19: 6 | AH19: 6 | AI19: 8 | AJ19: 8 | AK19: 4 | AL19: 3 | AM19: 3 | AN19: 3 | AO19: 2 | AP19: 3 | AQ19: 7 | AR19: 2 | AS19: 0 | AT19: 0 | AU19: 0 | AV19: 0 | AW19: 0 | AX19: 79 | AY19: 8 | AZ19: 9 | BA19: 17 | BB19: 15 | BC19: 6 | BD19: 9 | BE19: 11 | BF19: 11 | BG19: 18 | BH19: 14 | BI19: 12 | BJ19: 7 | BK19: 5 | BL19: 5 | BM19: 4 | BN19: 4 | BO19: 8 | BP19: 5 | BQ19: 1 | BR19: 0 | BS19: 0 | BT19: 0 | BU19: 0 | BV19: 169 | BW19: 74 | BX19: =SUM(BL19:BU19)/BV19 -> 0.1597633136
B20: 西本町２ | C20: 4 | D20: 6 | E20: 1 | F20: 6 | G20: 8 | H20: 5 | I20: 9 | J20: 12 | K20: 11 | L20: 11 | M20: 12 | N20: 8 | O20: 10 | P20: 6 | Q20: 5 | R20: 4 | S20: 6 | T20: 3 | U20: 0 | V20: 0 | W20: 0 | X20: 0 | Y20: 0 | Z20: 127 | AA20: 7 | AB20: 12 | AC20: 2 | AD20: 5 | AE20: 10 | AF20: 7 | AG20: 4 | AH20: 12 | AI20: 3 | AJ20: 8 | AK20: 10 | AL20: 10 | AM20: 5 | AN20: 6 | AO20: 6 | AP20: 9 | AQ20: 9 | AR20: 4 | AS20: 5 | AT20: 0 | AU20: 1 | AV20: 0 | AW20: 0 | AX20: 135 | AY20: 11 | AZ20: 18 | BA20: 3 | BB20: 11 | BC20: 18 | BD20: 12 | BE20: 13 | BF20: 24 | BG20: 14 | BH20: 19 | BI20: 22 | BJ20: 18 | BK20: 15 | BL20: 12 | BM20: 11 | BN20: 13 | BO20: 15 | BP20: 7 | BQ20: 5 | BR20: 0 | BS20: 1 | BT20: 0 | BU20: 0 | BV20: 262 | BW20: 112 | BX20: =SUM(BL20:BU20)/BV20 -> 0.2442748092
B21: 西本町３ | C21: 5 | D21: 11 | E21: 3 | F21: 10 | G21: 11 | H21: 15 | I21: 16 | J21: 17 | K21: 10 | L21: 15 | M21: 18 | N21: 10 | O21: 15 | P21: 10 | Q21: 10 | R21: 10 | S21: 9 | T21: 4 | U21: 2 | V21: 0 | W21: 0 | X21: 0 | Y21: 0 | Z21: 201 | AA21: 7 | AB21: 10 | AC21: 6 | AD21: 10 | AE21: 12 | AF21: 14 | AG21: 10 | AH21: 19 | AI21: 12 | AJ21: 9 | AK21: 19 | AL21: 9 | AM21: 13 | AN21: 13 | AO21: 16 | AP21: 9 | AQ21: 14 | AR21: 6 | AS21: 11 | AT21: 1 | AU21: 1 | AV21: 0 | AW21: 0 | AX21: 221 | AY21: 12 | AZ21: 21 | BA21: 9 | BB21: 20 | BC21: 23 | BD21: 29 | BE21: 26 | BF21: 36 | BG21: 22 | BH21: 24 | BI21: 37 | BJ21: 19 | BK21: 28 | BL21: 23 | BM21: 26 | BN21: 19 | BO21: 23 | BP21: 10 | BQ21: 13 | BR21: 1 | BS21: 1 | BT21: 0 | BU21: 0 | BV21: 422 | BW21: 195 | BX21: =SUM(BL21:BU21)/BV21 -> 0.2748815166
B22: 西本町４ | C22: 1 | D22: 3 | E22: 3 | F22: 7 | G22: 4 | H22: 5 | I22: 5 | J22: 5 | K22: 7 | L22: 5 | M22: 5 | N22: 2 | O22: 3 | P22: 3 | Q22: 6 | R22: 9 | S22: 9 | T22: 1 | U22: 4 | V22: 0 | W22: 0 | X22: 0 | Y22: 0 | Z22: 87 | AA22: 6 | AB22: 4 | AC22: 5 | AD22: 3 | AE22: 3 | AF22: 4 | AG22: 6 | AH22: 4 | AI22: 9 | AJ22: 4 | AK22: 8 | AL22: 5 | AM22: 2 | AN22: 5 | AO22: 8 | AP22: 12 | AQ22: 6 | AR22: 15 | AS22: 22 | AT22: 14 | AU22: 1 | AV22: 0 | AW22: 0 | AX22: 146 | AY22: 7 | AZ22: 7 | BA22: 8 | BB22: 10 | BC22: 7 | BD22: 9 | BE22: 11 | BF22: 9 | BG22: 16 | BH22: 9 | BI22: 13 | BJ22: 7 | BK22: 5 | BL22: 8 | BM22: 14 | BN22: 21 | BO22: 15 | BP22: 16 | BQ22: 26 | BR22: 14 | BS22: 1 | BT22: 0 | BU22: 0 | BV22: 233 | BW22: 138 | BX22: =SUM(BL22:BU22)/BV22 -> 0.4935622318
B23: 北本町１ | C23: 0 | D23: 3 | E23: 6 | F23: 4 | G23: 2 | H23: 2 | I23: 2 | J23: 3 | K23: 1 | L23: 3 | M23: 4 | N23: 7 | O23: 9 | P23: 6 | Q23: 6 | R23: 6 | S23: 4 | T23: 1 | U23: 4 | V23: 0 | W23: 0 | X23: 0 | Y23: 0 | Z23: 73 | AA23: 1 | AB23: 1 | AC23: 2 | AD23: 2 | AE23: 2 | AF23: 3 | AG23: 2 | AH23: 6 | AI23: 5 | AJ23: 5 | AK23: 5 | AL23: 8 | AM23: 3 | AN23: 6 | AO23: 11 | AP23: 6 | AQ23: 9 | AR23: 9 | AS23: 9 | AT23: 3 | AU23: 0 | AV23: 0 | AW23: 0 | AX23: 98 | AY23: 1 | AZ23: 4 | BA23: 8 | BB23: 6 | BC23: 4 | BD23: 5 | BE23: 4 | BF23: 9 | BG23: 6 | BH23: 8 | BI23: 9 | BJ23: 15 | BK23: 12 | BL23: 12 | BM23: 17 | BN23: 12 | BO23: 13 | BP23: 10 | BQ23: 13 | BR23: 3 | BS23: 0 | BT23: 0 | BU23: 0 | BV23: 171 | BW23: 77 | BX23: =SUM(BL23:BU23)/BV23 -> 0.4678362573
B24: 北本町２ | C24: 0 | D24: 0 | E24: 0 | F24: 0 | G24: 3 | H24: 3 | I24: 0 | J24: 1 | K24: 0 | L24: 0 | M24: 2 | N24: 0 | O24: 4 | P24: 5 | Q24: 2 | R24: 2 | S24: 0 | T24: 2 | U24: 2 | V24: 0 | W24: 0 | X24: 0 | Y24: 0 | Z24: 26 | AA24: 0 | AB24: 0 | AC24: 0 | AD24: 0 | AE24: 1 | AF24: 0 | AG24: 0 | AH24: 1 | AI24: 1 | AJ24: 1 | AK24: 1 | AL24: 3 | AM24: 2 | AN24: 2 | AO24: 1 | AP24: 3 | AQ24: 3 | AR24: 4 | AS24: 4 | AT24: 1 | AU24: 0 | AV24: 0 | AW24: 0 | AX24: 28 | AY24: 0 | AZ24: 0 | BA24: 0 | BB24: 0 | BC24: 4 | BD24: 3 | BE24: 0 | BF24: 2 | BG24: 1 | BH24: 1 | BI24: 3 | BJ24: 3 | BK24: 6 | BL24: 7 | BM24: 3 | BN24: 5 | BO24: 3 | BP24: 6 | BQ24: 6 | BR24: 1 | BS24: 0 | BT24: 0 | BU24: 0 | BV24: 54 | BW24: 32 | BX24: =SUM(BL24:BU24)/BV24 -> 0.5740740741
B25: 東本町１ | C25: 0 | D25: 1 | E25: 3 | F25: 1 | G25: 1 | H25: 3 | I25: 4 | J25: 0 | K25: 2 | L25: 3 | M25: 2 | N25: 4 | O25: 5 | P25: 6 | Q25: 1 | R25: 0 | S25: 2 | T25: 0 | U25: 1 | V25: 0 | W25: 0 | X25: 0 | Y25: 0 | Z25: 39 | AA25: 0 | AB25: 0 | AC25: 1 | AD25: 2 | AE25: 3 | AF25: 0 | AG25: 3 | AH25: 2 | AI25: 3 | AJ25: 2 | AK25: 3 | AL25: 9 | AM25: 5 | AN25: 5 | AO25: 0 | AP25: 2 | AQ25: 8 | AR25: 2 | AS25: 5 | AT25: 3 | AU25: 0 | AV25: 0 | AW25: 0 | AX25: 58 | AY25: 0 | AZ25: 1 | BA25: 4 | BB25: 3 | BC25: 4 | BD25: 3 | BE25: 7 | BF25: 2 | BG25: 5 | BH25: 5 | BI25: 5 | BJ25: 13 | BK25: 10 | BL25: 11 | BM25: 1 | BN25: 2 | BO25: 10 | BP25: 2 | BQ25: 6 | BR25: 3 | BS25: 0 | BT25: 0 | BU25: 0 | BV25: 97 | BW25: 49 | BX25: =SUM(BL25:BU25)/BV25 -> 0.3608247423
B26: 東本町２ | C26: 0 | D26: 1 | E26: 4 | F26: 4 | G26: 3 | H26: 2 | I26: 4 | J26: 3 | K26: 2 | L26: 5 | M26: 5 | N26: 7 | O26: 8 | P26: 4 | Q26: 4 | R26: 10 | S26: 5 | T26: 1 | U26: 1 | V26: 0 | W26: 0 | X26: 0 | Y26: 0 | Z26: 73 | AA26: 2 | AB26: 1 | AC26: 2 | AD26: 2 | AE26: 4 | AF26: 4 | AG26: 1 | AH26: 3 | AI26: 3 | AJ26: 1 | AK26: 9 | AL26: 11 | AM26: 3 | AN26: 3 | AO26: 4 | AP26: 8 | AQ26: 6 | AR26: 7 | AS26: 2 | AT26: 0 | AU26: 0 | AV26: 0 | AW26: 0 | AX26: 76 | AY26: 2 | AZ26: 2 | BA26: 6 | BB26: 6 | BC26: 7 | BD26: 6 | BE26: 5 | BF26: 6 | BG26: 5 | BH26: 6 | BI26: 14 | BJ26: 18 | BK26: 11 | BL26: 7 | BM26: 8 | BN26: 18 | BO26: 11 | BP26: 8 | BQ26: 3 | BR26: 0 | BS26: 0 | BT26: 0 | BU26: 0 | BV26: 149 | BW26: 70 | BX26: =SUM(BL26:BU26)/BV26 -> 0.3691275168
B27: 東本町３ | C27: 0 | D27: 2 | E27: 0 | F27: 2 | G27: 1 | H27: 1 | I27: 1 | J27: 2 | K27: 2 | L27: 4 | M27: 2 | N27: 4 | O27: 2 | P27: 8 | Q27: 5 | R27: 4 | S27: 5 | T27: 2 | U27: 1 | V27: 0 | W27: 0 | X27: 0 | Y27: 0 | Z27: 48 | AA27: 0 | AB27: 1 | AC27: 0 | AD27: 1 | AE27: 5 | AF27: 1 | AG27: 3 | AH27: 1 | AI27: 1 | AJ27: 2 | AK27: 5 | AL27: 4 | AM27: 2 | AN27: 4 | AO27: 4 | AP27: 5 | AQ27: 2 | AR27: 4 | AS27: 3 | AT27: 2 | AU27: 0 | AV27: 0 | AW27: 0 | AX27: 50 | AY27: 0 | AZ27: 3 | BA27: 0 | BB27: 3 | BC27: 6 | BD27: 2 | BE27: 4 | BF27: 3 | BG27: 3 | BH27: 6 | BI27: 7 | BJ27: 8 | BK27: 4 | BL27: 12 | BM27: 9 | BN27: 9 | BO27: 7 | BP27: 6 | BQ27: 4 | BR27: 2 | BS27: 0 | BT27: 0 | BU27: 0 | BV27: 98 | BW27: 54 | BX27: =SUM(BL27:BU27)/BV27 -> 0.5
B28: 東本町４ | C28: 18 | D28: 3 | E28: 5 | F28: 9 | G28: 20 | H28: 21 | I28: 19 | J28: 14 | K28: 16 | L28: 17 | M28: 13 | N28: 11 | O28: 22 | P28: 14 | Q28: 6 | R28: 13 | S28: 6 | T28: 5 | U28: 5 | V28: 1 | W28: 0 | X28: 0 | Y28: 0 | Z28: 238 | AA28: 7 | AB28: 5 | AC28: 4 | AD28: 5 | AE28: 22 | AF28: 12 | AG28: 25 | AH28: 17 | AI28: 10 | AJ28: 16 | AK28: 10 | AL28: 23 | AM28: 16 | AN28: 12 | AO28: 16 | AP28: 11 | AQ28: 20 | AR28: 12 | AS28: 6 | AT28: 1 | AU28: 1 | AV28: 0 | AW28: 0 | AX28: 251 | AY28: 25 | AZ28: 8 | BA28: 9 | BB28: 14 | BC28: 42 | BD28: 33 | BE28: 44 | BF28: 31 | BG28: 26 | BH28: 33 | BI28: 23 | BJ28: 34 | BK28: 38 | BL28: 26 | BM28: 22 | BN28: 24 | BO28: 26 | BP28: 17 | BQ28: 11 | BR28: 2 | BS28: 1 | BT28: 0 | BU28: 0 | BV28: 489 | BW28: 237 | BX28: =SUM(BL28:BU28)/BV28 -> 0.263803681
B29: 東本町５ | C29: 0 | D29: 0 | E29: 2 | F29: 5 | G29: 1 | H29: 1 | I29: 2 | J29: 3 | K29: 4 | L29: 1 | M29: 8 | N29: 3 | O29: 4 | P29: 11 | Q29: 5 | R29: 6 | S29: 1 | T29: 2 | U29: 2 | V29: 0 | W29: 0 | X29: 0 | Y29: 0 | Z29: 61 | AA29: 1 | AB29: 0 | AC29: 3 | AD29: 4 | AE29: 1 | AF29: 1 | AG29: 1 | AH29: 2 | AI29: 6 | AJ29: 3 | AK29: 1 | AL29: 2 | AM29: 2 | AN29: 9 | AO29: 5 | AP29: 5 | AQ29: 2 | AR29: 5 | AS29: 2 | AT29: 1 | AU29: 0 | AV29: 0 | AW29: 0 | AX29: 56 | AY29: 1 | AZ29: 0 | BA29: 5 | BB29: 9 | BC29: 2 | BD29: 2 | BE29: 3 | BF29: 5 | BG29: 10 | BH29: 4 | BI29: 9 | BJ29: 5 | BK29: 6 | BL29: 20 | BM29: 10 | BN29: 11 | BO29: 3 | BP29: 7 | BQ29: 4 | BR29: 1 | BS29: 0 | BT29: 0 | BU29: 0 | BV29: 117 | BW29: 54 | BX29: =SUM(BL29:BU29)/BV29 -> 0.4786324786
B30: 東本町６ | C30: 2 | D30: 4 | E30: 3 | F30: 4 | G30: 1 | H30: 2 | I30: 4 | J30: 2 | K30: 2 | L30: 6 | M30: 12 | N30: 9 | O30: 7 | P30: 7 | Q30: 8 | R30: 4 | S30: 10 | T30: 6 | U30: 5 | V30: 0 | W30: 0 | X30: 0 | Y30: 0 | Z30: 98 | AA30: 2 | AB30: 2 | AC30: 2 | AD30: 4 | AE30: 5 | AF30: 6 | AG30: 4 | AH30: 3 | AI30: 1 | AJ30: 5 | AK30: 10 | AL30: 11 | AM30: 6 | AN30: 3 | AO30: 9 | AP30: 7 | AQ30: 11 | AR30: 9 | AS30: 6 | AT30: 1 | AU30: 1 | AV30: 0 | AW30: 0 | AX30: 108 | AY30: 4 | AZ30: 6 | BA30: 5 | BB30: 8 | BC30: 6 | BD30: 8 | BE30: 8 | BF30: 5 | BG30: 3 | BH30: 11 | BI30: 22 | BJ30: 20 | BK30: 13 | BL30: 10 | BM30: 17 | BN30: 11 | BO30: 21 | BP30: 15 | BQ30: 11 | BR30: 1 | BS30: 1 | BT30: 0 | BU30: 0 | BV30: 206 | BW30: 86 | BX30: =SUM(BL30:BU30)/BV30 -> 0.4223300971
B31: 東本町７ | C31: 1 | D31: 8 | E31: 4 | F31: 2 | G31: 0 | H31: 2 | I31: 2 | J31: 4 | K31: 5 | L31: 7 | M31: 6 | N31: 3 | O31: 2 | P31: 4 | Q31: 4 | R31: 1 | S31: 5 | T31: 1 | U31: 0 | V31: 0 | W31: 0 | X31: 0 | Y31: 0 | Z31: 61 | AA31: 4 | AB31: 9 | AC31: 4 | AD31: 0 | AE31: 0 | AF31: 2 | AG31: 2 | AH31: 4 | AI31: 5 | AJ31: 4 | AK31: 1 | AL31: 6 | AM31: 1 | AN31: 7 | AO31: 4 | AP31: 7 | AQ31: 1 | AR31: 0 | AS31: 1 | AT31: 0 | AU31: 0 | AV31: 0 | AW31: 0 | AX31: 62 | AY31: 5 | AZ31: 17 | BA31: 8 | BB31: 2 | BC31: 0 | BD31: 4 | BE31: 4 | BF31: 8 | BG31: 10 | BH31: 11 | BI31: 7 | BJ31: 9 | BK31: 3 | BL31: 11 | BM31: 8 | BN31: 8 | BO31: 6 | BP31: 1 | BQ31: 1 | BR31: 0 | BS31: 0 | BT31: 0 | BU31: 0 | BV31: 123 | BW31: 44 | BX31: =SUM(BL31:BU31)/BV31 -> 0.2845528455
B32: 新和町 | C32: 2 | D32: 4 | E32: 3 | F32: 1 | G32: 1 | H32: 3 | I32: 6 | J32: 2 | K32: 1 | L32: 3 | M32: 3 | N32: 2 | O32: 4 | P32: 0 | Q32: 1 | R32: 2 | S32: 1 | T32: 0 | U32: 0 | V32: 0 | W32: 0 | X32: 0 | Y32: 0 | Z32: 39 | AA32: 5 | AB32: 2 | AC32: 3 | AD32: 0 | AE32: 2 | AF32: 2 | AG32: 7 | AH32: 3 | AI32: 2 | AJ32: 2 | AK32: 1 | AL32: 3 | AM32: 5 | AN32: 0 | AO32: 4 | AP32: 1 | AQ32: 1 | AR32: 2 | AS32: 0 | AT32: 1 | AU32: 0 | AV32: 0 | AW32: 0 | AX32: 46 | AY32: 7 | AZ32: 6 | BA32: 6 | BB32: 1 | BC32: 3 | BD32: 5 | BE32: 13 | BF32: 5 | BG32: 3 | BH32: 5 | BI32: 4 | BJ32: 5 | BK32: 9 | BL32: 0 | BM32: 5 | BN32: 3 | BO32: 2 | BP32: 2 | BQ32: 0 | BR32: 1 | BS32: 0 | BT32: 0 | BU32: 0 | BV32: 85 | BW32: 28 | BX32: =SUM(BL32:BU32)/BV32 -> 0.1529411765
B33: 住吉町 | C33: 22 | D33: 15 | E33: 16 | F33: 7 | G33: 22 | H33: 11 | I33: 19 | J33: 20 | K33: 25 | L33: 22 | M33: 31 | N33: 20 | O33: 9 | P33: 22 | Q33: 10 | R33: 14 | S33: 14 | T33: 6 | U33: 2 | V33: 0 | W33: 0 | X33: 0 | Y33: 0 | Z33: 307 | AA33: 13 | AB33: 17 | AC33: 19 | AD33: 15 | AE33: 8 | AF33: 10 | AG33: 19 | AH33: 25 | AI33: 18 | AJ33: 21 | AK33: 24 | AL33: 16 | AM33: 18 | AN33: 18 | AO33: 10 | AP33: 32 | AQ33: 17 | AR33: 5 | AS33: 3 | AT33: 0 | AU33: 1 | AV33: 0 | AW33: 0 | AX33: 309 | AY33: 35 | AZ33: 32 | BA33: 35 | BB33: 22 | BC33: 30 | BD33: 21 | BE33: 38 | BF33: 45 | BG33: 43 | BH33: 43 | BI33: 55 | BJ33: 36 | BK33: 27 | BL33: 40 | BM33: 20 | BN33: 46 | BO33: 31 | BP33: 11 | BQ33: 5 | BR33: 0 | BS33: 1 | BT33: 0 | BU33: 0 | BV33: 616 | BW33: 238 | BX33: =SUM(BL33:BU33)/BV33 -> 0.25
B34: 若松町１ | C34: 4 | D34: 5 | E34: 12 | F34: 6 | G34: 9 | H34: 12 | I34: 7 | J34: 8 | K34: 14 | L34: 15 | M34: 22 | N34: 20 | O34: 14 | P34: 13 | Q34: 27 | R34: 28 | S34: 28 | T34: 4 | U34: 3 | V34: 2 | W34: 0 | X34: 0 | Y34: 0 | Z34: 253 | AA34: 3 | AB34: 7 | AC34: 10 | AD34: 7 | AE34: 7 | AF34: 4 | AG34: 7 | AH34: 9 | AI34: 11 | AJ34: 18 | AK34: 18 | AL34: 17 | AM34: 11 | AN34: 19 | AO34: 24 | AP34: 37 | AQ34: 34 | AR34: 4 | AS34: 7 | AT34: 0 | AU34: 0 | AV34: 0 | AW34: 0 | AX34: 254 | AY34: 7 | AZ34: 12 | BA34: 22 | BB34: 13 | BC34: 16 | BD34: 16 | BE34: 14 | BF34: 17 | BG34: 25 | BH34: 33 | BI34: 40 | BJ34: 37 | BK34: 25 | BL34: 32 | BM34: 51 | BN34: 65 | BO34: 62 | BP34: 8 | BQ34: 10 | BR34: 2 | BS34: 0 | BT34: 0 | BU34: 0 | BV34: 507 | BW34: 212 | BX34: =SUM(BL34:BU34)/BV34 -> 0.4536489152
B35: 若松町２ | C35: 0 | D35: 1 | E35: 3 | F35: 0 | G35: 2 | H35: 2 | I35: 4 | J35: 0 | K35: 2 | L35: 2 | M35: 5 | N35: 9 | O35: 7 | P35: 14 | Q35: 9 | R35: 12 | S35: 17 | T35: 4 | U35: 0 | V35: 0 | W35: 0 | X35: 0 | Y35: 0 | Z35: 93 | AA35: 0 | AB35: 2 | AC35: 2 | AD35: 3 | AE35: 1 | AF35: 1 | AG35: 0 | AH35: 1 | AI35: 6 | AJ35: 6 | AK35: 8 | AL35: 7 | AM35: 6 | AN35: 10 | AO35: 10 | AP35: 17 | AQ35: 11 | AR35: 5 | AS35: 4 | AT35: 0 | AU35: 0 | AV35: 0 | AW35: 0 | AX35: 100 | AY35: 0 | AZ35: 3 | BA35: 5 | BB35: 3 | BC35: 3 | BD35: 3 | BE35: 4 | BF35: 1 | BG35: 8 | BH35: 8 | BI35: 13 | BJ35: 16 | BK35: 13 | BL35: 24 | BM35: 19 | BN35: 29 | BO35: 28 | BP35: 9 | BQ35: 4 | BR35: 0 | BS35: 0 | BT35: 0 | BU35: 0 | BV35: 193 | BW35: 87 | BX35: =SUM(BL35:BU35)/BV35 -> 0.585492228
B36: 若松町３ | C36: 0 | D36: 1 | E36: 0 | F36: 0 | G36: 1 | H36: 3 | I36: 0 | J36: 1 | K36: 1 | L36: 3 | M36: 3 | N36: 1 | O36: 2 | P36: 0 | Q36: 1 | R36: 4 | S36: 2 | T36: 5 | U36: 2 | V36: 0 | W36: 0 | X36: 0 | Y36: 0 | Z36: 30 | AA36: 2 | AB36: 0 | AC36: 1 | AD36: 2 | AE36: 1 | AF36: 1 | AG36: 0 | AH36: 0 | AI36: 1 | AJ36: 3 | AK36: 4 | AL36: 2 | AM36: 1 | AN36: 0 | AO36: 2 | AP36: 2 | AQ36: 3 | AR36: 4 | AS36: 2 | AT36: 0 | AU36: 0 | AV36: 0 | AW36: 0 | AX36: 31 | AY36: 2 | AZ36: 1 | BA36: 1 | BB36: 2 | BC36: 2 | BD36: 4 | BE36: 0 | BF36: 1 | BG36: 2 | BH36: 6 | BI36: 7 | BJ36: 3 | BK36: 3 | BL36: 0 | BM36: 3 | BN36: 6 | BO36: 5 | BP36: 9 | BQ36: 4 | BR36: 0 | BS36: 0 | BT36: 0 | BU36: 0 | BV36: 61 | BW36: 24 | BX36: =SUM(BL36:BU36)/BV36 -> 0.4426229508
B37: 二葉町１ | C37: 5 | D37: 8 | E37: 12 | F37: 12 | G37: 12 | H37: 9 | I37: 7 | J37: 8 | K37: 10 | L37: 9 | M37: 18 | N37: 6 | O37: 7 | P37: 12 | Q37: 19 | R37: 6 | S37: 6 | T37: 3 | U37: 3 | V37: 0 | W37: 0 | X37: 0 | Y37: 0 | Z37: 172 | AA37: 5 | AB37: 4 | AC37: 15 | AD37: 11 | AE37: 13 | AF37: 15 | AG37: 10 | AH37: 20 | AI37: 16 | AJ37: 19 | AK37: 26 | AL37: 16 | AM37: 15 | AN37: 17 | AO37: 27 | AP37: 28 | AQ37: 11 | AR37: 10 | AS37: 3 | AT37: 0 | AU37: 0 | AV37: 0 | AW37: 0 | AX37: 281 | AY37: 10 | AZ37: 12 | BA37: 27 | BB37: 23 | BC37: 25 | BD37: 24 | BE37: 17 | BF37: 28 | BG37: 26 | BH37: 28 | BI37: 44 | BJ37: 22 | BK37: 22 | BL37: 29 | BM37: 46 | BN37: 34 | BO37: 17 | BP37: 13 | BQ37: 6 | BR37: 0 | BS37: 0 | BT37: 0 | BU37: 0 | BV37: 453 | BW37: 233 | BX37: =SUM(BL37:BU37)/BV37 -> 0.3200883002
B38: 二葉町２ | C38: 0 | D38: 0 | E38: 1 | F38: 1 | G38: 1 | H38: 1 | I38: 1 | J38: 1 | K38: 2 | L38: 3 | M38: 2 | N38: 1 | O38: 2 | P38: 2 | Q38: 5 | R38: 5 | S38: 9 | T38: 1 | U38: 1 | V38: 1 | W38: 0 | X38: 0 | Y38: 0 | Z38: 40 | AA38: 3 | AB38: 0 | AC38: 0 | AD38: 1 | AE38: 0 | AF38: 1 | AG38: 1 | AH38: 1 | AI38: 0 | AJ38: 4 | AK38: 3 | AL38: 1 | AM38: 3 | AN38: 5 | AO38: 6 | AP38: 13 | AQ38: 8 | AR38: 1 | AS38: 0 | AT38: 2 | AU38: 0 | AV38: 0 | AW38: 0 | AX38: 53 | AY38: 3 | AZ38: 0 | BA38: 1 | BB38: 2 | BC38: 1 | BD38: 2 | BE38: 2 | BF38: 2 | BG38: 2 | BH38: 7 | BI38: 5 | BJ38: 2 | BK38: 5 | BL38: 7 | BM38: 11 | BN38: 18 | BO38: 17 | BP38: 2 | BQ38: 1 | BR38: 3 | BS38: 0 | BT38: 0 | BU38: 0 | BV38: 93 | BW38: 44 | BX38: =SUM(BL38:BU38)/BV38 -> 0.6344086022
B39: 本郷町 | C39: 9 | D39: 12 | E39: 12 | F39: 9 | G39: 7 | H39: 14 | I39: 14 | J39: 8 | K39: 14 | L39: 20 | M39: 16 | N39: 19 | O39: 16 | P39: 35 | Q39: 17 | R39: 24 | S39: 12 | T39: 12 | U39: 3 | V39: 0 | W39: 0 | X39: 0 | Y39: 0 | Z39: 273 | AA39: 6 | AB39: 6 | AC39: 9 | AD39: 11 | AE39: 8 | AF39: 11 | AG39: 11 | AH39: 7 | AI39: 7 | AJ39: 18 | AK39: 22 | AL39: 14 | AM39: 23 | AN39: 26 | AO39: 22 | AP39: 20 | AQ39: 23 | AR39: 8 | AS39: 13 | AT39: 5 | AU39: 0 | AV39: 0 | AW39: 0 | AX39: 270 | AY39: 15 | AZ39: 18 | BA39: 21 | BB39: 20 | BC39: 15 | BD39: 25 | BE39: 25 | BF39: 15 | BG39: 21 | BH39: 38 | BI39: 38 | BJ39: 33 | BK39: 39 | BL39: 61 | BM39: 39 | BN39: 44 | BO39: 35 | BP39: 20 | BQ39: 16 | BR39: 5 | BS39: 0 | BT39: 0 | BU39: 0 | BV39: 543 | BW39: 203 | BX39: =SUM(BL39:BU39)/BV39 -> 0.4051565378
B40: 西条町１ | C40: 7 | D40: 10 | E40: 9 | F40: 22 | G40: 20 | H40: 7 | I40: 8 | J40: 13 | K40: 18 | L40: 22 | M40: 21 | N40: 28 | O40: 26 | P40: 19 | Q40: 24 | R40: 23 | S40: 23 | T40: 15 | U40: 3 | V40: 2 | W40: 0 | X40: 0 | Y40: 0 | Z40: 320 | AA40: 7 | AB40: 14 | AC40: 12 | AD40: 12 | AE40: 12 | AF40: 6 | AG40: 10 | AH40: 16 | AI40: 14 | AJ40: 17 | AK40: 18 | AL40: 22 | AM40: 25 | AN40: 21 | AO40: 19 | AP40: 40 | AQ40: 35 | AR40: 10 | AS40: 11 | AT40: 4 | AU40: 0 | AV40: 0 | AW40: 0 | AX40: 325 | AY40: 14 | AZ40: 24 | BA40: 21 | BB40: 34 | BC40: 32 | BD40: 13 | BE40: 18 | BF40: 29 | BG40: 32 | BH40: 39 | BI40: 39 | BJ40: 50 | BK40: 51 | BL40: 40 | BM40: 43 | BN40: 63 | BO40: 58 | BP40: 25 | BQ40: 14 | BR40: 6 | BS40: 0 | BT40: 0 | BU40: 0 | BV40: 645 | BW40: 259 | BX40: =SUM(BL40:BU40)/BV40 -> 0.3860465116
B41: 西条町２ | C41: 0 | D41: 4 | E41: 5 | F41: 3 | G41: 15 | H41: 14 | I41: 7 | J41: 9 | K41: 10 | L41: 10 | M41: 12 | N41: 10 | O41: 12 | P41: 7 | Q41: 9 | R41: 19 | S41: 14 | T41: 3 | U41: 0 | V41: 0 | W41: 0 | X41: 0 | Y41: 0 | Z41: 163 | AA41: 1 | AB41: 5 | AC41: 3 | AD41: 4 | AE41: 8 | AF41: 13 | AG41: 6 | AH41: 8 | AI41: 5 | AJ41: 10 | AK41: 5 | AL41: 13 | AM41: 11 | AN41: 10 | AO41: 13 | AP41: 17 | AQ41: 11 | AR41: 1 | AS41: 3 | AT41: 1 | AU41: 0 | AV41: 0 | AW41: 0 | AX41: 148 | AY41: 1 | AZ41: 9 | BA41: 8 | BB41: 7 | BC41: 23 | BD41: 27 | BE41: 13 | BF41: 17 | BG41: 15 | BH41: 20 | BI41: 17 | BJ41: 23 | BK41: 23 | BL41: 17 | BM41: 22 | BN41: 36 | BO41: 25 | BP41: 4 | BQ41: 3 | BR41: 1 | BS41: 0 | BT41: 0 | BU41: 0 | BV41: 311 | BW41: 149 | BX41: =SUM(BL41:BU41)/BV41 -> 0.347266881
B42: 協和町 | C42: 3 | D42: 7 | E42: 4 | F42: 7 | G42: 15 | H42: 23 | I42: 26 | J42: 7 | K42: 8 | L42: 5 | M42: 1 | N42: 2 | O42: 2 | P42: 0 | Q42: 0 | R42: 0 | S42: 0 | T42: 0 | U42: 0 | V42: 0 | W42: 0 | X42: 0 | Y42: 0 | Z42: 110 | AA42: 7 | AB42: 4 | AC42: 1 | AD42: 5 | AE42: 3 | AF42: 7 | AG42: 9 | AH42: 1 | AI42: 7 | AJ42: 6 | AK42: 0 | AL42: 1 | AM42: 1 | AN42: 0 | AO42: 0 | AP42: 0 | AQ42: 0 | AR42: 0 | AS42: 0 | AT42: 0 | AU42: 0 | AV42: 0 | AW42: 0 | AX42: 52 | AY42: 10 | AZ42: 11 | BA42: 5 | BB42: 12 | BC42: 18 | BD42: 30 | BE42: 35 | BF42: 8 | BG42: 15 | BH42: 11 | BI42: 1 | BJ42: 3 | BK42: 3 | BL42: 0 | BM42: 0 | BN42: 0 | BO42: 0 | BP42: 0 | BQ42: 0 | BR42: 0 | BS42: 0 | BT42: 0 | BU42: 0 | BV42: 162 | BW42: 107 | BX42: =SUM(BL42:BU42)/BV42 -> 0
B43: 倉敷町 | C43: 0 | D43: 0 | E43: 0 | F43: 3 | G43: 0 | H43: 0 | I43: 0 | J43: 0 | K43: 0 | L43: 0 | M43: 1 | N43: 1 | O43: 0 | P43: 0 | Q43: 0 | R43: 0 | S43: 0 | T43: 0 | U43: 0 | V43: 0 | W43: 0 | X43: 0 | Y43: 0 | Z43: 5 | AA43: 0 | AB43: 1 | AC43: 0 | AD43: 0 | AE43: 1 | AF43: 0 | AG43: 0 | AH43: 0 | AI43: 0 | AJ43: 1 | AK43: 1 | AL43: 0 | AM43: 0 | AN43: 0 | AO43: 0 | AP43: 0 | AQ43: 0 | AR43: 0 | AS43: 0 | AT43: 0 | AU43: 0 | AV43: 0 | AW43: 0 | AX43: 4 | AY43: 0 | AZ43: 1 | BA43: 0 | BB43: 3 | BC43: 1 | BD43: 0 | BE43: 0 | BF43: 0 | BG43: 0 | BH43: 1 | BI43: 2 | BJ43: 1 | BK43: 0 | BL43: 0 | BM43: 0 | BN43: 0 | BO43: 0 | BP43: 0 | BQ43: 0 | BR43: 0 | BS43: 0 | BT43: 0 | BU43: 0 | BV43: 9 | BW43: 2 | BX43: =SUM(BL43:BU43)/BV43 -> 0
B44: 関沢 | C44: 2 | D44: 5 | E44: 2 | F44: 1 | G44: 1 | H44: 1 | I44: 3 | J44: 9 | K44: 4 | L44: 4 | M44: 3 | N44: 1 | O44: 3 | P44: 14 | Q44: 8 | R44: 5 | S44: 2 | T44: 0 | U44: 1 | V44: 0 | W44: 0 | X44: 0 | Y44: 0 | Z44: 69 | AA44: 0 | AB44: 3 | AC44: 1 | AD44: 0 | AE44: 5 | AF44: 0 | AG44: 1 | AH44: 6 | AI44: 5 | AJ44: 5 | AK44: 6 | AL44: 2 | AM44: 3 | AN44: 13 | AO44: 9 | AP44: 5 | AQ44: 2 | AR44: 4 | AS44: 2 | AT44: 3 | AU44: 0 | AV44: 0 | AW44: 0 | AX44: 75 | AY44: 2 | AZ44: 8 | BA44: 3 | BB44: 1 | BC44: 6 | BD44: 1 | BE44: 4 | BF44: 15 | BG44: 9 | BH44: 9 | BI44: 9 | BJ44: 3 | BK44: 6 | BL44: 27 | BM44: 17 | BN44: 10 | BO44: 4 | BP44: 4 | BQ44: 3 | BR44: 3 | BS44: 0 | BT44: 0 | BU44: 0 | BV44: 144 | BW44: 51 | BX44: =SUM(BL44:BU44)/BV44 -> 0.4722222222
B45: 星の宮町１ | C45: 3 | D45: 9 | E45: 8 | F45: 11 | G45: 12 | H45: 8 | I45: 6 | J45: 11 | K45: 7 | L45: 9 | M45: 17 | N45: 18 | O45: 9 | P45: 11 | Q45: 12 | R45: 28 | S45: 23 | T45: 10 | U45: 2 | V45: 0 | W45: 0 | X45: 0 | Y45: 0 | Z45: 214 | AA45: 3 | AB45: 8 | AC45: 5 | AD45: 6 | AE45: 8 | AF45: 8 | AG45: 9 | AH45: 7 | AI45: 5 | AJ45: 20 | AK45: 15 | AL45: 25 | AM45: 12 | AN45: 17 | AO45: 23 | AP45: 39 | AQ45: 35 | AR45: 14 | AS45: 4 | AT45: 3 | AU45: 0 | AV45: 1 | AW45: 0 | AX45: 267 | AY45: 6 | AZ45: 17 | BA45: 13 | BB45: 17 | BC45: 20 | BD45: 16 | BE45: 15 | BF45: 18 | BG45: 12 | BH45: 29 | BI45: 32 | BJ45: 43 | BK45: 21 | BL45: 28 | BM45: 35 | BN45: 67 | BO45: 58 | BP45: 24 | BQ45: 6 | BR45: 3 | BS45: 0 | BT45: 1 | BU45: 0 | BV45: 481 | BW45: 206 | BX45: =SUM(BL45:BU45)/BV45 -> 0.4615384615
B46: 星の宮町２ | C46: 1 | D46: 3 | E46: 6 | F46: 4 | G46: 0 | H46: 1 | I46: 4 | J46: 6 | K46: 8 | L46: 10 | M46: 5 | N46: 4 | O46: 1 | P46: 11 | Q46: 9 | R46: 10 | S46: 3 | T46: 0 | U46: 0 | V46: 0 | W46: 0 | X46: 0 | Y46: 0 | Z46: 86 | AA46: 1 | AB46: 7 | AC46: 6 | AD46: 2 | AE46: 2 | AF46: 1 | AG46: 2 | AH46: 3 | AI46: 11 | AJ46: 5 | AK46: 2 | AL46: 6 | AM46: 8 | AN46: 10 | AO46: 10 | AP46: 10 | AQ46: 4 | AR46: 2 | AS46: 0 | AT46: 0 | AU46: 0 | AV46: 0 | AW46: 0 | AX46: 92 | AY46: 2 | AZ46: 10 | BA46: 12 | BB46: 6 | BC46: 2 | BD46: 2 | BE46: 6 | BF46: 9 | BG46: 19 | BH46: 15 | BI46: 7 | BJ46: 10 | BK46: 9 | BL46: 21 | BM46: 19 | BN46: 20 | BO46: 7 | BP46: 2 | BQ46: 0 | BR46: 0 | BS46: 0 | BT46: 0 | BU46: 0 | BV46: 178 | BW46: 66 | BX46: =SUM(BL46:BU46)/BV46 -> 0.3876404494
B47: 長橋 | C47: 4 | D47: 3 | E47: 5 | F47: 5 | G47: 7 | H47: 6 | I47: 3 | J47: 9 | K47: 5 | L47: 12 | M47: 3 | N47: 7 | O47: 9 | P47: 9 | Q47: 10 | R47: 8 | S47: 7 | T47: 2 | U47: 2 | V47: 2 | W47: 0 | X47: 0 | Y47: 0 | Z47: 118 | AA47: 5 | AB47: 6 | AC47: 6 | AD47: 7 | AE47: 8 | AF47: 6 | AG47: 3 | AH47: 8 | AI47: 3 | AJ47: 6 | AK47: 7 | AL47: 11 | AM47: 4 | AN47: 10 | AO47: 15 | AP47: 5 | AQ47: 6 | AR47: 8 | AS47: 1 | AT47: 0 | AU47: 0 | AV47: 0 | AW47: 0 | AX47: 125 | AY47: 9 | AZ47: 9 | BA47: 11 | BB47: 12 | BC47: 15 | BD47: 12 | BE47: 6 | BF47: 17 | BG47: 8 | BH47: 18 | BI47: 10 | BJ47: 18 | BK47: 13 | BL47: 19 | BM47: 25 | BN47: 13 | BO47: 13 | BP47: 10 | BQ47: 3 | BR47: 2 | BS47: 0 | BT47: 0 | BU47: 0 | BV47: 243 | BW47: 88 | BX47: =SUM(BL47:BU47)/BV47 -> 0.3497942387
B48: 柴橋 | C48: 28 | D48: 16 | E48: 18 | F48: 28 | G48: 15 | H48: 23 | I48: 29 | J48: 28 | K48: 29 | L48: 32 | M48: 28 | N48: 30 | O48: 16 | P48: 21 | Q48: 25 | R48: 18 | S48: 15 | T48: 6 | U48: 2 | V48: 1 | W48: 0 | X48: 0 | Y48: 0 | Z48: 408 | AA48: 21 | AB48: 27 | AC48: 18 | AD48: 29 | AE48: 19 | AF48: 17 | AG48: 31 | AH48: 31 | AI48: 25 | AJ48: 35 | AK48: 25 | AL48: 17 | AM48: 18 | AN48: 22 | AO48: 26 | AP48: 20 | AQ48: 20 | AR48: 16 | AS48: 9 | AT48: 7 | AU48: 0 | AV48: 0 | AW48: 0 | AX48: 433 | AY48: 49 | AZ48: 43 | BA48: 36 | BB48: 57 | BC48: 34 | BD48: 40 | BE48: 60 | BF48: 59 | BG48: 54 | BH48: 67 | BI48: 53 | BJ48: 47 | BK48: 34 | BL48: 43 | BM48: 51 | BN48: 38 | BO48: 35 | BP48: 22 | BQ48: 11 | BR48: 8 | BS48: 0 | BT48: 0 | BU48: 0 | BV48: 841 | BW48: 312 | BX48: =SUM(BL48:BU48)/BV48 -> 0.2473246136
B49: 草野 | C49: 0 | D49: 1 | E49: 2 | F49: 1 | G49: 3 | H49: 0 | I49: 1 | J49: 2 | K49: 3 | L49: 2 | M49: 2 | N49: 0 | O49: 2 | P49: 1 | Q49: 4 | R49: 8 | S49: 4 | T49: 1 | U49: 1 | V49: 1 | W49: 0 | X49: 0 | Y49: 0 | Z49: 39 | AA49: 1 | AB49: 2 | AC49: 1 | AD49: 1 | AE49: 2 | AF49: 0 | AG49: 1 | AH49: 1 | AI49: 0 | AJ49: 2 | AK49: 4 | AL49: 2 | AM49: 0 | AN49: 4 | AO49: 8 | AP49: 6 | AQ49: 1 | AR49: 6 | AS49: 1 | AT49: 2 | AU49: 1 | AV49: 0 | AW49: 0 | AX49: 46 | AY49: 1 | AZ49: 3 | BA49: 3 | BB49: 2 | BC49: 5 | BD49: 0 | BE49: 2 | BF49: 3 | BG49: 3 | BH49: 4 | BI49: 6 | BJ49: 2 | BK49: 2 | BL49: 5 | BM49: 12 | BN49: 14 | BO49: 5 | BP49: 7 | BQ49: 2 | BR49: 3 | BS49: 1 | BT49: 0 | BU49: 0 | BV49: 85 | BW49: 32 | BX49: =SUM(BL49:BU49)/BV49 -> 0.5764705882
B50: 新舘 | C50: 2 | D50: 2 | E50: 4 | F50: 1 | G50: 3 | H50: 0 | I50: 5 | J50: 2 | K50: 2 | L50: 3 | M50: 5 | N50: 2 | O50: 2 | P50: 8 | Q50: 4 | R50: 6 | S50: 4 | T50: 2 | U50: 0 | V50: 1 | W50: 0 | X50: 0 | Y50: 0 | Z50: 58 | AA50: 1 | AB50: 1 | AC50: 1 | AD50: 1 | AE50: 2 | AF50: 0 | AG50: 3 | AH50: 2 | AI50: 2 | AJ50: 2 | AK50: 4 | AL50: 4 | AM50: 3 | AN50: 9 | AO50: 2 | AP50: 7 | AQ50: 4 | AR50: 6 | AS50: 3 | AT50: 0 | AU50: 0 | AV50: 0 | AW50: 0 | AX50: 57 | AY50: 3 | AZ50: 3 | BA50: 5 | BB50: 2 | BC50: 5 | BD50: 0 | BE50: 8 | BF50: 4 | BG50: 4 | BH50: 5 | BI50: 9 | BJ50: 6 | BK50: 5 | BL50: 17 | BM50: 6 | BN50: 13 | BO50: 8 | BP50: 8 | BQ50: 3 | BR50: 1 | BS50: 0 | BT50: 0 | BU50: 0 | BV50: 115 | BW50: 40 | BX50: =SUM(BL50:BU50)/BV50 -> 0.4869565217
B51: 鷹の巣 | C51: 0 | D51: 0 | E51: 0 | F51: 0 | G51: 1 | H51: 3 | I51: 1 | J51: 0 | K51: 1 | L51: 0 | M51: 0 | N51: 2 | O51: 4 | P51: 1 | Q51: 1 | R51: 1 | S51: 0 | T51: 0 | U51: 0 | V51: 0 | W51: 0 | X51: 0 | Y51: 0 | Z51: 15 | AA51: 0 | AB51: 0 | AC51: 0 | AD51: 1 | AE51: 0 | AF51: 1 | AG51: 0 | AH51: 0 | AI51: 0 | AJ51: 1 | AK51: 1 | AL51: 4 | AM51: 2 | AN51: 1 | AO51: 1 | AP51: 0 | AQ51: 1 | AR51: 1 | AS51: 1 | AT51: 0 | AU51: 0 | AV51: 0 | AW51: 0 | AX51: 15 | AY51: 0 | AZ51: 0 | BA51: 0 | BB51: 1 | BC51: 1 | BD51: 4 | BE51: 1 | BF51: 0 | BG51: 1 | BH51: 1 | BI51: 1 | BJ51: 6 | BK51: 6 | BL51: 2 | BM51: 2 | BN51: 1 | BO51: 1 | BP51: 1 | BQ51: 1 | BR51: 0 | BS51: 0 | BT51: 0 | BU51: 0 | BV51: 30 | BW51: 10 | BX51: =SUM(BL51:BU51)/BV51 -> 0.2666666667
B52: 西川内 | C52: 0 | D52: 0 | E52: 1 | F52: 0 | G52: 2 | H52: 0 | I52: 0 | J52: 0 | K52: 1 | L52: 1 | M52: 0 | N52: 0 | O52: 3 | P52: 0 | Q52: 2 | R52: 3 | S52: 0 | T52: 2 | U52: 0 | V52: 0 | W52: 0 | X52: 0 | Y52: 0 | Z52: 15 | AA52: 0 | AB52: 0 | AC52: 0 | AD52: 1 | AE52: 0 | AF52: 0 | AG52: 1 | AH52: 0 | AI52: 0 | AJ52: 1 | AK52: 0 | AL52: 1 | AM52: 0 | AN52: 1 | AO52: 1 | AP52: 1 | AQ52: 1 | AR52: 1 | AS52: 0 | AT52: 0 | AU52: 0 | AV52: 0 | AW52: 0 | AX52: 9 | AY52: 0 | AZ52: 0 | BA52: 1 | BB52: 1 | BC52: 2 | BD52: 0 | BE52: 1 | BF52: 0 | BG52: 1 | BH52: 2 | BI52: 0 | BJ52: 1 | BK52: 3 | BL52: 1 | BM52: 3 | BN52: 4 | BO52: 1 | BP52: 3 | BQ52: 0 | BR52: 0 | BS52: 0 | BT52: 0 | BU52: 0 | BV52: 24 | BW52: 9 | BX52: =SUM(BL52:BU52)/BV52 -> 0.5
B53: 東川内 | C53: 0 | D53: 2 | E53: 2 | F53: 0 | G53: 1 | H53: 0 | I53: 1 | J53: 2 | K53: 1 | L53: 4 | M53: 0 | N53: 0 | O53: 0 | P53: 0 | Q53: 2 | R53: 5 | S53: 0 | T53: 0 | U53: 0 | V53: 1 | W53: 0 | X53: 0 | Y53: 0 | Z53: 21 | AA53: 0 | AB53: 0 | AC53: 2 | AD53: 2 | AE53: 1 | AF53: 1 | AG53: 0 | AH53: 4 | AI53: 1 | AJ53: 2 | AK53: 0 | AL53: 0 | AM53: 2 | AN53: 0 | AO53: 7 | AP53: 0 | AQ53: 1 | AR53: 1 | AS53: 1 | AT53: 2 | AU53: 0 | AV53: 0 | AW53: 0 | AX53: 27 | AY53: 0 | AZ53: 2 | BA53: 4 | BB53: 2 | BC53: 2 | BD53: 1 | BE53: 1 | BF53: 6 | BG53: 2 | BH53: 6 | BI53: 0 | BJ53: 0 | BK53: 2 | BL53: 0 | BM53: 9 | BN53: 5 | BO53: 1 | BP53: 1 | BQ53: 1 | BR53: 3 | BS53: 0 | BT53: 0 | BU53: 0 | BV53: 48 | BW53: 16 | BX53: =SUM(BL53:BU53)/BV53 -> 0.4166666667
B54: 八田 | C54: 1 | D54: 4 | E54: 1 | F54: 4 | G54: 4 | H54: 0 | I54: 0 | J54: 1 | K54: 4 | L54: 4 | M54: 0 | N54: 1 | O54: 1 | P54: 5 | Q54: 2 | R54: 4 | S54: 0 | T54: 1 | U54: 1 | V54: 0 | W54: 0 | X54: 0 | Y54: 0 | Z54: 38 | AA54: 1 | AB54: 2 | AC54: 3 | AD54: 2 | AE54: 0 | AF54: 2 | AG54: 1 | AH54: 4 | AI54: 4 | AJ54: 3 | AK54: 1 | AL54: 1 | AM54: 0 | AN54: 6 | AO54: 4 | AP54: 3 | AQ54: 0 | AR54: 1 | AS54: 0 | AT54: 1 | AU54: 0 | AV54: 0 | AW54: 0 | AX54: 39 | AY54: 2 | AZ54: 6 | BA54: 4 | BB54: 6 | BC54: 4 | BD54: 2 | BE54: 1 | BF54: 5 | BG54: 8 | BH54: 7 | BI54: 1 | BJ54: 2 | BK54: 1 | BL54: 11 | BM54: 6 | BN54: 7 | BO54: 0 | BP54: 2 | BQ54: 1 | BR54: 1 | BS54: 0 | BT54: 0 | BU54: 0 | BV54: 77 | BW54: 28 | BX54: =SUM(BL54:BU54)/BV54 -> 0.3636363636
B55: 寅田 | C55: 1 | D55: 1 | E55: 2 | F55: 0 | G55: 0 | H55: 0 | I55: 2 | J55: 1 | K55: 1 | L55: 1 | M55: 0 | N55: 0 | O55: 0 | P55: 2 | Q55: 2 | R55: 2 | S55: 3 | T55: 0 | U55: 0 | V55: 0 | W55: 0 | X55: 0 | Y55: 0 | Z55: 18 | AA55: 0 | AB55: 1 | AC55: 0 | AD55: 0 | AE55: 0 | AF55: 0 | AG55: 0 | AH55: 2 | AI55: 1 | AJ55: 0 | AK55: 0 | AL55: 0 | AM55: 0 | AN55: 4 | AO55: 0 | AP55: 3 | AQ55: 1 | AR55: 0 | AS55: 0 | AT55: 0 | AU55: 0 | AV55: 0 | AW55: 0 | AX55: 12 | AY55: 1 | AZ55: 2 | BA55: 2 | BB55: 0 | BC55: 0 | BD55: 0 | BE55: 2 | BF55: 3 | BG55: 2 | BH55: 1 | BI55: 0 | BJ55: 0 | BK55: 0 | BL55: 6 | BM55: 2 | BN55: 5 | BO55: 4 | BP55: 0 | BQ55: 0 | BR55: 0 | BS55: 0 | BT55: 0 | BU55: 0 | BV55: 30 | BW55: 10 | BX55: =SUM(BL55:BU55)/BV55 -> 0.5666666667
B56: 小舟戸 | C56: 0 | D56: 0 | E56: 1 | F56: 0 | G56: 0 | H56: 0 | I56: 1 | J56: 1 | K56: 1 | L56: 1 | M56: 2 | N56: 0 | O56: 1 | P56: 3 | Q56: 1 | R56: 2 | S56: 0 | T56: 2 | U56: 1 | V56: 0 | W56: 0 | X56: 0 | Y56: 0 | Z56: 17 | AA56: 1 | AB56: 1 | AC56: 0 | AD56: 0 | AE56: 0 | AF56: 0 | AG56: 0 | AH56: 1 | AI56: 0 | AJ56: 0 | AK56: 0 | AL56: 1 | AM56: 2 | AN56: 3 | AO56: 1 | AP56: 1 | AQ56: 1 | AR56: 1 | AS56: 0 | AT56: 0 | AU56: 0 | AV56: 0 | AW56: 0 | AX56: 13 | AY56: 1 | AZ56: 1 | BA56: 1 | BB56: 0 | BC56: 0 | BD56: 0 | BE56: 1 | BF56: 2 | BG56: 1 | BH56: 1 | BI56: 2 | BJ56: 1 | BK56: 3 | BL56: 6 | BM56: 2 | BN56: 3 | BO56: 1 | BP56: 3 | BQ56: 1 | BR56: 0 | BS56: 0 | BT56: 0 | BU56: 0 | BV56: 30 | BW56: 13 | BX56: =SUM(BL56:BU56)/BV56 -> 0.5333333333
B57: 船戸 | C57: 0 | D57: 0 | E57: 2 | F57: 1 | G57: 0 | H57: 0 | I57: 1 | J57: 2 | K57: 2 | L57: 1 | M57: 0 | N57: 3 | O57: 1 | P57: 3 | Q57: 8 | R57: 4 | S57: 3 | T57: 1 | U57: 1 | V57: 1 | W57: 0 | X57: 0 | Y57: 0 | Z57: 34 | AA57: 1 | AB57: 2 | AC57: 2 | AD57: 2 | AE57: 0 | AF57: 0 | AG57: 0 | AH57: 3 | AI57: 2 | AJ57: 0 | AK57: 1 | AL57: 1 | AM57: 4 | AN57: 5 | AO57: 5 | AP57: 6 | AQ57: 4 | AR57: 2 | AS57: 1 | AT57: 2 | AU57: 0 | AV57: 0 | AW57: 0 | AX57: 43 | AY57: 1 | AZ57: 2 | BA57: 4 | BB57: 3 | BC57: 0 | BD57: 0 | BE57: 1 | BF57: 5 | BG57: 4 | BH57: 1 | BI57: 1 | BJ57: 4 | BK57: 5 | BL57: 8 | BM57: 13 | BN57: 10 | BO57: 7 | BP57: 3 | BQ57: 2 | BR57: 3 | BS57: 0 | BT57: 0 | BU57: 0 | BV57: 77 | BW57: 33 | BX57: =SUM(BL57:BU57)/BV57 -> 0.5974025974
B58: 飯角 | C58: 5 | D58: 16 | E58: 10 | F58: 7 | G58: 12 | H58: 16 | I58: 14 | J58: 17 | K58: 19 | L58: 19 | M58: 14 | N58: 12 | O58: 8 | P58: 11 | Q58: 12 | R58: 8 | S58: 6 | T58: 3 | U58: 1 | V58: 2 | W58: 0 | X58: 0 | Y58: 0 | Z58: 212 | AA58: 11 | AB58: 19 | AC58: 14 | AD58: 11 | AE58: 11 | AF58: 12 | AG58: 15 | AH58: 12 | AI58: 17 | AJ58: 12 | AK58: 18 | AL58: 13 | AM58: 12 | AN58: 10 | AO58: 12 | AP58: 11 | AQ58: 12 | AR58: 1 | AS58: 5 | AT58: 3 | AU58: 0 | AV58: 0 | AW58: 0 | AX58: 231 | AY58: 16 | AZ58: 35 | BA58: 24 | BB58: 18 | BC58: 23 | BD58: 28 | BE58: 29 | BF58: 29 | BG58: 36 | BH58: 31 | BI58: 32 | BJ58: 25 | BK58: 20 | BL58: 21 | BM58: 24 | BN58: 19 | BO58: 18 | BP58: 4 | BQ58: 6 | BR58: 5 | BS58: 0 | BT58: 0 | BU58: 0 | BV58: 443 | BW58: 163 | BX58: =SUM(BL58:BU58)/BV58 -> 0.2189616253
B59: 半山 | C59: 15 | D59: 9 | E59: 14 | F59: 10 | G59: 14 | H59: 15 | I59: 12 | J59: 21 | K59: 18 | L59: 25 | M59: 19 | N59: 18 | O59: 11 | P59: 14 | Q59: 19 | R59: 19 | S59: 14 | T59: 4 | U59: 3 | V59: 0 | W59: 0 | X59: 0 | Y59: 0 | Z59: 274 | AA59: 9 | AB59: 6 | AC59: 16 | AD59: 11 | AE59: 15 | AF59: 15 | AG59: 13 | AH59: 17 | AI59: 16 | AJ59: 26 | AK59: 21 | AL59: 15 | AM59: 15 | AN59: 12 | AO59: 25 | AP59: 24 | AQ59: 12 | AR59: 8 | AS59: 6 | AT59: 2 | AU59: 1 | AV59: 0 | AW59: 0 | AX59: 285 | AY59: 24 | AZ59: 15 | BA59: 30 | BB59: 21 | BC59: 29 | BD59: 30 | BE59: 25 | BF59: 38 | BG59: 34 | BH59: 51 | BI59: 40 | BJ59: 33 | BK59: 26 | BL59: 26 | BM59: 44 | BN59: 43 | BO59: 26 | BP59: 12 | BQ59: 9 | BR59: 2 | BS59: 1 | BT59: 0 | BU59: 0 | BV59: 559 | BW59: 221 | BX59: =SUM(BL59:BU59)/BV59 -> 0.2915921288
B60: 鴨田 | C60: 2 | D60: 1 | E60: 5 | F60: 4 | G60: 1 | H60: 1 | I60: 1 | J60: 4 | K60: 4 | L60: 7 | M60: 3 | N60: 2 | O60: 1 | P60: 2 | Q60: 0 | R60: 1 | S60: 1 | T60: 2 | U60: 0 | V60: 0 | W60: 0 | X60: 0 | Y60: 0 | Z60: 42 | AA60: 0 | AB60: 7 | AC60: 2 | AD60: 3 | AE60: 1 | AF60: 0 | AG60: 2 | AH60: 5 | AI60: 6 | AJ60: 4 | AK60: 2 | AL60: 3 | AM60: 3 | AN60: 2 | AO60: 2 | AP60: 2 | AQ60: 0 | AR60: 0 | AS60: 0 | AT60: 0 | AU60: 0 | AV60: 0 | AW60: 0 | AX60: 44 | AY60: 2 | AZ60: 8 | BA60: 7 | BB60: 7 | BC60: 2 | BD60: 1 | BE60: 3 | BF60: 9 | BG60: 10 | BH60: 11 | BI60: 5 | BJ60: 5 | BK60: 4 | BL60: 4 | BM60: 2 | BN60: 3 | BO60: 1 | BP60: 2 | BQ60: 0 | BR60: 0 | BS60: 0 | BT60: 0 | BU60: 0 | BV60: 86 | BW60: 31 | BX60: =SUM(BL60:BU60)/BV60 -> 0.1395348837
B61: 赤川 | C61: 3 | D61: 4 | E61: 5 | F61: 5 | G61: 2 | H61: 2 | I61: 4 | J61: 7 | K61: 5 | L61: 7 | M61: 8 | N61: 8 | O61: 5 | P61: 9 | Q61: 10 | R61: 16 | S61: 5 | T61: 4 | U61: 1 | V61: 0 | W61: 0 | X61: 0 | Y61: 0 | Z61: 110 | AA61: 0 | AB61: 1 | AC61: 3 | AD61: 4 | AE61: 3 | AF61: 0 | AG61: 4 | AH61: 5 | AI61: 9 | AJ61: 6 | AK61: 9 | AL61: 5 | AM61: 5 | AN61: 11 | AO61: 13 | AP61: 12 | AQ61: 7 | AR61: 4 | AS61: 6 | AT61: 1 | AU61: 0 | AV61: 0 | AW61: 0 | AX61: 108 | AY61: 3 | AZ61: 5 | BA61: 8 | BB61: 9 | BC61: 5 | BD61: 2 | BE61: 8 | BF61: 12 | BG61: 14 | BH61: 13 | BI61: 17 | BJ61: 13 | BK61: 10 | BL61: 20 | BM61: 23 | BN61: 28 | BO61: 12 | BP61: 8 | BQ61: 7 | BR61: 1 | BS61: 0 | BT61: 0 | BU61: 0 | BV61: 218 | BW61: 68 | BX61: =SUM(BL61:BU61)/BV61 -> 0.4541284404
B62: 上城塚 | C62: 0 | D62: 0 | E62: 1 | F62: 0 | G62: 0 | H62: 0 | I62: 0 | J62: 0 | K62: 0 | L62: 1 | M62: 2 | N62: 0 | O62: 3 | P62: 5 | Q62: 5 | R62: 2 | S62: 3 | T62: 1 | U62: 2 | V62: 0 | W62: 0 | X62: 0 | Y62: 0 | Z62: 25 | AA62: 1 | AB62: 0 | AC62: 0 | AD62: 0 | AE62: 2 | AF62: 0 | AG62: 0 | AH62: 0 | AI62: 1 | AJ62: 1 | AK62: 0 | AL62: 1 | AM62: 2 | AN62: 5 | AO62: 4 | AP62: 4 | AQ62: 3 | AR62: 1 | AS62: 1 | AT62: 1 | AU62: 1 | AV62: 0 | AW62: 0 | AX62: 28 | AY62: 1 | AZ62: 0 | BA62: 1 | BB62: 0 | BC62: 2 | BD62: 0 | BE62: 0 | BF62: 0 | BG62: 1 | BH62: 2 | BI62: 2 | BJ62: 1 | BK62: 5 | BL62: 10 | BM62: 9 | BN62: 6 | BO62: 6 | BP62: 2 | BQ62: 3 | BR62: 1 | BS62: 1 | BT62: 0 | BU62: 0 | BV62: 53 | BW62: 21 | BX62: =SUM(BL62:BU62)/BV62 -> 0.7169811321
B63: 下城塚 | C63: 0 | D63: 0 | E63: 0 | F63: 0 | G63: 0 | H63: 0 | I63: 0 | J63: 0 | K63: 2 | L63: 0 | M63: 0 | N63: 0 | O63: 0 | P63: 1 | Q63: 1 | R63: 2 | S63: 0 | T63: 0 | U63: 0 | V63: 0 | W63: 0 | X63: 0 | Y63: 0 | Z63: 6 | AA63: 0 | AB63: 0 | AC63: 0 | AD63: 0 | AE63: 0 | AF63: 0 | AG63: 0 | AH63: 0 | AI63: 0 | AJ63: 0 | AK63: 0 | AL63: 1 | AM63: 0 | AN63: 0 | AO63: 1 | AP63: 0 | AQ63: 0 | AR63: 0 | AS63: 0 | AT63: 1 | AU63: 0 | AV63: 0 | AW63: 0 | AX63: 3 | AY63: 0 | AZ63: 0 | BA63: 0 | BB63: 0 | BC63: 0 | BD63: 0 | BE63: 0 | BF63: 0 | BG63: 2 | BH63: 0 | BI63: 0 | BJ63: 1 | BK63: 0 | BL63: 1 | BM63: 2 | BN63: 2 | BO63: 0 | BP63: 0 | BQ63: 0 | BR63: 1 | BS63: 0 | BT63: 0 | BU63: 0 | BV63: 9 | BW63: 4 | BX63: =SUM(BL63:BU63)/BV63 -> 0.6666666667
B64: 塩津 | C64: 0 | D64: 0 | E64: 1 | F64: 1 | G64: 2 | H64: 1 | I64: 1 | J64: 0 | K64: 4 | L64: 5 | M64: 2 | N64: 2 | O64: 4 | P64: 2 | Q64: 4 | R64: 2 | S64: 0 | T64: 2 | U64: 0 | V64: 0 | W64: 0 | X64: 0 | Y64: 0 | Z64: 33 | AA64: 1 | AB64: 2 | AC64: 2 | AD64: 1 | AE64: 4 | AF64: 3 | AG64: 0 | AH64: 1 | AI64: 0 | AJ64: 4 | AK64: 3 | AL64: 5 | AM64: 4 | AN64: 1 | AO64: 3 | AP64: 2 | AQ64: 1 | AR64: 2 | AS64: 4 | AT64: 0 | AU64: 0 | AV64: 0 | AW64: 0 | AX64: 43 | AY64: 1 | AZ64: 2 | BA64: 3 | BB64: 2 | BC64: 6 | BD64: 4 | BE64: 1 | BF64: 1 | BG64: 4 | BH64: 9 | BI64: 5 | BJ64: 7 | BK64: 8 | BL64: 3 | BM64: 7 | BN64: 4 | BO64: 1 | BP64: 4 | BQ64: 4 | BR64: 0 | BS64: 0 | BT64: 0 | BU64: 0 | BV64: 76 | BW64: 20 | BX64: =SUM(BL64:BU64)/BV64 -> 0.3026315789
B65: 弥彦岡 | C65: 1 | D65: 0 | E65: 1 | F65: 1 | G65: 2 | H65: 3 | I65: 1 | J65: 1 | K65: 4 | L65: 1 | M65: 2 | N65: 2 | O65: 3 | P65: 3 | Q65: 4 | R65: 3 | S65: 0 | T65: 4 | U65: 0 | V65: 0 | W65: 0 | X65: 0 | Y65: 0 | Z65: 36 | AA65: 0 | AB65: 0 | AC65: 3 | AD65: 1 | AE65: 1 | AF65: 1 | AG65: 0 | AH65: 0 | AI65: 3 | AJ65: 1 | AK65: 2 | AL65: 4 | AM65: 2 | AN65: 4 | AO65: 3 | AP65: 2 | AQ65: 2 | AR65: 2 | AS65: 2 | AT65: 1 | AU65: 0 | AV65: 0 | AW65: 0 | AX65: 34 | AY65: 1 | AZ65: 0 | BA65: 4 | BB65: 2 | BC65: 3 | BD65: 4 | BE65: 1 | BF65: 1 | BG65: 7 | BH65: 2 | BI65: 4 | BJ65: 6 | BK65: 5 | BL65: 7 | BM65: 7 | BN65: 5 | BO65: 2 | BP65: 6 | BQ65: 2 | BR65: 1 | BS65: 0 | BT65: 0 | BU65: 0 | BV65: 70 | BW65: 24 | BX65: =SUM(BL65:BU65)/BV65 -> 0.4285714286
B66: 羽黒 | C66: 7 | D66: 5 | E66: 16 | F66: 21 | G66: 15 | H66: 5 | I66: 6 | J66: 15 | K66: 13 | L66: 14 | M66: 23 | N66: 22 | O66: 27 | P66: 19 | Q66: 19 | R66: 20 | S66: 10 | T66: 5 | U66: 3 | V66: 0 | W66: 0 | X66: 0 | Y66: 0 | Z66: 265 | AA66: 5 | AB66: 8 | AC66: 8 | AD66: 10 | AE66: 8 | AF66: 8 | AG66: 6 | AH66: 9 | AI66: 11 | AJ66: 13 | AK66: 25 | AL66: 20 | AM66: 20 | AN66: 17 | AO66: 19 | AP66: 28 | AQ66: 13 | AR66: 9 | AS66: 4 | AT66: 1 | AU66: 0 | AV66: 0 | AW66: 0 | AX66: 242 | AY66: 12 | AZ66: 13 | BA66: 24 | BB66: 31 | BC66: 23 | BD66: 13 | BE66: 12 | BF66: 24 | BG66: 24 | BH66: 27 | BI66: 48 | BJ66: 42 | BK66: 47 | BL66: 36 | BM66: 38 | BN66: 48 | BO66: 23 | BP66: 14 | BQ66: 7 | BR66: 1 | BS66: 0 | BT66: 0 | BU66: 0 | BV66: 507 | BW66: 210 | BX66: =SUM(BL66:BU66)/BV66 -> 0.3293885602
B67: 野中 | C67: 1 | D67: 3 | E67: 4 | F67: 1 | G67: 2 | H67: 2 | I67: 1 | J67: 1 | K67: 2 | L67: 2 | M67: 1 | N67: 4 | O67: 4 | P67: 3 | Q67: 5 | R67: 6 | S67: 0 | T67: 1 | U67: 1 | V67: 0 | W67: 0 | X67: 0 | Y67: 0 | Z67: 44 | AA67: 0 | AB67: 1 | AC67: 1 | AD67: 1 | AE67: 1 | AF67: 1 | AG67: 2 | AH67: 0 | AI67: 3 | AJ67: 4 | AK67: 2 | AL67: 7 | AM67: 4 | AN67: 4 | AO67: 7 | AP67: 4 | AQ67: 1 | AR67: 2 | AS67: 3 | AT67: 0 | AU67: 0 | AV67: 0 | AW67: 0 | AX67: 48 | AY67: 1 | AZ67: 4 | BA67: 5 | BB67: 2 | BC67: 3 | BD67: 3 | BE67: 3 | BF67: 1 | BG67: 5 | BH67: 6 | BI67: 3 | BJ67: 11 | BK67: 8 | BL67: 7 | BM67: 12 | BN67: 10 | BO67: 1 | BP67: 3 | BQ67: 4 | BR67: 0 | BS67: 0 | BT67: 0 | BU67: 0 | BV67: 92 | BW67: 35 | BX67: =SUM(BL67:BU67)/BV67 -> 0.402173913
B68: 並槻 | C68: 6 | D68: 10 | E68: 9 | F68: 4 | G68: 3 | H68: 4 | I68: 8 | J68: 7 | K68: 12 | L68: 3 | M68: 5 | N68: 12 | O68: 9 | P68: 14 | Q68: 15 | R68: 8 | S68: 6 | T68: 3 | U68: 2 | V68: 0 | W68: 0 | X68: 0 | Y68: 0 | Z68: 140 | AA68: 2 | AB68: 3 | AC68: 3 | AD68: 6 | AE68: 3 | AF68: 3 | AG68: 8 | AH68: 4 | AI68: 8 | AJ68: 8 | AK68: 4 | AL68: 7 | AM68: 13 | AN68: 16 | AO68: 8 | AP68: 9 | AQ68: 7 | AR68: 8 | AS68: 6 | AT68: 3 | AU68: 0 | AV68: 0 | AW68: 0 | AX68: 129 | AY68: 8 | AZ68: 13 | BA68: 12 | BB68: 10 | BC68: 6 | BD68: 7 | BE68: 16 | BF68: 11 | BG68: 20 | BH68: 11 | BI68: 9 | BJ68: 19 | BK68: 22 | BL68: 30 | BM68: 23 | BN68: 17 | BO68: 13 | BP68: 11 | BQ68: 8 | BR68: 3 | BS68: 0 | BT68: 0 | BU68: 0 | BV68: 269 | BW68: 90 | BX68: =SUM(BL68:BU68)/BV68 -> 0.3903345725
B69: 追分 | C69: 3 | D69: 3 | E69: 3 | F69: 4 | G69: 8 | H69: 13 | I69: 4 | J69: 4 | K69: 7 | L69: 10 | M69: 10 | N69: 8 | O69: 12 | P69: 15 | Q69: 4 | R69: 7 | S69: 5 | T69: 4 | U69: 0 | V69: 0 | W69: 0 | X69: 0 | Y69: 0 | Z69: 124 | AA69: 0 | AB69: 2 | AC69: 1 | AD69: 3 | AE69: 4 | AF69: 1 | AG69: 1 | AH69: 3 | AI69: 5 | AJ69: 7 | AK69: 3 | AL69: 10 | AM69: 10 | AN69: 6 | AO69: 8 | AP69: 8 | AQ69: 3 | AR69: 2 | AS69: 3 | AT69: 0 | AU69: 0 | AV69: 0 | AW69: 0 | AX69: 80 | AY69: 3 | AZ69: 5 | BA69: 4 | BB69: 7 | BC69: 12 | BD69: 14 | BE69: 5 | BF69: 7 | BG69: 12 | BH69: 17 | BI69: 13 | BJ69: 18 | BK69: 22 | BL69: 21 | BM69: 12 | BN69: 15 | BO69: 8 | BP69: 6 | BQ69: 3 | BR69: 0 | BS69: 0 | BT69: 0 | BU69: 0 | BV69: 204 | BW69: 99 | BX69: =SUM(BL69:BU69)/BV69 -> 0.318627451
B70: 仁谷野 | C70: 0 | D70: 1 | E70: 1 | F70: 2 | G70: 1 | H70: 0 | I70: 0 | J70: 1 | K70: 1 | L70: 2 | M70: 1 | N70: 2 | O70: 0 | P70: 1 | Q70: 1 | R70: 3 | S70: 2 | T70: 3 | U70: 0 | V70: 1 | W70: 0 | X70: 0 | Y70: 0 | Z70: 23 | AA70: 0 | AB70: 0 | AC70: 1 | AD70: 0 | AE70: 0 | AF70: 2 | AG70: 0 | AH70: 0 | AI70: 1 | AJ70: 2 | AK70: 1 | AL70: 0 | AM70: 1 | AN70: 0 | AO70: 4 | AP70: 7 | AQ70: 0 | AR70: 1 | AS70: 0 | AT70: 1 | AU70: 0 | AV70: 0 | AW70: 0 | AX70: 21 | AY70: 0 | AZ70: 1 | BA70: 2 | BB70: 2 | BC70: 1 | BD70: 2 | BE70: 0 | BF70: 1 | BG70: 2 | BH70: 4 | BI70: 2 | BJ70: 2 | BK70: 1 | BL70: 1 | BM70: 5 | BN70: 10 | BO70: 2 | BP70: 4 | BQ70: 0 | BR70: 2 | BS70: 0 | BT70: 0 | BU70: 0 | BV70: 44 | BW70: 19 | BX70: =SUM(BL70:BU70)/BV70 -> 0.5454545455
B71: 城塚 | C71: 1 | D71: 1 | E71: 1 | F71: 1 | G71: 0 | H71: 0 | I71: 2 | J71: 0 | K71: 0 | L71: 1 | M71: 2 | N71: 3 | O71: 5 | P71: 2 | Q71: 1 | R71: 0 | S71: 1 | T71: 1 | U71: 0 | V71: 0 | W71: 0 | X71: 0 | Y71: 0 | Z71: 22 | AA71: 1 | AB71: 0 | AC71: 0 | AD71: 0 | AE71: 0 | AF71: 0 | AG71: 1 | AH71: 1 | AI71: 0 | AJ71: 0 | AK71: 1 | AL71: 2 | AM71: 3 | AN71: 0 | AO71: 1 | AP71: 2 | AQ71: 2 | AR71: 3 | AS71: 2 | AT71: 0 | AU71: 0 | AV71: 0 | AW71: 0 | AX71: 19 | AY71: 2 | AZ71: 1 | BA71: 1 | BB71: 1 | BC71: 0 | BD71: 0 | BE71: 3 | BF71: 1 | BG71: 0 | BH71: 1 | BI71: 3 | BJ71: 5 | BK71: 8 | BL71: 2 | BM71: 2 | BN71: 2 | BO71: 3 | BP71: 4 | BQ71: 2 | BR71: 0 | BS71: 0 | BT71: 0 | BU71: 0 | BV71: 41 | BW71: 15 | BX71: =SUM(BL71:BU71)/BV71 -> 0.3658536585
B72: つつじが丘 | C72: 2 | D72: 3 | E72: 5 | F72: 72 | G72: 38 | H72: 8 | I72: 14 | J72: 9 | K72: 15 | L72: 15 | M72: 17 | N72: 13 | O72: 12 | P72: 20 | Q72: 20 | R72: 22 | S72: 5 | T72: 3 | U72: 1 | V72: 0 | W72: 0 | X72: 0 | Y72: 0 | Z72: 294 | AA72: 3 | AB72: 7 | AC72: 4 | AD72: 25 | AE72: 19 | AF72: 4 | AG72: 8 | AH72: 8 | AI72: 8 | AJ72: 10 | AK72: 16 | AL72: 17 | AM72: 8 | AN72: 13 | AO72: 21 | AP72: 14 | AQ72: 14 | AR72: 2 | AS72: 0 | AT72: 2 | AU72: 1 | AV72: 0 | AW72: 0 | AX72: 204 | AY72: 5 | AZ72: 10 | BA72: 9 | BB72: 97 | BC72: 57 | BD72: 12 | BE72: 22 | BF72: 17 | BG72: 23 | BH72: 25 | BI72: 33 | BJ72: 30 | BK72: 20 | BL72: 33 | BM72: 41 | BN72: 36 | BO72: 19 | BP72: 5 | BQ72: 1 | BR72: 2 | BS72: 1 | BT72: 0 | BU72: 0 | BV72: 498 | BW72: 350 | BX72: =SUM(BL72:BU72)/BV72 -> 0.2771084337
B73: つくし町 | C73: 0 | D73: 1 | E73: 5 | F73: 3 | G73: 0 | H73: 0 | I73: 1 | J73: 2 | K73: 0 | L73: 2 | M73: 1 | N73: 1 | O73: 0 | P73: 2 | Q73: 1 | R73: 0 | S73: 0 | T73: 0 | U73: 0 | V73: 0 | W73: 0 | X73: 0 | Y73: 0 | Z73: 19 | AA73: 0 | AB73: 0 | AC73: 0 | AD73: 0 | AE73: 0 | AF73: 0 | AG73: 0 | AH73: 3 | AI73: 1 | AJ73: 1 | AK73: 1 | AL73: 1 | AM73: 2 | AN73: 0 | AO73: 1 | AP73: 0 | AQ73: 0 | AR73: 0 | AS73: 0 | AT73: 0 | AU73: 0 | AV73: 0 | AW73: 0 | AX73: 10 | AY73: 0 | AZ73: 1 | BA73: 5 | BB73: 3 | BC73: 0 | BD73: 0 | BE73: 1 | BF73: 5 | BG73: 1 | BH73: 3 | BI73: 2 | BJ73: 2 | BK73: 2 | BL73: 2 | BM73: 2 | BN73: 0 | BO73: 0 | BP73: 0 | BQ73: 0 | BR73: 0 | BS73: 0 | BT73: 0 | BU73: 0 | BV73: 29 | BW73: 11 | BX73: =SUM(BL73:BU73)/BV73 -> 0.1379310345
B74: あかね町 | C74: 29 | D74: 32 | E74: 52 | F74: 34 | G74: 42 | H74: 24 | I74: 26 | J74: 29 | K74: 37 | L74: 53 | M74: 54 | N74: 40 | O74: 22 | P74: 15 | Q74: 9 | R74: 10 | S74: 3 | T74: 2 | U74: 0 | V74: 0 | W74: 0 | X74: 0 | Y74: 0 | Z74: 513 | AA74: 17 | AB74: 22 | AC74: 52 | AD74: 45 | AE74: 32 | AF74: 16 | AG74: 30 | AH74: 34 | AI74: 42 | AJ74: 64 | AK74: 65 | AL74: 31 | AM74: 23 | AN74: 16 | AO74: 12 | AP74: 12 | AQ74: 9 | AR74: 5 | AS74: 1 | AT74: 1 | AU74: 1 | AV74: 0 | AW74: 0 | AX74: 530 | AY74: 46 | AZ74: 54 | BA74: 104 | BB74: 79 | BC74: 74 | BD74: 40 | BE74: 56 | BF74: 63 | BG74: 79 | BH74: 117 | BI74: 119 | BJ74: 71 | BK74: 45 | BL74: 31 | BM74: 21 | BN74: 22 | BO74: 12 | BP74: 7 | BQ74: 1 | BR74: 1 | BS74: 1 | BT74: 0 | BU74: 0 | BV74: 1043 | BW74: 359 | BX74: =SUM(BL74:BU74)/BV74 -> 0.092042186
A75: 乙 地 区 | B75: 乙 | C75: 5 | D75: 6 | E75: 15 | F75: 3 | G75: 6 | H75: 13 | I75: 10 | J75: 17 | K75: 21 | L75: 19 | M75: 24 | N75: 20 | O75: 23 | P75: 28 | Q75: 45 | R75: 36 | S75: 25 | T75: 6 | U75: 2 | V75: 1 | W75: 0 | X75: 0 | Y75: 0 | Z75: 325 | AA75: 6 | AB75: 7 | AC75: 11 | AD75: 7 | AE75: 7 | AF75: 5 | AG75: 10 | AH75: 17 | AI75: 10 | AJ75: 21 | AK75: 17 | AL75: 25 | AM75: 25 | AN75: 32 | AO75: 38 | AP75: 24 | AQ75: 21 | AR75: 20 | AS75: 10 | AT75: 6 | AU75: 0 | AV75: 0 | AW75: 0 | AX75: 319 | AY75: 11 | AZ75: 13 | BA75: 26 | BB75: 10 | BC75: 13 | BD75: 18 | BE75: 20 | BF75: 34 | BG75: 31 | BH75: 40 | BI75: 41 | BJ75: 45 | BK75: 48 | BL75: 60 | BM75: 83 | BN75: 60 | BO75: 46 | BP75: 26 | BQ75: 12 | BR75: 7 | BS75: 0 | BT75: 0 | BU75: 0 | BV75: 644 | BW75: 238 | BX75: =SUM(BL75:BU75)/BV75 -> 0.4565217391
B76: 桃崎浜 | C76: 4 | D76: 6 | E76: 6 | F76: 16 | G76: 2 | H76: 3 | I76: 10 | J76: 12 | K76: 13 | L76: 12 | M76: 9 | N76: 14 | O76: 18 | P76: 15 | Q76: 17 | R76: 23 | S76: 12 | T76: 5 | U76: 5 | V76: 1 | W76: 0 | X76: 0 | Y76: 0 | Z76: 203 | AA76: 4 | AB76: 4 | AC76: 7 | AD76: 7 | AE76: 4 | AF76: 4 | AG76: 8 | AH76: 12 | AI76: 10 | AJ76: 9 | AK76: 9 | AL76: 14 | AM76: 17 | AN76: 19 | AO76: 17 | AP76: 20 | AQ76: 16 | AR76: 8 | AS76: 6 | AT76: 3 | AU76: 0 | AV76: 0 | AW76: 0 | AX76: 198 | AY76: 8 | AZ76: 10 | BA76: 13 | BB76: 23 | BC76: 6 | BD76: 7 | BE76: 18 | BF76: 24 | BG76: 23 | BH76: 21 | BI76: 18 | BJ76: 28 | BK76: 35 | BL76: 34 | BM76: 34 | BN76: 43 | BO76: 28 | BP76: 13 | BQ76: 11 | BR76: 4 | BS76: 0 | BT76: 0 | BU76: 0 | BV76: 401 | BW76: 151 | BX76: =SUM(BL76:BU76)/BV76 -> 0.4164588529
B77: 荒井浜 | C77: 1 | D77: 3 | E77: 2 | F77: 3 | G77: 0 | H77: 2 | I77: 6 | J77: 4 | K77: 9 | L77: 5 | M77: 10 | N77: 4 | O77: 10 | P77: 14 | Q77: 13 | R77: 11 | S77: 12 | T77: 2 | U77: 2 | V77: 1 | W77: 0 | X77: 0 | Y77: 0 | Z77: 114 | AA77: 1 | AB77: 3 | AC77: 3 | AD77: 5 | AE77: 3 | AF77: 3 | AG77: 2 | AH77: 8 | AI77: 4 | AJ77: 7 | AK77: 12 | AL77: 7 | AM77: 13 | AN77: 10 | AO77: 14 | AP77: 19 | AQ77: 9 | AR77: 13 | AS77: 7 | AT77: 2 | AU77: 0 | AV77: 0 | AW77: 0 | AX77: 145 | AY77: 2 | AZ77: 6 | BA77: 5 | BB77: 8 | BC77: 3 | BD77: 5 | BE77: 8 | BF77: 12 | BG77: 13 | BH77: 12 | BI77: 22 | BJ77: 11 | BK77: 23 | BL77: 24 | BM77: 27 | BN77: 30 | BO77: 21 | BP77: 15 | BQ77: 9 | BR77: 3 | BS77: 0 | BT77: 0 | BU77: 0 | BV77: 259 | BW77: 110 | BX77: =SUM(BL77:BU77)/BV77 -> 0.4980694981
B78: 大出 | C78: 3 | D78: 8 | E78: 10 | F78: 6 | G78: 1 | H78: 8 | I78: 5 | J78: 8 | K78: 14 | L78: 15 | M78: 12 | N78: 16 | O78: 12 | P78: 16 | Q78: 16 | R78: 16 | S78: 9 | T78: 3 | U78: 2 | V78: 4 | W78: 0 | X78: 0 | Y78: 0 | Z78: 184 | AA78: 3 | AB78: 6 | AC78: 11 | AD78: 8 | AE78: 1 | AF78: 8 | AG78: 4 | AH78: 6 | AI78: 12 | AJ78: 14 | AK78: 10 | AL78: 12 | AM78: 11 | AN78: 20 | AO78: 22 | AP78: 20 | AQ78: 10 | AR78: 20 | AS78: 19 | AT78: 4 | AU78: 0 | AV78: 0 | AW78: 0 | AX78: 221 | AY78: 6 | AZ78: 14 | BA78: 21 | BB78: 14 | BC78: 2 | BD78: 16 | BE78: 9 | BF78: 14 | BG78: 26 | BH78: 29 | BI78: 22 | BJ78: 28 | BK78: 23 | BL78: 36 | BM78: 38 | BN78: 36 | BO78: 19 | BP78: 23 | BQ78: 21 | BR78: 8 | BS78: 0 | BT78: 0 | BU78: 0 | BV78: 405 | BW78: 154 | BX78: =SUM(BL78:BU78)/BV78 -> 0.4469135802
B79: 日立 | C79: 0 | D79: 0 | E79: 0 | F79: 7 | G79: 16 | H79: 16 | I79: 4 | J79: 0 | K79: 0 | L79: 0 | M79: 0 | N79: 0 | O79: 0 | P79: 0 | Q79: 0 | R79: 0 | S79: 0 | T79: 0 | U79: 0 | V79: 0 | W79: 0 | X79: 0 | Y79: 0 | Z79: 43 | AA79: 0 | AB79: 0 | AC79: 0 | AD79: 0 | AE79: 0 | AF79: 0 | AG79: 0 | AH79: 0 | AI79: 0 | AJ79: 0 | AK79: 0 | AL79: 0 | AM79: 0 | AN79: 0 | AO79: 0 | AP79: 0 | AQ79: 0 | AR79: 0 | AS79: 0 | AT79: 0 | AU79: 0 | AV79: 0 | AW79: 0 | AX79: 0 | AY79: 0 | AZ79: 0 | BA79: 0 | BB79: 7 | BC79: 16 | BD79: 16 | BE79: 4 | BF79: 0 | BG79: 0 | BH79: 0 | BI79: 0 | BJ79: 0 | BK79: 0 | BL79: 0 | BM79: 0 | BN79: 0 | BO79: 0 | BP79: 0 | BQ79: 0 | BR79: 0 | BS79: 0 | BT79: 0 | BU79: 0 | BV79: 43 | BW79: 43 | BX79: =SUM(BL79:BU79)/BV79 -> 0
B80: 富岡 | C80: 1 | D80: 0 | E80: 0 | F80: 2 | G80: 6 | H80: 4 | I80: 4 | J80: 4 | K80: 6 | L80: 4 | M80: 3 | N80: 5 | O80: 3 | P80: 11 | Q80: 6 | R80: 10 | S80: 4 | T80: 3 | U80: 2 | V80: 0 | W80: 0 | X80: 0 | Y80: 0 | Z80: 78 | AA80: 1 | AB80: 3 | AC80: 1 | AD80: 1 | AE80: 3 | AF80: 3 | AG80: 2 | AH80: 4 | AI80: 4 | AJ80: 2 | AK80: 3 | AL80: 10 | AM80: 6 | AN80: 9 | AO80: 11 | AP80: 8 | AQ80: 4 | AR80: 4 | AS80: 7 | AT80: 1 | AU80: 0 | AV80: 0 | AW80: 0 | AX80: 87 | AY80: 2 | AZ80: 3 | BA80: 1 | BB80: 3 | BC80: 9 | BD80: 7 | BE80: 6 | BF80: 8 | BG80: 10 | BH80: 6 | BI80: 6 | BJ80: 15 | BK80: 9 | BL80: 20 | BM80: 17 | BN80: 18 | BO80: 8 | BP80: 7 | BQ80: 9 | BR80: 1 | BS80: 0 | BT80: 0 | BU80: 0 | BV80: 165 | BW80: 55 | BX80: =SUM(BL80:BU80)/BV80 -> 0.4848484848
B81: 江尻 | C81: 0 | D81: 0 | E81: 0 | F81: 0 | G81: 1 | H81: 1 | I81: 1 | J81: 0 | K81: 1 | L81: 3 | M81: 1 | N81: 1 | O81: 4 | P81: 3 | Q81: 3 | R81: 0 | S81: 3 | T81: 0 | U81: 0 | V81: 0 | W81: 0 | X81: 0 | Y81: 0 | Z81: 22 | AA81: 0 | AB81: 0 | AC81: 0 | AD81: 0 | AE81: 0 | AF81: 0 | AG81: 0 | AH81: 0 | AI81: 0 | AJ81: 1 | AK81: 1 | AL81: 5 | AM81: 1 | AN81: 1 | AO81: 6 | AP81: 1 | AQ81: 1 | AR81: 2 | AS81: 3 | AT81: 1 | AU81: 0 | AV81: 0 | AW81: 0 | AX81: 23 | AY81: 0 | AZ81: 0 | BA81: 0 | BB81: 0 | BC81: 1 | BD81: 1 | BE81: 1 | BF81: 0 | BG81: 1 | BH81: 4 | BI81: 2 | BJ81: 6 | BK81: 5 | BL81: 4 | BM81: 9 | BN81: 1 | BO81: 4 | BP81: 2 | BQ81: 3 | BR81: 1 | BS81: 0 | BT81: 0 | BU81: 0 | BV81: 45 | BW81: 17 | BX81: =SUM(BL81:BU81)/BV81 -> 0.5333333333
B82: 地本 | C82: 0 | D82: 1 | E82: 6 | F82: 0 | G82: 3 | H82: 2 | I82: 0 | J82: 3 | K82: 2 | L82: 3 | M82: 1 | N82: 2 | O82: 1 | P82: 1 | Q82: 7 | R82: 2 | S82: 0 | T82: 0 | U82: 0 | V82: 0 | W82: 0 | X82: 0 | Y82: 0 | Z82: 34 | AA82: 1 | AB82: 1 | AC82: 1 | AD82: 1 | AE82: 0 | AF82: 0 | AG82: 0 | AH82: 1 | AI82: 2 | AJ82: 4 | AK82: 1 | AL82: 0 | AM82: 1 | AN82: 3 | AO82: 5 | AP82: 1 | AQ82: 3 | AR82: 1 | AS82: 0 | AT82: 0 | AU82: 0 | AV82: 0 | AW82: 0 | AX82: 26 | AY82: 1 | AZ82: 2 | BA82: 7 | BB82: 1 | BC82: 3 | BD82: 2 | BE82: 0 | BF82: 4 | BG82: 4 | BH82: 7 | BI82: 2 | BJ82: 2 | BK82: 2 | BL82: 4 | BM82: 12 | BN82: 3 | BO82: 3 | BP82: 1 | BQ82: 0 | BR82: 0 | BS82: 0 | BT82: 0 | BU82: 0 | BV82: 60 | BW82: 18 | BX82: =SUM(BL82:BU82)/BV82 -> 0.3833333333
B83: 八幡 | C83: 0 | D83: 3 | E83: 3 | F83: 4 | G83: 4 | H83: 4 | I83: 1 | J83: 12 | K83: 9 | L83: 6 | M83: 8 | N83: 6 | O83: 13 | P83: 5 | Q83: 12 | R83: 11 | S83: 7 | T83: 1 | U83: 0 | V83: 0 | W83: 0 | X83: 0 | Y83: 0 | Z83: 109 | AA83: 1 | AB83: 3 | AC83: 8 | AD83: 5 | AE83: 6 | AF83: 2 | AG83: 2 | AH83: 9 | AI83: 5 | AJ83: 8 | AK83: 4 | AL83: 3 | AM83: 7 | AN83: 12 | AO83: 13 | AP83: 14 | AQ83: 6 | AR83: 5 | AS83: 1 | AT83: 0 | AU83: 1 | AV83: 0 | AW83: 0 | AX83: 115 | AY83: 1 | AZ83: 6 | BA83: 11 | BB83: 9 | BC83: 10 | BD83: 6 | BE83: 3 | BF83: 21 | BG83: 14 | BH83: 14 | BI83: 12 | BJ83: 9 | BK83: 20 | BL83: 17 | BM83: 25 | BN83: 25 | BO83: 13 | BP83: 6 | BQ83: 1 | BR83: 0 | BS83: 1 | BT83: 0 | BU83: 0 | BV83: 224 | BW83: 80 | BX83: =SUM(BL83:BU83)/BV83 -> 0.3928571429
B84: 高野 | C84: 1 | D84: 0 | E84: 2 | F84: 3 | G84: 5 | H84: 0 | I84: 1 | J84: 4 | K84: 5 | L84: 4 | M84: 10 | N84: 5 | O84: 8 | P84: 8 | Q84: 14 | R84: 9 | S84: 4 | T84: 2 | U84: 0 | V84: 2 | W84: 0 | X84: 0 | Y84: 0 | Z84: 87 | AA84: 0 | AB84: 2 | AC84: 0 | AD84: 1 | AE84: 2 | AF84: 4 | AG84: 3 | AH84: 1 | AI84: 3 | AJ84: 3 | AK84: 9 | AL84: 5 | AM84: 5 | AN84: 11 | AO84: 12 | AP84: 7 | AQ84: 6 | AR84: 7 | AS84: 4 | AT84: 2 | AU84: 1 | AV84: 0 | AW84: 0 | AX84: 88 | AY84: 1 | AZ84: 2 | BA84: 2 | BB84: 4 | BC84: 7 | BD84: 4 | BE84: 4 | BF84: 5 | BG84: 8 | BH84: 7 | BI84: 19 | BJ84: 10 | BK84: 13 | BL84: 19 | BM84: 26 | BN84: 16 | BO84: 10 | BP84: 9 | BQ84: 4 | BR84: 4 | BS84: 1 | BT84: 0 | BU84: 0 | BV84: 175 | BW84: 62 | BX84: =SUM(BL84:BU84)/BV84 -> 0.5085714286
B85: 高野茨島 | C85: 0 | D85: 2 | E85: 1 | F85: 0 | G85: 0 | H85: 1 | I85: 1 | J85: 0 | K85: 1 | L85: 1 | M85: 2 | N85: 1 | O85: 0 | P85: 1 | Q85: 1 | R85: 3 | S85: 1 | T85: 0 | U85: 0 | V85: 0 | W85: 0 | X85: 0 | Y85: 0 | Z85: 16 | AA85: 1 | AB85: 2 | AC85: 2 | AD85: 0 | AE85: 0 | AF85: 0 | AG85: 1 | AH85: 0 | AI85: 1 | AJ85: 2 | AK85: 0 | AL85: 2 | AM85: 0 | AN85: 0 | AO85: 3 | AP85: 2 | AQ85: 1 | AR85: 2 | AS85: 0 | AT85: 0 | AU85: 0 | AV85: 0 | AW85: 0 | AX85: 19 | AY85: 1 | AZ85: 4 | BA85: 3 | BB85: 0 | BC85: 0 | BD85: 1 | BE85: 2 | BF85: 0 | BG85: 2 | BH85: 3 | BI85: 2 | BJ85: 3 | BK85: 0 | BL85: 1 | BM85: 4 | BN85: 5 | BO85: 2 | BP85: 2 | BQ85: 0 | BR85: 0 | BS85: 0 | BT85: 0 | BU85: 0 | BV85: 35 | BW85: 11 | BX85: =SUM(BL85:BU85)/BV85 -> 0.4
B86: 土作 | C86: 0 | D86: 1 | E86: 0 | F86: 2 | G86: 2 | H86: 1 | I86: 1 | J86: 4 | K86: 1 | L86: 2 | M86: 1 | N86: 0 | O86: 4 | P86: 5 | Q86: 1 | R86: 5 | S86: 1 | T86: 5 | U86: 0 | V86: 0 | W86: 0 | X86: 0 | Y86: 0 | Z86: 36 | AA86: 1 | AB86: 0 | AC86: 3 | AD86: 2 | AE86: 1 | AF86: 0 | AG86: 0 | AH86: 3 | AI86: 3 | AJ86: 0 | AK86: 2 | AL86: 1 | AM86: 5 | AN86: 4 | AO86: 2 | AP86: 3 | AQ86: 2 | AR86: 4 | AS86: 0 | AT86: 1 | AU86: 0 | AV86: 0 | AW86: 0 | AX86: 37 | AY86: 1 | AZ86: 1 | BA86: 3 | BB86: 4 | BC86: 3 | BD86: 1 | BE86: 1 | BF86: 7 | BG86: 4 | BH86: 2 | BI86: 3 | BJ86: 1 | BK86: 9 | BL86: 9 | BM86: 3 | BN86: 8 | BO86: 3 | BP86: 9 | BQ86: 0 | BR86: 1 | BS86: 0 | BT86: 0 | BU86: 0 | BV86: 73 | BW86: 28 | BX86: =SUM(BL86:BU86)/BV86 -> 0.4520547945
B87: 横道 | C87: 1 | D87: 1 | E87: 4 | F87: 7 | G87: 1 | H87: 0 | I87: 3 | J87: 8 | K87: 7 | L87: 5 | M87: 7 | N87: 2 | O87: 6 | P87: 14 | Q87: 15 | R87: 7 | S87: 3 | T87: 2 | U87: 1 | V87: 0 | W87: 0 | X87: 0 | Y87: 0 | Z87: 94 | AA87: 3 | AB87: 2 | AC87: 4 | AD87: 4 | AE87: 6 | AF87: 2 | AG87: 1 | AH87: 6 | AI87: 4 | AJ87: 5 | AK87: 3 | AL87: 1 | AM87: 10 | AN87: 9 | AO87: 10 | AP87: 10 | AQ87: 4 | AR87: 3 | AS87: 6 | AT87: 2 | AU87: 0 | AV87: 0 | AW87: 0 | AX87: 95 | AY87: 4 | AZ87: 3 | BA87: 8 | BB87: 11 | BC87: 7 | BD87: 2 | BE87: 4 | BF87: 14 | BG87: 11 | BH87: 10 | BI87: 10 | BJ87: 3 | BK87: 16 | BL87: 23 | BM87: 25 | BN87: 17 | BO87: 7 | BP87: 5 | BQ87: 7 | BR87: 2 | BS87: 0 | BT87: 0 | BU87: 0 | BV87: 189 | BW87: 61 | BX87: =SUM(BL87:BU87)/BV87 -> 0.455026455
B88: 平木田 | C88: 1 | D88: 2 | E88: 4 | F88: 3 | G88: 0 | H88: 4 | I88: 6 | J88: 5 | K88: 4 | L88: 5 | M88: 2 | N88: 3 | O88: 7 | P88: 7 | Q88: 10 | R88: 10 | S88: 0 | T88: 1 | U88: 3 | V88: 0 | W88: 0 | X88: 0 | Y88: 0 | Z88: 77 | AA88: 2 | AB88: 3 | AC88: 5 | AD88: 0 | AE88: 0 | AF88: 3 | AG88: 0 | AH88: 1 | AI88: 6 | AJ88: 4 | AK88: 5 | AL88: 2 | AM88: 6 | AN88: 7 | AO88: 14 | AP88: 6 | AQ88: 3 | AR88: 3 | AS88: 2 | AT88: 1 | AU88: 0 | AV88: 0 | AW88: 0 | AX88: 73 | AY88: 3 | AZ88: 5 | BA88: 9 | BB88: 3 | BC88: 0 | BD88: 7 | BE88: 6 | BF88: 6 | BG88: 10 | BH88: 9 | BI88: 7 | BJ88: 5 | BK88: 13 | BL88: 14 | BM88: 24 | BN88: 16 | BO88: 3 | BP88: 4 | BQ88: 5 | BR88: 1 | BS88: 0 | BT88: 0 | BU88: 0 | BV88: 150 | BW88: 52 | BX88: =SUM(BL88:BU88)/BV88 -> 0.4466666667
B89: 平木田駅前 | C89: 7 | D89: 5 | E89: 7 | F89: 16 | G89: 8 | H89: 7 | I89: 17 | J89: 12 | K89: 18 | L89: 19 | M89: 18 | N89: 19 | O89: 17 | P89: 16 | Q89: 22 | R89: 25 | S89: 14 | T89: 9 | U89: 2 | V89: 0 | W89: 0 | X89: 0 | Y89: 0 | Z89: 258 | AA89: 2 | AB89: 6 | AC89: 9 | AD89: 7 | AE89: 10 | AF89: 1 | AG89: 10 | AH89: 9 | AI89: 15 | AJ89: 17 | AK89: 16 | AL89: 18 | AM89: 19 | AN89: 17 | AO89: 23 | AP89: 20 | AQ89: 25 | AR89: 11 | AS89: 11 | AT89: 3 | AU89: 0 | AV89: 1 | AW89: 0 | AX89: 250 | AY89: 9 | AZ89: 11 | BA89: 16 | BB89: 23 | BC89: 18 | BD89: 8 | BE89: 27 | BF89: 21 | BG89: 33 | BH89: 36 | BI89: 34 | BJ89: 37 | BK89: 36 | BL89: 33 | BM89: 45 | BN89: 45 | BO89: 39 | BP89: 20 | BQ89: 13 | BR89: 3 | BS89: 0 | BT89: 1 | BU89: 0 | BV89: 508 | BW89: 220 | BX89: =SUM(BL89:BU89)/BV89 -> 0.3917322835
B90: 十二天 | C90: 1 | D90: 1 | E90: 6 | F90: 5 | G90: 4 | H90: 1 | I90: 2 | J90: 1 | K90: 8 | L90: 9 | M90: 4 | N90: 1 | O90: 4 | P90: 5 | Q90: 5 | R90: 7 | S90: 3 | T90: 2 | U90: 1 | V90: 0 | W90: 0 | X90: 0 | Y90: 0 | Z90: 70 | AA90: 1 | AB90: 3 | AC90: 3 | AD90: 5 | AE90: 4 | AF90: 3 | AG90: 0 | AH90: 3 | AI90: 5 | AJ90: 6 | AK90: 6 | AL90: 3 | AM90: 4 | AN90: 6 | AO90: 3 | AP90: 4 | AQ90: 2 | AR90: 8 | AS90: 2 | AT90: 0 | AU90: 0 | AV90: 0 | AW90: 0 | AX90: 71 | AY90: 2 | AZ90: 4 | BA90: 9 | BB90: 10 | BC90: 8 | BD90: 4 | BE90: 2 | BF90: 4 | BG90: 13 | BH90: 15 | BI90: 10 | BJ90: 4 | BK90: 8 | BL90: 11 | BM90: 8 | BN90: 11 | BO90: 5 | BP90: 10 | BQ90: 3 | BR90: 0 | BS90: 0 | BT90: 0 | BU90: 0 | BV90: 141 | BW90: 48 | BX90: =SUM(BL90:BU90)/BV90 -> 0.3404255319
B91: 小地谷 | C91: 0 | D91: 0 | E91: 0 | F91: 1 | G91: 0 | H91: 2 | I91: 0 | J91: 0 | K91: 0 | L91: 0 | M91: 2 | N91: 2 | O91: 1 | P91: 1 | Q91: 1 | R91: 2 | S91: 0 | T91: 1 | U91: 0 | V91: 0 | W91: 0 | X91: 0 | Y91: 0 | Z91: 13 | AA91: 1 | AB91: 0 | AC91: 0 | AD91: 0 | AE91: 1 | AF91: 1 | AG91: 0 | AH91: 0 | AI91: 1 | AJ91: 0 | AK91: 1 | AL91: 3 | AM91: 1 | AN91: 1 | AO91: 1 | AP91: 4 | AQ91: 0 | AR91: 2 | AS91: 0 | AT91: 0 | AU91: 0 | AV91: 0 | AW91: 0 | AX91: 17 | AY91: 1 | AZ91: 0 | BA91: 0 | BB91: 1 | BC91: 1 | BD91: 3 | BE91: 0 | BF91: 0 | BG91: 1 | BH91: 0 | BI91: 3 | BJ91: 5 | BK91: 2 | BL91: 2 | BM91: 2 | BN91: 6 | BO91: 0 | BP91: 3 | BQ91: 0 | BR91: 0 | BS91: 0 | BT91: 0 | BU91: 0 | BV91: 30 | BW91: 9 | BX91: =SUM(BL91:BU91)/BV91 -> 0.4333333333
B92: 山屋 | C92: 0 | D92: 1 | E92: 1 | F92: 0 | G92: 1 | H92: 0 | I92: 2 | J92: 1 | K92: 1 | L92: 1 | M92: 1 | N92: 2 | O92: 1 | P92: 2 | Q92: 3 | R92: 4 | S92: 1 | T92: 1 | U92: 0 | V92: 0 | W92: 0 | X92: 0 | Y92: 0 | Z92: 23 | AA92: 0 | AB92: 0 | AC92: 2 | AD92: 0 | AE92: 0 | AF92: 0 | AG92: 1 | AH92: 0 | AI92: 1 | AJ92: 0 | AK92: 1 | AL92: 2 | AM92: 1 | AN92: 3 | AO92: 3 | AP92: 0 | AQ92: 1 | AR92: 5 | AS92: 0 | AT92: 0 | AU92: 0 | AV92: 0 | AW92: 0 | AX92: 20 | AY92: 0 | AZ92: 1 | BA92: 3 | BB92: 0 | BC92: 1 | BD92: 0 | BE92: 3 | BF92: 1 | BG92: 2 | BH92: 1 | BI92: 2 | BJ92: 4 | BK92: 2 | BL92: 5 | BM92: 6 | BN92: 4 | BO92: 2 | BP92: 6 | BQ92: 0 | BR92: 0 | BS92: 0 | BT92: 0 | BU92: 0 | BV92: 43 | BW92: 18 | BX92: =SUM(BL92:BU92)/BV92 -> 0.5348837209
B93: 菅田 | C93: 3 | D93: 5 | E93: 3 | F93: 1 | G93: 4 | H93: 6 | I93: 9 | J93: 5 | K93: 4 | L93: 6 | M93: 7 | N93: 7 | O93: 16 | P93: 9 | Q93: 23 | R93: 6 | S93: 8 | T93: 2 | U93: 3 | V93: 3 | W93: 0 | X93: 0 | Y93: 0 | Z93: 130 | AA93: 3 | AB93: 8 | AC93: 3 | AD93: 2 | AE93: 3 | AF93: 2 | AG93: 8 | AH93: 3 | AI93: 7 | AJ93: 3 | AK93: 1 | AL93: 10 | AM93: 14 | AN93: 15 | AO93: 14 | AP93: 7 | AQ93: 10 | AR93: 10 | AS93: 4 | AT93: 3 | AU93: 0 | AV93: 0 | AW93: 0 | AX93: 130 | AY93: 6 | AZ93: 13 | BA93: 6 | BB93: 3 | BC93: 7 | BD93: 8 | BE93: 17 | BF93: 8 | BG93: 11 | BH93: 9 | BI93: 8 | BJ93: 17 | BK93: 30 | BL93: 24 | BM93: 37 | BN93: 13 | BO93: 18 | BP93: 12 | BQ93: 7 | BR93: 6 | BS93: 0 | BT93: 0 | BU93: 0 | BV93: 260 | BW93: 81 | BX93: =SUM(BL93:BU93)/BV93 -> 0.45
A94: 築 地 地 区 | B94: 北成田 | C94: 1 | D94: 0 | E94: 4 | F94: 1 | G94: 4 | H94: 1 | I94: 6 | J94: 10 | K94: 6 | L94: 3 | M94: 8 | N94: 4 | O94: 10 | P94: 5 | Q94: 9 | R94: 8 | S94: 6 | T94: 2 | U94: 1 | V94: 0 | W94: 0 | X94: 0 | Y94: 0 | Z94: 89 | AA94: 1 | AB94: 1 | AC94: 5 | AD94: 2 | AE94: 2 | AF94: 6 | AG94: 3 | AH94: 2 | AI94: 3 | AJ94: 5 | AK94: 4 | AL94: 7 | AM94: 5 | AN94: 7 | AO94: 13 | AP94: 7 | AQ94: 4 | AR94: 6 | AS94: 4 | AT94: 0 | AU94: 1 | AV94: 0 | AW94: 0 | AX94: 88 | AY94: 2 | AZ94: 1 | BA94: 9 | BB94: 3 | BC94: 6 | BD94: 7 | BE94: 9 | BF94: 12 | BG94: 9 | BH94: 8 | BI94: 12 | BJ94: 11 | BK94: 15 | BL94: 12 | BM94: 22 | BN94: 15 | BO94: 10 | BP94: 8 | BQ94: 5 | BR94: 0 | BS94: 1 | BT94: 0 | BU94: 0 | BV94: 177 | BW94: 45 | BX94: =SUM(BL94:BU94)/BV94 -> 0.4124293785
B95: 宮川 | C95: 0 | D95: 4 | E95: 0 | F95: 1 | G95: 1 | H95: 2 | I95: 4 | J95: 3 | K95: 2 | L95: 5 | M95: 3 | N95: 7 | O95: 5 | P95: 3 | Q95: 4 | R95: 5 | S95: 1 | T95: 4 | U95: 1 | V95: 1 | W95: 0 | X95: 0 | Y95: 0 | Z95: 56 | AA95: 2 | AB95: 1 | AC95: 3 | AD95: 0 | AE95: 0 | AF95: 3 | AG95: 3 | AH95: 1 | AI95: 2 | AJ95: 2 | AK95: 1 | AL95: 6 | AM95: 5 | AN95: 2 | AO95: 5 | AP95: 6 | AQ95: 2 | AR95: 3 | AS95: 3 | AT95: 1 | AU95: 0 | AV95: 0 | AW95: 0 | AX95: 51 | AY95: 2 | AZ95: 5 | BA95: 3 | BB95: 1 | BC95: 1 | BD95: 5 | BE95: 7 | BF95: 4 | BG95: 4 | BH95: 7 | BI95: 4 | BJ95: 13 | BK95: 10 | BL95: 5 | BM95: 9 | BN95: 11 | BO95: 3 | BP95: 7 | BQ95: 4 | BR95: 2 | BS95: 0 | BT95: 0 | BU95: 0 | BV95: 107 | BW95: 34 | BX95: =SUM(BL95:BU95)/BV95 -> 0.3831775701
B96: 竹島 | C96: 1 | D96: 1 | E96: 4 | F96: 3 | G96: 0 | H96: 1 | I96: 2 | J96: 2 | K96: 5 | L96: 9 | M96: 4 | N96: 6 | O96: 7 | P96: 7 | Q96: 7 | R96: 7 | S96: 1 | T96: 4 | U96: 0 | V96: 0 | W96: 0 | X96: 0 | Y96: 0 | Z96: 71 | AA96: 1 | AB96: 1 | AC96: 5 | AD96: 2 | AE96: 3 | AF96: 1 | AG96: 3 | AH96: 6 | AI96: 6 | AJ96: 4 | AK96: 3 | AL96: 5 | AM96: 4 | AN96: 10 | AO96: 11 | AP96: 3 | AQ96: 4 | AR96: 6 | AS96: 1 | AT96: 1 | AU96: 0 | AV96: 0 | AW96: 0 | AX96: 80 | AY96: 2 | AZ96: 2 | BA96: 9 | BB96: 5 | BC96: 3 | BD96: 2 | BE96: 5 | BF96: 8 | BG96: 11 | BH96: 13 | BI96: 7 | BJ96: 11 | BK96: 11 | BL96: 17 | BM96: 18 | BN96: 10 | BO96: 5 | BP96: 10 | BQ96: 1 | BR96: 1 | BS96: 0 | BT96: 0 | BU96: 0 | BV96: 151 | BW96: 48 | BX96: =SUM(BL96:BU96)/BV96 -> 0.4105960265
B97: 苔実 | C97: 3 | D97: 5 | E97: 7 | F97: 6 | G97: 4 | H97: 8 | I97: 3 | J97: 7 | K97: 13 | L97: 12 | M97: 12 | N97: 13 | O97: 18 | P97: 23 | Q97: 16 | R97: 17 | S97: 9 | T97: 8 | U97: 2 | V97: 2 | W97: 1 | X97: 0 | Y97: 0 | Z97: 189 | AA97: 2 | AB97: 5 | AC97: 3 | AD97: 6 | AE97: 2 | AF97: 6 | AG97: 7 | AH97: 9 | AI97: 8 | AJ97: 9 | AK97: 13 | AL97: 14 | AM97: 21 | AN97: 14 | AO97: 17 | AP97: 15 | AQ97: 13 | AR97: 12 | AS97: 12 | AT97: 1 | AU97: 1 | AV97: 0 | AW97: 0 | AX97: 190 | AY97: 5 | AZ97: 10 | BA97: 10 | BB97: 12 | BC97: 6 | BD97: 14 | BE97: 10 | BF97: 16 | BG97: 21 | BH97: 21 | BI97: 25 | BJ97: 27 | BK97: 39 | BL97: 37 | BM97: 33 | BN97: 32 | BO97: 22 | BP97: 20 | BQ97: 14 | BR97: 3 | BS97: 2 | BT97: 0 | BU97: 0 | BV97: 379 | BW97: 128 | BX97: =SUM(BL97:BU97)/BV97 -> 0.4300791557
B98: 高橋 | C98: 3 | D98: 3 | E98: 6 | F98: 7 | G98: 10 | H98: 7 | I98: 3 | J98: 4 | K98: 12 | L98: 7 | M98: 19 | N98: 11 | O98: 12 | P98: 6 | Q98: 15 | R98: 10 | S98: 13 | T98: 5 | U98: 1 | V98: 0 | W98: 0 | X98: 0 | Y98: 0 | Z98: 154 | AA98: 1 | AB98: 7 | AC98: 1 | AD98: 6 | AE98: 8 | AF98: 5 | AG98: 3 | AH98: 4 | AI98: 8 | AJ98: 14 | AK98: 13 | AL98: 8 | AM98: 16 | AN98: 11 | AO98: 17 | AP98: 17 | AQ98: 10 | AR98: 6 | AS98: 3 | AT98: 0 | AU98: 0 | AV98: 0 | AW98: 0 | AX98: 158 | AY98: 4 | AZ98: 10 | BA98: 7 | BB98: 13 | BC98: 18 | BD98: 12 | BE98: 6 | BF98: 8 | BG98: 20 | BH98: 21 | BI98: 32 | BJ98: 19 | BK98: 28 | BL98: 17 | BM98: 32 | BN98: 27 | BO98: 23 | BP98: 11 | BQ98: 4 | BR98: 0 | BS98: 0 | BT98: 0 | BU98: 0 | BV98: 312 | BW98: 102 | BX98: =SUM(BL98:BU98)/BV98 -> 0.3653846154
B99: 築地新 | C99: 1 | D99: 0 | E99: 0 | F99: 2 | G99: 0 | H99: 0 | I99: 0 | J99: 2 | K99: 1 | L99: 5 | M99: 2 | N99: 3 | O99: 1 | P99: 4 | Q99: 6 | R99: 6 | S99: 5 | T99: 1 | U99: 2 | V99: 0 | W99: 0 | X99: 0 | Y99: 0 | Z99: 41 | AA99: 1 | AB99: 1 | AC99: 0 | AD99: 2 | AE99: 2 | AF99: 1 | AG99: 0 | AH99: 1 | AI99: 1 | AJ99: 2 | AK99: 2 | AL99: 3 | AM99: 3 | AN99: 3 | AO99: 7 | AP99: 9 | AQ99: 3 | AR99: 2 | AS99: 2 | AT99: 1 | AU99: 0 | AV99: 0 | AW99: 0 | AX99: 46 | AY99: 2 | AZ99: 1 | BA99: 0 | BB99: 4 | BC99: 2 | BD99: 1 | BE99: 0 | BF99: 3 | BG99: 2 | BH99: 7 | BI99: 4 | BJ99: 6 | BK99: 4 | BL99: 7 | BM99: 13 | BN99: 15 | BO99: 8 | BP99: 3 | BQ99: 4 | BR99: 1 | BS99: 0 | BT99: 0 | BU99: 0 | BV99: 87 | BW99: 40 | BX99: =SUM(BL99:BU99)/BV99 -> 0.5862068966
B100: 築地 | C100: 9 | D100: 9 | E100: 13 | F100: 14 | G100: 18 | H100: 14 | I100: 12 | J100: 23 | K100: 19 | L100: 25 | M100: 22 | N100: 33 | O100: 29 | P100: 34 | Q100: 36 | R100: 42 | S100: 21 | T100: 19 | U100: 6 | V100: 3 | W100: 0 | X100: 0 | Y100: 0 | Z100: 401 | AA100: 8 | AB100: 16 | AC100: 15 | AD100: 23 | AE100: 12 | AF100: 12 | AG100: 14 | AH100: 19 | AI100: 19 | AJ100: 23 | AK100: 19 | AL100: 30 | AM100: 32 | AN100: 36 | AO100: 42 | AP100: 42 | AQ100: 35 | AR100: 32 | AS100: 24 | AT100: 6 | AU100: 1 | AV100: 0 | AW100: 0 | AX100: 460 | AY100: 17 | AZ100: 25 | BA100: 28 | BB100: 37 | BC100: 30 | BD100: 26 | BE100: 26 | BF100: 42 | BG100: 38 | BH100: 48 | BI100: 41 | BJ100: 63 | BK100: 61 | BL100: 70 | BM100: 78 | BN100: 84 | BO100: 56 | BP100: 51 | BQ100: 30 | BR100: 9 | BS100: 1 | BT100: 0 | BU100: 0 | BV100: 861 | BW100: 355 | BX100: =SUM(BL100:BU100)/BV100 -> 0.4401858304
B101: 下高田 | C101: 4 | D101: 1 | E101: 6 | F101: 4 | G101: 4 | H101: 3 | I101: 7 | J101: 3 | K101: 3 | L101: 9 | M101: 5 | N101: 7 | O101: 6 | P101: 7 | Q101: 5 | R101: 11 | S101: 4 | T101: 3 | U101: 1 | V101: 0 | W101: 0 | X101: 0 | Y101: 0 | Z101: 93 | AA101: 0 | AB101: 3 | AC101: 6 | AD101: 3 | AE101: 1 | AF101: 3 | AG101: 4 | AH101: 2 | AI101: 6 | AJ101: 10 | AK101: 7 | AL101: 4 | AM101: 6 | AN101: 6 | AO101: 13 | AP101: 9 | AQ101: 5 | AR101: 5 | AS101: 3 | AT101: 0 | AU101: 0 | AV101: 0 | AW101: 0 | AX101: 96 | AY101: 4 | AZ101: 4 | BA101: 12 | BB101: 7 | BC101: 5 | BD101: 6 | BE101: 11 | BF101: 5 | BG101: 9 | BH101: 19 | BI101: 12 | BJ101: 11 | BK101: 12 | BL101: 13 | BM101: 18 | BN101: 20 | BO101: 9 | BP101: 8 | BQ101: 4 | BR101: 0 | BS101: 0 | BT101: 0 | BU101: 0 | BV101: 189 | BW101: 62 | BX101: =SUM(BL101:BU101)/BV101 -> 0.380952381
B102: 山王 | C102: 0 | D102: 2 | E102: 5 | F102: 7 | G102: 2 | H102: 1 | I102: 2 | J102: 4 | K102: 4 | L102: 1 | M102: 2 | N102: 4 | O102: 9 | P102: 10 | Q102: 6 | R102: 7 | S102: 1 | T102: 4 | U102: 2 | V102: 0 | W102: 0 | X102: 0 | Y102: 0 | Z102: 73 | AA102: 1 | AB102: 1 | AC102: 5 | AD102: 1 | AE102: 3 | AF102: 0 | AG102: 2 | AH102: 5 | AI102: 2 | AJ102: 5 | AK102: 7 | AL102: 2 | AM102: 8 | AN102: 8 | AO102: 7 | AP102: 5 | AQ102: 2 | AR102: 5 | AS102: 4 | AT102: 0 | AU102: 0 | AV102: 0 | AW102: 0 | AX102: 73 | AY102: 1 | AZ102: 3 | BA102: 10 | BB102: 8 | BC102: 5 | BD102: 1 | BE102: 4 | BF102: 9 | BG102: 6 | BH102: 6 | BI102: 9 | BJ102: 6 | BK102: 17 | BL102: 18 | BM102: 13 | BN102: 12 | BO102: 3 | BP102: 9 | BQ102: 6 | BR102: 0 | BS102: 0 | BT102: 0 | BU102: 0 | BV102: 146 | BW102: 45 | BX102: =SUM(BL102:BU102)/BV102 -> 0.4178082192
B103: 高畑 | C103: 3 | D103: 5 | E103: 5 | F103: 2 | G103: 3 | H103: 1 | I103: 8 | J103: 7 | K103: 8 | L103: 5 | M103: 13 | N103: 10 | O103: 11 | P103: 17 | Q103: 18 | R103: 11 | S103: 3 | T103: 5 | U103: 1 | V103: 0 | W103: 0 | X103: 0 | Y103: 0 | Z103: 136 | AA103: 4 | AB103: 3 | AC103: 4 | AD103: 2 | AE103: 6 | AF103: 4 | AG103: 4 | AH103: 7 | AI103: 3 | AJ103: 4 | AK103: 8 | AL103: 11 | AM103: 18 | AN103: 14 | AO103: 11 | AP103: 6 | AQ103: 10 | AR103: 7 | AS103: 5 | AT103: 2 | AU103: 0 | AV103: 0 | AW103: 0 | AX103: 133 | AY103: 7 | AZ103: 8 | BA103: 9 | BB103: 4 | BC103: 9 | BD103: 5 | BE103: 12 | BF103: 14 | BG103: 11 | BH103: 9 | BI103: 21 | BJ103: 21 | BK103: 29 | BL103: 31 | BM103: 29 | BN103: 17 | BO103: 13 | BP103: 12 | BQ103: 6 | BR103: 2 | BS103: 0 | BT103: 0 | BU103: 0 | BV103: 269 | BW103: 105 | BX103: =SUM(BL103:BU103)/BV103 -> 0.4089219331
B104: 宮瀬 | C104: 1 | D104: 0 | E104: 2 | F104: 1 | G104: 2 | H104: 0 | I104: 1 | J104: 1 | K104: 1 | L104: 5 | M104: 2 | N104: 1 | O104: 5 | P104: 4 | Q104: 3 | R104: 6 | S104: 2 | T104: 0 | U104: 0 | V104: 0 | W104: 0 | X104: 0 | Y104: 0 | Z104: 37 | AA104: 0 | AB104: 2 | AC104: 1 | AD104: 0 | AE104: 2 | AF104: 0 | AG104: 0 | AH104: 1 | AI104: 3 | AJ104: 2 | AK104: 0 | AL104: 2 | AM104: 5 | AN104: 2 | AO104: 7 | AP104: 1 | AQ104: 1 | AR104: 6 | AS104: 1 | AT104: 1 | AU104: 0 | AV104: 0 | AW104: 0 | AX104: 37 | AY104: 1 | AZ104: 2 | BA104: 3 | BB104: 1 | BC104: 4 | BD104: 0 | BE104: 1 | BF104: 2 | BG104: 4 | BH104: 7 | BI104: 2 | BJ104: 3 | BK104: 10 | BL104: 6 | BM104: 10 | BN104: 7 | BO104: 3 | BP104: 6 | BQ104: 1 | BR104: 1 | BS104: 0 | BT104: 0 | BU104: 0 | BV104: 74 | BW104: 26 | BX104: =SUM(BL104:BU104)/BV104 -> 0.4594594595
B105: 鴻ノ巣 | C105: 1 | D105: 2 | E105: 2 | F105: 3 | G105: 0 | H105: 1 | I105: 4 | J105: 8 | K105: 8 | L105: 4 | M105: 5 | N105: 5 | O105: 5 | P105: 11 | Q105: 9 | R105: 2 | S105: 4 | T105: 3 | U105: 0 | V105: 0 | W105: 0 | X105: 0 | Y105: 0 | Z105: 77 | AA105: 4 | AB105: 5 | AC105: 4 | AD105: 3 | AE105: 3 | AF105: 3 | AG105: 2 | AH105: 8 | AI105: 6 | AJ105: 1 | AK105: 3 | AL105: 7 | AM105: 7 | AN105: 13 | AO105: 4 | AP105: 6 | AQ105: 6 | AR105: 8 | AS105: 2 | AT105: 0 | AU105: 0 | AV105: 0 | AW105: 0 | AX105: 95 | AY105: 5 | AZ105: 7 | BA105: 6 | BB105: 6 | BC105: 3 | BD105: 4 | BE105: 6 | BF105: 16 | BG105: 14 | BH105: 5 | BI105: 8 | BJ105: 12 | BK105: 12 | BL105: 24 | BM105: 13 | BN105: 8 | BO105: 10 | BP105: 11 | BQ105: 2 | BR105: 0 | BS105: 0 | BT105: 0 | BU105: 0 | BV105: 172 | BW105: 50 | BX105: =SUM(BL105:BU105)/BV105 -> 0.3953488372
B106: 笹口浜 | C106: 0 | D106: 4 | E106: 6 | F106: 5 | G106: 3 | H106: 6 | I106: 3 | J106: 4 | K106: 7 | L106: 8 | M106: 14 | N106: 8 | O106: 19 | P106: 16 | Q106: 13 | R106: 11 | S106: 9 | T106: 8 | U106: 2 | V106: 1 | W106: 0 | X106: 0 | Y106: 0 | Z106: 147 | AA106: 0 | AB106: 0 | AC106: 4 | AD106: 4 | AE106: 4 | AF106: 2 | AG106: 2 | AH106: 6 | AI106: 7 | AJ106: 5 | AK106: 11 | AL106: 10 | AM106: 18 | AN106: 12 | AO106: 11 | AP106: 18 | AQ106: 22 | AR106: 12 | AS106: 7 | AT106: 7 | AU106: 0 | AV106: 0 | AW106: 0 | AX106: 162 | AY106: 0 | AZ106: 4 | BA106: 10 | BB106: 9 | BC106: 7 | BD106: 8 | BE106: 5 | BF106: 10 | BG106: 14 | BH106: 13 | BI106: 25 | BJ106: 18 | BK106: 37 | BL106: 28 | BM106: 24 | BN106: 29 | BO106: 31 | BP106: 20 | BQ106: 9 | BR106: 8 | BS106: 0 | BT106: 0 | BU106: 0 | BV106: 309 | BW106: 127 | BX106: =SUM(BL106:BU106)/BV106 -> 0.4822006472
B107: 中村浜 | C107: 0 | D107: 2 | E107: 0 | F107: 0 | G107: 6 | H107: 7 | I107: 6 | J107: 4 | K107: 3 | L107: 2 | M107: 3 | N107: 3 | O107: 5 | P107: 6 | Q107: 8 | R107: 9 | S107: 1 | T107: 2 | U107: 0 | V107: 1 | W107: 0 | X107: 0 | Y107: 0 | Z107: 68 | AA107: 1 | AB107: 1 | AC107: 0 | AD107: 2 | AE107: 0 | AF107: 1 | AG107: 1 | AH107: 1 | AI107: 5 | AJ107: 3 | AK107: 3 | AL107: 3 | AM107: 8 | AN107: 5 | AO107: 5 | AP107: 4 | AQ107: 6 | AR107: 3 | AS107: 3 | AT107: 2 | AU107: 0 | AV107: 0 | AW107: 0 | AX107: 57 | AY107: 1 | AZ107: 3 | BA107: 0 | BB107: 2 | BC107: 6 | BD107: 8 | BE107: 7 | BF107: 5 | BG107: 8 | BH107: 5 | BI107: 6 | BJ107: 6 | BK107: 13 | BL107: 11 | BM107: 13 | BN107: 13 | BO107: 7 | BP107: 5 | BQ107: 3 | BR107: 3 | BS107: 0 | BT107: 0 | BU107: 0 | BV107: 125 | BW107: 59 | BX107: =SUM(BL107:BU107)/BV107 -> 0.44
B108: 村松浜 | C108: 8 | D108: 13 | E108: 16 | F108: 19 | G108: 13 | H108: 14 | I108: 18 | J108: 14 | K108: 19 | L108: 22 | M108: 32 | N108: 32 | O108: 26 | P108: 24 | Q108: 28 | R108: 39 | S108: 18 | T108: 8 | U108: 9 | V108: 1 | W108: 0 | X108: 0 | Y108: 0 | Z108: 373 | AA108: 4 | AB108: 11 | AC108: 13 | AD108: 12 | AE108: 14 | AF108: 7 | AG108: 15 | AH108: 11 | AI108: 19 | AJ108: 25 | AK108: 27 | AL108: 33 | AM108: 22 | AN108: 28 | AO108: 39 | AP108: 35 | AQ108: 27 | AR108: 15 | AS108: 12 | AT108: 3 | AU108: 1 | AV108: 0 | AW108: 0 | AX108: 373 | AY108: 12 | AZ108: 24 | BA108: 29 | BB108: 31 | BC108: 27 | BD108: 21 | BE108: 33 | BF108: 25 | BG108: 38 | BH108: 47 | BI108: 59 | BJ108: 65 | BK108: 48 | BL108: 52 | BM108: 67 | BN108: 74 | BO108: 45 | BP108: 23 | BQ108: 21 | BR108: 4 | BS108: 1 | BT108: 0 | BU108: 0 | BV108: 746 | BW108: 284 | BX108: =SUM(BL108:BU108)/BV108 -> 0.3847184987
B109: 日鉱 | C109: 2 | D109: 3 | E109: 2 | F109: 2 | G109: 1 | H109: 2 | I109: 5 | J109: 3 | K109: 2 | L109: 1 | M109: 1 | N109: 2 | O109: 2 | P109: 1 | Q109: 1 | R109: 0 | S109: 0 | T109: 0 | U109: 0 | V109: 0 | W109: 0 | X109: 0 | Y109: 0 | Z109: 30 | AA109: 1 | AB109: 2 | AC109: 1 | AD109: 0 | AE109: 0 | AF109: 0 | AG109: 4 | AH109: 1 | AI109: 2 | AJ109: 0 | AK109: 0 | AL109: 0 | AM109: 0 | AN109: 1 | AO109: 0 | AP109: 0 | AQ109: 0 | AR109: 0 | AS109: 0 | AT109: 0 | AU109: 0 | AV109: 0 | AW109: 0 | AX109: 12 | AY109: 3 | AZ109: 5 | BA109: 3 | BB109: 2 | BC109: 1 | BD109: 2 | BE109: 9 | BF109: 4 | BG109: 4 | BH109: 1 | BI109: 1 | BJ109: 2 | BK109: 2 | BL109: 2 | BM109: 1 | BN109: 0 | BO109: 0 | BP109: 0 | BQ109: 0 | BR109: 0 | BS109: 0 | BT109: 0 | BU109: 0 | BV109: 42 | BW109: 21 | BX109: =SUM(BL109:BU109)/BV109 -> 0.07142857143
A110: 黒 川 地 区 | B110: 黒川上町 | C110: 2 | D110: 3 | E110: 5 | F110: 6 | G110: 3 | H110: 3 | I110: 1 | J110: 5 | K110: 4 | L110: 3 | M110: 3 | N110: 8 | O110: 5 | P110: 13 | Q110: 9 | R110: 3 | S110: 4 | T110: 4 | U110: 1 | V110: 0 | W110: 0 | X110: 0 | Y110: 0 | Z110: 85 | AA110: 1 | AB110: 3 | AC110: 6 | AD110: 2 | AE110: 4 | AF110: 2 | AG110: 3 | AH110: 7 | AI110: 9 | AJ110: 5 | AK110: 5 | AL110: 9 | AM110: 8 | AN110: 12 | AO110: 9 | AP110: 11 | AQ110: 5 | AR110: 11 | AS110: 3 | AT110: 0 | AU110: 0 | AV110: 0 | AW110: 0 | AX110: 115 | AY110: 3 | AZ110: 6 | BA110: 11 | BB110: 8 | BC110: 7 | BD110: 5 | BE110: 4 | BF110: 12 | BG110: 13 | BH110: 8 | BI110: 8 | BJ110: 17 | BK110: 13 | BL110: 25 | BM110: 18 | BN110: 14 | BO110: 9 | BP110: 15 | BQ110: 4 | BR110: 0 | BS110: 0 | BT110: 0 | BU110: 0 | BV110: 200 | BW110: 68 | BX110: =SUM(BL110:BU110)/BV110 -> 0.425
B111: 黒川中町 | C111: 0 | D111: 2 | E111: 7 | F111: 9 | G111: 2 | H111: 2 | I111: 4 | J111: 5 | K111: 8 | L111: 4 | M111: 6 | N111: 4 | O111: 3 | P111: 5 | Q111: 7 | R111: 5 | S111: 6 | T111: 3 | U111: 3 | V111: 0 | W111: 0 | X111: 0 | Y111: 0 | Z111: 85 | AA111: 4 | AB111: 7 | AC111: 7 | AD111: 2 | AE111: 2 | AF111: 0 | AG111: 3 | AH111: 6 | AI111: 5 | AJ111: 5 | AK111: 4 | AL111: 3 | AM111: 5 | AN111: 7 | AO111: 11 | AP111: 13 | AQ111: 4 | AR111: 2 | AS111: 4 | AT111: 2 | AU111: 0 | AV111: 0 | AW111: 0 | AX111: 96 | AY111: 4 | AZ111: 9 | BA111: 14 | BB111: 11 | BC111: 4 | BD111: 2 | BE111: 7 | BF111: 11 | BG111: 13 | BH111: 9 | BI111: 10 | BJ111: 7 | BK111: 8 | BL111: 12 | BM111: 18 | BN111: 18 | BO111: 10 | BP111: 5 | BQ111: 7 | BR111: 2 | BS111: 0 | BT111: 0 | BU111: 0 | BV111: 181 | BW111: 63 | BX111: =SUM(BL111:BU111)/BV111 -> 0.3977900552
B112: 黒川下町 | C112: 1 | D112: 4 | E112: 12 | F112: 3 | G112: 7 | H112: 2 | I112: 7 | J112: 9 | K112: 4 | L112: 8 | M112: 12 | N112: 8 | O112: 14 | P112: 11 | Q112: 8 | R112: 14 | S112: 1 | T112: 4 | U112: 1 | V112: 1 | W112: 0 | X112: 0 | Y112: 0 | Z112: 131 | AA112: 2 | AB112: 4 | AC112: 9 | AD112: 5 | AE112: 5 | AF112: 1 | AG112: 5 | AH112: 10 | AI112: 5 | AJ112: 9 | AK112: 7 | AL112: 11 | AM112: 15 | AN112: 10 | AO112: 12 | AP112: 10 | AQ112: 11 | AR112: 5 | AS112: 3 | AT112: 2 | AU112: 0 | AV112: 0 | AW112: 0 | AX112: 141 | AY112: 3 | AZ112: 8 | BA112: 21 | BB112: 8 | BC112: 12 | BD112: 3 | BE112: 12 | BF112: 19 | BG112: 9 | BH112: 17 | BI112: 19 | BJ112: 19 | BK112: 29 | BL112: 21 | BM112: 20 | BN112: 24 | BO112: 12 | BP112: 9 | BQ112: 4 | BR112: 3 | BS112: 0 | BT112: 0 | BU112: 0 | BV112: 272 | BW112: 102 | BX112: =SUM(BL112:BU112)/BV112 -> 0.3419117647
B113: 黒川南町 | C113: 2 | D113: 4 | E113: 2 | F113: 6 | G113: 4 | H113: 1 | I113: 7 | J113: 4 | K113: 5 | L113: 4 | M113: 6 | N113: 4 | O113: 10 | P113: 4 | Q113: 10 | R113: 7 | S113: 3 | T113: 3 | U113: 1 | V113: 0 | W113: 0 | X113: 0 | Y113: 0 | Z113: 87 | AA113: 2 | AB113: 4 | AC113: 2 | AD113: 5 | AE113: 6 | AF113: 2 | AG113: 3 | AH113: 4 | AI113: 5 | AJ113: 8 | AK113: 9 | AL113: 3 | AM113: 7 | AN113: 7 | AO113: 8 | AP113: 4 | AQ113: 9 | AR113: 5 | AS113: 3 | AT113: 2 | AU113: 1 | AV113: 0 | AW113: 0 | AX113: 99 | AY113: 4 | AZ113: 8 | BA113: 4 | BB113: 11 | BC113: 10 | BD113: 3 | BE113: 10 | BF113: 8 | BG113: 10 | BH113: 12 | BI113: 15 | BJ113: 7 | BK113: 17 | BL113: 11 | BM113: 18 | BN113: 11 | BO113: 12 | BP113: 8 | BQ113: 4 | BR113: 2 | BS113: 1 | BT113: 0 | BU113: 0 | BV113: 186 | BW113: 67 | BX113: =SUM(BL113:BU113)/BV113 -> 0.3602150538
B114: 黒川西町１区 | C114: 1 | D114: 0 | E114: 0 | F114: 5 | G114: 7 | H114: 1 | I114: 1 | J114: 3 | K114: 4 | L114: 9 | M114: 5 | N114: 6 | O114: 3 | P114: 7 | Q114: 9 | R114: 14 | S114: 8 | T114: 1 | U114: 1 | V114: 0 | W114: 0 | X114: 0 | Y114: 0 | Z114: 85 | AA114: 0 | AB114: 2 | AC114: 4 | AD114: 7 | AE114: 7 | AF114: 2 | AG114: 2 | AH114: 6 | AI114: 4 | AJ114: 11 | AK114: 7 | AL114: 7 | AM114: 5 | AN114: 10 | AO114: 16 | AP114: 12 | AQ114: 6 | AR114: 2 | AS114: 2 | AT114: 0 | AU114: 0 | AV114: 0 | AW114: 0 | AX114: 112 | AY114: 1 | AZ114: 2 | BA114: 4 | BB114: 12 | BC114: 14 | BD114: 3 | BE114: 3 | BF114: 9 | BG114: 8 | BH114: 20 | BI114: 12 | BJ114: 13 | BK114: 8 | BL114: 17 | BM114: 25 | BN114: 26 | BO114: 14 | BP114: 3 | BQ114: 3 | BR114: 0 | BS114: 0 | BT114: 0 | BU114: 0 | BV114: 197 | BW114: 90 | BX114: =SUM(BL114:BU114)/BV114 -> 0.4467005076
B115: 黒川西町２区 | C115: 3 | D115: 6 | E115: 10 | F115: 12 | G115: 7 | H115: 6 | I115: 5 | J115: 6 | K115: 6 | L115: 9 | M115: 9 | N115: 7 | O115: 4 | P115: 13 | Q115: 11 | R115: 12 | S115: 1 | T115: 1 | U115: 0 | V115: 0 | W115: 0 | X115: 0 | Y115: 0 | Z115: 128 | AA115: 1 | AB115: 6 | AC115: 15 | AD115: 12 | AE115: 8 | AF115: 4 | AG115: 2 | AH115: 7 | AI115: 20 | AJ115: 13 | AK115: 14 | AL115: 8 | AM115: 4 | AN115: 11 | AO115: 17 | AP115: 7 | AQ115: 1 | AR115: 2 | AS115: 0 | AT115: 0 | AU115: 0 | AV115: 0 | AW115: 0 | AX115: 152 | AY115: 4 | AZ115: 12 | BA115: 25 | BB115: 24 | BC115: 15 | BD115: 10 | BE115: 7 | BF115: 13 | BG115: 26 | BH115: 22 | BI115: 23 | BJ115: 15 | BK115: 8 | BL115: 24 | BM115: 28 | BN115: 19 | BO115: 2 | BP115: 3 | BQ115: 0 | BR115: 0 | BS115: 0 | BT115: 0 | BU115: 0 | BV115: 280 | BW115: 104 | BX115: =SUM(BL115:BU115)/BV115 -> 0.2714285714
B116: 北町 | C116: 0 | D116: 0 | E116: 1 | F116: 3 | G116: 1 | H116: 1 | I116: 2 | J116: 4 | K116: 4 | L116: 4 | M116: 8 | N116: 3 | O116: 4 | P116: 3 | Q116: 10 | R116: 4 | S116: 3 | T116: 3 | U116: 1 | V116: 0 | W116: 0 | X116: 0 | Y116: 0 | Z116: 59 | AA116: 0 | AB116: 0 | AC116: 1 | AD116: 3 | AE116: 1 | AF116: 0 | AG116: 0 | AH116: 1 | AI116: 2 | AJ116: 5 | AK116: 4 | AL116: 3 | AM116: 2 | AN116: 6 | AO116: 9 | AP116: 3 | AQ116: 5 | AR116: 3 | AS116: 3 | AT116: 0 | AU116: 0 | AV116: 0 | AW116: 0 | AX116: 51 | AY116: 0 | AZ116: 0 | BA116: 2 | BB116: 6 | BC116: 2 | BD116: 1 | BE116: 2 | BF116: 5 | BG116: 6 | BH116: 9 | BI116: 12 | BJ116: 6 | BK116: 6 | BL116: 9 | BM116: 19 | BN116: 7 | BO116: 8 | BP116: 6 | BQ116: 4 | BR116: 0 | BS116: 0 | BT116: 0 | BU116: 0 | BV116: 110 | BW116: 55 | BX116: =SUM(BL116:BU116)/BV116 -> 0.4818181818
B117: 下江端 | C117: 0 | D117: 1 | E117: 3 | F117: 3 | G117: 1 | H117: 1 | I117: 2 | J117: 1 | K117: 3 | L117: 3 | M117: 2 | N117: 3 | O117: 3 | P117: 3 | Q117: 7 | R117: 2 | S117: 3 | T117: 0 | U117: 1 | V117: 0 | W117: 0 | X117: 0 | Y117: 0 | Z117: 42 | AA117: 0 | AB117: 0 | AC117: 1 | AD117: 2 | AE117: 0 | AF117: 1 | AG117: 0 | AH117: 0 | AI117: 1 | AJ117: 4 | AK117: 5 | AL117: 0 | AM117: 2 | AN117: 5 | AO117: 3 | AP117: 5 | AQ117: 1 | AR117: 2 | AS117: 1 | AT117: 0 | AU117: 0 | AV117: 0 | AW117: 0 | AX117: 33 | AY117: 0 | AZ117: 1 | BA117: 4 | BB117: 5 | BC117: 1 | BD117: 2 | BE117: 2 | BF117: 1 | BG117: 4 | BH117: 7 | BI117: 7 | BJ117: 3 | BK117: 5 | BL117: 8 | BM117: 10 | BN117: 7 | BO117: 4 | BP117: 2 | BQ117: 2 | BR117: 0 | BS117: 0 | BT117: 0 | BU117: 0 | BV117: 75 | BW117: 25 | BX117: =SUM(BL117:BU117)/BV117 -> 0.44
B118: 東牧 | C118: 3 | D118: 1 | E118: 2 | F118: 4 | G118: 4 | H118: 2 | I118: 4 | J118: 3 | K118: 2 | L118: 7 | M118: 2 | N118: 2 | O118: 5 | P118: 3 | Q118: 7 | R118: 8 | S118: 4 | T118: 1 | U118: 1 | V118: 1 | W118: 0 | X118: 0 | Y118: 0 | Z118: 66 | AA118: 0 | AB118: 2 | AC118: 4 | AD118: 1 | AE118: 2 | AF118: 1 | AG118: 0 | AH118: 3 | AI118: 3 | AJ118: 5 | AK118: 6 | AL118: 3 | AM118: 4 | AN118: 6 | AO118: 9 | AP118: 7 | AQ118: 5 | AR118: 3 | AS118: 1 | AT118: 2 | AU118: 0 | AV118: 0 | AW118: 0 | AX118: 67 | AY118: 3 | AZ118: 3 | BA118: 6 | BB118: 5 | BC118: 6 | BD118: 3 | BE118: 4 | BF118: 6 | BG118: 5 | BH118: 12 | BI118: 8 | BJ118: 5 | BK118: 9 | BL118: 9 | BM118: 16 | BN118: 15 | BO118: 9 | BP118: 4 | BQ118: 2 | BR118: 3 | BS118: 0 | BT118: 0 | BU118: 0 | BV118: 133 | BW118: 45 | BX118: =SUM(BL118:BU118)/BV118 -> 0.4360902256
B119: 近江新 | C119: 3 | D119: 0 | E119: 3 | F119: 6 | G119: 2 | H119: 3 | I119: 2 | J119: 4 | K119: 2 | L119: 7 | M119: 8 | N119: 7 | O119: 3 | P119: 7 | Q119: 10 | R119: 7 | S119: 4 | T119: 1 | U119: 2 | V119: 0 | W119: 0 | X119: 0 | Y119: 0 | Z119: 81 | AA119: 1 | AB119: 2 | AC119: 2 | AD119: 2 | AE119: 4 | AF119: 3 | AG119: 2 | AH119: 2 | AI119: 3 | AJ119: 5 | AK119: 7 | AL119: 4 | AM119: 5 | AN119: 13 | AO119: 8 | AP119: 10 | AQ119: 4 | AR119: 5 | AS119: 2 | AT119: 4 | AU119: 1 | AV119: 0 | AW119: 0 | AX119: 89 | AY119: 4 | AZ119: 2 | BA119: 5 | BB119: 8 | BC119: 6 | BD119: 6 | BE119: 4 | BF119: 6 | BG119: 5 | BH119: 12 | BI119: 15 | BJ119: 11 | BK119: 8 | BL119: 20 | BM119: 18 | BN119: 17 | BO119: 8 | BP119: 6 | BQ119: 4 | BR119: 4 | BS119: 1 | BT119: 0 | BU119: 0 | BV119: 170 | BW119: 59 | BX119: =SUM(BL119:BU119)/BV119 -> 0.4588235294
B120: 蔵王 | C120: 0 | D120: 1 | E120: 1 | F120: 0 | G120: 0 | H120: 1 | I120: 1 | J120: 0 | K120: 2 | L120: 4 | M120: 3 | N120: 3 | O120: 3 | P120: 2 | Q120: 2 | R120: 7 | S120: 0 | T120: 0 | U120: 1 | V120: 0 | W120: 0 | X120: 0 | Y120: 0 | Z120: 31 | AA120: 0 | AB120: 1 | AC120: 0 | AD120: 0 | AE120: 0 | AF120: 1 | AG120: 1 | AH120: 1 | AI120: 0 | AJ120: 2 | AK120: 0 | AL120: 0 | AM120: 4 | AN120: 2 | AO120: 2 | AP120: 8 | AQ120: 0 | AR120: 4 | AS120: 0 | AT120: 0 | AU120: 0 | AV120: 0 | AW120: 0 | AX120: 26 | AY120: 0 | AZ120: 2 | BA120: 1 | BB120: 0 | BC120: 0 | BD120: 2 | BE120: 2 | BF120: 1 | BG120: 2 | BH120: 6 | BI120: 3 | BJ120: 3 | BK120: 7 | BL120: 4 | BM120: 4 | BN120: 15 | BO120: 0 | BP120: 4 | BQ120: 1 | BR120: 0 | BS120: 0 | BT120: 0 | BU120: 0 | BV120: 57 | BW120: 21 | BX120: =SUM(BL120:BU120)/BV120 -> 0.4912280702
B121: 塩沢 | C121: 2 | D121: 3 | E121: 5 | F121: 0 | G121: 0 | H121: 2 | I121: 2 | J121: 3 | K121: 1 | L121: 4 | M121: 8 | N121: 2 | O121: 3 | P121: 6 | Q121: 6 | R121: 4 | S121: 3 | T121: 2 | U121: 1 | V121: 0 | W121: 0 | X121: 0 | Y121: 0 | Z121: 57 | AA121: 0 | AB121: 2 | AC121: 1 | AD121: 3 | AE121: 0 | AF121: 0 | AG121: 1 | AH121: 3 | AI121: 4 | AJ121: 3 | AK121: 1 | AL121: 3 | AM121: 3 | AN121: 3 | AO121: 7 | AP121: 7 | AQ121: 1 | AR121: 1 | AS121: 2 | AT121: 3 | AU121: 1 | AV121: 0 | AW121: 0 | AX121: 49 | AY121: 2 | AZ121: 5 | BA121: 6 | BB121: 3 | BC121: 0 | BD121: 2 | BE121: 3 | BF121: 6 | BG121: 5 | BH121: 7 | BI121: 9 | BJ121: 5 | BK121: 6 | BL121: 9 | BM121: 13 | BN121: 11 | BO121: 4 | BP121: 3 | BQ121: 3 | BR121: 3 | BS121: 1 | BT121: 0 | BU121: 0 | BV121: 106 | BW121: 39 | BX121: =SUM(BL121:BU121)/BV121 -> 0.4433962264
B122: 塩谷 | C122: 0 | D122: 0 | E122: 0 | F122: 1 | G122: 2 | H122: 2 | I122: 3 | J122: 0 | K122: 3 | L122: 1 | M122: 3 | N122: 9 | O122: 1 | P122: 9 | Q122: 4 | R122: 4 | S122: 5 | T122: 2 | U122: 0 | V122: 1 | W122: 0 | X122: 0 | Y122: 0 | Z122: 50 | AA122: 2 | AB122: 0 | AC122: 2 | AD122: 1 | AE122: 4 | AF122: 1 | AG122: 5 | AH122: 3 | AI122: 1 | AJ122: 2 | AK122: 7 | AL122: 6 | AM122: 3 | AN122: 6 | AO122: 4 | AP122: 5 | AQ122: 7 | AR122: 8 | AS122: 5 | AT122: 3 | AU122: 2 | AV122: 0 | AW122: 0 | AX122: 77 | AY122: 2 | AZ122: 0 | BA122: 2 | BB122: 2 | BC122: 6 | BD122: 3 | BE122: 8 | BF122: 3 | BG122: 4 | BH122: 3 | BI122: 10 | BJ122: 15 | BK122: 4 | BL122: 15 | BM122: 8 | BN122: 9 | BO122: 12 | BP122: 10 | BQ122: 5 | BR122: 4 | BS122: 2 | BT122: 0 | BU122: 0 | BV122: 127 | BW122: 54 | BX122: =SUM(BL122:BU122)/BV122 -> 0.5118110236
B123: ひめさゆり | C123: 0 | D123: 0 | E123: 0 | F123: 0 | G123: 0 | H123: 0 | I123: 0 | J123: 0 | K123: 0 | L123: 0 | M123: 0 | N123: 0 | O123: 1 | P123: 4 | Q123: 8 | R123: 9 | S123: 7 | T123: 2 | U123: 0 | V123: 1 | W123: 0 | X123: 0 | Y123: 0 | Z123: 32 | AA123: 0 | AB123: 0 | AC123: 0 | AD123: 0 | AE123: 0 | AF123: 0 | AG123: 0 | AH123: 0 | AI123: 0 | AJ123: 0 | AK123: 0 | AL123: 0 | AM123: 0 | AN123: 1 | AO123: 5 | AP123: 6 | AQ123: 3 | AR123: 5 | AS123: 4 | AT123: 1 | AU123: 0 | AV123: 0 | AW123: 0 | AX123: 25 | AY123: 0 | AZ123: 0 | BA123: 0 | BB123: 0 | BC123: 0 | BD123: 0 | BE123: 0 | BF123: 0 | BG123: 0 | BH123: 0 | BI123: 0 | BJ123: 0 | BK123: 1 | BL123: 5 | BM123: 13 | BN123: 15 | BO123: 10 | BP123: 7 | BQ123: 4 | BR123: 2 | BS123: 0 | BT123: 0 | BU123: 0 | BV123: 57 | BW123: 57 | BX123: =SUM(BL123:BU123)/BV123 -> 0.9824561404
B124: 下館 | C124: 1 | D124: 4 | E124: 4 | F124: 3 | G124: 4 | H124: 6 | I124: 1 | J124: 4 | K124: 7 | L124: 8 | M124: 5 | N124: 6 | O124: 9 | P124: 8 | Q124: 8 | R124: 3 | S124: 9 | T124: 1 | U124: 1 | V124: 0 | W124: 0 | X124: 0 | Y124: 0 | Z124: 92 | AA124: 3 | AB124: 0 | AC124: 5 | AD124: 1 | AE124: 3 | AF124: 2 | AG124: 0 | AH124: 6 | AI124: 1 | AJ124: 7 | AK124: 4 | AL124: 9 | AM124: 6 | AN124: 4 | AO124: 11 | AP124: 6 | AQ124: 9 | AR124: 9 | AS124: 3 | AT124: 1 | AU124: 0 | AV124: 0 | AW124: 0 | AX124: 90 | AY124: 4 | AZ124: 4 | BA124: 9 | BB124: 4 | BC124: 7 | BD124: 8 | BE124: 1 | BF124: 10 | BG124: 8 | BH124: 15 | BI124: 9 | BJ124: 15 | BK124: 15 | BL124: 12 | BM124: 19 | BN124: 9 | BO124: 18 | BP124: 10 | BQ124: 4 | BR124: 1 | BS124: 0 | BT124: 0 | BU124: 0 | BV124: 182 | BW124: 61 | BX124: =SUM(BL124:BU124)/BV124 -> 0.4010989011
B125: 下赤谷 | C125: 0 | D125: 0 | E125: 0 | F125: 0 | G125: 0 | H125: 0 | I125: 2 | J125: 0 | K125: 0 | L125: 1 | M125: 1 | N125: 0 | O125: 0 | P125: 2 | Q125: 3 | R125: 1 | S125: 1 | T125: 0 | U125: 0 | V125: 0 | W125: 0 | X125: 0 | Y125: 0 | Z125: 11 | AA125: 0 | AB125: 0 | AC125: 0 | AD125: 1 | AE125: 1 | AF125: 0 | AG125: 0 | AH125: 0 | AI125: 0 | AJ125: 0 | AK125: 2 | AL125: 0 | AM125: 0 | AN125: 1 | AO125: 3 | AP125: 3 | AQ125: 0 | AR125: 0 | AS125: 1 | AT125: 1 | AU125: 0 | AV125: 0 | AW125: 0 | AX125: 13 | AY125: 0 | AZ125: 0 | BA125: 0 | BB125: 1 | BC125: 1 | BD125: 0 | BE125: 2 | BF125: 0 | BG125: 0 | BH125: 1 | BI125: 3 | BJ125: 0 | BK125: 0 | BL125: 3 | BM125: 6 | BN125: 4 | BO125: 1 | BP125: 0 | BQ125: 1 | BR125: 1 | BS125: 0 | BT125: 0 | BU125: 0 | BV125: 24 | BW125: 9 | BX125: =SUM(BL125:BU125)/BV125 -> 0.6666666667
B126: 前山台 | C126: 2 | D126: 10 | E126: 6 | F126: 10 | G126: 9 | H126: 8 | I126: 3 | J126: 8 | K126: 8 | L126: 11 | M126: 18 | N126: 11 | O126: 8 | P126: 2 | Q126: 4 | R126: 3 | S126: 3 | T126: 1 | U126: 0 | V126: 0 | W126: 0 | X126: 0 | Y126: 0 | Z126: 125 | AA126: 2 | AB126: 4 | AC126: 7 | AD126: 12 | AE126: 8 | AF126: 6 | AG126: 4 | AH126: 7 | AI126: 8 | AJ126: 11 | AK126: 19 | AL126: 7 | AM126: 6 | AN126: 1 | AO126: 8 | AP126: 3 | AQ126: 3 | AR126: 1 | AS126: 0 | AT126: 0 | AU126: 0 | AV126: 0 | AW126: 0 | AX126: 117 | AY126: 4 | AZ126: 14 | BA126: 13 | BB126: 22 | BC126: 17 | BD126: 14 | BE126: 7 | BF126: 15 | BG126: 16 | BH126: 22 | BI126: 37 | BJ126: 18 | BK126: 14 | BL126: 3 | BM126: 12 | BN126: 6 | BO126: 6 | BP126: 2 | BQ126: 0 | BR126: 0 | BS126: 0 | BT126: 0 | BU126: 0 | BV126: 242 | BW126: 86 | BX126: =SUM(BL126:BU126)/BV126 -> 0.1198347107
B127: ひまわり荘 | C127: 0 | D127: 0 | E127: 0 | F127: 0 | G127: 0 | H127: 0 | I127: 0 | J127: 1 | K127: 0 | L127: 2 | M127: 4 | N127: 7 | O127: 13 | P127: 7 | Q127: 10 | R127: 4 | S127: 4 | T127: 0 | U127: 0 | V127: 0 | W127: 0 | X127: 0 | Y127: 0 | Z127: 52 | AA127: 0 | AB127: 0 | AC127: 0 | AD127: 0 | AE127: 1 | AF127: 0 | AG127: 2 | AH127: 0 | AI127: 1 | AJ127: 2 | AK127: 1 | AL127: 5 | AM127: 4 | AN127: 3 | AO127: 7 | AP127: 4 | AQ127: 3 | AR127: 1 | AS127: 0 | AT127: 0 | AU127: 0 | AV127: 0 | AW127: 0 | AX127: 34 | AY127: 0 | AZ127: 0 | BA127: 0 | BB127: 0 | BC127: 1 | BD127: 0 | BE127: 2 | BF127: 1 | BG127: 1 | BH127: 4 | BI127: 5 | BJ127: 12 | BK127: 17 | BL127: 10 | BM127: 17 | BN127: 8 | BO127: 7 | BP127: 1 | BQ127: 0 | BR127: 0 | BS127: 0 | BT127: 0 | BU127: 0 | BV127: 86 | BW127: 86 | BX127: =SUM(BL127:BU127)/BV127 -> 0.5
B128: 坪穴 | C128: 2 | D128: 0 | E128: 1 | F128: 4 | G128: 0 | H128: 2 | I128: 2 | J128: 3 | K128: 5 | L128: 3 | M128: 1 | N128: 1 | O128: 4 | P128: 14 | Q128: 8 | R128: 7 | S128: 1 | T128: 1 | U128: 1 | V128: 1 | W128: 0 | X128: 0 | Y128: 0 | Z128: 61 | AA128: 0 | AB128: 2 | AC128: 4 | AD128: 1 | AE128: 4 | AF128: 1 | AG128: 3 | AH128: 6 | AI128: 2 | AJ128: 3 | AK128: 1 | AL128: 2 | AM128: 7 | AN128: 9 | AO128: 11 | AP128: 5 | AQ128: 1 | AR128: 5 | AS128: 4 | AT128: 4 | AU128: 0 | AV128: 0 | AW128: 0 | AX128: 75 | AY128: 2 | AZ128: 2 | BA128: 5 | BB128: 5 | BC128: 4 | BD128: 3 | BE128: 5 | BF128: 9 | BG128: 7 | BH128: 6 | BI128: 2 | BJ128: 3 | BK128: 11 | BL128: 23 | BM128: 19 | BN128: 12 | BO128: 2 | BP128: 6 | BQ128: 5 | BR128: 5 | BS128: 0 | BT128: 0 | BU128: 0 | BV128: 136 | BW128: 49 | BX128: =SUM(BL128:BU128)/BV128 -> 0.5294117647
B129: 栗木野新田 | C129: 2 | D129: 0 | E129: 0 | F129: 0 | G129: 0 | H129: 0 | I129: 0 | J129: 1 | K129: 1 | L129: 1 | M129: 2 | N129: 0 | O129: 1 | P129: 2 | Q129: 2 | R129: 1 | S129: 3 | T129: 1 | U129: 0 | V129: 1 | W129: 0 | X129: 0 | Y129: 0 | Z129: 18 | AA129: 0 | AB129: 0 | AC129: 0 | AD129: 1 | AE129: 0 | AF129: 0 | AG129: 1 | AH129: 1 | AI129: 0 | AJ129: 0 | AK129: 1 | AL129: 0 | AM129: 0 | AN129: 2 | AO129: 2 | AP129: 0 | AQ129: 1 | AR129: 1 | AS129: 1 | AT129: 0 | AU129: 0 | AV129: 0 | AW129: 0 | AX129: 11 | AY129: 2 | AZ129: 0 | BA129: 0 | BB129: 1 | BC129: 0 | BD129: 0 | BE129: 1 | BF129: 2 | BG129: 1 | BH129: 1 | BI129: 3 | BJ129: 0 | BK129: 1 | BL129: 4 | BM129: 4 | BN129: 1 | BO129: 4 | BP129: 2 | BQ129: 1 | BR129: 1 | BS129: 0 | BT129: 0 | BU129: 0 | BV129: 29 | BW129: 14 | BX129: =SUM(BL129:BU129)/BV129 -> 0.5862068966
B130: 夏井 | C130: 0 | D130: 3 | E130: 3 | F130: 3 | G130: 5 | H130: 1 | I130: 0 | J130: 2 | K130: 5 | L130: 8 | M130: 3 | N130: 3 | O130: 5 | P130: 8 | Q130: 6 | R130: 4 | S130: 2 | T130: 0 | U130: 0 | V130: 0 | W130: 0 | X130: 0 | Y130: 0 | Z130: 61 | AA130: 0 | AB130: 1 | AC130: 0 | AD130: 2 | AE130: 2 | AF130: 0 | AG130: 2 | AH130: 2 | AI130: 1 | AJ130: 8 | AK130: 1 | AL130: 3 | AM130: 2 | AN130: 2 | AO130: 12 | AP130: 7 | AQ130: 3 | AR130: 4 | AS130: 3 | AT130: 0 | AU130: 0 | AV130: 0 | AW130: 0 | AX130: 55 | AY130: 0 | AZ130: 4 | BA130: 3 | BB130: 5 | BC130: 7 | BD130: 1 | BE130: 2 | BF130: 4 | BG130: 6 | BH130: 16 | BI130: 4 | BJ130: 6 | BK130: 7 | BL130: 10 | BM130: 18 | BN130: 11 | BO130: 5 | BP130: 4 | BQ130: 3 | BR130: 0 | BS130: 0 | BT130: 0 | BU130: 0 | BV130: 116 | BW130: 43 | BX130: =SUM(BL130:BU130)/BV130 -> 0.4396551724
B131: 鼓岡 | C131: 0 | D131: 0 | E131: 2 | F131: 5 | G131: 3 | H131: 2 | I131: 2 | J131: 2 | K131: 10 | L131: 8 | M131: 4 | N131: 3 | O131: 10 | P131: 12 | Q131: 19 | R131: 13 | S131: 5 | T131: 4 | U131: 2 | V131: 0 | W131: 0 | X131: 0 | Y131: 0 | Z131: 106 | AA131: 0 | AB131: 5 | AC131: 5 | AD131: 6 | AE131: 2 | AF131: 2 | AG131: 1 | AH131: 5 | AI131: 3 | AJ131: 9 | AK131: 7 | AL131: 4 | AM131: 9 | AN131: 20 | AO131: 19 | AP131: 8 | AQ131: 5 | AR131: 10 | AS131: 5 | AT131: 0 | AU131: 0 | AV131: 0 | AW131: 0 | AX131: 125 | AY131: 0 | AZ131: 5 | BA131: 7 | BB131: 11 | BC131: 5 | BD131: 4 | BE131: 3 | BF131: 7 | BG131: 13 | BH131: 17 | BI131: 11 | BJ131: 7 | BK131: 19 | BL131: 32 | BM131: 38 | BN131: 21 | BO131: 10 | BP131: 14 | BQ131: 7 | BR131: 0 | BS131: 0 | BT131: 0 | BU131: 0 | BV131: 231 | BW131: 76 | BX131: =SUM(BL131:BU131)/BV131 -> 0.5281385281
B132: 坂井 | C132: 1 | D132: 4 | E132: 0 | F132: 3 | G132: 2 | H132: 5 | I132: 3 | J132: 3 | K132: 4 | L132: 4 | M132: 7 | N132: 6 | O132: 8 | P132: 13 | Q132: 18 | R132: 8 | S132: 4 | T132: 5 | U132: 1 | V132: 0 | W132: 0 | X132: 0 | Y132: 0 | Z132: 99 | AA132: 2 | AB132: 7 | AC132: 2 | AD132: 0 | AE132: 2 | AF132: 2 | AG132: 2 | AH132: 3 | AI132: 2 | AJ132: 4 | AK132: 3 | AL132: 6 | AM132: 13 | AN132: 16 | AO132: 8 | AP132: 11 | AQ132: 16 | AR132: 3 | AS132: 4 | AT132: 1 | AU132: 0 | AV132: 0 | AW132: 0 | AX132: 107 | AY132: 3 | AZ132: 11 | BA132: 2 | BB132: 3 | BC132: 4 | BD132: 7 | BE132: 5 | BF132: 6 | BG132: 6 | BH132: 8 | BI132: 10 | BJ132: 12 | BK132: 21 | BL132: 29 | BM132: 26 | BN132: 19 | BO132: 20 | BP132: 8 | BQ132: 5 | BR132: 1 | BS132: 0 | BT132: 0 | BU132: 0 | BV132: 206 | BW132: 79 | BX132: =SUM(BL132:BU132)/BV132 -> 0.5242718447
B133: 熱田坂 | C133: 0 | D133: 0 | E133: 0 | F133: 1 | G133: 2 | H133: 1 | I133: 0 | J133: 2 | K133: 2 | L133: 4 | M133: 2 | N133: 4 | O133: 4 | P133: 2 | Q133: 10 | R133: 3 | S133: 2 | T133: 1 | U133: 0 | V133: 0 | W133: 0 | X133: 0 | Y133: 0 | Z133: 40 | AA133: 0 | AB133: 0 | AC133: 1 | AD133: 0 | AE133: 0 | AF133: 1 | AG133: 2 | AH133: 2 | AI133: 3 | AJ133: 3 | AK133: 0 | AL133: 2 | AM133: 6 | AN133: 9 | AO133: 4 | AP133: 2 | AQ133: 3 | AR133: 2 | AS133: 2 | AT133: 0 | AU133: 0 | AV133: 0 | AW133: 0 | AX133: 42 | AY133: 0 | AZ133: 0 | BA133: 1 | BB133: 1 | BC133: 2 | BD133: 2 | BE133: 2 | BF133: 4 | BG133: 5 | BH133: 7 | BI133: 2 | BJ133: 6 | BK133: 10 | BL133: 11 | BM133: 14 | BN133: 5 | BO133: 5 | BP133: 3 | BQ133: 2 | BR133: 0 | BS133: 0 | BT133: 0 | BU133: 0 | BV133: 82 | BW133: 36 | BX133: =SUM(BL133:BU133)/BV133 -> 0.487804878
B134: 宮久 | C134: 0 | D134: 1 | E134: 1 | F134: 1 | G134: 0 | H134: 1 | I134: 0 | J134: 5 | K134: 1 | L134: 2 | M134: 3 | N134: 1 | O134: 6 | P134: 6 | Q134: 4 | R134: 3 | S134: 4 | T134: 2 | U134: 1 | V134: 0 | W134: 0 | X134: 0 | Y134: 0 | Z134: 42 | AA134: 0 | AB134: 0 | AC134: 0 | AD134: 1 | AE134: 1 | AF134: 1 | AG134: 1 | AH134: 3 | AI134: 1 | AJ134: 1 | AK134: 2 | AL134: 1 | AM134: 5 | AN134: 4 | AO134: 6 | AP134: 2 | AQ134: 5 | AR134: 7 | AS134: 6 | AT134: 0 | AU134: 0 | AV134: 0 | AW134: 0 | AX134: 47 | AY134: 0 | AZ134: 1 | BA134: 1 | BB134: 2 | BC134: 1 | BD134: 2 | BE134: 1 | BF134: 8 | BG134: 2 | BH134: 3 | BI134: 5 | BJ134: 2 | BK134: 11 | BL134: 10 | BM134: 10 | BN134: 5 | BO134: 9 | BP134: 9 | BQ134: 7 | BR134: 0 | BS134: 0 | BT134: 0 | BU134: 0 | BV134: 89 | BW134: 42 | BX134: =SUM(BL134:BU134)/BV134 -> 0.5617977528
B135: 川合 | C135: 0 | D135: 0 | E135: 0 | F135: 0 | G135: 1 | H135: 1 | I135: 0 | J135: 0 | K135: 0 | L135: 0 | M135: 0 | N135: 3 | O135: 2 | P135: 0 | Q135: 0 | R135: 0 | S135: 0 | T135: 2 | U135: 0 | V135: 0 | W135: 0 | X135: 0 | Y135: 0 | Z135: 9 | AA135: 0 | AB135: 0 | AC135: 0 | AD135: 0 | AE135: 1 | AF135: 0 | AG135: 0 | AH135: 0 | AI135: 0 | AJ135: 0 | AK135: 2 | AL135: 1 | AM135: 2 | AN135: 0 | AO135: 0 | AP135: 0 | AQ135: 2 | AR135: 3 | AS135: 0 | AT135: 0 | AU135: 0 | AV135: 0 | AW135: 0 | AX135: 11 | AY135: 0 | AZ135: 0 | BA135: 0 | BB135: 0 | BC135: 2 | BD135: 1 | BE135: 0 | BF135: 0 | BG135: 0 | BH135: 0 | BI135: 2 | BJ135: 4 | BK135: 4 | BL135: 0 | BM135: 0 | BN135: 0 | BO135: 2 | BP135: 5 | BQ135: 0 | BR135: 0 | BS135: 0 | BT135: 0 | BU135: 0 | BV135: 20 | BW135: 8 | BX135: =SUM(BL135:BU135)/BV135 -> 0.35
B136: やすらぎの家 | C136: 0 | D136: 0 | E136: 0 | F136: 0 | G136: 0 | H136: 0 | I136: 0 | J136: 0 | K136: 0 | L136: 0 | M136: 0 | N136: 0 | O136: 0 | P136: 4 | Q136: 2 | R136: 8 | S136: 9 | T136: 7 | U136: 4 | V136: 2 | W136: 1 | X136: 0 | Y136: 0 | Z136: 37 | AA136: 0 | AB136: 0 | AC136: 0 | AD136: 0 | AE136: 0 | AF136: 0 | AG136: 0 | AH136: 0 | AI136: 0 | AJ136: 0 | AK136: 0 | AL136: 0 | AM136: 1 | AN136: 1 | AO136: 2 | AP136: 6 | AQ136: 10 | AR136: 20 | AS136: 18 | AT136: 8 | AU136: 1 | AV136: 0 | AW136: 0 | AX136: 67 | AY136: 0 | AZ136: 0 | BA136: 0 | BB136: 0 | BC136: 0 | BD136: 0 | BE136: 0 | BF136: 0 | BG136: 0 | BH136: 0 | BI136: 0 | BJ136: 0 | BK136: 1 | BL136: 5 | BM136: 4 | BN136: 14 | BO136: 19 | BP136: 27 | BQ136: 22 | BR136: 10 | BS136: 2 | BT136: 0 | BU136: 0 | BV136: 104 | BW136: 104 | BX136: =SUM(BL136:BU136)/BV136 -> 0.9903846154
B137: 須巻 | C137: 0 | D137: 0 | E137: 0 | F137: 0 | G137: 0 | H137: 3 | I137: 0 | J137: 2 | K137: 2 | L137: 2 | M137: 2 | N137: 2 | O137: 1 | P137: 4 | Q137: 4 | R137: 4 | S137: 2 | T137: 1 | U137: 0 | V137: 0 | W137: 0 | X137: 0 | Y137: 0 | Z137: 29 | AA137: 0 | AB137: 0 | AC137: 0 | AD137: 1 | AE137: 0 | AF137: 0 | AG137: 0 | AH137: 1 | AI137: 0 | AJ137: 1 | AK137: 0 | AL137: 3 | AM137: 2 | AN137: 4 | AO137: 4 | AP137: 2 | AQ137: 0 | AR137: 1 | AS137: 1 | AT137: 2 | AU137: 0 | AV137: 0 | AW137: 0 | AX137: 22 | AY137: 0 | AZ137: 0 | BA137: 0 | BB137: 1 | BC137: 0 | BD137: 3 | BE137: 0 | BF137: 3 | BG137: 2 | BH137: 3 | BI137: 2 | BJ137: 5 | BK137: 3 | BL137: 8 | BM137: 8 | BN137: 6 | BO137: 2 | BP137: 2 | BQ137: 1 | BR137: 2 | BS137: 0 | BT137: 0 | BU137: 0 | BV137: 51 | BW137: 22 | BX137: =SUM(BL137:BU137)/BV137 -> 0.568627451
B138: 下荒沢 | C138: 0 | D138: 0 | E138: 0 | F138: 0 | G138: 0 | H138: 0 | I138: 2 | J138: 0 | K138: 0 | L138: 0 | M138: 2 | N138: 1 | O138: 0 | P138: 1 | Q138: 3 | R138: 2 | S138: 1 | T138: 0 | U138: 1 | V138: 0 | W138: 0 | X138: 0 | Y138: 0 | Z138: 13 | AA138: 0 | AB138: 0 | AC138: 0 | AD138: 0 | AE138: 2 | AF138: 0 | AG138: 0 | AH138: 0 | AI138: 0 | AJ138: 0 | AK138: 0 | AL138: 1 | AM138: 1 | AN138: 0 | AO138: 3 | AP138: 0 | AQ138: 2 | AR138: 0 | AS138: 1 | AT138: 1 | AU138: 0 | AV138: 0 | AW138: 0 | AX138: 11 | AY138: 0 | AZ138: 0 | BA138: 0 | BB138: 0 | BC138: 2 | BD138: 0 | BE138: 2 | BF138: 0 | BG138: 0 | BH138: 0 | BI138: 2 | BJ138: 2 | BK138: 1 | BL138: 1 | BM138: 6 | BN138: 2 | BO138: 3 | BP138: 0 | BQ138: 2 | BR138: 1 | BS138: 0 | BT138: 0 | BU138: 0 | BV138: 24 | BW138: 11 | BX138: =SUM(BL138:BU138)/BV138 -> 0.625
B139: 持倉 | C139: 0 | D139: 1 | E139: 1 | F139: 0 | G139: 0 | H139: 1 | I139: 1 | J139: 3 | K139: 4 | L139: 2 | M139: 2 | N139: 3 | O139: 3 | P139: 7 | Q139: 8 | R139: 6 | S139: 3 | T139: 3 | U139: 1 | V139: 2 | W139: 0 | X139: 0 | Y139: 0 | Z139: 51 | AA139: 0 | AB139: 0 | AC139: 0 | AD139: 2 | AE139: 0 | AF139: 1 | AG139: 1 | AH139: 0 | AI139: 2 | AJ139: 1 | AK139: 3 | AL139: 3 | AM139: 7 | AN139: 8 | AO139: 5 | AP139: 6 | AQ139: 4 | AR139: 3 | AS139: 3 | AT139: 2 | AU139: 0 | AV139: 0 | AW139: 0 | AX139: 51 | AY139: 0 | AZ139: 1 | BA139: 1 | BB139: 2 | BC139: 0 | BD139: 2 | BE139: 2 | BF139: 3 | BG139: 6 | BH139: 3 | BI139: 5 | BJ139: 6 | BK139: 10 | BL139: 15 | BM139: 13 | BN139: 12 | BO139: 7 | BP139: 6 | BQ139: 4 | BR139: 4 | BS139: 0 | BT139: 0 | BU139: 0 | BV139: 102 | BW139: 42 | BX139: =SUM(BL139:BU139)/BV139 -> 0.5980392157
B140: 黒俣 | C140: 0 | D140: 0 | E140: 0 | F140: 1 | G140: 0 | H140: 1 | I140: 1 | J140: 0 | K140: 0 | L140: 1 | M140: 0 | N140: 2 | O140: 0 | P140: 1 | Q140: 3 | R140: 2 | S140: 1 | T140: 0 | U140: 0 | V140: 0 | W140: 0 | X140: 0 | Y140: 0 | Z140: 13 | AA140: 0 | AB140: 0 | AC140: 0 | AD140: 0 | AE140: 0 | AF140: 1 | AG140: 0 | AH140: 0 | AI140: 0 | AJ140: 0 | AK140: 1 | AL140: 0 | AM140: 2 | AN140: 0 | AO140: 1 | AP140: 1 | AQ140: 0 | AR140: 1 | AS140: 0 | AT140: 0 | AU140: 0 | AV140: 0 | AW140: 0 | AX140: 7 | AY140: 0 | AZ140: 0 | BA140: 0 | BB140: 1 | BC140: 0 | BD140: 2 | BE140: 1 | BF140: 0 | BG140: 0 | BH140: 1 | BI140: 1 | BJ140: 2 | BK140: 2 | BL140: 1 | BM140: 4 | BN140: 3 | BO140: 1 | BP140: 1 | BQ140: 0 | BR140: 0 | BS140: 0 | BT140: 0 | BU140: 0 | BV140: 20 | BW140: 8 | BX140: =SUM(BL140:BU140)/BV140 -> 0.5
B141: 大長谷 | C141: 0 | D141: 2 | E141: 1 | F141: 0 | G141: 0 | H141: 0 | I141: 0 | J141: 1 | K141: 1 | L141: 0 | M141: 2 | N141: 1 | O141: 2 | P141: 2 | Q141: 5 | R141: 3 | S141: 1 | T141: 3 | U141: 1 | V141: 0 | W141: 0 | X141: 0 | Y141: 0 | Z141: 25 | AA141: 0 | AB141: 0 | AC141: 0 | AD141: 0 | AE141: 0 | AF141: 0 | AG141: 1 | AH141: 0 | AI141: 0 | AJ141: 1 | AK141: 0 | AL141: 2 | AM141: 5 | AN141: 1 | AO141: 1 | AP141: 3 | AQ141: 1 | AR141: 7 | AS141: 2 | AT141: 0 | AU141: 0 | AV141: 0 | AW141: 0 | AX141: 24 | AY141: 0 | AZ141: 2 | BA141: 1 | BB141: 0 | BC141: 0 | BD141: 0 | BE141: 1 | BF141: 1 | BG141: 1 | BH141: 1 | BI141: 2 | BJ141: 3 | BK141: 7 | BL141: 3 | BM141: 6 | BN141: 6 | BO141: 2 | BP141: 10 | BQ141: 3 | BR141: 0 | BS141: 0 | BT141: 0 | BU141: 0 | BV141: 49 | BW141: 23 | BX141: =SUM(BL141:BU141)/BV141 -> 0.612244898
B142: 小長谷 | C142: 0 | D142: 0 | E142: 0 | F142: 0 | G142: 0 | H142: 0 | I142: 0 | J142: 0 | K142: 1 | L142: 0 | M142: 0 | N142: 1 | O142: 1 | P142: 3 | Q142: 4 | R142: 0 | S142: 0 | T142: 1 | U142: 1 | V142: 0 | W142: 0 | X142: 0 | Y142: 0 | Z142: 12 | AA142: 0 | AB142: 0 | AC142: 0 | AD142: 0 | AE142: 0 | AF142: 0 | AG142: 0 | AH142: 0 | AI142: 0 | AJ142: 1 | AK142: 0 | AL142: 0 | AM142: 1 | AN142: 2 | AO142: 2 | AP142: 2 | AQ142: 2 | AR142: 0 | AS142: 1 | AT142: 0 | AU142: 0 | AV142: 0 | AW142: 0 | AX142: 11 | AY142: 0 | AZ142: 0 | BA142: 0 | BB142: 0 | BC142: 0 | BD142: 0 | BE142: 0 | BF142: 0 | BG142: 1 | BH142: 1 | BI142: 0 | BJ142: 1 | BK142: 2 | BL142: 5 | BM142: 6 | BN142: 2 | BO142: 2 | BP142: 1 | BQ142: 2 | BR142: 0 | BS142: 0 | BT142: 0 | BU142: 0 | BV142: 23 | BW142: 13 | BX142: =SUM(BL142:BU142)/BV142 -> 0.7826086957
B143: 鍬江 | C143: 1 | D143: 1 | E143: 3 | F143: 6 | G143: 1 | H143: 0 | I143: 6 | J143: 4 | K143: 3 | L143: 3 | M143: 3 | N143: 4 | O143: 10 | P143: 6 | Q143: 10 | R143: 10 | S143: 7 | T143: 1 | U143: 2 | V143: 1 | W143: 0 | X143: 0 | Y143: 0 | Z143: 82 | AA143: 1 | AB143: 3 | AC143: 4 | AD143: 6 | AE143: 1 | AF143: 0 | AG143: 4 | AH143: 3 | AI143: 3 | AJ143: 5 | AK143: 3 | AL143: 4 | AM143: 10 | AN143: 8 | AO143: 7 | AP143: 7 | AQ143: 8 | AR143: 3 | AS143: 5 | AT143: 1 | AU143: 0 | AV143: 0 | AW143: 0 | AX143: 86 | AY143: 2 | AZ143: 4 | BA143: 7 | BB143: 12 | BC143: 2 | BD143: 0 | BE143: 10 | BF143: 7 | BG143: 6 | BH143: 8 | BI143: 6 | BJ143: 8 | BK143: 20 | BL143: 14 | BM143: 17 | BN143: 17 | BO143: 15 | BP143: 4 | BQ143: 7 | BR143: 2 | BS143: 0 | BT143: 0 | BU143: 0 | BV143: 168 | BW143: 66 | BX143: =SUM(BL143:BU143)/BV143 -> 0.4523809524
B144: 合計 | C144: 323 | D144: 422 | E144: 549 | F144: 647 | G144: 580 | H144: 541 | I144: 593 | J144: 664 | K144: 770 | L144: 852 | M144: 920 | N144: 841 | O144: 892 | P144: 1023 | Q144: 1112 | R144: 1066 | S144: 681 | T144: 355 | U144: 167 | V144: 49 | W144: 2 | X144: 0 | Y144: 0 | Z144: 13049 | AA144: 278 | AB144: 432 | AC144: 517 | AD144: 516 | AE144: 504 | AF144: 385 | AG144: 486 | AH144: 634 | AI144: 653 | AJ144: 840 | AK144: 847 | AL144: 860 | AM144: 896 | AN144: 1033 | AO144: 1211 | AP144: 1142 | AQ144: 885 | AR144: 676 | AS144: 493 | AT144: 184 | AU144: 26 | AV144: 2 | AW144: 0 | AX144: 13500 | AY144: 601 | AZ144: 854 | BA144: 1066 | BB144: 1163 | BC144: 1084 | BD144: 926 | BE144: 1079 | BF144: 1298 | BG144: 1423 | BH144: 1692 | BI144: 1767 | BJ144: 1701 | BK144: 1788 | BL144: 2056 | BM144: 2323 | BN144: 2208 | BO144: 1566 | BP144: 1031 | BQ144: 660 | BR144: 233 | BS144: 28 | BT144: 2 | BU144: 0 | BV144: 26549 | BW144: 10855 | BX144: =SUM(BL144:BU144)/BV144 -> 0.3806923048

Sheet R7.2.28
D1: ※行政区「ひめさゆり」「ひまわり荘」「やすらぎの家」の人口および世帯数は非表示となっています。 | BU1: （令和7年2月28日 現在）
C2: 男 | AA2: 女
A3: 地区 | B3: 行政区 | C3: ０～４歳 | D3: ５～９歳 | E3: １０～１４歳 | F3: １５～１９歳 | G3: ２０～２４歳 | H3: ２５～２９歳 | I3: ３０～３４歳 | J3: ３５～３９歳 | K3: ４０～４４歳 | L3: ４５～４９歳 | M3: ５０～５４歳 | N3: ５５～５９歳 | O3: ６０～６４歳 | P3: ６５～６９歳 | Q3: ７０～７４歳 | R3: ７５～７９歳 | S3: ８０～８４歳 | T3: ８５～８９歳 | U3: ９０～９４歳 | V3: ９５～１００歳 | W3: １０１～１０４歳 | X3: １０５～１０９歳 | Y3: １１０～ | Z3: 合計 | AA3: ０～４歳 | AB3: ５～９歳 | AC3: １０～１４歳 | AD3: １５～１９歳 | AE3: ２０～２４歳 | AF3: ２５～２９歳 | AG3: ３０～３４歳 | AH3: ３５～３９歳 | AI3: ４０～４４歳 | AJ3: ４５～４９歳 | AK3: ５０～５４歳 | AL3: ５５～５９歳 | AM3: ６０～６４歳 | AN3: ６５～６９歳 | AO3: ７０～７４歳 | AP3: ７５～７９歳 | AQ3: ８０～８４歳 | AR3: ８５～８９歳 | AS3: ９０～９４歳 | AT3: ９５～１００歳 | AU3: １０１～１０４歳 | AV3: １０５～１０９歳 | AW3: １１０～ | AX3: 合計 | AY3: ０～４歳 | AZ3: ５～９歳 | BA3: １０～１４歳 | BB3: １５～１９歳 | BC3: ２０～２４歳 | BD3: ２５～２９歳 | BE3: ３０～３４歳 | BF3: ３５～３９歳 | BG3: ４０～４４歳 | BH3: ４５～４９歳 | BI3: ５０～５４歳 | BJ3: ５５～５９歳 | BK3: ６０～６４歳 | BL3: ６５～６９歳 | BM3: ７０～７４歳 | BN3: ７５～７９歳 | BO3: ８０～８４歳 | BP3: ８５～８９歳 | BQ3: ９０～９４歳 | BR3: ９５～１００歳 | BS3: １０１～１０４歳 | BT3: １０５～１０９歳 | BU3: １１０～ | BV3: 合計 | BW3: 世帯数 | BX3: 高齢化率 （総人口に占める65歳以上人口の割合）
A4: 中 条 地 区 | B4: 表町 | C4: 2 | D4: 3 | E4: 2 | F4: 4 | G4: 2 | H4: 2 | I4: 3 | J4: 9 | K4: 0 | L4: 2 | M4: 5 | N4: 7 | O4: 4 | P4: 9 | Q4: 14 | R4: 7 | S4: 8 | T4: 3 | U4: 1 | V4: 0 | W4: 0 | X4: 0 | Y4: 0 | Z4: 87 | AA4: 3 | AB4: 2 | AC4: 3 | AD4: 4 | AE4: 5 | AF4: 1 | AG4: 4 | AH4: 3 | AI4: 1 | AJ4: 3 | AK4: 4 | AL4: 6 | AM4: 6 | AN4: 8 | AO4: 9 | AP4: 7 | AQ4: 6 | AR4: 6 | AS4: 6 | AT4: 2 | AU4: 0 | AV4: 0 | AW4: 0 | AX4: 89 | AY4: 5 | AZ4: 5 | BA4: 5 | BB4: 8 | BC4: 7 | BD4: 3 | BE4: 7 | BF4: 12 | BG4: 1 | BH4: 5 | BI4: 9 | BJ4: 13 | BK4: 10 | BL4: 17 | BM4: 23 | BN4: 14 | BO4: 14 | BP4: 9 | BQ4: 7 | BR4: 2 | BS4: 0 | BT4: 0 | BU4: 0 | BV4: 176 | BW4: 76 | BX4: =SUM(BL4:BU4)/BV4 -> 0.4886363636
B5: 水沢町 | C5: 0 | D5: 0 | E5: 0 | F5: 0 | G5: 0 | H5: 0 | I5: 0 | J5: 0 | K5: 0 | L5: 0 | M5: 0 | N5: 0 | O5: 0 | P5: 1 | Q5: 1 | R5: 0 | S5: 0 | T5: 0 | U5: 0 | V5: 0 | W5: 0 | X5: 0 | Y5: 0 | Z5: 2 | AA5: 0 | AB5: 0 | AC5: 0 | AD5: 0 | AE5: 0 | AF5: 0 | AG5: 0 | AH5: 0 | AI5: 0 | AJ5: 0 | AK5: 0 | AL5: 0 | AM5: 0 | AN5: 1 | AO5: 1 | AP5: 0 | AQ5: 0 | AR5: 0 | AS5: 0 | AT5: 0 | AU5: 0 | AV5: 0 | AW5: 0 | AX5: 2 | AY5: 0 | AZ5: 0 | BA5: 0 | BB5: 0 | BC5: 0 | BD5: 0 | BE5: 0 | BF5: 0 | BG5: 0 | BH5: 0 | BI5: 0 | BJ5: 0 | BK5: 0 | BL5: 2 | BM5: 2 | BN5: 0 | BO5: 0 | BP5: 0 | BQ5: 0 | BR5: 0 | BS5: 0 | BT5: 0 | BU5: 0 | BV5: 4 | BW5: 2 | BX5: =SUM(BL5:BU5)/BV5 -> 1
B6: 新栄町 | C6: 5 | D6: 2 | E6: 3 | F6: 7 | G6: 6 | H6: 7 | I6: 5 | J6: 4 | K6: 6 | L6: 7 | M6: 13 | N6: 8 | O6: 15 | P6: 10 | Q6: 12 | R6: 18 | S6: 14 | T6: 4 | U6: 5 | V6: 0 | W6: 0 | X6: 0 | Y6: 0 | Z6: 151 | AA6: 1 | AB6: 2 | AC6: 7 | AD6: 6 | AE6: 6 | AF6: 3 | AG6: 1 | AH6: 3 | AI6: 4 | AJ6: 12 | AK6: 10 | AL6: 13 | AM6: 11 | AN6: 11 | AO6: 20 | AP6: 12 | AQ6: 13 | AR6: 7 | AS6: 10 | AT6: 1 | AU6: 0 | AV6: 0 | AW6: 0 | AX6: 153 | AY6: 6 | AZ6: 4 | BA6: 10 | BB6: 13 | BC6: 12 | BD6: 10 | BE6: 6 | BF6: 7 | BG6: 10 | BH6: 19 | BI6: 23 | BJ6: 21 | BK6: 26 | BL6: 21 | BM6: 32 | BN6: 30 | BO6: 27 | BP6: 11 | BQ6: 15 | BR6: 1 | BS6: 0 | BT6: 0 | BU6: 0 | BV6: 304 | BW6: 135 | BX6: =SUM(BL6:BU6)/BV6 -> 0.4506578947
B7: 大川町１ | C7: 1 | D7: 1 | E7: 2 | F7: 0 | G7: 1 | H7: 2 | I7: 0 | J7: 2 | K7: 1 | L7: 3 | M7: 2 | N7: 4 | O7: 0 | P7: 5 | Q7: 0 | R7: 1 | S7: 2 | T7: 2 | U7: 0 | V7: 0 | W7: 0 | X7: 0 | Y7: 0 | Z7: 29 | AA7: 0 | AB7: 0 | AC7: 0 | AD7: 1 | AE7: 3 | AF7: 0 | AG7: 3 | AH7: 0 | AI7: 0 | AJ7: 5 | AK7: 2 | AL7: 1 | AM7: 0 | AN7: 2 | AO7: 3 | AP7: 1 | AQ7: 1 | AR7: 2 | AS7: 0 | AT7: 2 | AU7: 0 | AV7: 0 | AW7: 0 | AX7: 26 | AY7: 1 | AZ7: 1 | BA7: 2 | BB7: 1 | BC7: 4 | BD7: 2 | BE7: 3 | BF7: 2 | BG7: 1 | BH7: 8 | BI7: 4 | BJ7: 5 | BK7: 0 | BL7: 7 | BM7: 3 | BN7: 2 | BO7: 3 | BP7: 4 | BQ7: 0 | BR7: 2 | BS7: 0 | BT7: 0 | BU7: 0 | BV7: 55 | BW7: 22 | BX7: =SUM(BL7:BU7)/BV7 -> 0.3818181818
B8: 大川町２ | C8: 0 | D8: 0 | E8: 0 | F8: 0 | G8: 0 | H8: 0 | I8: 0 | J8: 1 | K8: 1 | L8: 1 | M8: 2 | N8: 1 | O8: 3 | P8: 3 | Q8: 1 | R8: 1 | S8: 0 | T8: 1 | U8: 0 | V8: 0 | W8: 0 | X8: 0 | Y8: 0 | Z8: 15 | AA8: 0 | AB8: 0 | AC8: 1 | AD8: 1 | AE8: 1 | AF8: 0 | AG8: 0 | AH8: 0 | AI8: 1 | AJ8: 2 | AK8: 1 | AL8: 1 | AM8: 2 | AN8: 4 | AO8: 0 | AP8: 3 | AQ8: 1 | AR8: 1 | AS8: 1 | AT8: 0 | AU8: 1 | AV8: 0 | AW8: 0 | AX8: 21 | AY8: 0 | AZ8: 0 | BA8: 1 | BB8: 1 | BC8: 1 | BD8: 0 | BE8: 0 | BF8: 1 | BG8: 2 | BH8: 3 | BI8: 3 | BJ8: 2 | BK8: 5 | BL8: 7 | BM8: 1 | BN8: 4 | BO8: 1 | BP8: 2 | BQ8: 1 | BR8: 0 | BS8: 1 | BT8: 0 | BU8: 0 | BV8: 36 | BW8: 15 | BX8: =SUM(BL8:BU8)/BV8 -> 0.4722222222
B9: 大川町３ | C9: 2 | D9: 2 | E9: 0 | F9: 2 | G9: 6 | H9: 6 | I9: 7 | J9: 2 | K9: 5 | L9: 4 | M9: 5 | N9: 4 | O9: 3 | P9: 5 | Q9: 3 | R9: 3 | S9: 2 | T9: 2 | U9: 1 | V9: 0 | W9: 0 | X9: 0 | Y9: 0 | Z9: 64 | AA9: 4 | AB9: 4 | AC9: 2 | AD9: 1 | AE9: 8 | AF9: 3 | AG9: 3 | AH9: 3 | AI9: 1 | AJ9: 5 | AK9: 4 | AL9: 4 | AM9: 4 | AN9: 4 | AO9: 4 | AP9: 3 | AQ9: 4 | AR9: 3 | AS9: 1 | AT9: 1 | AU9: 0 | AV9: 0 | AW9: 0 | AX9: 66 | AY9: 6 | AZ9: 6 | BA9: 2 | BB9: 3 | BC9: 14 | BD9: 9 | BE9: 10 | BF9: 5 | BG9: 6 | BH9: 9 | BI9: 9 | BJ9: 8 | BK9: 7 | BL9: 9 | BM9: 7 | BN9: 6 | BO9: 6 | BP9: 5 | BQ9: 2 | BR9: 1 | BS9: 0 | BT9: 0 | BU9: 0 | BV9: 130 | BW9: 68 | BX9: =SUM(BL9:BU9)/BV9 -> 0.2769230769
B10: 大川町４ | C10: 10 | D10: 2 | E10: 8 | F10: 6 | G10: 8 | H10: 13 | I10: 16 | J10: 15 | K10: 12 | L10: 10 | M10: 11 | N10: 7 | O10: 8 | P10: 3 | Q10: 13 | R10: 7 | S10: 7 | T10: 1 | U10: 3 | V10: 0 | W10: 0 | X10: 0 | Y10: 0 | Z10: 160 | AA10: 9 | AB10: 5 | AC10: 5 | AD10: 5 | AE10: 8 | AF10: 13 | AG10: 8 | AH10: 17 | AI10: 8 | AJ10: 7 | AK10: 8 | AL10: 5 | AM10: 7 | AN10: 11 | AO10: 11 | AP10: 10 | AQ10: 7 | AR10: 3 | AS10: 2 | AT10: 2 | AU10: 0 | AV10: 0 | AW10: 0 | AX10: 151 | AY10: 19 | AZ10: 7 | BA10: 13 | BB10: 11 | BC10: 16 | BD10: 26 | BE10: 24 | BF10: 32 | BG10: 20 | BH10: 17 | BI10: 19 | BJ10: 12 | BK10: 15 | BL10: 14 | BM10: 24 | BN10: 17 | BO10: 14 | BP10: 4 | BQ10: 5 | BR10: 2 | BS10: 0 | BT10: 0 | BU10: 0 | BV10: 311 | BW10: 141 | BX10: =SUM(BL10:BU10)/BV10 -> 0.2572347267
B11: 本町１ | C11: 0 | D11: 2 | E11: 0 | F11: 1 | G11: 0 | H11: 1 | I11: 2 | J11: 0 | K11: 2 | L11: 1 | M11: 1 | N11: 2 | O11: 3 | P11: 2 | Q11: 5 | R11: 2 | S11: 1 | T11: 1 | U11: 0 | V11: 0 | W11: 0 | X11: 0 | Y11: 0 | Z11: 26 | AA11: 1 | AB11: 0 | AC11: 0 | AD11: 0 | AE11: 2 | AF11: 0 | AG11: 0 | AH11: 0 | AI11: 0 | AJ11: 2 | AK11: 0 | AL11: 1 | AM11: 4 | AN11: 1 | AO11: 4 | AP11: 2 | AQ11: 2 | AR11: 1 | AS11: 1 | AT11: 2 | AU11: 0 | AV11: 0 | AW11: 0 | AX11: 23 | AY11: 1 | AZ11: 2 | BA11: 0 | BB11: 1 | BC11: 2 | BD11: 1 | BE11: 2 | BF11: 0 | BG11: 2 | BH11: 3 | BI11: 1 | BJ11: 3 | BK11: 7 | BL11: 3 | BM11: 9 | BN11: 4 | BO11: 3 | BP11: 2 | BQ11: 1 | BR11: 2 | BS11: 0 | BT11: 0 | BU11: 0 | BV11: 49 | BW11: 24 | BX11: =SUM(BL11:BU11)/BV11 -> 0.4897959184
B12: 本町２ | C12: 0 | D12: 1 | E12: 1 | F12: 1 | G12: 3 | H12: 2 | I12: 1 | J12: 0 | K12: 1 | L12: 1 | M12: 0 | N12: 3 | O12: 1 | P12: 0 | Q12: 4 | R12: 3 | S12: 1 | T12: 0 | U12: 0 | V12: 0 | W12: 0 | X12: 0 | Y12: 0 | Z12: 23 | AA12: 0 | AB12: 0 | AC12: 1 | AD12: 0 | AE12: 1 | AF12: 1 | AG12: 2 | AH12: 0 | AI12: 0 | AJ12: 1 | AK12: 1 | AL12: 3 | AM12: 1 | AN12: 2 | AO12: 3 | AP12: 2 | AQ12: 2 | AR12: 3 | AS12: 2 | AT12: 0 | AU12: 0 | AV12: 0 | AW12: 0 | AX12: 25 | AY12: 0 | AZ12: 1 | BA12: 2 | BB12: 1 | BC12: 4 | BD12: 3 | BE12: 3 | BF12: 0 | BG12: 1 | BH12: 2 | BI12: 1 | BJ12: 6 | BK12: 2 | BL12: 2 | BM12: 7 | BN12: 5 | BO12: 3 | BP12: 3 | BQ12: 2 | BR12: 0 | BS12: 0 | BT12: 0 | BU12: 0 | BV12: 48 | BW12: 19 | BX12: =SUM(BL12:BU12)/BV12 -> 0.4583333333
B13: 本町３ | C13: 0 | D13: 1 | E13: 2 | F13: 4 | G13: 3 | H13: 3 | I13: 1 | J13: 3 | K13: 0 | L13: 3 | M13: 2 | N13: 2 | O13: 3 | P13: 4 | Q13: 3 | R13: 5 | S13: 2 | T13: 1 | U13: 0 | V13: 1 | W13: 0 | X13: 0 | Y13: 0 | Z13: 43 | AA13: 1 | AB13: 0 | AC13: 1 | AD13: 1 | AE13: 1 | AF13: 0 | AG13: 2 | AH13: 1 | AI13: 4 | AJ13: 2 | AK13: 2 | AL13: 0 | AM13: 4 | AN13: 2 | AO13: 4 | AP13: 6 | AQ13: 3 | AR13: 4 | AS13: 5 | AT13: 0 | AU13: 0 | AV13: 0 | AW13: 0 | AX13: 43 | AY13: 1 | AZ13: 1 | BA13: 3 | BB13: 5 | BC13: 4 | BD13: 3 | BE13: 3 | BF13: 4 | BG13: 4 | BH13: 5 | BI13: 4 | BJ13: 2 | BK13: 7 | BL13: 6 | BM13: 7 | BN13: 11 | BO13: 5 | BP13: 5 | BQ13: 5 | BR13: 1 | BS13: 0 | BT13: 0 | BU13: 0 | BV13: 86 | BW13: 42 | BX13: =SUM(BL13:BU13)/BV13 -> 0.4651162791
B14: 本町４ | C14: 1 | D14: 1 | E14: 2 | F14: 3 | G14: 0 | H14: 1 | I14: 1 | J14: 1 | K14: 3 | L14: 1 | M14: 3 | N14: 4 | O14: 1 | P14: 0 | Q14: 4 | R14: 2 | S14: 3 | T14: 4 | U14: 0 | V14: 0 | W14: 0 | X14: 0 | Y14: 0 | Z14: 35 | AA14: 0 | AB14: 1 | AC14: 1 | AD14: 1 | AE14: 1 | AF14: 0 | AG14: 1 | AH14: 0 | AI14: 2 | AJ14: 0 | AK14: 5 | AL14: 3 | AM14: 0 | AN14: 4 | AO14: 3 | AP14: 4 | AQ14: 3 | AR14: 1 | AS14: 5 | AT14: 0 | AU14: 0 | AV14: 0 | AW14: 0 | AX14: 35 | AY14: 1 | AZ14: 2 | BA14: 3 | BB14: 4 | BC14: 1 | BD14: 1 | BE14: 2 | BF14: 1 | BG14: 5 | BH14: 1 | BI14: 8 | BJ14: 7 | BK14: 1 | BL14: 4 | BM14: 7 | BN14: 6 | BO14: 6 | BP14: 5 | BQ14: 5 | BR14: 0 | BS14: 0 | BT14: 0 | BU14: 0 | BV14: 70 | BW14: 31 | BX14: =SUM(BL14:BU14)/BV14 -> 0.4714285714
B15: 西栄町１ | C15: 2 | D15: 1 | E15: 0 | F15: 0 | G15: 1 | H15: 0 | I15: 0 | J15: 1 | K15: 5 | L15: 1 | M15: 3 | N15: 5 | O15: 3 | P15: 1 | Q15: 3 | R15: 4 | S15: 5 | T15: 1 | U15: 0 | V15: 0 | W15: 0 | X15: 0 | Y15: 0 | Z15: 36 | AA15: 0 | AB15: 1 | AC15: 2 | AD15: 1 | AE15: 1 | AF15: 0 | AG15: 3 | AH15: 1 | AI15: 1 | AJ15: 1 | AK15: 3 | AL15: 4 | AM15: 2 | AN15: 2 | AO15: 3 | AP15: 4 | AQ15: 6 | AR15: 3 | AS15: 2 | AT15: 3 | AU15: 1 | AV15: 0 | AW15: 0 | AX15: 44 | AY15: 2 | AZ15: 2 | BA15: 2 | BB15: 1 | BC15: 2 | BD15: 0 | BE15: 3 | BF15: 2 | BG15: 6 | BH15: 2 | BI15: 6 | BJ15: 9 | BK15: 5 | BL15: 3 | BM15: 6 | BN15: 8 | BO15: 11 | BP15: 4 | BQ15: 2 | BR15: 3 | BS15: 1 | BT15: 0 | BU15: 0 | BV15: 80 | BW15: 39 | BX15: =SUM(BL15:BU15)/BV15 -> 0.475
B16: 西栄町２ | C16: 0 | D16: 1 | E16: 1 | F16: 1 | G16: 0 | H16: 1 | I16: 0 | J16: 0 | K16: 2 | L16: 0 | M16: 0 | N16: 1 | O16: 2 | P16: 3 | Q16: 2 | R16: 4 | S16: 1 | T16: 0 | U16: 0 | V16: 0 | W16: 0 | X16: 0 | Y16: 0 | Z16: 19 | AA16: 0 | AB16: 0 | AC16: 0 | AD16: 0 | AE16: 0 | AF16: 0 | AG16: 0 | AH16: 0 | AI16: 3 | AJ16: 2 | AK16: 1 | AL16: 0 | AM16: 2 | AN16: 3 | AO16: 6 | AP16: 2 | AQ16: 0 | AR16: 2 | AS16: 1 | AT16: 0 | AU16: 0 | AV16: 0 | AW16: 0 | AX16: 22 | AY16: 0 | AZ16: 1 | BA16: 1 | BB16: 1 | BC16: 0 | BD16: 1 | BE16: 0 | BF16: 0 | BG16: 5 | BH16: 2 | BI16: 1 | BJ16: 1 | BK16: 4 | BL16: 6 | BM16: 8 | BN16: 6 | BO16: 1 | BP16: 2 | BQ16: 1 | BR16: 0 | BS16: 0 | BT16: 0 | BU16: 0 | BV16: 41 | BW16: 20 | BX16: =SUM(BL16:BU16)/BV16 -> 0.5853658537
B17: 西栄町３ | C17: 1 | D17: 3 | E17: 0 | F17: 2 | G17: 0 | H17: 1 | I17: 2 | J17: 0 | K17: 2 | L17: 3 | M17: 3 | N17: 2 | O17: 4 | P17: 3 | Q17: 2 | R17: 4 | S17: 1 | T17: 0 | U17: 1 | V17: 0 | W17: 0 | X17: 0 | Y17: 0 | Z17: 34 | AA17: 1 | AB17: 0 | AC17: 0 | AD17: 3 | AE17: 1 | AF17: 2 | AG17: 0 | AH17: 1 | AI17: 1 | AJ17: 3 | AK17: 2 | AL17: 4 | AM17: 4 | AN17: 5 | AO17: 5 | AP17: 0 | AQ17: 3 | AR17: 0 | AS17: 6 | AT17: 0 | AU17: 0 | AV17: 0 | AW17: 0 | AX17: 41 | AY17: 2 | AZ17: 3 | BA17: 0 | BB17: 5 | BC17: 1 | BD17: 3 | BE17: 2 | BF17: 1 | BG17: 3 | BH17: 6 | BI17: 5 | BJ17: 6 | BK17: 8 | BL17: 8 | BM17: 7 | BN17: 4 | BO17: 4 | BP17: 0 | BQ17: 7 | BR17: 0 | BS17: 0 | BT17: 0 | BU17: 0 | BV17: 75 | BW17: 29 | BX17: =SUM(BL17:BU17)/BV17 -> 0.4
B18: 西栄町４ | C18: 1 | D18: 2 | E18: 0 | F18: 3 | G18: 1 | H18: 1 | I18: 0 | J18: 1 | K18: 1 | L18: 0 | M18: 3 | N18: 0 | O18: 2 | P18: 3 | Q18: 3 | R18: 2 | S18: 1 | T18: 1 | U18: 3 | V18: 0 | W18: 0 | X18: 0 | Y18: 0 | Z18: 28 | AA18: 0 | AB18: 0 | AC18: 1 | AD18: 0 | AE18: 1 | AF18: 0 | AG18: 0 | AH18: 1 | AI18: 1 | AJ18: 3 | AK18: 1 | AL18: 1 | AM18: 1 | AN18: 3 | AO18: 4 | AP18: 2 | AQ18: 3 | AR18: 1 | AS18: 2 | AT18: 0 | AU18: 1 | AV18: 0 | AW18: 0 | AX18: 26 | AY18: 1 | AZ18: 2 | BA18: 1 | BB18: 3 | BC18: 2 | BD18: 1 | BE18: 0 | BF18: 2 | BG18: 2 | BH18: 3 | BI18: 4 | BJ18: 1 | BK18: 3 | BL18: 6 | BM18: 7 | BN18: 4 | BO18: 4 | BP18: 2 | BQ18: 5 | BR18: 0 | BS18: 1 | BT18: 0 | BU18: 0 | BV18: 54 | BW18: 22 | BX18: =SUM(BL18:BU18)/BV18 -> 0.537037037
B19: 西本町１ | C19: 8 | D19: 5 | E19: 11 | F19: 8 | G19: 3 | H19: 7 | I19: 5 | J19: 6 | K19: 9 | L19: 6 | M19: 8 | N19: 4 | O19: 2 | P19: 2 | Q19: 3 | R19: 0 | S19: 1 | T19: 3 | U19: 1 | V19: 0 | W19: 0 | X19: 0 | Y19: 0 | Z19: 92 | AA19: 1 | AB19: 4 | AC19: 7 | AD19: 5 | AE19: 4 | AF19: 6 | AG19: 5 | AH19: 6 | AI19: 8 | AJ19: 8 | AK19: 4 | AL19: 3 | AM19: 3 | AN19: 3 | AO19: 2 | AP19: 4 | AQ19: 6 | AR19: 2 | AS19: 0 | AT19: 0 | AU19: 0 | AV19: 0 | AW19: 0 | AX19: 81 | AY19: 9 | AZ19: 9 | BA19: 18 | BB19: 13 | BC19: 7 | BD19: 13 | BE19: 10 | BF19: 12 | BG19: 17 | BH19: 14 | BI19: 12 | BJ19: 7 | BK19: 5 | BL19: 5 | BM19: 5 | BN19: 4 | BO19: 7 | BP19: 5 | BQ19: 1 | BR19: 0 | BS19: 0 | BT19: 0 | BU19: 0 | BV19: 173 | BW19: 75 | BX19: =SUM(BL19:BU19)/BV19 -> 0.1560693642
B20: 西本町２ | C20: 4 | D20: 6 | E20: 1 | F20: 6 | G20: 9 | H20: 5 | I20: 9 | J20: 12 | K20: 12 | L20: 10 | M20: 12 | N20: 8 | O20: 10 | P20: 6 | Q20: 5 | R20: 4 | S20: 6 | T20: 3 | U20: 0 | V20: 0 | W20: 0 | X20: 0 | Y20: 0 | Z20: 128 | AA20: 7 | AB20: 12 | AC20: 2 | AD20: 5 | AE20: 9 | AF20: 7 | AG20: 5 | AH20: 11 | AI20: 3 | AJ20: 8 | AK20: 10 | AL20: 10 | AM20: 5 | AN20: 6 | AO20: 6 | AP20: 10 | AQ20: 8 | AR20: 4 | AS20: 5 | AT20: 0 | AU20: 1 | AV20: 0 | AW20: 0 | AX20: 134 | AY20: 11 | AZ20: 18 | BA20: 3 | BB20: 11 | BC20: 18 | BD20: 12 | BE20: 14 | BF20: 23 | BG20: 15 | BH20: 18 | BI20: 22 | BJ20: 18 | BK20: 15 | BL20: 12 | BM20: 11 | BN20: 14 | BO20: 14 | BP20: 7 | BQ20: 5 | BR20: 0 | BS20: 1 | BT20: 0 | BU20: 0 | BV20: 262 | BW20: 111 | BX20: =SUM(BL20:BU20)/BV20 -> 0.2442748092
B21: 西本町３ | C21: 5 | D21: 11 | E21: 3 | F21: 10 | G21: 10 | H21: 14 | I21: 15 | J21: 16 | K21: 10 | L21: 16 | M21: 18 | N21: 9 | O21: 15 | P21: 11 | Q21: 10 | R21: 10 | S21: 9 | T21: 4 | U21: 2 | V21: 0 | W21: 0 | X21: 0 | Y21: 0 | Z21: 198 | AA21: 5 | AB21: 10 | AC21: 6 | AD21: 10 | AE21: 14 | AF21: 14 | AG21: 10 | AH21: 18 | AI21: 12 | AJ21: 10 | AK21: 16 | AL21: 9 | AM21: 13 | AN21: 13 | AO21: 16 | AP21: 10 | AQ21: 13 | AR21: 6 | AS21: 11 | AT21: 1 | AU21: 1 | AV21: 0 | AW21: 0 | AX21: 218 | AY21: 10 | AZ21: 21 | BA21: 9 | BB21: 20 | BC21: 24 | BD21: 28 | BE21: 25 | BF21: 34 | BG21: 22 | BH21: 26 | BI21: 34 | BJ21: 18 | BK21: 28 | BL21: 24 | BM21: 26 | BN21: 20 | BO21: 22 | BP21: 10 | BQ21: 13 | BR21: 1 | BS21: 1 | BT21: 0 | BU21: 0 | BV21: 416 | BW21: 191 | BX21: =SUM(BL21:BU21)/BV21 -> 0.28125
B22: 西本町４ | C22: 2 | D22: 3 | E22: 3 | F22: 7 | G22: 4 | H22: 5 | I22: 5 | J22: 7 | K22: 6 | L22: 5 | M22: 5 | N22: 2 | O22: 3 | P22: 4 | Q22: 5 | R22: 9 | S22: 9 | T22: 1 | U22: 4 | V22: 0 | W22: 0 | X22: 0 | Y22: 0 | Z22: 89 | AA22: 6 | AB22: 5 | AC22: 5 | AD22: 3 | AE22: 3 | AF22: 4 | AG22: 7 | AH22: 4 | AI22: 10 | AJ22: 4 | AK22: 8 | AL22: 5 | AM22: 2 | AN22: 6 | AO22: 7 | AP22: 11 | AQ22: 7 | AR22: 14 | AS22: 23 | AT22: 14 | AU22: 1 | AV22: 0 | AW22: 0 | AX22: 149 | AY22: 8 | AZ22: 8 | BA22: 8 | BB22: 10 | BC22: 7 | BD22: 9 | BE22: 12 | BF22: 11 | BG22: 16 | BH22: 9 | BI22: 13 | BJ22: 7 | BK22: 5 | BL22: 10 | BM22: 12 | BN22: 20 | BO22: 16 | BP22: 15 | BQ22: 27 | BR22: 14 | BS22: 1 | BT22: 0 | BU22: 0 | BV22: 238 | BW22: 140 | BX22: =SUM(BL22:BU22)/BV22 -> 0.4831932773
B23: 北本町１ | C23: 0 | D23: 3 | E23: 6 | F23: 4 | G23: 2 | H23: 2 | I23: 2 | J23: 3 | K23: 1 | L23: 3 | M23: 4 | N23: 8 | O23: 8 | P23: 6 | Q23: 6 | R23: 6 | S23: 4 | T23: 1 | U23: 4 | V23: 0 | W23: 0 | X23: 0 | Y23: 0 | Z23: 73 | AA23: 1 | AB23: 1 | AC23: 2 | AD23: 2 | AE23: 2 | AF23: 3 | AG23: 2 | AH23: 6 | AI23: 5 | AJ23: 5 | AK23: 5 | AL23: 8 | AM23: 3 | AN23: 6 | AO23: 11 | AP23: 6 | AQ23: 10 | AR23: 9 | AS23: 8 | AT23: 3 | AU23: 0 | AV23: 0 | AW23: 0 | AX23: 98 | AY23: 1 | AZ23: 4 | BA23: 8 | BB23: 6 | BC23: 4 | BD23: 5 | BE23: 4 | BF23: 9 | BG23: 6 | BH23: 8 | BI23: 9 | BJ23: 16 | BK23: 11 | BL23: 12 | BM23: 17 | BN23: 12 | BO23: 14 | BP23: 10 | BQ23: 12 | BR23: 3 | BS23: 0 | BT23: 0 | BU23: 0 | BV23: 171 | BW23: 77 | BX23: =SUM(BL23:BU23)/BV23 -> 0.4678362573
B24: 北本町２ | C24: 0 | D24: 0 | E24: 0 | F24: 0 | G24: 3 | H24: 3 | I24: 0 | J24: 1 | K24: 0 | L24: 0 | M24: 2 | N24: 0 | O24: 4 | P24: 5 | Q24: 2 | R24: 2 | S24: 0 | T24: 2 | U24: 2 | V24: 0 | W24: 0 | X24: 0 | Y24: 0 | Z24: 26 | AA24: 0 | AB24: 0 | AC24: 0 | AD24: 0 | AE24: 1 | AF24: 0 | AG24: 0 | AH24: 1 | AI24: 1 | AJ24: 1 | AK24: 1 | AL24: 3 | AM24: 2 | AN24: 2 | AO24: 1 | AP24: 3 | AQ24: 4 | AR24: 3 | AS24: 4 | AT24: 1 | AU24: 0 | AV24: 0 | AW24: 0 | AX24: 28 | AY24: 0 | AZ24: 0 | BA24: 0 | BB24: 0 | BC24: 4 | BD24: 3 | BE24: 0 | BF24: 2 | BG24: 1 | BH24: 1 | BI24: 3 | BJ24: 3 | BK24: 6 | BL24: 7 | BM24: 3 | BN24: 5 | BO24: 4 | BP24: 5 | BQ24: 6 | BR24: 1 | BS24: 0 | BT24: 0 | BU24: 0 | BV24: 54 | BW24: 32 | BX24: =SUM(BL24:BU24)/BV24 -> 0.5740740741
B25: 東本町１ | C25: 0 | D25: 1 | E25: 3 | F25: 1 | G25: 1 | H25: 2 | I25: 4 | J25: 0 | K25: 2 | L25: 3 | M25: 2 | N25: 4 | O25: 5 | P25: 6 | Q25: 1 | R25: 0 | S25: 2 | T25: 0 | U25: 1 | V25: 0 | W25: 0 | X25: 0 | Y25: 0 | Z25: 38 | AA25: 0 | AB25: 0 | AC25: 1 | AD25: 2 | AE25: 2 | AF25: 1 | AG25: 2 | AH25: 2 | AI25: 3 | AJ25: 2 | AK25: 3 | AL25: 9 | AM25: 5 | AN25: 5 | AO25: 0 | AP25: 2 | AQ25: 8 | AR25: 2 | AS25: 6 | AT25: 3 | AU25: 0 | AV25: 0 | AW25: 0 | AX25: 58 | AY25: 0 | AZ25: 1 | BA25: 4 | BB25: 3 | BC25: 3 | BD25: 3 | BE25: 6 | BF25: 2 | BG25: 5 | BH25: 5 | BI25: 5 | BJ25: 13 | BK25: 10 | BL25: 11 | BM25: 1 | BN25: 2 | BO25: 10 | BP25: 2 | BQ25: 7 | BR25: 3 | BS25: 0 | BT25: 0 | BU25: 0 | BV25: 96 | BW25: 47 | BX25: =SUM(BL25:BU25)/BV25 -> 0.375
B26: 東本町２ | C26: 0 | D26: 1 | E26: 4 | F26: 4 | G26: 3 | H26: 2 | I26: 4 | J26: 3 | K26: 2 | L26: 5 | M26: 5 | N26: 8 | O26: 7 | P26: 4 | Q26: 4 | R26: 10 | S26: 5 | T26: 1 | U26: 1 | V26: 0 | W26: 0 | X26: 0 | Y26: 0 | Z26: 73 | AA26: 2 | AB26: 1 | AC26: 2 | AD26: 2 | AE26: 4 | AF26: 4 | AG26: 1 | AH26: 3 | AI26: 3 | AJ26: 1 | AK26: 9 | AL26: 12 | AM26: 2 | AN26: 3 | AO26: 4 | AP26: 8 | AQ26: 6 | AR26: 7 | AS26: 2 | AT26: 0 | AU26: 0 | AV26: 0 | AW26: 0 | AX26: 76 | AY26: 2 | AZ26: 2 | BA26: 6 | BB26: 6 | BC26: 7 | BD26: 6 | BE26: 5 | BF26: 6 | BG26: 5 | BH26: 6 | BI26: 14 | BJ26: 20 | BK26: 9 | BL26: 7 | BM26: 8 | BN26: 18 | BO26: 11 | BP26: 8 | BQ26: 3 | BR26: 0 | BS26: 0 | BT26: 0 | BU26: 0 | BV26: 149 | BW26: 70 | BX26: =SUM(BL26:BU26)/BV26 -> 0.3691275168
B27: 東本町３ | C27: 0 | D27: 2 | E27: 0 | F27: 1 | G27: 1 | H27: 1 | I27: 1 | J27: 2 | K27: 2 | L27: 4 | M27: 2 | N27: 4 | O27: 3 | P27: 7 | Q27: 5 | R27: 5 | S27: 4 | T27: 2 | U27: 1 | V27: 0 | W27: 0 | X27: 0 | Y27: 0 | Z27: 47 | AA27: 0 | AB27: 1 | AC27: 0 | AD27: 1 | AE27: 5 | AF27: 1 | AG27: 2 | AH27: 1 | AI27: 1 | AJ27: 2 | AK27: 5 | AL27: 4 | AM27: 2 | AN27: 4 | AO27: 4 | AP27: 5 | AQ27: 2 | AR27: 4 | AS27: 3 | AT27: 2 | AU27: 0 | AV27: 0 | AW27: 0 | AX27: 49 | AY27: 0 | AZ27: 3 | BA27: 0 | BB27: 2 | BC27: 6 | BD27: 2 | BE27: 3 | BF27: 3 | BG27: 3 | BH27: 6 | BI27: 7 | BJ27: 8 | BK27: 5 | BL27: 11 | BM27: 9 | BN27: 10 | BO27: 6 | BP27: 6 | BQ27: 4 | BR27: 2 | BS27: 0 | BT27: 0 | BU27: 0 | BV27: 96 | BW27: 53 | BX27: =SUM(BL27:BU27)/BV27 -> 0.5
B28: 東本町４ | C28: 19 | D28: 3 | E28: 5 | F28: 10 | G28: 16 | H28: 20 | I28: 21 | J28: 14 | K28: 15 | L28: 17 | M28: 13 | N28: 12 | O28: 21 | P28: 14 | Q28: 7 | R28: 12 | S28: 7 | T28: 4 | U28: 5 | V28: 1 | W28: 0 | X28: 0 | Y28: 0 | Z28: 236 | AA28: 10 | AB28: 6 | AC28: 4 | AD28: 6 | AE28: 23 | AF28: 12 | AG28: 26 | AH28: 16 | AI28: 11 | AJ28: 16 | AK28: 10 | AL28: 24 | AM28: 16 | AN28: 11 | AO28: 16 | AP28: 12 | AQ28: 19 | AR28: 12 | AS28: 7 | AT28: 1 | AU28: 1 | AV28: 0 | AW28: 0 | AX28: 259 | AY28: 29 | AZ28: 9 | BA28: 9 | BB28: 16 | BC28: 39 | BD28: 32 | BE28: 47 | BF28: 30 | BG28: 26 | BH28: 33 | BI28: 23 | BJ28: 36 | BK28: 37 | BL28: 25 | BM28: 23 | BN28: 24 | BO28: 26 | BP28: 16 | BQ28: 12 | BR28: 2 | BS28: 1 | BT28: 0 | BU28: 0 | BV28: 495 | BW28: 236 | BX28: =SUM(BL28:BU28)/BV28 -> 0.2606060606
B29: 東本町５ | C29: 0 | D29: 1 | E29: 3 | F29: 3 | G29: 1 | H29: 1 | I29: 2 | J29: 3 | K29: 5 | L29: 1 | M29: 8 | N29: 3 | O29: 5 | P29: 10 | Q29: 5 | R29: 6 | S29: 1 | T29: 2 | U29: 2 | V29: 0 | W29: 0 | X29: 0 | Y29: 0 | Z29: 62 | AA29: 1 | AB29: 1 | AC29: 3 | AD29: 4 | AE29: 1 | AF29: 1 | AG29: 1 | AH29: 3 | AI29: 6 | AJ29: 3 | AK29: 1 | AL29: 2 | AM29: 2 | AN29: 9 | AO29: 5 | AP29: 6 | AQ29: 1 | AR29: 6 | AS29: 1 | AT29: 1 | AU29: 0 | AV29: 0 | AW29: 0 | AX29: 58 | AY29: 1 | AZ29: 2 | BA29: 6 | BB29: 7 | BC29: 2 | BD29: 2 | BE29: 3 | BF29: 6 | BG29: 11 | BH29: 4 | BI29: 9 | BJ29: 5 | BK29: 7 | BL29: 19 | BM29: 10 | BN29: 12 | BO29: 2 | BP29: 8 | BQ29: 3 | BR29: 1 | BS29: 0 | BT29: 0 | BU29: 0 | BV29: 120 | BW29: 54 | BX29: =SUM(BL29:BU29)/BV29 -> 0.4583333333
B30: 東本町６ | C30: 2 | D30: 4 | E30: 3 | F30: 4 | G30: 2 | H30: 2 | I30: 4 | J30: 2 | K30: 2 | L30: 6 | M30: 12 | N30: 9 | O30: 7 | P30: 7 | Q30: 8 | R30: 4 | S30: 10 | T30: 6 | U30: 5 | V30: 0 | W30: 0 | X30: 0 | Y30: 0 | Z30: 99 | AA30: 2 | AB30: 2 | AC30: 2 | AD30: 4 | AE30: 5 | AF30: 6 | AG30: 4 | AH30: 3 | AI30: 1 | AJ30: 5 | AK30: 10 | AL30: 11 | AM30: 6 | AN30: 3 | AO30: 9 | AP30: 8 | AQ30: 10 | AR30: 9 | AS30: 6 | AT30: 1 | AU30: 1 | AV30: 0 | AW30: 0 | AX30: 108 | AY30: 4 | AZ30: 6 | BA30: 5 | BB30: 8 | BC30: 7 | BD30: 8 | BE30: 8 | BF30: 5 | BG30: 3 | BH30: 11 | BI30: 22 | BJ30: 20 | BK30: 13 | BL30: 10 | BM30: 17 | BN30: 12 | BO30: 20 | BP30: 15 | BQ30: 11 | BR30: 1 | BS30: 1 | BT30: 0 | BU30: 0 | BV30: 207 | BW30: 86 | BX30: =SUM(BL30:BU30)/BV30 -> 0.4202898551
B31: 東本町７ | C31: 1 | D31: 9 | E31: 3 | F31: 2 | G31: 0 | H31: 2 | I31: 2 | J31: 4 | K31: 6 | L31: 7 | M31: 6 | N31: 3 | O31: 2 | P31: 4 | Q31: 4 | R31: 1 | S31: 5 | T31: 1 | U31: 0 | V31: 0 | W31: 0 | X31: 0 | Y31: 0 | Z31: 62 | AA31: 5 | AB31: 8 | AC31: 4 | AD31: 0 | AE31: 0 | AF31: 2 | AG31: 3 | AH31: 3 | AI31: 5 | AJ31: 4 | AK31: 1 | AL31: 7 | AM31: 0 | AN31: 7 | AO31: 4 | AP31: 7 | AQ31: 1 | AR31: 0 | AS31: 1 | AT31: 0 | AU31: 0 | AV31: 0 | AW31: 0 | AX31: 62 | AY31: 6 | AZ31: 17 | BA31: 7 | BB31: 2 | BC31: 0 | BD31: 4 | BE31: 5 | BF31: 7 | BG31: 11 | BH31: 11 | BI31: 7 | BJ31: 10 | BK31: 2 | BL31: 11 | BM31: 8 | BN31: 8 | BO31: 6 | BP31: 1 | BQ31: 1 | BR31: 0 | BS31: 0 | BT31: 0 | BU31: 0 | BV31: 124 | BW31: 45 | BX31: =SUM(BL31:BU31)/BV31 -> 0.2822580645
B32: 新和町 | C32: 2 | D32: 4 | E32: 3 | F32: 1 | G32: 1 | H32: 4 | I32: 5 | J32: 2 | K32: 1 | L32: 3 | M32: 3 | N32: 2 | O32: 4 | P32: 0 | Q32: 1 | R32: 2 | S32: 1 | T32: 0 | U32: 0 | V32: 0 | W32: 0 | X32: 0 | Y32: 0 | Z32: 39 | AA32: 5 | AB32: 2 | AC32: 3 | AD32: 0 | AE32: 2 | AF32: 2 | AG32: 7 | AH32: 3 | AI32: 2 | AJ32: 2 | AK32: 1 | AL32: 3 | AM32: 5 | AN32: 0 | AO32: 4 | AP32: 1 | AQ32: 1 | AR32: 2 | AS32: 0 | AT32: 1 | AU32: 0 | AV32: 0 | AW32: 0 | AX32: 46 | AY32: 7 | AZ32: 6 | BA32: 6 | BB32: 1 | BC32: 3 | BD32: 6 | BE32: 12 | BF32: 5 | BG32: 3 | BH32: 5 | BI32: 4 | BJ32: 5 | BK32: 9 | BL32: 0 | BM32: 5 | BN32: 3 | BO32: 2 | BP32: 2 | BQ32: 0 | BR32: 1 | BS32: 0 | BT32: 0 | BU32: 0 | BV32: 85 | BW32: 28 | BX32: =SUM(BL32:BU32)/BV32 -> 0.1529411765
B33: 住吉町 | C33: 22 | D33: 16 | E33: 15 | F33: 8 | G33: 22 | H33: 11 | I33: 19 | J33: 20 | K33: 25 | L33: 23 | M33: 31 | N33: 19 | O33: 9 | P33: 22 | Q33: 11 | R33: 14 | S33: 13 | T33: 6 | U33: 2 | V33: 0 | W33: 0 | X33: 0 | Y33: 0 | Z33: 308 | AA33: 14 | AB33: 16 | AC33: 20 | AD33: 13 | AE33: 7 | AF33: 11 | AG33: 19 | AH33: 26 | AI33: 17 | AJ33: 21 | AK33: 24 | AL33: 16 | AM33: 19 | AN33: 17 | AO33: 10 | AP33: 32 | AQ33: 17 | AR33: 5 | AS33: 3 | AT33: 0 | AU33: 1 | AV33: 0 | AW33: 0 | AX33: 308 | AY33: 36 | AZ33: 32 | BA33: 35 | BB33: 21 | BC33: 29 | BD33: 22 | BE33: 38 | BF33: 46 | BG33: 42 | BH33: 44 | BI33: 55 | BJ33: 35 | BK33: 28 | BL33: 39 | BM33: 21 | BN33: 46 | BO33: 30 | BP33: 11 | BQ33: 5 | BR33: 0 | BS33: 1 | BT33: 0 | BU33: 0 | BV33: 616 | BW33: 236 | BX33: =SUM(BL33:BU33)/BV33 -> 0.2483766234
B34: 若松町１ | C34: 4 | D34: 5 | E34: 12 | F34: 6 | G34: 10 | H34: 12 | I34: 8 | J34: 7 | K34: 14 | L34: 15 | M34: 22 | N34: 20 | O34: 14 | P34: 14 | Q34: 27 | R34: 28 | S34: 27 | T34: 5 | U34: 3 | V34: 2 | W34: 0 | X34: 0 | Y34: 0 | Z34: 255 | AA34: 3 | AB34: 7 | AC34: 10 | AD34: 8 | AE34: 7 | AF34: 5 | AG34: 6 | AH34: 9 | AI34: 11 | AJ34: 19 | AK34: 17 | AL34: 17 | AM34: 11 | AN34: 20 | AO34: 25 | AP34: 36 | AQ34: 33 | AR34: 4 | AS34: 7 | AT34: 0 | AU34: 0 | AV34: 0 | AW34: 0 | AX34: 255 | AY34: 7 | AZ34: 12 | BA34: 22 | BB34: 14 | BC34: 17 | BD34: 17 | BE34: 14 | BF34: 16 | BG34: 25 | BH34: 34 | BI34: 39 | BJ34: 37 | BK34: 25 | BL34: 34 | BM34: 52 | BN34: 64 | BO34: 60 | BP34: 9 | BQ34: 10 | BR34: 2 | BS34: 0 | BT34: 0 | BU34: 0 | BV34: 510 | BW34: 212 | BX34: =SUM(BL34:BU34)/BV34 -> 0.4529411765
B35: 若松町２ | C35: 0 | D35: 1 | E35: 3 | F35: 0 | G35: 2 | H35: 2 | I35: 4 | J35: 1 | K35: 2 | L35: 2 | M35: 5 | N35: 9 | O35: 7 | P35: 14 | Q35: 9 | R35: 13 | S35: 16 | T35: 4 | U35: 0 | V35: 0 | W35: 0 | X35: 0 | Y35: 0 | Z35: 94 | AA35: 0 | AB35: 2 | AC35: 2 | AD35: 3 | AE35: 1 | AF35: 1 | AG35: 0 | AH35: 1 | AI35: 6 | AJ35: 6 | AK35: 8 | AL35: 7 | AM35: 6 | AN35: 11 | AO35: 9 | AP35: 17 | AQ35: 11 | AR35: 6 | AS35: 4 | AT35: 0 | AU35: 0 | AV35: 0 | AW35: 0 | AX35: 101 | AY35: 0 | AZ35: 3 | BA35: 5 | BB35: 3 | BC35: 3 | BD35: 3 | BE35: 4 | BF35: 2 | BG35: 8 | BH35: 8 | BI35: 13 | BJ35: 16 | BK35: 13 | BL35: 25 | BM35: 18 | BN35: 30 | BO35: 27 | BP35: 10 | BQ35: 4 | BR35: 0 | BS35: 0 | BT35: 0 | BU35: 0 | BV35: 195 | BW35: 87 | BX35: =SUM(BL35:BU35)/BV35 -> 0.5846153846
B36: 若松町３ | C36: 0 | D36: 1 | E36: 0 | F36: 0 | G36: 2 | H36: 2 | I36: 0 | J36: 1 | K36: 2 | L36: 2 | M36: 3 | N36: 1 | O36: 2 | P36: 0 | Q36: 1 | R36: 4 | S36: 2 | T36: 6 | U36: 1 | V36: 0 | W36: 0 | X36: 0 | Y36: 0 | Z36: 30 | AA36: 2 | AB36: 0 | AC36: 1 | AD36: 2 | AE36: 1 | AF36: 1 | AG36: 0 | AH36: 0 | AI36: 1 | AJ36: 3 | AK36: 4 | AL36: 2 | AM36: 1 | AN36: 0 | AO36: 2 | AP36: 2 | AQ36: 3 | AR36: 4 | AS36: 2 | AT36: 0 | AU36: 0 | AV36: 0 | AW36: 0 | AX36: 31 | AY36: 2 | AZ36: 1 | BA36: 1 | BB36: 2 | BC36: 3 | BD36: 3 | BE36: 0 | BF36: 1 | BG36: 3 | BH36: 5 | BI36: 7 | BJ36: 3 | BK36: 3 | BL36: 0 | BM36: 3 | BN36: 6 | BO36: 5 | BP36: 10 | BQ36: 3 | BR36: 0 | BS36: 0 | BT36: 0 | BU36: 0 | BV36: 61 | BW36: 24 | BX36: =SUM(BL36:BU36)/BV36 -> 0.4426229508
B37: 二葉町１ | C37: 4 | D37: 8 | E37: 12 | F37: 14 | G37: 13 | H37: 7 | I37: 7 | J37: 5 | K37: 9 | L37: 10 | M37: 17 | N37: 7 | O37: 7 | P37: 12 | Q37: 19 | R37: 6 | S37: 7 | T37: 2 | U37: 3 | V37: 0 | W37: 0 | X37: 0 | Y37: 0 | Z37: 169 | AA37: 5 | AB37: 4 | AC37: 16 | AD37: 11 | AE37: 15 | AF37: 14 | AG37: 9 | AH37: 20 | AI37: 17 | AJ37: 20 | AK37: 25 | AL37: 17 | AM37: 15 | AN37: 17 | AO37: 28 | AP37: 27 | AQ37: 12 | AR37: 10 | AS37: 3 | AT37: 1 | AU37: 0 | AV37: 0 | AW37: 0 | AX37: 286 | AY37: 9 | AZ37: 12 | BA37: 28 | BB37: 25 | BC37: 28 | BD37: 21 | BE37: 16 | BF37: 25 | BG37: 26 | BH37: 30 | BI37: 42 | BJ37: 24 | BK37: 22 | BL37: 29 | BM37: 47 | BN37: 33 | BO37: 19 | BP37: 12 | BQ37: 6 | BR37: 1 | BS37: 0 | BT37: 0 | BU37: 0 | BV37: 455 | BW37: 230 | BX37: =SUM(BL37:BU37)/BV37 -> 0.3230769231
B38: 二葉町２ | C38: 0 | D38: 0 | E38: 1 | F38: 1 | G38: 1 | H38: 1 | I38: 1 | J38: 1 | K38: 2 | L38: 3 | M38: 3 | N38: 0 | O38: 2 | P38: 2 | Q38: 5 | R38: 5 | S38: 9 | T38: 1 | U38: 1 | V38: 1 | W38: 0 | X38: 0 | Y38: 0 | Z38: 40 | AA38: 2 | AB38: 0 | AC38: 0 | AD38: 1 | AE38: 0 | AF38: 1 | AG38: 1 | AH38: 0 | AI38: 1 | AJ38: 3 | AK38: 3 | AL38: 1 | AM38: 3 | AN38: 5 | AO38: 6 | AP38: 13 | AQ38: 8 | AR38: 1 | AS38: 0 | AT38: 2 | AU38: 0 | AV38: 0 | AW38: 0 | AX38: 51 | AY38: 2 | AZ38: 0 | BA38: 1 | BB38: 2 | BC38: 1 | BD38: 2 | BE38: 2 | BF38: 1 | BG38: 3 | BH38: 6 | BI38: 6 | BJ38: 1 | BK38: 5 | BL38: 7 | BM38: 11 | BN38: 18 | BO38: 17 | BP38: 2 | BQ38: 1 | BR38: 3 | BS38: 0 | BT38: 0 | BU38: 0 | BV38: 91 | BW38: 44 | BX38: =SUM(BL38:BU38)/BV38 -> 0.6483516484
B39: 本郷町 | C39: 9 | D39: 12 | E39: 12 | F39: 10 | G39: 5 | H39: 14 | I39: 14 | J39: 8 | K39: 14 | L39: 20 | M39: 16 | N39: 18 | O39: 17 | P39: 34 | Q39: 17 | R39: 24 | S39: 12 | T39: 12 | U39: 3 | V39: 0 | W39: 0 | X39: 0 | Y39: 0 | Z39: 271 | AA39: 6 | AB39: 8 | AC39: 7 | AD39: 11 | AE39: 8 | AF39: 10 | AG39: 11 | AH39: 7 | AI39: 7 | AJ39: 18 | AK39: 23 | AL39: 13 | AM39: 23 | AN39: 26 | AO39: 22 | AP39: 20 | AQ39: 23 | AR39: 8 | AS39: 13 | AT39: 5 | AU39: 0 | AV39: 0 | AW39: 0 | AX39: 269 | AY39: 15 | AZ39: 20 | BA39: 19 | BB39: 21 | BC39: 13 | BD39: 24 | BE39: 25 | BF39: 15 | BG39: 21 | BH39: 38 | BI39: 39 | BJ39: 31 | BK39: 40 | BL39: 60 | BM39: 39 | BN39: 44 | BO39: 35 | BP39: 20 | BQ39: 16 | BR39: 5 | BS39: 0 | BT39: 0 | BU39: 0 | BV39: 540 | BW39: 202 | BX39: =SUM(BL39:BU39)/BV39 -> 0.4055555556
B40: 西条町１ | C40: 7 | D40: 10 | E40: 9 | F40: 22 | G40: 21 | H40: 8 | I40: 8 | J40: 12 | K40: 19 | L40: 22 | M40: 21 | N40: 28 | O40: 26 | P40: 19 | Q40: 25 | R40: 22 | S40: 24 | T40: 15 | U40: 3 | V40: 2 | W40: 0 | X40: 0 | Y40: 0 | Z40: 323 | AA40: 7 | AB40: 14 | AC40: 13 | AD40: 12 | AE40: 13 | AF40: 7 | AG40: 10 | AH40: 16 | AI40: 14 | AJ40: 18 | AK40: 17 | AL40: 22 | AM40: 26 | AN40: 21 | AO40: 19 | AP40: 39 | AQ40: 35 | AR40: 10 | AS40: 12 | AT40: 4 | AU40: 0 | AV40: 0 | AW40: 0 | AX40: 329 | AY40: 14 | AZ40: 24 | BA40: 22 | BB40: 34 | BC40: 34 | BD40: 15 | BE40: 18 | BF40: 28 | BG40: 33 | BH40: 40 | BI40: 38 | BJ40: 50 | BK40: 52 | BL40: 40 | BM40: 44 | BN40: 61 | BO40: 59 | BP40: 25 | BQ40: 15 | BR40: 6 | BS40: 0 | BT40: 0 | BU40: 0 | BV40: 652 | BW40: 259 | BX40: =SUM(BL40:BU40)/BV40 -> 0.3834355828
B41: 西条町２ | C41: 0 | D41: 4 | E41: 5 | F41: 3 | G41: 15 | H41: 14 | I41: 7 | J41: 10 | K41: 9 | L41: 10 | M41: 13 | N41: 9 | O41: 12 | P41: 7 | Q41: 10 | R41: 18 | S41: 14 | T41: 3 | U41: 0 | V41: 0 | W41: 0 | X41: 0 | Y41: 0 | Z41: 163 | AA41: 1 | AB41: 5 | AC41: 3 | AD41: 4 | AE41: 8 | AF41: 17 | AG41: 6 | AH41: 8 | AI41: 5 | AJ41: 10 | AK41: 6 | AL41: 12 | AM41: 11 | AN41: 10 | AO41: 13 | AP41: 17 | AQ41: 11 | AR41: 1 | AS41: 3 | AT41: 1 | AU41: 0 | AV41: 0 | AW41: 0 | AX41: 152 | AY41: 1 | AZ41: 9 | BA41: 8 | BB41: 7 | BC41: 23 | BD41: 31 | BE41: 13 | BF41: 18 | BG41: 14 | BH41: 20 | BI41: 19 | BJ41: 21 | BK41: 23 | BL41: 17 | BM41: 23 | BN41: 35 | BO41: 25 | BP41: 4 | BQ41: 3 | BR41: 1 | BS41: 0 | BT41: 0 | BU41: 0 | BV41: 315 | BW41: 153 | BX41: =SUM(BL41:BU41)/BV41 -> 0.3428571429
B42: 協和町 | C42: 3 | D42: 10 | E42: 2 | F42: 6 | G42: 13 | H42: 24 | I42: 25 | J42: 7 | K42: 9 | L42: 5 | M42: 1 | N42: 2 | O42: 2 | P42: 0 | Q42: 0 | R42: 0 | S42: 0 | T42: 0 | U42: 0 | V42: 0 | W42: 0 | X42: 0 | Y42: 0 | Z42: 109 | AA42: 6 | AB42: 4 | AC42: 1 | AD42: 3 | AE42: 3 | AF42: 7 | AG42: 8 | AH42: 2 | AI42: 7 | AJ42: 6 | AK42: 0 | AL42: 1 | AM42: 1 | AN42: 0 | AO42: 0 | AP42: 0 | AQ42: 0 | AR42: 0 | AS42: 0 | AT42: 0 | AU42: 0 | AV42: 0 | AW42: 0 | AX42: 49 | AY42: 9 | AZ42: 14 | BA42: 3 | BB42: 9 | BC42: 16 | BD42: 31 | BE42: 33 | BF42: 9 | BG42: 16 | BH42: 11 | BI42: 1 | BJ42: 3 | BK42: 3 | BL42: 0 | BM42: 0 | BN42: 0 | BO42: 0 | BP42: 0 | BQ42: 0 | BR42: 0 | BS42: 0 | BT42: 0 | BU42: 0 | BV42: 158 | BW42: 102 | BX42: =SUM(BL42:BU42)/BV42 -> 0
B43: 倉敷町 | C43: 0 | D43: 0 | E43: 0 | F43: 3 | G43: 0 | H43: 0 | I43: 0 | J43: 0 | K43: 0 | L43: 0 | M43: 1 | N43: 1 | O43: 0 | P43: 0 | Q43: 0 | R43: 0 | S43: 0 | T43: 0 | U43: 0 | V43: 0 | W43: 0 | X43: 0 | Y43: 0 | Z43: 5 | AA43: 0 | AB43: 1 | AC43: 0 | AD43: 0 | AE43: 1 | AF43: 0 | AG43: 0 | AH43: 0 | AI43: 0 | AJ43: 1 | AK43: 1 | AL43: 0 | AM43: 0 | AN43: 0 | AO43: 0 | AP43: 0 | AQ43: 0 | AR43: 0 | AS43: 0 | AT43: 0 | AU43: 0 | AV43: 0 | AW43: 0 | AX43: 4 | AY43: 0 | AZ43: 1 | BA43: 0 | BB43: 3 | BC43: 1 | BD43: 0 | BE43: 0 | BF43: 0 | BG43: 0 | BH43: 1 | BI43: 2 | BJ43: 1 | BK43: 0 | BL43: 0 | BM43: 0 | BN43: 0 | BO43: 0 | BP43: 0 | BQ43: 0 | BR43: 0 | BS43: 0 | BT43: 0 | BU43: 0 | BV43: 9 | BW43: 2 | BX43: =SUM(BL43:BU43)/BV43 -> 0
B44: 関沢 | C44: 2 | D44: 5 | E44: 2 | F44: 1 | G44: 1 | H44: 1 | I44: 3 | J44: 9 | K44: 4 | L44: 4 | M44: 3 | N44: 1 | O44: 4 | P44: 13 | Q44: 8 | R44: 5 | S44: 2 | T44: 0 | U44: 1 | V44: 0 | W44: 0 | X44: 0 | Y44: 0 | Z44: 69 | AA44: 0 | AB44: 3 | AC44: 1 | AD44: 0 | AE44: 6 | AF44: 0 | AG44: 2 | AH44: 5 | AI44: 5 | AJ44: 5 | AK44: 6 | AL44: 2 | AM44: 4 | AN44: 12 | AO44: 9 | AP44: 5 | AQ44: 2 | AR44: 4 | AS44: 2 | AT44: 3 | AU44: 0 | AV44: 0 | AW44: 0 | AX44: 76 | AY44: 2 | AZ44: 8 | BA44: 3 | BB44: 1 | BC44: 7 | BD44: 1 | BE44: 5 | BF44: 14 | BG44: 9 | BH44: 9 | BI44: 9 | BJ44: 3 | BK44: 8 | BL44: 25 | BM44: 17 | BN44: 10 | BO44: 4 | BP44: 4 | BQ44: 3 | BR44: 3 | BS44: 0 | BT44: 0 | BU44: 0 | BV44: 145 | BW44: 51 | BX44: =SUM(BL44:BU44)/BV44 -> 0.4551724138
B45: 星の宮町１ | C45: 3 | D45: 10 | E45: 7 | F45: 12 | G45: 12 | H45: 9 | I45: 6 | J45: 11 | K45: 7 | L45: 9 | M45: 17 | N45: 18 | O45: 9 | P45: 11 | Q45: 12 | R45: 29 | S45: 22 | T45: 10 | U45: 2 | V45: 0 | W45: 0 | X45: 0 | Y45: 0 | Z45: 216 | AA45: 3 | AB45: 8 | AC45: 5 | AD45: 6 | AE45: 9 | AF45: 7 | AG45: 9 | AH45: 7 | AI45: 7 | AJ45: 18 | AK45: 15 | AL45: 25 | AM45: 12 | AN45: 18 | AO45: 23 | AP45: 40 | AQ45: 34 | AR45: 14 | AS45: 4 | AT45: 3 | AU45: 1 | AV45: 0 | AW45: 0 | AX45: 268 | AY45: 6 | AZ45: 18 | BA45: 12 | BB45: 18 | BC45: 21 | BD45: 16 | BE45: 15 | BF45: 18 | BG45: 14 | BH45: 27 | BI45: 32 | BJ45: 43 | BK45: 21 | BL45: 29 | BM45: 35 | BN45: 69 | BO45: 56 | BP45: 24 | BQ45: 6 | BR45: 3 | BS45: 1 | BT45: 0 | BU45: 0 | BV45: 484 | BW45: 206 | BX45: =SUM(BL45:BU45)/BV45 -> 0.4607438017
B46: 星の宮町２ | C46: 1 | D46: 3 | E46: 6 | F46: 4 | G46: 0 | H46: 1 | I46: 4 | J46: 6 | K46: 8 | L46: 10 | M46: 5 | N46: 4 | O46: 1 | P46: 11 | Q46: 9 | R46: 10 | S46: 3 | T46: 0 | U46: 0 | V46: 0 | W46: 0 | X46: 0 | Y46: 0 | Z46: 86 | AA46: 1 | AB46: 7 | AC46: 6 | AD46: 2 | AE46: 2 | AF46: 1 | AG46: 2 | AH46: 3 | AI46: 11 | AJ46: 5 | AK46: 3 | AL46: 5 | AM46: 8 | AN46: 10 | AO46: 11 | AP46: 9 | AQ46: 4 | AR46: 2 | AS46: 0 | AT46: 0 | AU46: 0 | AV46: 0 | AW46: 0 | AX46: 92 | AY46: 2 | AZ46: 10 | BA46: 12 | BB46: 6 | BC46: 2 | BD46: 2 | BE46: 6 | BF46: 9 | BG46: 19 | BH46: 15 | BI46: 8 | BJ46: 9 | BK46: 9 | BL46: 21 | BM46: 20 | BN46: 19 | BO46: 7 | BP46: 2 | BQ46: 0 | BR46: 0 | BS46: 0 | BT46: 0 | BU46: 0 | BV46: 178 | BW46: 66 | BX46: =SUM(BL46:BU46)/BV46 -> 0.3876404494
B47: 長橋 | C47: 5 | D47: 3 | E47: 5 | F47: 6 | G47: 7 | H47: 7 | I47: 3 | J47: 9 | K47: 5 | L47: 12 | M47: 3 | N47: 7 | O47: 10 | P47: 8 | Q47: 10 | R47: 8 | S47: 7 | T47: 2 | U47: 2 | V47: 2 | W47: 0 | X47: 0 | Y47: 0 | Z47: 121 | AA47: 5 | AB47: 6 | AC47: 7 | AD47: 6 | AE47: 8 | AF47: 7 | AG47: 3 | AH47: 8 | AI47: 3 | AJ47: 6 | AK47: 7 | AL47: 12 | AM47: 3 | AN47: 10 | AO47: 15 | AP47: 5 | AQ47: 7 | AR47: 8 | AS47: 0 | AT47: 0 | AU47: 0 | AV47: 0 | AW47: 0 | AX47: 126 | AY47: 10 | AZ47: 9 | BA47: 12 | BB47: 12 | BC47: 15 | BD47: 14 | BE47: 6 | BF47: 17 | BG47: 8 | BH47: 18 | BI47: 10 | BJ47: 19 | BK47: 13 | BL47: 18 | BM47: 25 | BN47: 13 | BO47: 14 | BP47: 10 | BQ47: 2 | BR47: 2 | BS47: 0 | BT47: 0 | BU47: 0 | BV47: 247 | BW47: 89 | BX47: =SUM(BL47:BU47)/BV47 -> 0.3400809717
B48: 柴橋 | C48: 29 | D48: 15 | E48: 19 | F48: 27 | G48: 16 | H48: 23 | I48: 28 | J48: 28 | K48: 29 | L48: 33 | M48: 27 | N48: 31 | O48: 15 | P48: 23 | Q48: 24 | R48: 18 | S48: 14 | T48: 6 | U48: 2 | V48: 1 | W48: 0 | X48: 0 | Y48: 0 | Z48: 408 | AA48: 20 | AB48: 27 | AC48: 19 | AD48: 28 | AE48: 20 | AF48: 18 | AG48: 32 | AH48: 31 | AI48: 24 | AJ48: 37 | AK48: 24 | AL48: 17 | AM48: 19 | AN48: 21 | AO48: 26 | AP48: 20 | AQ48: 20 | AR48: 17 | AS48: 8 | AT48: 7 | AU48: 0 | AV48: 0 | AW48: 0 | AX48: 435 | AY48: 49 | AZ48: 42 | BA48: 38 | BB48: 55 | BC48: 36 | BD48: 41 | BE48: 60 | BF48: 59 | BG48: 53 | BH48: 70 | BI48: 51 | BJ48: 48 | BK48: 34 | BL48: 44 | BM48: 50 | BN48: 38 | BO48: 34 | BP48: 23 | BQ48: 10 | BR48: 8 | BS48: 0 | BT48: 0 | BU48: 0 | BV48: 843 | BW48: 312 | BX48: =SUM(BL48:BU48)/BV48 -> 0.2455516014
B49: 草野 | C49: 0 | D49: 1 | E49: 2 | F49: 1 | G49: 3 | H49: 0 | I49: 1 | J49: 2 | K49: 3 | L49: 2 | M49: 2 | N49: 0 | O49: 2 | P49: 1 | Q49: 4 | R49: 8 | S49: 4 | T49: 1 | U49: 1 | V49: 1 | W49: 0 | X49: 0 | Y49: 0 | Z49: 39 | AA49: 1 | AB49: 2 | AC49: 1 | AD49: 1 | AE49: 2 | AF49: 0 | AG49: 1 | AH49: 1 | AI49: 1 | AJ49: 1 | AK49: 4 | AL49: 2 | AM49: 0 | AN49: 4 | AO49: 9 | AP49: 5 | AQ49: 3 | AR49: 4 | AS49: 1 | AT49: 2 | AU49: 1 | AV49: 0 | AW49: 0 | AX49: 46 | AY49: 1 | AZ49: 3 | BA49: 3 | BB49: 2 | BC49: 5 | BD49: 0 | BE49: 2 | BF49: 3 | BG49: 4 | BH49: 3 | BI49: 6 | BJ49: 2 | BK49: 2 | BL49: 5 | BM49: 13 | BN49: 13 | BO49: 7 | BP49: 5 | BQ49: 2 | BR49: 3 | BS49: 1 | BT49: 0 | BU49: 0 | BV49: 85 | BW49: 32 | BX49: =SUM(BL49:BU49)/BV49 -> 0.5764705882
B50: 新舘 | C50: 2 | D50: 2 | E50: 4 | F50: 1 | G50: 3 | H50: 0 | I50: 5 | J50: 2 | K50: 2 | L50: 3 | M50: 5 | N50: 2 | O50: 2 | P50: 8 | Q50: 4 | R50: 6 | S50: 4 | T50: 2 | U50: 0 | V50: 1 | W50: 0 | X50: 0 | Y50: 0 | Z50: 58 | AA50: 1 | AB50: 1 | AC50: 1 | AD50: 1 | AE50: 2 | AF50: 1 | AG50: 2 | AH50: 2 | AI50: 3 | AJ50: 1 | AK50: 4 | AL50: 4 | AM50: 3 | AN50: 9 | AO50: 3 | AP50: 6 | AQ50: 4 | AR50: 6 | AS50: 3 | AT50: 0 | AU50: 0 | AV50: 0 | AW50: 0 | AX50: 57 | AY50: 3 | AZ50: 3 | BA50: 5 | BB50: 2 | BC50: 5 | BD50: 1 | BE50: 7 | BF50: 4 | BG50: 5 | BH50: 4 | BI50: 9 | BJ50: 6 | BK50: 5 | BL50: 17 | BM50: 7 | BN50: 12 | BO50: 8 | BP50: 8 | BQ50: 3 | BR50: 1 | BS50: 0 | BT50: 0 | BU50: 0 | BV50: 115 | BW50: 40 | BX50: =SUM(BL50:BU50)/BV50 -> 0.4869565217
B51: 鷹の巣 | C51: 0 | D51: 0 | E51: 0 | F51: 0 | G51: 1 | H51: 3 | I51: 1 | J51: 0 | K51: 1 | L51: 0 | M51: 0 | N51: 2 | O51: 4 | P51: 1 | Q51: 1 | R51: 1 | S51: 0 | T51: 0 | U51: 0 | V51: 0 | W51: 0 | X51: 0 | Y51: 0 | Z51: 15 | AA51: 0 | AB51: 0 | AC51: 0 | AD51: 1 | AE51: 0 | AF51: 1 | AG51: 0 | AH51: 0 | AI51: 0 | AJ51: 1 | AK51: 1 | AL51: 4 | AM51: 2 | AN51: 1 | AO51: 1 | AP51: 0 | AQ51: 1 | AR51: 1 | AS51: 1 | AT51: 0 | AU51: 0 | AV51: 0 | AW51: 0 | AX51: 15 | AY51: 0 | AZ51: 0 | BA51: 0 | BB51: 1 | BC51: 1 | BD51: 4 | BE51: 1 | BF51: 0 | BG51: 1 | BH51: 1 | BI51: 1 | BJ51: 6 | BK51: 6 | BL51: 2 | BM51: 2 | BN51: 1 | BO51: 1 | BP51: 1 | BQ51: 1 | BR51: 0 | BS51: 0 | BT51: 0 | BU51: 0 | BV51: 30 | BW51: 10 | BX51: =SUM(BL51:BU51)/BV51 -> 0.2666666667
B52: 西川内 | C52: 0 | D52: 0 | E52: 1 | F52: 0 | G52: 2 | H52: 0 | I52: 0 | J52: 0 | K52: 1 | L52: 1 | M52: 0 | N52: 1 | O52: 2 | P52: 0 | Q52: 2 | R52: 3 | S52: 0 | T52: 2 | U52: 0 | V52: 0 | W52: 0 | X52: 0 | Y52: 0 | Z52: 15 | AA52: 0 | AB52: 0 | AC52: 0 | AD52: 1 | AE52: 0 | AF52: 0 | AG52: 1 | AH52: 0 | AI52: 0 | AJ52: 1 | AK52: 0 | AL52: 1 | AM52: 0 | AN52: 1 | AO52: 1 | AP52: 1 | AQ52: 1 | AR52: 1 | AS52: 0 | AT52: 0 | AU52: 0 | AV52: 0 | AW52: 0 | AX52: 9 | AY52: 0 | AZ52: 0 | BA52: 1 | BB52: 1 | BC52: 2 | BD52: 0 | BE52: 1 | BF52: 0 | BG52: 1 | BH52: 2 | BI52: 0 | BJ52: 2 | BK52: 2 | BL52: 1 | BM52: 3 | BN52: 4 | BO52: 1 | BP52: 3 | BQ52: 0 | BR52: 0 | BS52: 0 | BT52: 0 | BU52: 0 | BV52: 24 | BW52: 9 | BX52: =SUM(BL52:BU52)/BV52 -> 0.5
B53: 東川内 | C53: 0 | D53: 2 | E53: 2 | F53: 0 | G53: 1 | H53: 0 | I53: 1 | J53: 2 | K53: 2 | L53: 3 | M53: 0 | N53: 0 | O53: 0 | P53: 0 | Q53: 2 | R53: 5 | S53: 0 | T53: 0 | U53: 0 | V53: 1 | W53: 0 | X53: 0 | Y53: 0 | Z53: 21 | AA53: 0 | AB53: 0 | AC53: 2 | AD53: 2 | AE53: 1 | AF53: 1 | AG53: 0 | AH53: 4 | AI53: 1 | AJ53: 2 | AK53: 0 | AL53: 0 | AM53: 2 | AN53: 0 | AO53: 7 | AP53: 0 | AQ53: 1 | AR53: 2 | AS53: 0 | AT53: 2 | AU53: 0 | AV53: 0 | AW53: 0 | AX53: 27 | AY53: 0 | AZ53: 2 | BA53: 4 | BB53: 2 | BC53: 2 | BD53: 1 | BE53: 1 | BF53: 6 | BG53: 3 | BH53: 5 | BI53: 0 | BJ53: 0 | BK53: 2 | BL53: 0 | BM53: 9 | BN53: 5 | BO53: 1 | BP53: 2 | BQ53: 0 | BR53: 3 | BS53: 0 | BT53: 0 | BU53: 0 | BV53: 48 | BW53: 16 | BX53: =SUM(BL53:BU53)/BV53 -> 0.4166666667
B54: 八田 | C54: 1 | D54: 4 | E54: 1 | F54: 4 | G54: 3 | H54: 0 | I54: 0 | J54: 1 | K54: 5 | L54: 3 | M54: 0 | N54: 1 | O54: 1 | P54: 5 | Q54: 2 | R54: 4 | S54: 0 | T54: 1 | U54: 1 | V54: 0 | W54: 0 | X54: 0 | Y54: 0 | Z54: 37 | AA54: 1 | AB54: 2 | AC54: 3 | AD54: 2 | AE54: 0 | AF54: 2 | AG54: 1 | AH54: 4 | AI54: 4 | AJ54: 3 | AK54: 1 | AL54: 1 | AM54: 0 | AN54: 6 | AO54: 4 | AP54: 3 | AQ54: 0 | AR54: 1 | AS54: 0 | AT54: 1 | AU54: 0 | AV54: 0 | AW54: 0 | AX54: 39 | AY54: 2 | AZ54: 6 | BA54: 4 | BB54: 6 | BC54: 3 | BD54: 2 | BE54: 1 | BF54: 5 | BG54: 9 | BH54: 6 | BI54: 1 | BJ54: 2 | BK54: 1 | BL54: 11 | BM54: 6 | BN54: 7 | BO54: 0 | BP54: 2 | BQ54: 1 | BR54: 1 | BS54: 0 | BT54: 0 | BU54: 0 | BV54: 76 | BW54: 27 | BX54: =SUM(BL54:BU54)/BV54 -> 0.3684210526
B55: 寅田 | C55: 1 | D55: 1 | E55: 2 | F55: 0 | G55: 0 | H55: 0 | I55: 2 | J55: 1 | K55: 1 | L55: 1 | M55: 0 | N55: 0 | O55: 0 | P55: 3 | Q55: 1 | R55: 2 | S55: 3 | T55: 0 | U55: 0 | V55: 0 | W55: 0 | X55: 0 | Y55: 0 | Z55: 18 | AA55: 0 | AB55: 1 | AC55: 0 | AD55: 0 | AE55: 0 | AF55: 0 | AG55: 0 | AH55: 2 | AI55: 1 | AJ55: 0 | AK55: 0 | AL55: 0 | AM55: 0 | AN55: 4 | AO55: 0 | AP55: 3 | AQ55: 1 | AR55: 0 | AS55: 0 | AT55: 0 | AU55: 0 | AV55: 0 | AW55: 0 | AX55: 12 | AY55: 1 | AZ55: 2 | BA55: 2 | BB55: 0 | BC55: 0 | BD55: 0 | BE55: 2 | BF55: 3 | BG55: 2 | BH55: 1 | BI55: 0 | BJ55: 0 | BK55: 0 | BL55: 7 | BM55: 1 | BN55: 5 | BO55: 4 | BP55: 0 | BQ55: 0 | BR55: 0 | BS55: 0 | BT55: 0 | BU55: 0 | BV55: 30 | BW55: 10 | BX55: =SUM(BL55:BU55)/BV55 -> 0.5666666667
B56: 小舟戸 | C56: 0 | D56: 0 | E56: 1 | F56: 0 | G56: 0 | H56: 0 | I56: 1 | J56: 1 | K56: 1 | L56: 1 | M56: 2 | N56: 0 | O56: 1 | P56: 3 | Q56: 1 | R56: 2 | S56: 0 | T56: 2 | U56: 1 | V56: 0 | W56: 0 | X56: 0 | Y56: 0 | Z56: 17 | AA56: 1 | AB56: 1 | AC56: 0 | AD56: 0 | AE56: 0 | AF56: 0 | AG56: 0 | AH56: 1 | AI56: 0 | AJ56: 0 | AK56: 0 | AL56: 1 | AM56: 2 | AN56: 3 | AO56: 1 | AP56: 2 | AQ56: 0 | AR56: 1 | AS56: 0 | AT56: 0 | AU56: 0 | AV56: 0 | AW56: 0 | AX56: 13 | AY56: 1 | AZ56: 1 | BA56: 1 | BB56: 0 | BC56: 0 | BD56: 0 | BE56: 1 | BF56: 2 | BG56: 1 | BH56: 1 | BI56: 2 | BJ56: 1 | BK56: 3 | BL56: 6 | BM56: 2 | BN56: 4 | BO56: 0 | BP56: 3 | BQ56: 1 | BR56: 0 | BS56: 0 | BT56: 0 | BU56: 0 | BV56: 30 | BW56: 13 | BX56: =SUM(BL56:BU56)/BV56 -> 0.5333333333
B57: 船戸 | C57: 0 | D57: 0 | E57: 2 | F57: 1 | G57: 0 | H57: 0 | I57: 1 | J57: 2 | K57: 2 | L57: 1 | M57: 0 | N57: 3 | O57: 1 | P57: 3 | Q57: 8 | R57: 4 | S57: 3 | T57: 1 | U57: 1 | V57: 1 | W57: 0 | X57: 0 | Y57: 0 | Z57: 34 | AA57: 1 | AB57: 2 | AC57: 2 | AD57: 2 | AE57: 0 | AF57: 0 | AG57: 0 | AH57: 3 | AI57: 2 | AJ57: 0 | AK57: 1 | AL57: 1 | AM57: 4 | AN57: 5 | AO57: 5 | AP57: 6 | AQ57: 4 | AR57: 2 | AS57: 1 | AT57: 2 | AU57: 0 | AV57: 0 | AW57: 0 | AX57: 43 | AY57: 1 | AZ57: 2 | BA57: 4 | BB57: 3 | BC57: 0 | BD57: 0 | BE57: 1 | BF57: 5 | BG57: 4 | BH57: 1 | BI57: 1 | BJ57: 4 | BK57: 5 | BL57: 8 | BM57: 13 | BN57: 10 | BO57: 7 | BP57: 3 | BQ57: 2 | BR57: 3 | BS57: 0 | BT57: 0 | BU57: 0 | BV57: 77 | BW57: 33 | BX57: =SUM(BL57:BU57)/BV57 -> 0.5974025974
B58: 飯角 | C58: 5 | D58: 16 | E58: 10 | F58: 7 | G58: 13 | H58: 14 | I58: 14 | J58: 17 | K58: 19 | L58: 19 | M58: 15 | N58: 12 | O58: 8 | P58: 11 | Q58: 13 | R58: 8 | S58: 5 | T58: 4 | U58: 1 | V58: 1 | W58: 0 | X58: 0 | Y58: 0 | Z58: 212 | AA58: 11 | AB58: 19 | AC58: 15 | AD58: 10 | AE58: 12 | AF58: 11 | AG58: 15 | AH58: 12 | AI58: 17 | AJ58: 12 | AK58: 18 | AL58: 13 | AM58: 12 | AN58: 10 | AO58: 12 | AP58: 11 | AQ58: 12 | AR58: 1 | AS58: 5 | AT58: 3 | AU58: 0 | AV58: 0 | AW58: 0 | AX58: 231 | AY58: 16 | AZ58: 35 | BA58: 25 | BB58: 17 | BC58: 25 | BD58: 25 | BE58: 29 | BF58: 29 | BG58: 36 | BH58: 31 | BI58: 33 | BJ58: 25 | BK58: 20 | BL58: 21 | BM58: 25 | BN58: 19 | BO58: 17 | BP58: 5 | BQ58: 6 | BR58: 4 | BS58: 0 | BT58: 0 | BU58: 0 | BV58: 443 | BW58: 163 | BX58: =SUM(BL58:BU58)/BV58 -> 0.2189616253
B59: 半山 | C59: 14 | D59: 9 | E59: 14 | F59: 11 | G59: 14 | H59: 14 | I59: 14 | J59: 20 | K59: 19 | L59: 24 | M59: 19 | N59: 20 | O59: 9 | P59: 14 | Q59: 20 | R59: 18 | S59: 14 | T59: 4 | U59: 3 | V59: 0 | W59: 0 | X59: 0 | Y59: 0 | Z59: 274 | AA59: 9 | AB59: 6 | AC59: 16 | AD59: 12 | AE59: 15 | AF59: 12 | AG59: 13 | AH59: 17 | AI59: 16 | AJ59: 26 | AK59: 20 | AL59: 15 | AM59: 15 | AN59: 12 | AO59: 26 | AP59: 23 | AQ59: 14 | AR59: 6 | AS59: 6 | AT59: 2 | AU59: 1 | AV59: 0 | AW59: 0 | AX59: 282 | AY59: 23 | AZ59: 15 | BA59: 30 | BB59: 23 | BC59: 29 | BD59: 26 | BE59: 27 | BF59: 37 | BG59: 35 | BH59: 50 | BI59: 39 | BJ59: 35 | BK59: 24 | BL59: 26 | BM59: 46 | BN59: 41 | BO59: 28 | BP59: 10 | BQ59: 9 | BR59: 2 | BS59: 1 | BT59: 0 | BU59: 0 | BV59: 556 | BW59: 219 | BX59: =SUM(BL59:BU59)/BV59 -> 0.2931654676
B60: 鴨田 | C60: 1 | D60: 1 | E60: 5 | F60: 4 | G60: 1 | H60: 1 | I60: 1 | J60: 4 | K60: 4 | L60: 7 | M60: 3 | N60: 2 | O60: 1 | P60: 2 | Q60: 0 | R60: 1 | S60: 1 | T60: 2 | U60: 0 | V60: 0 | W60: 0 | X60: 0 | Y60: 0 | Z60: 41 | AA60: 0 | AB60: 6 | AC60: 2 | AD60: 3 | AE60: 1 | AF60: 0 | AG60: 2 | AH60: 5 | AI60: 6 | AJ60: 4 | AK60: 2 | AL60: 3 | AM60: 3 | AN60: 2 | AO60: 2 | AP60: 2 | AQ60: 0 | AR60: 0 | AS60: 0 | AT60: 0 | AU60: 0 | AV60: 0 | AW60: 0 | AX60: 43 | AY60: 1 | AZ60: 7 | BA60: 7 | BB60: 7 | BC60: 2 | BD60: 1 | BE60: 3 | BF60: 9 | BG60: 10 | BH60: 11 | BI60: 5 | BJ60: 5 | BK60: 4 | BL60: 4 | BM60: 2 | BN60: 3 | BO60: 1 | BP60: 2 | BQ60: 0 | BR60: 0 | BS60: 0 | BT60: 0 | BU60: 0 | BV60: 84 | BW60: 31 | BX60: =SUM(BL60:BU60)/BV60 -> 0.1428571429
B61: 赤川 | C61: 3 | D61: 4 | E61: 5 | F61: 5 | G61: 2 | H61: 2 | I61: 4 | J61: 7 | K61: 5 | L61: 7 | M61: 8 | N61: 8 | O61: 5 | P61: 9 | Q61: 10 | R61: 16 | S61: 5 | T61: 4 | U61: 1 | V61: 0 | W61: 0 | X61: 0 | Y61: 0 | Z61: 110 | AA61: 0 | AB61: 1 | AC61: 3 | AD61: 4 | AE61: 3 | AF61: 0 | AG61: 4 | AH61: 5 | AI61: 10 | AJ61: 5 | AK61: 9 | AL61: 5 | AM61: 5 | AN61: 12 | AO61: 13 | AP61: 11 | AQ61: 8 | AR61: 4 | AS61: 5 | AT61: 2 | AU61: 0 | AV61: 0 | AW61: 0 | AX61: 109 | AY61: 3 | AZ61: 5 | BA61: 8 | BB61: 9 | BC61: 5 | BD61: 2 | BE61: 8 | BF61: 12 | BG61: 15 | BH61: 12 | BI61: 17 | BJ61: 13 | BK61: 10 | BL61: 21 | BM61: 23 | BN61: 27 | BO61: 13 | BP61: 8 | BQ61: 6 | BR61: 2 | BS61: 0 | BT61: 0 | BU61: 0 | BV61: 219 | BW61: 68 | BX61: =SUM(BL61:BU61)/BV61 -> 0.4566210046
B62: 上城塚 | C62: 0 | D62: 0 | E62: 1 | F62: 0 | G62: 0 | H62: 0 | I62: 0 | J62: 0 | K62: 0 | L62: 1 | M62: 2 | N62: 0 | O62: 3 | P62: 5 | Q62: 6 | R62: 1 | S62: 3 | T62: 1 | U62: 2 | V62: 0 | W62: 0 | X62: 0 | Y62: 0 | Z62: 25 | AA62: 1 | AB62: 0 | AC62: 0 | AD62: 0 | AE62: 2 | AF62: 0 | AG62: 0 | AH62: 0 | AI62: 1 | AJ62: 1 | AK62: 1 | AL62: 0 | AM62: 2 | AN62: 5 | AO62: 4 | AP62: 4 | AQ62: 3 | AR62: 1 | AS62: 1 | AT62: 1 | AU62: 1 | AV62: 0 | AW62: 0 | AX62: 28 | AY62: 1 | AZ62: 0 | BA62: 1 | BB62: 0 | BC62: 2 | BD62: 0 | BE62: 0 | BF62: 0 | BG62: 1 | BH62: 2 | BI62: 3 | BJ62: 0 | BK62: 5 | BL62: 10 | BM62: 10 | BN62: 5 | BO62: 6 | BP62: 2 | BQ62: 3 | BR62: 1 | BS62: 1 | BT62: 0 | BU62: 0 | BV62: 53 | BW62: 21 | BX62: =SUM(BL62:BU62)/BV62 -> 0.7169811321
B63: 下城塚 | C63: 0 | D63: 0 | E63: 0 | F63: 0 | G63: 0 | H63: 0 | I63: 0 | J63: 0 | K63: 2 | L63: 0 | M63: 0 | N63: 0 | O63: 0 | P63: 1 | Q63: 1 | R63: 2 | S63: 0 | T63: 0 | U63: 0 | V63: 0 | W63: 0 | X63: 0 | Y63: 0 | Z63: 6 | AA63: 0 | AB63: 0 | AC63: 0 | AD63: 0 | AE63: 0 | AF63: 0 | AG63: 0 | AH63: 0 | AI63: 0 | AJ63: 0 | AK63: 0 | AL63: 1 | AM63: 0 | AN63: 0 | AO63: 1 | AP63: 0 | AQ63: 0 | AR63: 0 | AS63: 0 | AT63: 1 | AU63: 0 | AV63: 0 | AW63: 0 | AX63: 3 | AY63: 0 | AZ63: 0 | BA63: 0 | BB63: 0 | BC63: 0 | BD63: 0 | BE63: 0 | BF63: 0 | BG63: 2 | BH63: 0 | BI63: 0 | BJ63: 1 | BK63: 0 | BL63: 1 | BM63: 2 | BN63: 2 | BO63: 0 | BP63: 0 | BQ63: 0 | BR63: 1 | BS63: 0 | BT63: 0 | BU63: 0 | BV63: 9 | BW63: 4 | BX63: =SUM(BL63:BU63)/BV63 -> 0.6666666667
B64: 塩津 | C64: 0 | D64: 0 | E64: 1 | F64: 1 | G64: 2 | H64: 2 | I64: 0 | J64: 0 | K64: 4 | L64: 5 | M64: 2 | N64: 2 | O64: 4 | P64: 2 | Q64: 4 | R64: 2 | S64: 0 | T64: 3 | U64: 0 | V64: 0 | W64: 0 | X64: 0 | Y64: 0 | Z64: 34 | AA64: 1 | AB64: 2 | AC64: 2 | AD64: 1 | AE64: 4 | AF64: 3 | AG64: 0 | AH64: 1 | AI64: 0 | AJ64: 4 | AK64: 3 | AL64: 5 | AM64: 4 | AN64: 1 | AO64: 3 | AP64: 2 | AQ64: 1 | AR64: 2 | AS64: 4 | AT64: 0 | AU64: 0 | AV64: 0 | AW64: 0 | AX64: 43 | AY64: 1 | AZ64: 2 | BA64: 3 | BB64: 2 | BC64: 6 | BD64: 5 | BE64: 0 | BF64: 1 | BG64: 4 | BH64: 9 | BI64: 5 | BJ64: 7 | BK64: 8 | BL64: 3 | BM64: 7 | BN64: 4 | BO64: 1 | BP64: 5 | BQ64: 4 | BR64: 0 | BS64: 0 | BT64: 0 | BU64: 0 | BV64: 77 | BW64: 21 | BX64: =SUM(BL64:BU64)/BV64 -> 0.3116883117
B65: 弥彦岡 | C65: 1 | D65: 0 | E65: 1 | F65: 1 | G65: 2 | H65: 4 | I65: 1 | J65: 1 | K65: 4 | L65: 1 | M65: 2 | N65: 2 | O65: 3 | P65: 3 | Q65: 4 | R65: 3 | S65: 1 | T65: 4 | U65: 0 | V65: 0 | W65: 0 | X65: 0 | Y65: 0 | Z65: 38 | AA65: 0 | AB65: 0 | AC65: 3 | AD65: 1 | AE65: 1 | AF65: 1 | AG65: 0 | AH65: 0 | AI65: 3 | AJ65: 1 | AK65: 2 | AL65: 4 | AM65: 2 | AN65: 4 | AO65: 3 | AP65: 2 | AQ65: 3 | AR65: 1 | AS65: 2 | AT65: 1 | AU65: 0 | AV65: 0 | AW65: 0 | AX65: 34 | AY65: 1 | AZ65: 0 | BA65: 4 | BB65: 2 | BC65: 3 | BD65: 5 | BE65: 1 | BF65: 1 | BG65: 7 | BH65: 2 | BI65: 4 | BJ65: 6 | BK65: 5 | BL65: 7 | BM65: 7 | BN65: 5 | BO65: 4 | BP65: 5 | BQ65: 2 | BR65: 1 | BS65: 0 | BT65: 0 | BU65: 0 | BV65: 72 | BW65: 24 | BX65: =SUM(BL65:BU65)/BV65 -> 0.4305555556
B66: 羽黒 | C66: 8 | D66: 4 | E66: 16 | F66: 21 | G66: 13 | H66: 6 | I66: 6 | J66: 15 | K66: 14 | L66: 14 | M66: 22 | N66: 24 | O66: 27 | P66: 17 | Q66: 20 | R66: 19 | S66: 10 | T66: 5 | U66: 3 | V66: 0 | W66: 0 | X66: 0 | Y66: 0 | Z66: 264 | AA66: 5 | AB66: 8 | AC66: 8 | AD66: 10 | AE66: 9 | AF66: 9 | AG66: 5 | AH66: 9 | AI66: 11 | AJ66: 13 | AK66: 26 | AL66: 19 | AM66: 20 | AN66: 17 | AO66: 20 | AP66: 27 | AQ66: 14 | AR66: 8 | AS66: 5 | AT66: 0 | AU66: 0 | AV66: 0 | AW66: 0 | AX66: 243 | AY66: 13 | AZ66: 12 | BA66: 24 | BB66: 31 | BC66: 22 | BD66: 15 | BE66: 11 | BF66: 24 | BG66: 25 | BH66: 27 | BI66: 48 | BJ66: 43 | BK66: 47 | BL66: 34 | BM66: 40 | BN66: 46 | BO66: 24 | BP66: 13 | BQ66: 8 | BR66: 0 | BS66: 0 | BT66: 0 | BU66: 0 | BV66: 507 | BW66: 209 | BX66: =SUM(BL66:BU66)/BV66 -> 0.325443787
B67: 野中 | C67: 1 | D67: 3 | E67: 4 | F67: 1 | G67: 2 | H67: 2 | I67: 1 | J67: 1 | K67: 2 | L67: 2 | M67: 1 | N67: 4 | O67: 4 | P67: 3 | Q67: 5 | R67: 6 | S67: 0 | T67: 1 | U67: 1 | V67: 0 | W67: 0 | X67: 0 | Y67: 0 | Z67: 44 | AA67: 0 | AB67: 1 | AC67: 1 | AD67: 1 | AE67: 1 | AF67: 1 | AG67: 2 | AH67: 0 | AI67: 3 | AJ67: 4 | AK67: 2 | AL67: 7 | AM67: 4 | AN67: 4 | AO67: 7 | AP67: 4 | AQ67: 1 | AR67: 2 | AS67: 3 | AT67: 0 | AU67: 0 | AV67: 0 | AW67: 0 | AX67: 48 | AY67: 1 | AZ67: 4 | BA67: 5 | BB67: 2 | BC67: 3 | BD67: 3 | BE67: 3 | BF67: 1 | BG67: 5 | BH67: 6 | BI67: 3 | BJ67: 11 | BK67: 8 | BL67: 7 | BM67: 12 | BN67: 10 | BO67: 1 | BP67: 3 | BQ67: 4 | BR67: 0 | BS67: 0 | BT67: 0 | BU67: 0 | BV67: 92 | BW67: 35 | BX67: =SUM(BL67:BU67)/BV67 -> 0.402173913
B68: 並槻 | C68: 6 | D68: 10 | E68: 9 | F68: 4 | G68: 4 | H68: 3 | I68: 9 | J68: 8 | K68: 11 | L68: 3 | M68: 5 | N68: 12 | O68: 10 | P68: 13 | Q68: 15 | R68: 8 | S68: 7 | T68: 3 | U68: 2 | V68: 0 | W68: 0 | X68: 0 | Y68: 0 | Z68: 142 | AA68: 2 | AB68: 3 | AC68: 3 | AD68: 6 | AE68: 4 | AF68: 3 | AG68: 8 | AH68: 4 | AI68: 8 | AJ68: 8 | AK68: 4 | AL68: 7 | AM68: 14 | AN68: 15 | AO68: 9 | AP68: 9 | AQ68: 6 | AR68: 9 | AS68: 6 | AT68: 3 | AU68: 0 | AV68: 0 | AW68: 0 | AX68: 131 | AY68: 8 | AZ68: 13 | BA68: 12 | BB68: 10 | BC68: 8 | BD68: 6 | BE68: 17 | BF68: 12 | BG68: 19 | BH68: 11 | BI68: 9 | BJ68: 19 | BK68: 24 | BL68: 28 | BM68: 24 | BN68: 17 | BO68: 13 | BP68: 12 | BQ68: 8 | BR68: 3 | BS68: 0 | BT68: 0 | BU68: 0 | BV68: 273 | BW68: 90 | BX68: =SUM(BL68:BU68)/BV68 -> 0.3846153846
B69: 追分 | C69: 3 | D69: 3 | E69: 3 | F69: 4 | G69: 8 | H69: 13 | I69: 3 | J69: 4 | K69: 7 | L69: 10 | M69: 10 | N69: 8 | O69: 12 | P69: 15 | Q69: 4 | R69: 7 | S69: 6 | T69: 3 | U69: 0 | V69: 0 | W69: 0 | X69: 0 | Y69: 0 | Z69: 123 | AA69: 0 | AB69: 2 | AC69: 1 | AD69: 3 | AE69: 2 | AF69: 1 | AG69: 1 | AH69: 3 | AI69: 5 | AJ69: 7 | AK69: 3 | AL69: 10 | AM69: 11 | AN69: 5 | AO69: 8 | AP69: 8 | AQ69: 3 | AR69: 2 | AS69: 3 | AT69: 1 | AU69: 0 | AV69: 0 | AW69: 0 | AX69: 79 | AY69: 3 | AZ69: 5 | BA69: 4 | BB69: 7 | BC69: 10 | BD69: 14 | BE69: 4 | BF69: 7 | BG69: 12 | BH69: 17 | BI69: 13 | BJ69: 18 | BK69: 23 | BL69: 20 | BM69: 12 | BN69: 15 | BO69: 9 | BP69: 5 | BQ69: 3 | BR69: 1 | BS69: 0 | BT69: 0 | BU69: 0 | BV69: 202 | BW69: 96 | BX69: =SUM(BL69:BU69)/BV69 -> 0.3217821782
B70: 仁谷野 | C70: 0 | D70: 1 | E70: 1 | F70: 3 | G70: 1 | H70: 0 | I70: 0 | J70: 1 | K70: 1 | L70: 2 | M70: 1 | N70: 2 | O70: 0 | P70: 1 | Q70: 1 | R70: 3 | S70: 2 | T70: 3 | U70: 0 | V70: 1 | W70: 0 | X70: 0 | Y70: 0 | Z70: 24 | AA70: 0 | AB70: 0 | AC70: 1 | AD70: 0 | AE70: 0 | AF70: 2 | AG70: 0 | AH70: 0 | AI70: 1 | AJ70: 2 | AK70: 1 | AL70: 0 | AM70: 1 | AN70: 0 | AO70: 5 | AP70: 6 | AQ70: 0 | AR70: 1 | AS70: 0 | AT70: 1 | AU70: 0 | AV70: 0 | AW70: 0 | AX70: 21 | AY70: 0 | AZ70: 1 | BA70: 2 | BB70: 3 | BC70: 1 | BD70: 2 | BE70: 0 | BF70: 1 | BG70: 2 | BH70: 4 | BI70: 2 | BJ70: 2 | BK70: 1 | BL70: 1 | BM70: 6 | BN70: 9 | BO70: 2 | BP70: 4 | BQ70: 0 | BR70: 2 | BS70: 0 | BT70: 0 | BU70: 0 | BV70: 45 | BW70: 19 | BX70: =SUM(BL70:BU70)/BV70 -> 0.5333333333
B71: 城塚 | C71: 1 | D71: 1 | E71: 1 | F71: 1 | G71: 0 | H71: 0 | I71: 2 | J71: 0 | K71: 0 | L71: 1 | M71: 2 | N71: 3 | O71: 5 | P71: 2 | Q71: 1 | R71: 0 | S71: 1 | T71: 1 | U71: 0 | V71: 0 | W71: 0 | X71: 0 | Y71: 0 | Z71: 22 | AA71: 1 | AB71: 0 | AC71: 0 | AD71: 0 | AE71: 0 | AF71: 0 | AG71: 1 | AH71: 1 | AI71: 0 | AJ71: 0 | AK71: 1 | AL71: 2 | AM71: 3 | AN71: 0 | AO71: 1 | AP71: 2 | AQ71: 2 | AR71: 4 | AS71: 1 | AT71: 0 | AU71: 0 | AV71: 0 | AW71: 0 | AX71: 19 | AY71: 2 | AZ71: 1 | BA71: 1 | BB71: 1 | BC71: 0 | BD71: 0 | BE71: 3 | BF71: 1 | BG71: 0 | BH71: 1 | BI71: 3 | BJ71: 5 | BK71: 8 | BL71: 2 | BM71: 2 | BN71: 2 | BO71: 3 | BP71: 5 | BQ71: 1 | BR71: 0 | BS71: 0 | BT71: 0 | BU71: 0 | BV71: 41 | BW71: 15 | BX71: =SUM(BL71:BU71)/BV71 -> 0.3658536585
B72: つつじが丘 | C72: 3 | D72: 2 | E72: 5 | F72: 77 | G72: 50 | H72: 8 | I72: 14 | J72: 10 | K72: 14 | L72: 14 | M72: 18 | N72: 12 | O72: 12 | P72: 20 | Q72: 20 | R72: 22 | S72: 5 | T72: 3 | U72: 1 | V72: 0 | W72: 0 | X72: 0 | Y72: 0 | Z72: 310 | AA72: 3 | AB72: 7 | AC72: 4 | AD72: 34 | AE72: 21 | AF72: 4 | AG72: 9 | AH72: 8 | AI72: 9 | AJ72: 9 | AK72: 16 | AL72: 17 | AM72: 8 | AN72: 15 | AO72: 19 | AP72: 14 | AQ72: 14 | AR72: 2 | AS72: 0 | AT72: 3 | AU72: 0 | AV72: 0 | AW72: 0 | AX72: 216 | AY72: 6 | AZ72: 9 | BA72: 9 | BB72: 111 | BC72: 71 | BD72: 12 | BE72: 23 | BF72: 18 | BG72: 23 | BH72: 23 | BI72: 34 | BJ72: 29 | BK72: 20 | BL72: 35 | BM72: 39 | BN72: 36 | BO72: 19 | BP72: 5 | BQ72: 1 | BR72: 3 | BS72: 0 | BT72: 0 | BU72: 0 | BV72: 526 | BW72: 378 | BX72: =SUM(BL72:BU72)/BV72 -> 0.2623574144
B73: つくし町 | C73: 0 | D73: 1 | E73: 5 | F73: 3 | G73: 0 | H73: 0 | I73: 1 | J73: 2 | K73: 0 | L73: 2 | M73: 1 | N73: 1 | O73: 0 | P73: 2 | Q73: 1 | R73: 0 | S73: 0 | T73: 0 | U73: 0 | V73: 0 | W73: 0 | X73: 0 | Y73: 0 | Z73: 19 | AA73: 0 | AB73: 0 | AC73: 0 | AD73: 0 | AE73: 0 | AF73: 0 | AG73: 0 | AH73: 3 | AI73: 1 | AJ73: 1 | AK73: 1 | AL73: 1 | AM73: 2 | AN73: 1 | AO73: 0 | AP73: 0 | AQ73: 0 | AR73: 0 | AS73: 0 | AT73: 0 | AU73: 0 | AV73: 0 | AW73: 0 | AX73: 10 | AY73: 0 | AZ73: 1 | BA73: 5 | BB73: 3 | BC73: 0 | BD73: 0 | BE73: 1 | BF73: 5 | BG73: 1 | BH73: 3 | BI73: 2 | BJ73: 2 | BK73: 2 | BL73: 3 | BM73: 1 | BN73: 0 | BO73: 0 | BP73: 0 | BQ73: 0 | BR73: 0 | BS73: 0 | BT73: 0 | BU73: 0 | BV73: 29 | BW73: 11 | BX73: =SUM(BL73:BU73)/BV73 -> 0.1379310345
B74: あかね町 | C74: 31 | D74: 31 | E74: 52 | F74: 34 | G74: 40 | H74: 25 | I74: 25 | J74: 32 | K74: 36 | L74: 53 | M74: 54 | N74: 41 | O74: 21 | P74: 15 | Q74: 9 | R74: 10 | S74: 3 | T74: 2 | U74: 0 | V74: 0 | W74: 0 | X74: 0 | Y74: 0 | Z74: 514 | AA74: 18 | AB74: 21 | AC74: 52 | AD74: 47 | AE74: 34 | AF74: 17 | AG74: 31 | AH74: 34 | AI74: 42 | AJ74: 64 | AK74: 64 | AL74: 31 | AM74: 23 | AN74: 16 | AO74: 13 | AP74: 11 | AQ74: 9 | AR74: 5 | AS74: 1 | AT74: 1 | AU74: 1 | AV74: 0 | AW74: 0 | AX74: 535 | AY74: 49 | AZ74: 52 | BA74: 104 | BB74: 81 | BC74: 74 | BD74: 42 | BE74: 56 | BF74: 66 | BG74: 78 | BH74: 117 | BI74: 118 | BJ74: 72 | BK74: 44 | BL74: 31 | BM74: 22 | BN74: 21 | BO74: 12 | BP74: 7 | BQ74: 1 | BR74: 1 | BS74: 1 | BT74: 0 | BU74: 0 | BV74: 1049 | BW74: 357 | BX74: =SUM(BL74:BU74)/BV74 -> 0.09151572927
A75: 乙 地 区 | B75: 乙 | C75: 5 | D75: 7 | E75: 14 | F75: 3 | G75: 7 | H75: 13 | I75: 10 | J75: 17 | K75: 21 | L75: 19 | M75: 25 | N75: 20 | O75: 22 | P75: 29 | Q75: 45 | R75: 35 | S75: 25 | T75: 6 | U75: 2 | V75: 1 | W75: 0 | X75: 0 | Y75: 0 | Z75: 326 | AA75: 6 | AB75: 8 | AC75: 10 | AD75: 7 | AE75: 7 | AF75: 5 | AG75: 10 | AH75: 17 | AI75: 11 | AJ75: 20 | AK75: 17 | AL75: 26 | AM75: 26 | AN75: 30 | AO75: 39 | AP75: 23 | AQ75: 22 | AR75: 21 | AS75: 11 | AT75: 6 | AU75: 0 | AV75: 0 | AW75: 0 | AX75: 322 | AY75: 11 | AZ75: 15 | BA75: 24 | BB75: 10 | BC75: 14 | BD75: 18 | BE75: 20 | BF75: 34 | BG75: 32 | BH75: 39 | BI75: 42 | BJ75: 46 | BK75: 48 | BL75: 59 | BM75: 84 | BN75: 58 | BO75: 47 | BP75: 27 | BQ75: 13 | BR75: 7 | BS75: 0 | BT75: 0 | BU75: 0 | BV75: 648 | BW75: 238 | BX75: =SUM(BL75:BU75)/BV75 -> 0.4552469136
B76: 桃崎浜 | C76: 4 | D76: 6 | E76: 6 | F76: 16 | G76: 2 | H76: 3 | I76: 10 | J76: 12 | K76: 13 | L76: 13 | M76: 8 | N76: 14 | O76: 19 | P76: 15 | Q76: 16 | R76: 23 | S76: 12 | T76: 5 | U76: 5 | V76: 1 | W76: 0 | X76: 0 | Y76: 0 | Z76: 203 | AA76: 4 | AB76: 4 | AC76: 7 | AD76: 7 | AE76: 4 | AF76: 4 | AG76: 9 | AH76: 11 | AI76: 10 | AJ76: 9 | AK76: 9 | AL76: 14 | AM76: 17 | AN76: 19 | AO76: 17 | AP76: 21 | AQ76: 16 | AR76: 8 | AS76: 6 | AT76: 3 | AU76: 0 | AV76: 0 | AW76: 0 | AX76: 199 | AY76: 8 | AZ76: 10 | BA76: 13 | BB76: 23 | BC76: 6 | BD76: 7 | BE76: 19 | BF76: 23 | BG76: 23 | BH76: 22 | BI76: 17 | BJ76: 28 | BK76: 36 | BL76: 34 | BM76: 33 | BN76: 44 | BO76: 28 | BP76: 13 | BQ76: 11 | BR76: 4 | BS76: 0 | BT76: 0 | BU76: 0 | BV76: 402 | BW76: 151 | BX76: =SUM(BL76:BU76)/BV76 -> 0.4154228856
B77: 荒井浜 | C77: 1 | D77: 4 | E77: 2 | F77: 3 | G77: 0 | H77: 2 | I77: 7 | J77: 4 | K77: 9 | L77: 6 | M77: 9 | N77: 4 | O77: 10 | P77: 15 | Q77: 12 | R77: 11 | S77: 12 | T77: 2 | U77: 2 | V77: 1 | W77: 0 | X77: 0 | Y77: 0 | Z77: 116 | AA77: 2 | AB77: 3 | AC77: 3 | AD77: 5 | AE77: 4 | AF77: 4 | AG77: 2 | AH77: 8 | AI77: 4 | AJ77: 7 | AK77: 12 | AL77: 7 | AM77: 13 | AN77: 10 | AO77: 14 | AP77: 19 | AQ77: 9 | AR77: 13 | AS77: 7 | AT77: 2 | AU77: 0 | AV77: 0 | AW77: 0 | AX77: 148 | AY77: 3 | AZ77: 7 | BA77: 5 | BB77: 8 | BC77: 4 | BD77: 6 | BE77: 9 | BF77: 12 | BG77: 13 | BH77: 13 | BI77: 21 | BJ77: 11 | BK77: 23 | BL77: 25 | BM77: 26 | BN77: 30 | BO77: 21 | BP77: 15 | BQ77: 9 | BR77: 3 | BS77: 0 | BT77: 0 | BU77: 0 | BV77: 264 | BW77: 110 | BX77: =SUM(BL77:BU77)/BV77 -> 0.4886363636
B78: 大出 | C78: 3 | D78: 8 | E78: 10 | F78: 6 | G78: 1 | H78: 8 | I78: 5 | J78: 8 | K78: 14 | L78: 14 | M78: 14 | N78: 15 | O78: 11 | P78: 16 | Q78: 16 | R78: 16 | S78: 9 | T78: 3 | U78: 2 | V78: 4 | W78: 0 | X78: 0 | Y78: 0 | Z78: 183 | AA78: 3 | AB78: 6 | AC78: 11 | AD78: 9 | AE78: 1 | AF78: 8 | AG78: 4 | AH78: 7 | AI78: 11 | AJ78: 14 | AK78: 11 | AL78: 11 | AM78: 11 | AN78: 21 | AO78: 21 | AP78: 21 | AQ78: 9 | AR78: 21 | AS78: 18 | AT78: 4 | AU78: 0 | AV78: 0 | AW78: 0 | AX78: 222 | AY78: 6 | AZ78: 14 | BA78: 21 | BB78: 15 | BC78: 2 | BD78: 16 | BE78: 9 | BF78: 15 | BG78: 25 | BH78: 28 | BI78: 25 | BJ78: 26 | BK78: 22 | BL78: 37 | BM78: 37 | BN78: 37 | BO78: 18 | BP78: 24 | BQ78: 20 | BR78: 8 | BS78: 0 | BT78: 0 | BU78: 0 | BV78: 405 | BW78: 154 | BX78: =SUM(BL78:BU78)/BV78 -> 0.4469135802
B79: 日立 | C79: 0 | D79: 0 | E79: 0 | F79: 2 | G79: 14 | H79: 16 | I79: 3 | J79: 0 | K79: 0 | L79: 0 | M79: 0 | N79: 0 | O79: 0 | P79: 0 | Q79: 0 | R79: 0 | S79: 0 | T79: 0 | U79: 0 | V79: 0 | W79: 0 | X79: 0 | Y79: 0 | Z79: 35 | AA79: 0 | AB79: 0 | AC79: 0 | AD79: 0 | AE79: 0 | AF79: 0 | AG79: 0 | AH79: 0 | AI79: 0 | AJ79: 0 | AK79: 0 | AL79: 0 | AM79: 0 | AN79: 0 | AO79: 0 | AP79: 0 | AQ79: 0 | AR79: 0 | AS79: 0 | AT79: 0 | AU79: 0 | AV79: 0 | AW79: 0 | AX79: 0 | AY79: 0 | AZ79: 0 | BA79: 0 | BB79: 2 | BC79: 14 | BD79: 16 | BE79: 3 | BF79: 0 | BG79: 0 | BH79: 0 | BI79: 0 | BJ79: 0 | BK79: 0 | BL79: 0 | BM79: 0 | BN79: 0 | BO79: 0 | BP79: 0 | BQ79: 0 | BR79: 0 | BS79: 0 | BT79: 0 | BU79: 0 | BV79: 35 | BW79: 35 | BX79: =SUM(BL79:BU79)/BV79 -> 0
B80: 富岡 | C80: 1 | D80: 0 | E80: 0 | F80: 2 | G80: 6 | H80: 4 | I80: 4 | J80: 4 | K80: 6 | L80: 4 | M80: 3 | N80: 6 | O80: 2 | P80: 11 | Q80: 7 | R80: 9 | S80: 4 | T80: 4 | U80: 1 | V80: 0 | W80: 0 | X80: 0 | Y80: 0 | Z80: 78 | AA80: 1 | AB80: 3 | AC80: 1 | AD80: 1 | AE80: 4 | AF80: 4 | AG80: 1 | AH80: 4 | AI80: 4 | AJ80: 2 | AK80: 3 | AL80: 10 | AM80: 6 | AN80: 9 | AO80: 11 | AP80: 8 | AQ80: 4 | AR80: 5 | AS80: 6 | AT80: 1 | AU80: 0 | AV80: 0 | AW80: 0 | AX80: 88 | AY80: 2 | AZ80: 3 | BA80: 1 | BB80: 3 | BC80: 10 | BD80: 8 | BE80: 5 | BF80: 8 | BG80: 10 | BH80: 6 | BI80: 6 | BJ80: 16 | BK80: 8 | BL80: 20 | BM80: 18 | BN80: 17 | BO80: 8 | BP80: 9 | BQ80: 7 | BR80: 1 | BS80: 0 | BT80: 0 | BU80: 0 | BV80: 166 | BW80: 55 | BX80: =SUM(BL80:BU80)/BV80 -> 0.4819277108
B81: 江尻 | C81: 0 | D81: 0 | E81: 0 | F81: 0 | G81: 1 | H81: 1 | I81: 1 | J81: 0 | K81: 1 | L81: 3 | M81: 1 | N81: 2 | O81: 3 | P81: 3 | Q81: 3 | R81: 0 | S81: 3 | T81: 0 | U81: 0 | V81: 0 | W81: 0 | X81: 0 | Y81: 0 | Z81: 22 | AA81: 0 | AB81: 0 | AC81: 0 | AD81: 0 | AE81: 0 | AF81: 0 | AG81: 0 | AH81: 0 | AI81: 0 | AJ81: 1 | AK81: 1 | AL81: 5 | AM81: 1 | AN81: 1 | AO81: 6 | AP81: 1 | AQ81: 1 | AR81: 2 | AS81: 3 | AT81: 1 | AU81: 0 | AV81: 0 | AW81: 0 | AX81: 23 | AY81: 0 | AZ81: 0 | BA81: 0 | BB81: 0 | BC81: 1 | BD81: 1 | BE81: 1 | BF81: 0 | BG81: 1 | BH81: 4 | BI81: 2 | BJ81: 7 | BK81: 4 | BL81: 4 | BM81: 9 | BN81: 1 | BO81: 4 | BP81: 2 | BQ81: 3 | BR81: 1 | BS81: 0 | BT81: 0 | BU81: 0 | BV81: 45 | BW81: 17 | BX81: =SUM(BL81:BU81)/BV81 -> 0.5333333333
B82: 地本 | C82: 0 | D82: 1 | E82: 6 | F82: 0 | G82: 2 | H82: 3 | I82: 0 | J82: 3 | K82: 2 | L82: 3 | M82: 2 | N82: 1 | O82: 1 | P82: 1 | Q82: 7 | R82: 2 | S82: 0 | T82: 0 | U82: 0 | V82: 0 | W82: 0 | X82: 0 | Y82: 0 | Z82: 34 | AA82: 1 | AB82: 1 | AC82: 1 | AD82: 1 | AE82: 0 | AF82: 1 | AG82: 0 | AH82: 1 | AI82: 2 | AJ82: 4 | AK82: 2 | AL82: 0 | AM82: 1 | AN82: 3 | AO82: 5 | AP82: 1 | AQ82: 3 | AR82: 1 | AS82: 0 | AT82: 0 | AU82: 0 | AV82: 0 | AW82: 0 | AX82: 28 | AY82: 1 | AZ82: 2 | BA82: 7 | BB82: 1 | BC82: 2 | BD82: 4 | BE82: 0 | BF82: 4 | BG82: 4 | BH82: 7 | BI82: 4 | BJ82: 1 | BK82: 2 | BL82: 4 | BM82: 12 | BN82: 3 | BO82: 3 | BP82: 1 | BQ82: 0 | BR82: 0 | BS82: 0 | BT82: 0 | BU82: 0 | BV82: 62 | BW82: 19 | BX82: =SUM(BL82:BU82)/BV82 -> 0.3709677419
B83: 八幡 | C83: 0 | D83: 3 | E83: 3 | F83: 4 | G83: 4 | H83: 4 | I83: 1 | J83: 12 | K83: 9 | L83: 7 | M83: 7 | N83: 6 | O83: 13 | P83: 6 | Q83: 11 | R83: 11 | S83: 7 | T83: 1 | U83: 0 | V83: 0 | W83: 0 | X83: 0 | Y83: 0 | Z83: 109 | AA83: 1 | AB83: 4 | AC83: 7 | AD83: 6 | AE83: 5 | AF83: 2 | AG83: 2 | AH83: 9 | AI83: 5 | AJ83: 8 | AK83: 4 | AL83: 4 | AM83: 7 | AN83: 11 | AO83: 13 | AP83: 14 | AQ83: 6 | AR83: 5 | AS83: 1 | AT83: 0 | AU83: 2 | AV83: 0 | AW83: 0 | AX83: 116 | AY83: 1 | AZ83: 7 | BA83: 10 | BB83: 10 | BC83: 9 | BD83: 6 | BE83: 3 | BF83: 21 | BG83: 14 | BH83: 15 | BI83: 11 | BJ83: 10 | BK83: 20 | BL83: 17 | BM83: 24 | BN83: 25 | BO83: 13 | BP83: 6 | BQ83: 1 | BR83: 0 | BS83: 2 | BT83: 0 | BU83: 0 | BV83: 225 | BW83: 80 | BX83: =SUM(BL83:BU83)/BV83 -> 0.3911111111
B84: 高野 | C84: 1 | D84: 0 | E84: 2 | F84: 3 | G84: 5 | H84: 0 | I84: 1 | J84: 4 | K84: 5 | L84: 4 | M84: 11 | N84: 5 | O84: 7 | P84: 9 | Q84: 14 | R84: 8 | S84: 4 | T84: 2 | U84: 1 | V84: 1 | W84: 0 | X84: 0 | Y84: 0 | Z84: 87 | AA84: 0 | AB84: 2 | AC84: 0 | AD84: 1 | AE84: 2 | AF84: 4 | AG84: 3 | AH84: 1 | AI84: 3 | AJ84: 4 | AK84: 8 | AL84: 5 | AM84: 5 | AN84: 12 | AO84: 11 | AP84: 8 | AQ84: 5 | AR84: 7 | AS84: 4 | AT84: 2 | AU84: 1 | AV84: 0 | AW84: 0 | AX84: 88 | AY84: 1 | AZ84: 2 | BA84: 2 | BB84: 4 | BC84: 7 | BD84: 4 | BE84: 4 | BF84: 5 | BG84: 8 | BH84: 8 | BI84: 19 | BJ84: 10 | BK84: 12 | BL84: 21 | BM84: 25 | BN84: 16 | BO84: 9 | BP84: 9 | BQ84: 5 | BR84: 3 | BS84: 1 | BT84: 0 | BU84: 0 | BV84: 175 | BW84: 62 | BX84: =SUM(BL84:BU84)/BV84 -> 0.5085714286
B85: 高野茨島 | C85: 0 | D85: 2 | E85: 1 | F85: 0 | G85: 0 | H85: 1 | I85: 1 | J85: 0 | K85: 1 | L85: 1 | M85: 2 | N85: 1 | O85: 0 | P85: 1 | Q85: 1 | R85: 3 | S85: 1 | T85: 0 | U85: 0 | V85: 0 | W85: 0 | X85: 0 | Y85: 0 | Z85: 16 | AA85: 1 | AB85: 2 | AC85: 2 | AD85: 0 | AE85: 0 | AF85: 0 | AG85: 1 | AH85: 0 | AI85: 1 | AJ85: 2 | AK85: 0 | AL85: 2 | AM85: 0 | AN85: 0 | AO85: 3 | AP85: 2 | AQ85: 1 | AR85: 2 | AS85: 0 | AT85: 0 | AU85: 0 | AV85: 0 | AW85: 0 | AX85: 19 | AY85: 1 | AZ85: 4 | BA85: 3 | BB85: 0 | BC85: 0 | BD85: 1 | BE85: 2 | BF85: 0 | BG85: 2 | BH85: 3 | BI85: 2 | BJ85: 3 | BK85: 0 | BL85: 1 | BM85: 4 | BN85: 5 | BO85: 2 | BP85: 2 | BQ85: 0 | BR85: 0 | BS85: 0 | BT85: 0 | BU85: 0 | BV85: 35 | BW85: 11 | BX85: =SUM(BL85:BU85)/BV85 -> 0.4
B86: 土作 | C86: 0 | D86: 1 | E86: 0 | F86: 2 | G86: 2 | H86: 1 | I86: 1 | J86: 4 | K86: 1 | L86: 3 | M86: 0 | N86: 0 | O86: 4 | P86: 5 | Q86: 1 | R86: 5 | S86: 1 | T86: 5 | U86: 0 | V86: 0 | W86: 0 | X86: 0 | Y86: 0 | Z86: 36 | AA86: 1 | AB86: 0 | AC86: 3 | AD86: 2 | AE86: 1 | AF86: 0 | AG86: 0 | AH86: 3 | AI86: 3 | AJ86: 0 | AK86: 3 | AL86: 0 | AM86: 5 | AN86: 4 | AO86: 2 | AP86: 3 | AQ86: 2 | AR86: 4 | AS86: 0 | AT86: 1 | AU86: 0 | AV86: 0 | AW86: 0 | AX86: 37 | AY86: 1 | AZ86: 1 | BA86: 3 | BB86: 4 | BC86: 3 | BD86: 1 | BE86: 1 | BF86: 7 | BG86: 4 | BH86: 3 | BI86: 3 | BJ86: 0 | BK86: 9 | BL86: 9 | BM86: 3 | BN86: 8 | BO86: 3 | BP86: 9 | BQ86: 0 | BR86: 1 | BS86: 0 | BT86: 0 | BU86: 0 | BV86: 73 | BW86: 28 | BX86: =SUM(BL86:BU86)/BV86 -> 0.4520547945
B87: 横道 | C87: 1 | D87: 1 | E87: 4 | F87: 7 | G87: 1 | H87: 0 | I87: 3 | J87: 8 | K87: 7 | L87: 5 | M87: 7 | N87: 2 | O87: 7 | P87: 14 | Q87: 14 | R87: 7 | S87: 3 | T87: 2 | U87: 1 | V87: 0 | W87: 0 | X87: 0 | Y87: 0 | Z87: 94 | AA87: 3 | AB87: 2 | AC87: 4 | AD87: 4 | AE87: 6 | AF87: 2 | AG87: 2 | AH87: 5 | AI87: 4 | AJ87: 6 | AK87: 2 | AL87: 1 | AM87: 10 | AN87: 10 | AO87: 9 | AP87: 10 | AQ87: 4 | AR87: 4 | AS87: 6 | AT87: 1 | AU87: 0 | AV87: 0 | AW87: 0 | AX87: 95 | AY87: 4 | AZ87: 3 | BA87: 8 | BB87: 11 | BC87: 7 | BD87: 2 | BE87: 5 | BF87: 13 | BG87: 11 | BH87: 11 | BI87: 9 | BJ87: 3 | BK87: 17 | BL87: 24 | BM87: 23 | BN87: 17 | BO87: 7 | BP87: 6 | BQ87: 7 | BR87: 1 | BS87: 0 | BT87: 0 | BU87: 0 | BV87: 189 | BW87: 61 | BX87: =SUM(BL87:BU87)/BV87 -> 0.4497354497
B88: 平木田 | C88: 1 | D88: 2 | E88: 4 | F88: 3 | G88: 1 | H88: 3 | I88: 6 | J88: 5 | K88: 4 | L88: 5 | M88: 2 | N88: 3 | O88: 7 | P88: 7 | Q88: 10 | R88: 10 | S88: 0 | T88: 1 | U88: 3 | V88: 0 | W88: 0 | X88: 0 | Y88: 0 | Z88: 77 | AA88: 2 | AB88: 3 | AC88: 5 | AD88: 0 | AE88: 0 | AF88: 3 | AG88: 0 | AH88: 1 | AI88: 6 | AJ88: 5 | AK88: 4 | AL88: 3 | AM88: 5 | AN88: 7 | AO88: 14 | AP88: 6 | AQ88: 3 | AR88: 3 | AS88: 3 | AT88: 1 | AU88: 0 | AV88: 0 | AW88: 0 | AX88: 74 | AY88: 3 | AZ88: 5 | BA88: 9 | BB88: 3 | BC88: 1 | BD88: 6 | BE88: 6 | BF88: 6 | BG88: 10 | BH88: 10 | BI88: 6 | BJ88: 6 | BK88: 12 | BL88: 14 | BM88: 24 | BN88: 16 | BO88: 3 | BP88: 4 | BQ88: 6 | BR88: 1 | BS88: 0 | BT88: 0 | BU88: 0 | BV88: 151 | BW88: 52 | BX88: =SUM(BL88:BU88)/BV88 -> 0.4503311258
B89: 平木田駅前 | C89: 7 | D89: 5 | E89: 7 | F89: 17 | G89: 8 | H89: 7 | I89: 18 | J89: 11 | K89: 18 | L89: 19 | M89: 18 | N89: 20 | O89: 16 | P89: 16 | Q89: 22 | R89: 25 | S89: 14 | T89: 9 | U89: 2 | V89: 0 | W89: 0 | X89: 0 | Y89: 0 | Z89: 259 | AA89: 1 | AB89: 5 | AC89: 11 | AD89: 7 | AE89: 10 | AF89: 1 | AG89: 10 | AH89: 8 | AI89: 15 | AJ89: 17 | AK89: 16 | AL89: 18 | AM89: 19 | AN89: 18 | AO89: 24 | AP89: 20 | AQ89: 24 | AR89: 11 | AS89: 11 | AT89: 3 | AU89: 0 | AV89: 1 | AW89: 0 | AX89: 250 | AY89: 8 | AZ89: 10 | BA89: 18 | BB89: 24 | BC89: 18 | BD89: 8 | BE89: 28 | BF89: 19 | BG89: 33 | BH89: 36 | BI89: 34 | BJ89: 38 | BK89: 35 | BL89: 34 | BM89: 46 | BN89: 45 | BO89: 38 | BP89: 20 | BQ89: 13 | BR89: 3 | BS89: 0 | BT89: 1 | BU89: 0 | BV89: 509 | BW89: 221 | BX89: =SUM(BL89:BU89)/BV89 -> 0.3929273084
B90: 十二天 | C90: 1 | D90: 1 | E90: 6 | F90: 5 | G90: 4 | H90: 1 | I90: 2 | J90: 1 | K90: 8 | L90: 9 | M90: 4 | N90: 1 | O90: 4 | P90: 5 | Q90: 5 | R90: 7 | S90: 3 | T90: 2 | U90: 1 | V90: 0 | W90: 0 | X90: 0 | Y90: 0 | Z90: 70 | AA90: 1 | AB90: 3 | AC90: 3 | AD90: 5 | AE90: 5 | AF90: 3 | AG90: 0 | AH90: 3 | AI90: 5 | AJ90: 6 | AK90: 6 | AL90: 3 | AM90: 4 | AN90: 6 | AO90: 3 | AP90: 4 | AQ90: 2 | AR90: 8 | AS90: 2 | AT90: 0 | AU90: 0 | AV90: 0 | AW90: 0 | AX90: 72 | AY90: 2 | AZ90: 4 | BA90: 9 | BB90: 10 | BC90: 9 | BD90: 4 | BE90: 2 | BF90: 4 | BG90: 13 | BH90: 15 | BI90: 10 | BJ90: 4 | BK90: 8 | BL90: 11 | BM90: 8 | BN90: 11 | BO90: 5 | BP90: 10 | BQ90: 3 | BR90: 0 | BS90: 0 | BT90: 0 | BU90: 0 | BV90: 142 | BW90: 48 | BX90: =SUM(BL90:BU90)/BV90 -> 0.338028169
B91: 小地谷 | C91: 0 | D91: 0 | E91: 0 | F91: 1 | G91: 0 | H91: 2 | I91: 0 | J91: 0 | K91: 0 | L91: 0 | M91: 2 | N91: 2 | O91: 1 | P91: 1 | Q91: 1 | R91: 2 | S91: 0 | T91: 1 | U91: 0 | V91: 0 | W91: 0 | X91: 0 | Y91: 0 | Z91: 13 | AA91: 1 | AB91: 0 | AC91: 0 | AD91: 0 | AE91: 1 | AF91: 1 | AG91: 0 | AH91: 0 | AI91: 1 | AJ91: 0 | AK91: 1 | AL91: 3 | AM91: 1 | AN91: 1 | AO91: 1 | AP91: 4 | AQ91: 0 | AR91: 2 | AS91: 0 | AT91: 0 | AU91: 0 | AV91: 0 | AW91: 0 | AX91: 17 | AY91: 1 | AZ91: 0 | BA91: 0 | BB91: 1 | BC91: 1 | BD91: 3 | BE91: 0 | BF91: 0 | BG91: 1 | BH91: 0 | BI91: 3 | BJ91: 5 | BK91: 2 | BL91: 2 | BM91: 2 | BN91: 6 | BO91: 0 | BP91: 3 | BQ91: 0 | BR91: 0 | BS91: 0 | BT91: 0 | BU91: 0 | BV91: 30 | BW91: 9 | BX91: =SUM(BL91:BU91)/BV91 -> 0.4333333333
B92: 山屋 | C92: 0 | D92: 1 | E92: 1 | F92: 0 | G92: 1 | H92: 0 | I92: 2 | J92: 1 | K92: 1 | L92: 1 | M92: 1 | N92: 2 | O92: 1 | P92: 3 | Q92: 2 | R92: 4 | S92: 1 | T92: 1 | U92: 0 | V92: 0 | W92: 0 | X92: 0 | Y92: 0 | Z92: 23 | AA92: 0 | AB92: 0 | AC92: 2 | AD92: 0 | AE92: 0 | AF92: 0 | AG92: 1 | AH92: 0 | AI92: 1 | AJ92: 0 | AK92: 1 | AL92: 2 | AM92: 1 | AN92: 3 | AO92: 3 | AP92: 0 | AQ92: 1 | AR92: 5 | AS92: 0 | AT92: 0 | AU92: 0 | AV92: 0 | AW92: 0 | AX92: 20 | AY92: 0 | AZ92: 1 | BA92: 3 | BB92: 0 | BC92: 1 | BD92: 0 | BE92: 3 | BF92: 1 | BG92: 2 | BH92: 1 | BI92: 2 | BJ92: 4 | BK92: 2 | BL92: 6 | BM92: 5 | BN92: 4 | BO92: 2 | BP92: 6 | BQ92: 0 | BR92: 0 | BS92: 0 | BT92: 0 | BU92: 0 | BV92: 43 | BW92: 18 | BX92: =SUM(BL92:BU92)/BV92 -> 0.5348837209
B93: 菅田 | C93: 3 | D93: 6 | E93: 2 | F93: 1 | G93: 4 | H93: 6 | I93: 9 | J93: 5 | K93: 4 | L93: 6 | M93: 7 | N93: 7 | O93: 16 | P93: 10 | Q93: 22 | R93: 6 | S93: 9 | T93: 2 | U93: 3 | V93: 3 | W93: 0 | X93: 0 | Y93: 0 | Z93: 131 | AA93: 3 | AB93: 8 | AC93: 3 | AD93: 2 | AE93: 3 | AF93: 2 | AG93: 8 | AH93: 3 | AI93: 7 | AJ93: 3 | AK93: 1 | AL93: 11 | AM93: 13 | AN93: 15 | AO93: 14 | AP93: 8 | AQ93: 11 | AR93: 9 | AS93: 4 | AT93: 3 | AU93: 0 | AV93: 0 | AW93: 0 | AX93: 131 | AY93: 6 | AZ93: 14 | BA93: 5 | BB93: 3 | BC93: 7 | BD93: 8 | BE93: 17 | BF93: 8 | BG93: 11 | BH93: 9 | BI93: 8 | BJ93: 18 | BK93: 29 | BL93: 25 | BM93: 36 | BN93: 14 | BO93: 20 | BP93: 11 | BQ93: 7 | BR93: 6 | BS93: 0 | BT93: 0 | BU93: 0 | BV93: 262 | BW93: 82 | BX93: =SUM(BL93:BU93)/BV93 -> 0.4541984733
A94: 築 地 地 区 | B94: 北成田 | C94: 1 | D94: 0 | E94: 4 | F94: 1 | G94: 4 | H94: 1 | I94: 6 | J94: 10 | K94: 6 | L94: 4 | M94: 7 | N94: 4 | O94: 10 | P94: 5 | Q94: 9 | R94: 8 | S94: 6 | T94: 2 | U94: 1 | V94: 0 | W94: 0 | X94: 0 | Y94: 0 | Z94: 89 | AA94: 1 | AB94: 1 | AC94: 5 | AD94: 2 | AE94: 2 | AF94: 6 | AG94: 3 | AH94: 2 | AI94: 3 | AJ94: 5 | AK94: 4 | AL94: 7 | AM94: 5 | AN94: 7 | AO94: 13 | AP94: 7 | AQ94: 5 | AR94: 5 | AS94: 4 | AT94: 0 | AU94: 1 | AV94: 0 | AW94: 0 | AX94: 88 | AY94: 2 | AZ94: 1 | BA94: 9 | BB94: 3 | BC94: 6 | BD94: 7 | BE94: 9 | BF94: 12 | BG94: 9 | BH94: 9 | BI94: 11 | BJ94: 11 | BK94: 15 | BL94: 12 | BM94: 22 | BN94: 15 | BO94: 11 | BP94: 7 | BQ94: 5 | BR94: 0 | BS94: 1 | BT94: 0 | BU94: 0 | BV94: 177 | BW94: 45 | BX94: =SUM(BL94:BU94)/BV94 -> 0.4124293785
B95: 宮川 | C95: 1 | D95: 4 | E95: 0 | F95: 1 | G95: 1 | H95: 2 | I95: 4 | J95: 2 | K95: 2 | L95: 5 | M95: 3 | N95: 7 | O95: 5 | P95: 3 | Q95: 4 | R95: 5 | S95: 2 | T95: 3 | U95: 1 | V95: 1 | W95: 0 | X95: 0 | Y95: 0 | Z95: 56 | AA95: 2 | AB95: 2 | AC95: 3 | AD95: 0 | AE95: 0 | AF95: 3 | AG95: 4 | AH95: 1 | AI95: 2 | AJ95: 2 | AK95: 1 | AL95: 6 | AM95: 5 | AN95: 2 | AO95: 5 | AP95: 6 | AQ95: 2 | AR95: 3 | AS95: 3 | AT95: 1 | AU95: 0 | AV95: 0 | AW95: 0 | AX95: 53 | AY95: 3 | AZ95: 6 | BA95: 3 | BB95: 1 | BC95: 1 | BD95: 5 | BE95: 8 | BF95: 3 | BG95: 4 | BH95: 7 | BI95: 4 | BJ95: 13 | BK95: 10 | BL95: 5 | BM95: 9 | BN95: 11 | BO95: 4 | BP95: 6 | BQ95: 4 | BR95: 2 | BS95: 0 | BT95: 0 | BU95: 0 | BV95: 109 | BW95: 34 | BX95: =SUM(BL95:BU95)/BV95 -> 0.376146789
